Workbook

Sheet CONTROLS
B4: Change Model Inputs & Assumptions | C4: Model Management
B5: Inputs | C5: Run
B6: Define Classifiers | C6: Error Locator
B7: Define External Allocators | C7: Collapse Model
B8: Define Internal Allocators | C8: Expand Model
B9: Alter Account Data & Select Factors | C9: Print Summary
C10: Print Preview Reports

Sheet INPUTS
A1: Global Inputs
B3: Model Choice | E3: Functions
A5: 1 | B5: Historic Test Year Twelve Months ended December 2018
A6: 2 | B6: Adjusted Test Year Twelve Months ended December 2018 @ Proforma Rev Requirement
A7: 3 | B7: Adjusted Test Year Twelve Months ended December 2018~ Proposed Rate Increase
A8: 4 | B8: Reserved 1
A9: 5 | B9: Reserved 2
E10: Name | F10: Description
B11: Model Choice | C11: 2 | E11: F_PRODU | F11: Production
E12: F_TRANS | F12: Transmission
E13: F_DISTR | F13: Distribution
E14: ~ | F14: ~
B15: Rate Classes | E15: ~ | F15: ~
E16: ~ | F16: ~
B17: Rate Class | C17: Description | E17: ~ | F17: ~
A18: 1 | B18: Res Svc | C18: Residential Sch 7 | E18: ~ | F18: ~
A19: 2 | B19: Sec Svc 24 | C19: Sec Volt Sch 24 (kW< 50) | E19: ~ | F19: ~
A20: 3 | B20: Sec Svc 25 / 29 / 7A | C20: Sec Volt Sch 25 (kW > 50 & < 350) | E20: ~ | F20: ~
A21: 4 | B21: Sec Svc 26 /26P | C21: Sec Volt Sch 26 (kW > 350)
A22: 5 | B22: Pri Svc 31 | C22: Pri Volt Sch 31 (General Service) | F22: Factor Name
A23: 6 | B23: Pri Svc 35 | C23: Pri Volt Sch 35 (Irrigation) | E23: Unit Costs | F23: ENERGY_1
A24: 7 | B24: Pri Svc 43 | C24: Pri Volt Sch 43 (Interruptible) | F24: CUST_1
A25: 8 | B25: Special Contract | C25: Special Contract | F25: DEM_2B
A26: 9 | B26: High Volt 46/49 | C26: High Volt Sch 46 & 49 (Interruptible & Gen Svc) | F26: ENERGY_2
A27: 10 | B27: Choice/Retail Wheeling | C27: Choice/Retail Wheeling Sch 449 & 459 | E27: Rate of Return
A28: 11 | B28: Lighting 50-59 | C28: Street & Area Lighting | F28: Percent
A29: 12 | B29: Firm Resale | C29: Firm Resale | E29: ROR | F29: =+'[1]ECOS - INPUTS'!F29 -> 0.0762
A30: 13 | B30: ~ | C30: ~ | E30: ROD | F30: =+'[1]ECOS - INPUTS'!F30 -> 0.0287
A31: 14 | B31: ~ | C31: ~ | E31: ROE | F31: =+'[1]ECOS - INPUTS'!F31 -> 0.0475
A32: 15 | B32: ~ | C32: ~
A33: 16 | B33: ~ | C33: ~ | E33: Income Tax
A34: 17 | B34: ~ | C34: ~ | E34: State Income Tax | F34: 0
A35: 18 | B35: ~ | C35: ~ | E35: Federal Income Tax | F35: 0 | G35: =+'[1]ECOS - INPUTS'!$G$35 -> 0.21
A36: 19 | B36: ~ | C36: ~ | E36: Effective Tax Rate | F36: =((1-STAX)*FTAX)+STAX -> 0
A37: 20 | B37: ~ | C37: ~
E38: Uncollectible
B39: Classifers | E39: Residential | F39: 0
E40: Other | F40: =+ResUnc -> 0
B41: Name | C41: Description | E41: Other | F41: =+ResUnc -> 0
B42: DEM | C42: Demand
B43: NRG | C43: Energy | E43: Revenue Conversion Factors
B44: CUS | C44: Customer | E44: All | F44: =+'[1]ECOS - INPUTS'!$F$44 -> 0.751381 | G44: =+ResRCF -> 0.751381
B45: ~ | C45: ~ | E45: Other | F45: 0
B46: ~ | C46: ~ | E46: Other | F46: 0
B47: ~ | C47: ~
B49: Revnue Targets by Rate Class and Case
D51: =+A5 -> 1 | E51: =+A6 -> 2 | F51: =+A7 -> 3
D52: =+B5 -> Historic Test Year Twelve Months ended December 2018 | E52: =+B6 -> Adjusted Test Year Twelve Months ended December 2018 @ Proforma Rev Requirement | F52: =+B7 -> Adjusted Test Year Twelve Months ended December 2018~ Proposed Rate Increase
B53: =+B17 -> Rate Class
A54: 1 | B54: =+B18 -> Res Svc | E54: =+'[1]ECOS - INPUTS'!E54 -> 1105896512
A55: 2 | B55: =+B19 -> Sec Svc 24 | E55: =+'[1]ECOS - INPUTS'!E55 -> 263390391
A56: 3 | B56: Sec Svc 25 / 29 / 7A | E56: =+'[1]ECOS - INPUTS'!E56 -> 270703257
A57: 4 | B57: Sec Svc 26 /26P | E57: =+'[1]ECOS - INPUTS'!E57 -> 160280839
A58: 5 | B58: Pri Svc 31 | E58: =+'[1]ECOS - INPUTS'!E58 -> 113255219
A59: 6 | B59: Pri Svc 35 | E59: =+'[1]ECOS - INPUTS'!E59 -> 268014
A60: 7 | B60: Pri Svc 43 | E60: =+'[1]ECOS - INPUTS'!E60 -> 10687146
A61: 8 | B61: Special Contract | E61: =+'[1]ECOS - INPUTS'!E61 -> 5493550
A62: 9 | B62: High Volt 46/49 | E62: =+'[1]ECOS - INPUTS'!E62 -> 40128244
A63: 10 | B63: Choice/Retail Wheeling | E63: =+'[1]ECOS - INPUTS'!E63 -> 10114356
A64: 11 | B64: Lighting 50-59 | E64: =+'[1]ECOS - INPUTS'!E64 -> 16457494
A65: 12 | B65: Firm Resale | E65: =+'[1]ECOS - INPUTS'!E65 -> 327360
A66: 13 | B66: ~
A67: 14 | B67: ~
A68: 15 | B68: ~
A69: 16 | B69: ~
A70: 17 | B70: ~
A71: 18 | B71: ~
A72: 19 | B72: ~
A73: 20 | B73: ~
E74: =SUM(E54:E73) -> 1997002382 | F74: =SUM(F54:F73) -> 0

Sheet CLASSIFIERS
A1: Classifiers
A3: Name | B3: Description | C3: Total | D3: =INPUTS!$B$42 -> DEM | E3: =INPUTS!$B$43 -> NRG | F3: =INPUTS!$B$44 -> CUS | G3: =INPUTS!$B$45 -> ~ | H3: =INPUTS!$B$46 -> ~ | I3: =INPUTS!$B$47 -> ~
A4: DEM | B4: Demand | C4: =SUM(D4:I4) -> 1 | D4: 1
A5: NRG | B5: Energy | C5: 1 | E5: 1
A6: CUS | B6: Customer | C6: 1 | F6: 1
A7: _PC1 | B7: Peak Credit - All Customers Top 200 CP, No Int | C7: =SUM(D7:I7) -> 0
A8: _PC2 | B8: Peak Credit - All Customers Top 200CP, No Int or Transp | C8: =SUM(D8:I8) -> 0
A9: TFR | B9: Transformers | C9: =SUM(D9:I9) -> 1 | D9: 1 | F9: 0
A10: _PC3 | B10: Peak Credit - All Customers 4 Monthly CP, No Int | C10: =SUM(D10:I10) -> 1 | D10: =+'[1]ECOS - CLASSIFIERS'!D12 -> 1 | E10: =+'[1]ECOS - CLASSIFIERS'!E12 -> 0
A11: _PC4 | B11: Peak Credit - 4 Monthly CP, No Int or Transp | C11: =SUM(D11:I11) -> 1 | D11: =+'[1]ECOS - CLASSIFIERS'!D13 -> 1 | E11: =+'[1]ECOS - CLASSIFIERS'!E13 -> 0
A12: ~ | B12: ~ | C12: 0
A13: ~ | B13: ~ | C13: =SUM(D13:I13) -> 0
A14: ~ | B14: ~ | C14: =SUM(D14:I14) -> 0
A15: ~ | B15: ~ | C15: 0
A16: ~ | B16: ~ | C16: 0
A17: ~ | B17: ~ | C17: 0
A18: ~ | B18: ~ | C18: 0
A19: ~ | B19: ~ | C19: 0
A20: ~ | B20: ~ | C20: 0

Sheet EXTERNAL
A1: External Allocators
A3: Name | B3: Description | C3: Classifier | D3: Total | E3: =INPUTS!$B$18 -> Res Svc | F3: =INPUTS!$B$19 -> Sec Svc 24 | G3: =INPUTS!$B$20 -> Sec Svc 25 / 29 / 7A | H3: =INPUTS!$B$21 -> Sec Svc 26 /26P | I3: =INPUTS!$B$22 -> Pri Svc 31 | J3: =INPUTS!$B$23 -> Pri Svc 35 | K3: =INPUTS!$B$24 -> Pri Svc 43 | L3: =INPUTS!$B$25 -> Special Contract | M3: =INPUTS!$B$26 -> High Volt 46/49 | N3: =INPUTS!$B$27 -> Choice/Retail Wheeling | O3: =INPUTS!$B$28 -> Lighting 50-59 | P3: =INPUTS!$B$29 -> Firm Resale | Q3: =INPUTS!$B$30 -> ~ | R3: =INPUTS!$B$31 -> ~ | S3: =INPUTS!$B$32 -> ~ | T3: =INPUTS!$B$33 -> ~ | U3: =INPUTS!$B$34 -> ~ | V3: =INPUTS!$B$35 -> ~ | W3: =INPUTS!$B$36 -> ~ | X3: =INPUTS!$B$37 -> ~
B5: CUSTOMER EXTERNAL ALLOCATORS
A7: CUST_1 | B7: Ave. No. Cust. | C7: CUS | E7: =IF($D8=0,0,E8/$D8) -> 0.8789179947 | F7: 0.1057566114 | G7: 0.007100420859 | H7: 0.0007323070019 | I7: 0.0004235552374 | J7: 1.73944656e-06 | K7: 0.0001348071084 | L7: 8.088426505e-05 | M7: 2.1743082e-05 | N7: 1.391557248e-05 | O7: 0.00680906356 | P7: 6.957786241e-06 | Q7: 0 | R7: 0 | S7: 0 | T7: 0 | U7: 0 | V7: 0 | W7: 0 | X7: 0
A8: =IF(A7="~","~","") ->  | B8: =INPUTS!$B$5 -> Historic Test Year Twelve Months ended December 2018 | D8: =SUM(E8:X8) -> 1149791 | E8: =+'[1]ECOS - EXTERNAL (2019 GRC)'!E8 -> 1010572 | F8: =+'[1]ECOS - EXTERNAL (2019 GRC)'!F8 -> 121598 | G8: =+'[1]ECOS - EXTERNAL (2019 GRC)'!G8 -> 8164 | H8: =+'[1]ECOS - EXTERNAL (2019 GRC)'!H8 -> 842 | I8: =+'[1]ECOS - EXTERNAL (2019 GRC)'!I8 -> 487 | J8: =+'[1]ECOS - EXTERNAL (2019 GRC)'!J8 -> 2 | K8: =+'[1]ECOS - EXTERNAL (2019 GRC)'!K8 -> 155 | L8: =+'[1]ECOS - EXTERNAL (2019 GRC)'!L8 -> 93 | M8: =+'[1]ECOS - EXTERNAL (2019 GRC)'!M8 -> 25 | N8: =+'[1]ECOS - EXTERNAL (2019 GRC)'!N8 -> 16 | O8: =+'[1]ECOS - EXTERNAL (2019 GRC)'!O8 -> 7829 | P8: =+'[1]ECOS - EXTERNAL (2019 GRC)'!P8 -> 8
A9: =IF(A8="~","~","") -> 
A10: CUST_2 | B10: Ave. No. Cust Incl. RES & SEC Only, No Sch 40 | C10: CUS | E10: =IF($D11=0,0,E11/$D11) -> 0.8855531487 | F10: 0.1065549924 | G10: 0.007154023569 | H10: 0.0007378353558 | I10: 0 | J10: 0 | K10: 0 | L10: 0 | M10: 0 | N10: 0 | O10: 0 | P10: 0 | Q10: 0 | R10: 0 | S10: 0 | T10: 0 | U10: 0 | V10: 0 | W10: 0 | X10: 0
A11: =IF(A10="~","~","") ->  | B11: =INPUTS!$B$5 -> Historic Test Year Twelve Months ended December 2018 | D11: =SUM(E11:X11) -> 1141176 | E11: =+'[1]ECOS - EXTERNAL (2019 GRC)'!E11 -> 1010572 | F11: =+'[1]ECOS - EXTERNAL (2019 GRC)'!F11 -> 121598 | G11: =+'[1]ECOS - EXTERNAL (2019 GRC)'!G11 -> 8164 | H11: =+'[1]ECOS - EXTERNAL (2019 GRC)'!H11 -> 842 | I11: =+'[1]ECOS - EXTERNAL (2019 GRC)'!I11 -> 0 | J11: =+'[1]ECOS - EXTERNAL (2019 GRC)'!J11 -> 0 | K11: =+'[1]ECOS - EXTERNAL (2019 GRC)'!K11 -> 0 | L11: =+'[1]ECOS - EXTERNAL (2019 GRC)'!L11 -> 0 | M11: =+'[1]ECOS - EXTERNAL (2019 GRC)'!M11 -> 0 | N11: =+'[1]ECOS - EXTERNAL (2019 GRC)'!N11 -> 0 | O11: =+'[1]ECOS - EXTERNAL (2019 GRC)'!O11 -> 0 | P11: =+'[1]ECOS - EXTERNAL (2019 GRC)'!P11 -> 0
A12: =IF(A11="~","~","") -> 
A13: CUST_3 | B13: Wtd. Ave. No. Cust. A/C 903 Customer Records Direct Assignment [NEEDS PROFORMA ADJUSTMENT] | C13: CUS | E13: =IF($D14=0,0,E14/$D14) -> 0.8541577662 | F13: 0.1007925628 | G13: 0.009182221846 | H13: 0.0094889652 | I13: 0.007105184923 | J13: 1.130926871e-06 | K13: 0.0005819010493 | L13: 0.002585347459 | M13: 0.004173988637 | N13: 0.00745671612 | O13: 0.004473361088 | P13: 8.537443745e-07 | Q13: 0 | R13: 0 | S13: 0 | T13: 0 | U13: 0 | V13: 0 | W13: 0 | X13: 0
A14: =IF(A13="~","~","") ->  | B14: =INPUTS!$B$5 -> Historic Test Year Twelve Months ended December 2018 | D14: =SUM(E14:X14) -> 23055852.68 | E14: =+'[1]ECOS - EXTERNAL (2019 GRC)'!E14 -> 19693335.62 | F14: =+'[1]ECOS - EXTERNAL (2019 GRC)'!F14 -> 2323858.48 | G14: =+'[1]ECOS - EXTERNAL (2019 GRC)'!G14 -> 211703.9541 | H14: =+'[1]ECOS - EXTERNAL (2019 GRC)'!H14 -> 218776.1837 | I14: =+'[1]ECOS - EXTERNAL (2019 GRC)'!I14 -> 163816.0968 | J14: =+'[1]ECOS - EXTERNAL (2019 GRC)'!J14 -> 26.07448334 | K14: =+'[1]ECOS - EXTERNAL (2019 GRC)'!K14 -> 13416.22487 | L14: =+'[1]ECOS - EXTERNAL (2019 GRC)'!L14 -> 59607.39014 | M14: =+'[1]ECOS - EXTERNAL (2019 GRC)'!M14 -> 96234.86711 | N14: =+'[1]ECOS - EXTERNAL (2019 GRC)'!N14 -> 171920.9483 | O14: =+'[1]ECOS - EXTERNAL (2019 GRC)'!O14 -> 103137.1542 | P14: =+'[1]ECOS - EXTERNAL (2019 GRC)'!P14 -> 19.68380452
A15: =IF(A14="~","~","") -> 
A16: CUST_4 | B16: Meter Counts. A/C 902 | C16: CUS | E16: =IF($D17=0,0,E17/$D17) -> 0.8791230065 | F16: 0.1119148352 | G16: 0.007450982733 | H16: 0.0007530293869 | I16: 0.0004519881937 | J16: 1.705615825e-06 | K16: 0.0001355964581 | L16: 8.442798336e-05 | M16: 3.070108486e-05 | N16: 4.69044352e-05 | O16: 0 | P16: 6.822463302e-06 | Q16: 0 | R16: 0 | S16: 0 | T16: 0 | U16: 0 | V16: 0 | W16: 0 | X16: 0
A17: =IF(A16="~","~","") ->  | B17: =INPUTS!$B$5 -> Historic Test Year Twelve Months ended December 2018 | D17: =SUM(E17:X17) -> 1172597 | E17: =+'[1]ECOS - EXTERNAL (2019 GRC)'!E17 -> 1030857 | F17: =+'[1]ECOS - EXTERNAL (2019 GRC)'!F17 -> 131231 | G17: =+'[1]ECOS - EXTERNAL (2019 GRC)'!G17 -> 8737 | H17: =+'[1]ECOS - EXTERNAL (2019 GRC)'!H17 -> 883 | I17: =+'[1]ECOS - EXTERNAL (2019 GRC)'!I17 -> 530 | J17: =+'[1]ECOS - EXTERNAL (2019 GRC)'!J17 -> 2 | K17: =+'[1]ECOS - EXTERNAL (2019 GRC)'!K17 -> 159 | L17: =+'[1]ECOS - EXTERNAL (2019 GRC)'!L17 -> 99 | M17: =+'[1]ECOS - EXTERNAL (2019 GRC)'!M17 -> 36 | N17: =+'[1]ECOS - EXTERNAL (2019 GRC)'!N17 -> 55 | O17: =+'[1]ECOS - EXTERNAL (2019 GRC)'!O17 -> 0 | P17: =+'[1]ECOS - EXTERNAL (2019 GRC)'!P17 -> 8
A18: =IF(A17="~","~","") -> 
A19: DIR_SC | B19: Direct Assignment Special Contract | C19: CUS | E19: =IF($D20=0,0,E20/$D20) -> 0 | F19: 0 | G19: 0 | H19: 0 | I19: 0 | J19: 0 | K19: 0 | L19: 1 | M19: 0 | N19: 0 | O19: 0 | P19: 0 | Q19: 0 | R19: 0 | S19: 0 | T19: 0 | U19: 0 | V19: 0 | W19: 0 | X19: 0
A20: =IF(A19="~","~","") ->  | B20: =INPUTS!$B$5 -> Historic Test Year Twelve Months ended December 2018 | D20: =SUM(E20:X20) -> 1 | E20: =+'[1]ECOS - EXTERNAL (2019 GRC)'!E20 -> 0 | F20: =+'[1]ECOS - EXTERNAL (2019 GRC)'!F20 -> 0 | G20: =+'[1]ECOS - EXTERNAL (2019 GRC)'!G20 -> 0 | H20: =+'[1]ECOS - EXTERNAL (2019 GRC)'!H20 -> 0 | I20: =+'[1]ECOS - EXTERNAL (2019 GRC)'!I20 -> 0 | J20: =+'[1]ECOS - EXTERNAL (2019 GRC)'!J20 -> 0 | K20: =+'[1]ECOS - EXTERNAL (2019 GRC)'!K20 -> 0 | L20: =+'[1]ECOS - EXTERNAL (2019 GRC)'!L20 -> 1 | M20: =+'[1]ECOS - EXTERNAL (2019 GRC)'!M20 -> 0 | N20: =+'[1]ECOS - EXTERNAL (2019 GRC)'!N20 -> 0 | O20: =+'[1]ECOS - EXTERNAL (2019 GRC)'!O20 -> 0 | P20: =+'[1]ECOS - EXTERNAL (2019 GRC)'!P20 -> 0
A21: =IF(A20="~","~","") -> 
A22: DIR_449 | B22: Schedule 449 / 459 Retail Revenue | C22: DEM | E22: =IF($D23=0,0,E23/$D23) -> 0 | F22: 0 | G22: 0 | H22: 0 | I22: 0 | J22: 0 | K22: 0 | L22: 0 | M22: 0 | N22: 1 | O22: 0 | P22: 0 | Q22: 0 | R22: 0 | S22: 0 | T22: 0 | U22: 0 | V22: 0 | W22: 0 | X22: 0
A23: =IF(A22="~","~","") ->  | B23: =INPUTS!$B$5 -> Historic Test Year Twelve Months ended December 2018 | D23: =SUM(E23:X23) -> 1 | E23: =+'[1]ECOS - EXTERNAL (2019 GRC)'!E23 -> 0 | F23: =+'[1]ECOS - EXTERNAL (2019 GRC)'!F23 -> 0 | G23: =+'[1]ECOS - EXTERNAL (2019 GRC)'!G23 -> 0 | H23: =+'[1]ECOS - EXTERNAL (2019 GRC)'!H23 -> 0 | I23: =+'[1]ECOS - EXTERNAL (2019 GRC)'!I23 -> 0 | J23: =+'[1]ECOS - EXTERNAL (2019 GRC)'!J23 -> 0 | K23: =+'[1]ECOS - EXTERNAL (2019 GRC)'!K23 -> 0 | L23: =+'[1]ECOS - EXTERNAL (2019 GRC)'!L23 -> 0 | M23: =+'[1]ECOS - EXTERNAL (2019 GRC)'!M23 -> 0 | N23: =+'[1]ECOS - EXTERNAL (2019 GRC)'!N23 -> 1 | O23: =+'[1]ECOS - EXTERNAL (2019 GRC)'!O23 -> 0 | P23: =+'[1]ECOS - EXTERNAL (2019 GRC)'!P23 -> 0
A25: DIR_449_OATT | B25: Transportation OATT Revenue | C25: CUS | E25: =IF($D26=0,0,E26/$D26) -> 0 | F25: 0 | G25: 0 | H25: 0 | I25: 0 | J25: 0 | K25: 0 | L25: 0 | M25: 0 | N25: 1 | O25: 0 | P25: 0 | Q25: 0 | R25: 0 | S25: 0 | T25: 0 | U25: 0 | V25: 0 | W25: 0 | X25: 0
A26: =IF(A25="~","~","") ->  | B26: =INPUTS!$B$5 -> Historic Test Year Twelve Months ended December 2018 | D26: =SUM(E26:X26) -> 1 | E26: =+'[1]ECOS - EXTERNAL (2019 GRC)'!E26 -> 0 | F26: =+'[1]ECOS - EXTERNAL (2019 GRC)'!F26 -> 0 | G26: =+'[1]ECOS - EXTERNAL (2019 GRC)'!G26 -> 0 | H26: =+'[1]ECOS - EXTERNAL (2019 GRC)'!H26 -> 0 | I26: =+'[1]ECOS - EXTERNAL (2019 GRC)'!I26 -> 0 | J26: =+'[1]ECOS - EXTERNAL (2019 GRC)'!J26 -> 0 | K26: =+'[1]ECOS - EXTERNAL (2019 GRC)'!K26 -> 0 | L26: =+'[1]ECOS - EXTERNAL (2019 GRC)'!L26 -> 0 | M26: =+'[1]ECOS - EXTERNAL (2019 GRC)'!M26 -> 0 | N26: =+'[1]ECOS - EXTERNAL (2019 GRC)'!N26 -> 1 | O26: =+'[1]ECOS - EXTERNAL (2019 GRC)'!O26 -> 0 | P26: =+'[1]ECOS - EXTERNAL (2019 GRC)'!P26 -> 0
A27: =IF(A26="~","~","") -> 
A28: DIR_RESALE_SMALL | B28: Small Firm Resale Allocation Only | C28: CUS | E28: =IF($D29=0,0,E29/$D29) -> 0 | F28: 0 | G28: 0 | H28: 0 | I28: 0 | J28: 0 | K28: 0 | L28: 0 | M28: 0 | N28: 0 | O28: 0 | P28: 1 | Q28: 0 | R28: 0 | S28: 0 | T28: 0 | U28: 0 | V28: 0 | W28: 0 | X28: 0
A29: =IF(A28="~","~","") ->  | B29: =INPUTS!$B$5 -> Historic Test Year Twelve Months ended December 2018 | D29: =SUM(E29:X29) -> 1 | E29: =+'[1]ECOS - EXTERNAL (2019 GRC)'!E29 -> 0 | F29: =+'[1]ECOS - EXTERNAL (2019 GRC)'!F29 -> 0 | G29: =+'[1]ECOS - EXTERNAL (2019 GRC)'!G29 -> 0 | H29: =+'[1]ECOS - EXTERNAL (2019 GRC)'!H29 -> 0 | I29: =+'[1]ECOS - EXTERNAL (2019 GRC)'!I29 -> 0 | J29: =+'[1]ECOS - EXTERNAL (2019 GRC)'!J29 -> 0 | K29: =+'[1]ECOS - EXTERNAL (2019 GRC)'!K29 -> 0 | L29: =+'[1]ECOS - EXTERNAL (2019 GRC)'!L29 -> 0 | M29: =+'[1]ECOS - EXTERNAL (2019 GRC)'!M29 -> 0 | N29: =+'[1]ECOS - EXTERNAL (2019 GRC)'!N29 -> 0 | O29: =+'[1]ECOS - EXTERNAL (2019 GRC)'!O29 -> 0 | P29: =+'[1]ECOS - EXTERNAL (2019 GRC)'!P29 -> 1
A30: =IF(A29="~","~","") -> 
A31: DIR235.00 | B31: Customer Deposits | C31: CUS | E31: =IF($D32=0,0,E32/$D32) -> 0.8938962798 | F31: 0.07218004842 | G31: 0.02470314165 | H31: 0.006561462854 | I31: 0.002228861197 | J31: 0 | K31: 0 | L31: 0 | M31: 0 | N31: 0 | O31: 0.0004302060843 | P31: 0 | Q31: 0 | R31: 0 | S31: 0 | T31: 0 | U31: 0 | V31: 0 | W31: 0 | X31: 0
A32: =IF(A31="~","~","") ->  | B32: =INPUTS!$B$5 -> Historic Test Year Twelve Months ended December 2018 | D32: =SUM(E32:X32) -> -34015464.99 | E32: =+'[1]ECOS - EXTERNAL (2019 GRC)'!E32 -> -30406297.61 | F32: =+'[1]ECOS - EXTERNAL (2019 GRC)'!F32 -> -2455237.91 | G32: =+'[1]ECOS - EXTERNAL (2019 GRC)'!G32 -> -840288.85 | H32: =+'[1]ECOS - EXTERNAL (2019 GRC)'!H32 -> -223191.21 | I32: =+'[1]ECOS - EXTERNAL (2019 GRC)'!I32 -> -75815.75 | J32: =+'[1]ECOS - EXTERNAL (2019 GRC)'!J32 -> 0 | K32: =+'[1]ECOS - EXTERNAL (2019 GRC)'!K32 -> 0 | L32: =+'[1]ECOS - EXTERNAL (2019 GRC)'!L32 -> 0 | M32: =+'[1]ECOS - EXTERNAL (2019 GRC)'!M32 -> 0 | N32: =+'[1]ECOS - EXTERNAL (2019 GRC)'!N32 -> 0 | O32: =+'[1]ECOS - EXTERNAL (2019 GRC)'!O32 -> -14633.66 | P32: =+'[1]ECOS - EXTERNAL (2019 GRC)'!P32 -> 0
A33: =IF(A32="~","~","") -> 
A34: DIR252.00 | B34: Customer Advances | C34: CUS | E34: =IF($D35=0,0,E35/$D35) -> 0.4286586223 | F34: 0.5319436529 | G34: 0.03571430437 | H34: 0.003683420416 | I34: 0 | J34: 0 | K34: 0 | L34: 0 | M34: 0 | N34: 0 | O34: 0 | P34: 0 | Q34: 0 | R34: 0 | S34: 0 | T34: 0 | U34: 0 | V34: 0 | W34: 0 | X34: 0
A35: =IF(A34="~","~","") ->  | B35: =INPUTS!$B$5 -> Historic Test Year Twelve Months ended December 2018 | D35: =SUM(E35:X35) -> -77716905.47 | E35: =+'[1]ECOS - EXTERNAL (2019 GRC)'!E35 -> -33314021.63 | F35: =+'[1]ECOS - EXTERNAL (2019 GRC)'!F35 -> -41341014.59 | G35: =+'[1]ECOS - EXTERNAL (2019 GRC)'!G35 -> -2775605.216 | H35: =+'[1]ECOS - EXTERNAL (2019 GRC)'!H35 -> -286264.0363 | I35: =+'[1]ECOS - EXTERNAL (2019 GRC)'!I35 -> 0 | J35: =+'[1]ECOS - EXTERNAL (2019 GRC)'!J35 -> 0 | K35: =+'[1]ECOS - EXTERNAL (2019 GRC)'!K35 -> 0 | L35: =+'[1]ECOS - EXTERNAL (2019 GRC)'!L35 -> 0 | M35: =+'[1]ECOS - EXTERNAL (2019 GRC)'!M35 -> 0 | N35: =+'[1]ECOS - EXTERNAL (2019 GRC)'!N35 -> 0 | O35: =+'[1]ECOS - EXTERNAL (2019 GRC)'!O35 -> 0 | P35: =+'[1]ECOS - EXTERNAL (2019 GRC)'!P35 -> 0
A36: =IF(A35="~","~","") -> 
A37: DIR368.03C | B37: Line Transformers - Customer Related | C37: CUS | E37: =IF($D38=0,0,E38/$D38) -> 0 | F37: 0 | G37: 0 | H37: 0 | I37: 0.3590848496 | J37: 0 | K37: 0.02057968062 | L37: 0.6118869809 | M37: 0 | N37: 0 | O37: 0 | P37: 0.008448488912 | Q37: 0 | R37: 0 | S37: 0 | T37: 0 | U37: 0 | V37: 0 | W37: 0 | X37: 0
A38: =IF(A37="~","~","") ->  | B38: =INPUTS!$B$5 -> Historic Test Year Twelve Months ended December 2018 | D38: =SUM(E38:X38) -> 2295936.019 | E38: =+'[1]ECOS - EXTERNAL (2019 GRC)'!E38 -> 0 | F38: =+'[1]ECOS - EXTERNAL (2019 GRC)'!F38 -> 0 | G38: =+'[1]ECOS - EXTERNAL (2019 GRC)'!G38 -> 0 | H38: =+'[1]ECOS - EXTERNAL (2019 GRC)'!H38 -> 0 | I38: =+'[1]ECOS - EXTERNAL (2019 GRC)'!I38 -> 824435.84 | J38: =+'[1]ECOS - EXTERNAL (2019 GRC)'!J38 -> 0 | K38: =+'[1]ECOS - EXTERNAL (2019 GRC)'!K38 -> 47249.63 | L38: =+'[1]ECOS - EXTERNAL (2019 GRC)'!L38 -> 1404853.359 | M38: =+'[1]ECOS - EXTERNAL (2019 GRC)'!M38 -> 0 | N38: =+'[1]ECOS - EXTERNAL (2019 GRC)'!N38 -> 0 | O38: =+'[1]ECOS - EXTERNAL (2019 GRC)'!O38 -> 0 | P38: =+'[1]ECOS - EXTERNAL (2019 GRC)'!P38 -> 19397.19
A39: =IF(A38="~","~","") -> 
A40: DIR373.00 | B40: Str. & Signal Systems | C40: CUS | E40: =IF($D41=0,0,E41/$D41) -> 0 | F40: 0 | G40: 0 | H40: 0 | I40: 0 | J40: 0 | K40: 0 | L40: 0 | M40: 0 | N40: 0 | O40: 1 | P40: 0 | Q40: 0 | R40: 0 | S40: 0 | T40: 0 | U40: 0 | V40: 0 | W40: 0 | X40: 0
A41: =IF(A40="~","~","") ->  | B41: =INPUTS!$B$5 -> Historic Test Year Twelve Months ended December 2018 | D41: =SUM(E41:X41) -> 1 | E41: =+'[1]ECOS - EXTERNAL (2019 GRC)'!E41 -> 0 | F41: =+'[1]ECOS - EXTERNAL (2019 GRC)'!F41 -> 0 | G41: =+'[1]ECOS - EXTERNAL (2019 GRC)'!G41 -> 0 | H41: =+'[1]ECOS - EXTERNAL (2019 GRC)'!H41 -> 0 | I41: =+'[1]ECOS - EXTERNAL (2019 GRC)'!I41 -> 0 | J41: =+'[1]ECOS - EXTERNAL (2019 GRC)'!J41 -> 0 | K41: =+'[1]ECOS - EXTERNAL (2019 GRC)'!K41 -> 0 | L41: =+'[1]ECOS - EXTERNAL (2019 GRC)'!L41 -> 0 | M41: =+'[1]ECOS - EXTERNAL (2019 GRC)'!M41 -> 0 | N41: =+'[1]ECOS - EXTERNAL (2019 GRC)'!N41 -> 0 | O41: =+'[1]ECOS - EXTERNAL (2019 GRC)'!O41 -> 1 | P41: =+'[1]ECOS - EXTERNAL (2019 GRC)'!P41 -> 0
A42: =IF(A41="~","~","") -> 
A43: DIR450.01 | B43: Late Payment Interest Rev | C43: CUS | E43: =IF($D44=0,0,E44/$D44) -> 0.781862955 | F43: 0.1147098267 | G43: 0.04229070142 | H43: 0.01114743435 | I43: 0.009369376827 | J43: 0 | K43: 6.653189766e-05 | L43: 0 | M43: 0.001287171342 | N43: 0.0009261773785 | O43: 0.03832334634 | P43: 1.64788003e-05 | Q43: 0 | R43: 0 | S43: 0 | T43: 0 | U43: 0 | V43: 0 | W43: 0 | X43: 0
A44: =IF(A43="~","~","") ->  | B44: =INPUTS!$B$5 -> Historic Test Year Twelve Months ended December 2018 | D44: =SUM(E44:X44) -> 2383668.67 | E44: =+'[1]ECOS - EXTERNAL (2019 GRC)'!E44 -> 1863702.23 | F44: =+'[1]ECOS - EXTERNAL (2019 GRC)'!F44 -> 273430.22 | G44: =+'[1]ECOS - EXTERNAL (2019 GRC)'!G44 -> 100807.02 | H44: =+'[1]ECOS - EXTERNAL (2019 GRC)'!H44 -> 26571.79 | I44: =+'[1]ECOS - EXTERNAL (2019 GRC)'!I44 -> 22333.49 | J44: =+'[1]ECOS - EXTERNAL (2019 GRC)'!J44 -> 0 | K44: =+'[1]ECOS - EXTERNAL (2019 GRC)'!K44 -> 158.59 | L44: =+'[1]ECOS - EXTERNAL (2019 GRC)'!L44 -> 0 | M44: =+'[1]ECOS - EXTERNAL (2019 GRC)'!M44 -> 3068.19 | N44: =+'[1]ECOS - EXTERNAL (2019 GRC)'!N44 -> 2207.7 | O44: =+'[1]ECOS - EXTERNAL (2019 GRC)'!O44 -> 91350.16 | P44: =+'[1]ECOS - EXTERNAL (2019 GRC)'!P44 -> 39.28
A46: DIR450.02 | B46: Direct Assign Disconnect Call - A/C 450.02 | C46: CUS | E46: =IF($D47=0,0,E47/$D47) -> 0.940116276 | F46: 0.05824701738 | G46: 0.001250437007 | H46: 8.504263435e-05 | I46: 0 | J46: 0 | K46: 0 | L46: 0 | M46: 0 | N46: 0 | O46: 0.0003012269632 | P46: 0 | Q46: 0 | R46: 0 | S46: 0 | T46: 0 | U46: 0 | V46: 0 | W46: 0 | X46: 0
A47: =IF(A46="~","~","") ->  | B47: =INPUTS!$B$5 -> Historic Test Year Twelve Months ended December 2018 | D47: =SUM(E47:X47) -> 315841.58 | E47: =+'[1]ECOS - EXTERNAL (2019 GRC)'!E47 -> 296927.81 | F47: =+'[1]ECOS - EXTERNAL (2019 GRC)'!F47 -> 18396.83 | G47: =+'[1]ECOS - EXTERNAL (2019 GRC)'!G47 -> 394.94 | H47: =+'[1]ECOS - EXTERNAL (2019 GRC)'!H47 -> 26.86 | I47: =+'[1]ECOS - EXTERNAL (2019 GRC)'!I47 -> 0 | J47: =+'[1]ECOS - EXTERNAL (2019 GRC)'!J47 -> 0 | K47: =+'[1]ECOS - EXTERNAL (2019 GRC)'!K47 -> 0 | L47: =+'[1]ECOS - EXTERNAL (2019 GRC)'!L47 -> 0 | M47: =+'[1]ECOS - EXTERNAL (2019 GRC)'!M47 -> 0 | N47: =+'[1]ECOS - EXTERNAL (2019 GRC)'!N47 -> 0 | O47: =+'[1]ECOS - EXTERNAL (2019 GRC)'!O47 -> 95.14 | P47: =+'[1]ECOS - EXTERNAL (2019 GRC)'!P47 -> 0
A49: DIR451.02 | B49: Connect/Reconnect Revenue | C49: CUS | E49: =IF($D50=0,0,E50/$D50) -> 0.9767889549 | F49: 0.02272288944 | G49: 0.0004881557009 | H49: 0 | I49: 0 | J49: 0 | K49: 0 | L49: 0 | M49: 0 | N49: 0 | O49: 0 | P49: 0 | Q49: 0 | R49: 0 | S49: 0 | T49: 0 | U49: 0 | V49: 0 | W49: 0 | X49: 0
A50: =IF(A49="~","~","") ->  | B50: =INPUTS!$B$5 -> Historic Test Year Twelve Months ended December 2018 | D50: =SUM(E50:X50) -> 1550570.85 | E50: =+'[1]ECOS - EXTERNAL (2019 GRC)'!E50 -> 1514580.48 | F50: =+'[1]ECOS - EXTERNAL (2019 GRC)'!F50 -> 35233.45 | G50: =+'[1]ECOS - EXTERNAL (2019 GRC)'!G50 -> 756.92 | H50: =+'[1]ECOS - EXTERNAL (2019 GRC)'!H50 -> 0 | I50: =+'[1]ECOS - EXTERNAL (2019 GRC)'!I50 -> 0 | J50: =+'[1]ECOS - EXTERNAL (2019 GRC)'!J50 -> 0 | K50: =+'[1]ECOS - EXTERNAL (2019 GRC)'!K50 -> 0 | L50: =+'[1]ECOS - EXTERNAL (2019 GRC)'!L50 -> 0 | M50: =+'[1]ECOS - EXTERNAL (2019 GRC)'!M50 -> 0 | N50: =+'[1]ECOS - EXTERNAL (2019 GRC)'!N50 -> 0 | O50: =+'[1]ECOS - EXTERNAL (2019 GRC)'!O50 -> 0 | P50: =+'[1]ECOS - EXTERNAL (2019 GRC)'!P50 -> 0
A51: =IF(A50="~","~","") -> 
A52: DIR451.05 | B52: Billing Initiation Charge | C52: CUS | E52: =IF($D53=0,0,E53/$D53) -> 0.9151500995 | F52: 0.08210348191 | G52: 0.002482382763 | H52: 0.0001796019833 | I52: 8.342750883e-05 | J52: 0 | K52: 0 | L52: 0 | M52: 1.006339392e-06 | N52: 0 | O52: 0 | P52: 0 | Q52: 0 | R52: 0 | S52: 0 | T52: 0 | U52: 0 | V52: 0 | W52: 0 | X52: 0
A53: =IF(A52="~","~","") ->  | B53: =INPUTS!$B$5 -> Historic Test Year Twelve Months ended December 2018 | D53: =SUM(E53:X53) -> 1520361.83 | E53: =+'[1]ECOS - EXTERNAL (2019 GRC)'!E53 -> 1391359.28 | F53: =+'[1]ECOS - EXTERNAL (2019 GRC)'!F53 -> 124827 | G53: =+'[1]ECOS - EXTERNAL (2019 GRC)'!G53 -> 3774.12 | H53: =+'[1]ECOS - EXTERNAL (2019 GRC)'!H53 -> 273.06 | I53: =+'[1]ECOS - EXTERNAL (2019 GRC)'!I53 -> 126.84 | J53: =+'[1]ECOS - EXTERNAL (2019 GRC)'!J53 -> 0 | K53: =+'[1]ECOS - EXTERNAL (2019 GRC)'!K53 -> 0 | L53: =+'[1]ECOS - EXTERNAL (2019 GRC)'!L53 -> 0 | M53: =+'[1]ECOS - EXTERNAL (2019 GRC)'!M53 -> 1.53 | N53: =+'[1]ECOS - EXTERNAL (2019 GRC)'!N53 -> 0 | O53: =+'[1]ECOS - EXTERNAL (2019 GRC)'!O53 -> 0 | P53: =+'[1]ECOS - EXTERNAL (2019 GRC)'!P53 -> 0
A54: =IF(A53="~","~","") -> 
A55: DIR451.06 | B55: NSF Check Charge Revenue | C55: CUS | E55: =IF($D56=0,0,E56/$D56) -> 0.6561514941 | F55: 0.2490471856 | G55: 0.0923929485 | H55: 0 | I55: 0 | J55: 0 | K55: 0 | L55: 0 | M55: 0 | N55: 0 | O55: 0.002408371802 | P55: 0 | Q55: 0 | R55: 0 | S55: 0 | T55: 0 | U55: 0 | V55: 0 | W55: 0 | X55: 0
A56: =IF(A55="~","~","") ->  | B56: =INPUTS!$B$5 -> Historic Test Year Twelve Months ended December 2018 | D56: =SUM(E56:X56) -> 29617.52 | E56: =+'[1]ECOS - EXTERNAL (2019 GRC)'!E56 -> 19433.58 | F56: =+'[1]ECOS - EXTERNAL (2019 GRC)'!F56 -> 7376.16 | G56: =+'[1]ECOS - EXTERNAL (2019 GRC)'!G56 -> 2736.45 | H56: =+'[1]ECOS - EXTERNAL (2019 GRC)'!H56 -> 0 | I56: =+'[1]ECOS - EXTERNAL (2019 GRC)'!I56 -> 0 | J56: =+'[1]ECOS - EXTERNAL (2019 GRC)'!J56 -> 0 | K56: =+'[1]ECOS - EXTERNAL (2019 GRC)'!K56 -> 0 | L56: =+'[1]ECOS - EXTERNAL (2019 GRC)'!L56 -> 0 | M56: =+'[1]ECOS - EXTERNAL (2019 GRC)'!M56 -> 0 | N56: =+'[1]ECOS - EXTERNAL (2019 GRC)'!N56 -> 0 | O56: =+'[1]ECOS - EXTERNAL (2019 GRC)'!O56 -> 71.33 | P56: =+'[1]ECOS - EXTERNAL (2019 GRC)'!P56 -> 0
A57: =IF(A56="~","~","") -> 
A58: DIR904.00 | B58: Direct Assign 904 Uncollectibles | C58: CUS | E58: =IF($D59=0,0,E59/$D59) -> 0.885382516 | F58: 0.0636872759 | G58: 0.01029721277 | H58: 0.01607670608 | I58: 0.02200855432 | J58: 0 | K58: 0 | L58: 0 | M58: 0 | N58: 0 | O58: 0.002547734928 | P58: 0 | Q58: 0 | R58: 0 | S58: 0 | T58: 0 | U58: 0 | V58: 0 | W58: 0 | X58: 0
A59: =IF(A58="~","~","") ->  | B59: =INPUTS!$B$5 -> Historic Test Year Twelve Months ended December 2018 | D59: =SUM(E59:X59) -> 19454508.18 | E59: =+'[1]ECOS - EXTERNAL (2019 GRC)'!E59 -> 17224681.4 | F59: =+'[1]ECOS - EXTERNAL (2019 GRC)'!F59 -> 1239004.63 | G59: =+'[1]ECOS - EXTERNAL (2019 GRC)'!G59 -> 200327.21 | H59: =+'[1]ECOS - EXTERNAL (2019 GRC)'!H59 -> 312764.41 | I59: =+'[1]ECOS - EXTERNAL (2019 GRC)'!I59 -> 428165.6 | J59: =+'[1]ECOS - EXTERNAL (2019 GRC)'!J59 -> 0 | K59: =+'[1]ECOS - EXTERNAL (2019 GRC)'!K59 -> 0 | L59: =+'[1]ECOS - EXTERNAL (2019 GRC)'!L59 -> 0 | M59: =+'[1]ECOS - EXTERNAL (2019 GRC)'!M59 -> 0 | N59: =+'[1]ECOS - EXTERNAL (2019 GRC)'!N59 -> 0 | O59: =+'[1]ECOS - EXTERNAL (2019 GRC)'!O59 -> 49564.93 | P59: =+'[1]ECOS - EXTERNAL (2019 GRC)'!P59 -> 0
A60: =IF(A59="~","~","") -> 
A61: METER | B61: Meter Investment | C61: CUS | E61: =IF($D62=0,0,E62/$D62) -> 0.649225966 | F61: 0.1822282782 | G61: 0.05385503428 | H61: 0.006052843909 | I61: 0.07249976037 | J61: 0.0002350670665 | K61: 0.02343059492 | L61: 0.004738871877 | M61: 0.002942828147 | N61: 0.004737927951 | O61: 0 | P61: 5.282733892e-05 | Q61: 0 | R61: 0 | S61: 0 | T61: 0 | U61: 0 | V61: 0 | W61: 0 | X61: 0
A62: =IF(A61="~","~","") ->  | B62: =INPUTS!$B$5 -> Historic Test Year Twelve Months ended December 2018 | D62: =SUM(E62:X62) -> 176621934.4 | E62: =+'[1]ECOS - EXTERNAL (2019 GRC)'!E62 -> 114667546 | F62: =+'[1]ECOS - EXTERNAL (2019 GRC)'!F62 -> 32185511 | G62: =+'[1]ECOS - EXTERNAL (2019 GRC)'!G62 -> 9511980.333 | H62: =+'[1]ECOS - EXTERNAL (2019 GRC)'!H62 -> 1069065 | I62: =+'[1]ECOS - EXTERNAL (2019 GRC)'!I62 -> 12805047.92 | J62: =+'[1]ECOS - EXTERNAL (2019 GRC)'!J62 -> 41518 | K62: =+'[1]ECOS - EXTERNAL (2019 GRC)'!K62 -> 4138357 | L62: =+'[1]ECOS - EXTERNAL (2019 GRC)'!L62 -> 836988.7179 | M62: =+'[1]ECOS - EXTERNAL (2019 GRC)'!M62 -> 519768 | N62: =+'[1]ECOS - EXTERNAL (2019 GRC)'!N62 -> 836822 | O62: =+'[1]ECOS - EXTERNAL (2019 GRC)'!O62 -> 0 | P62: =+'[1]ECOS - EXTERNAL (2019 GRC)'!P62 -> 9330.466792
A63: =IF(A62="~","~","") -> 
A64: OH_SVC | B64: Dist OH Services (Sec Voltage Only) | C64: CUS | E64: =IF($D65=0,0,E65/$D65) -> 0.8629838447 | F64: 0.1318548211 | G64: 0.005051880895 | H64: 0.0001094533656 | I64: 0 | J64: 0 | K64: 0 | L64: 0 | M64: 0 | N64: 0 | O64: 0 | P64: 0 | Q64: 0 | R64: 0 | S64: 0 | T64: 0 | U64: 0 | V64: 0 | W64: 0 | X64: 0
A65: =IF(A64="~","~","") ->  | B65: =INPUTS!$B$5 -> Historic Test Year Twelve Months ended December 2018 | D65: =SUM(E65:X65) -> 411134 | E65: =+'[1]ECOS - EXTERNAL (2019 GRC)'!E65 -> 354802 | F65: =+'[1]ECOS - EXTERNAL (2019 GRC)'!F65 -> 54210 | G65: =+'[1]ECOS - EXTERNAL (2019 GRC)'!G65 -> 2077 | H65: =+'[1]ECOS - EXTERNAL (2019 GRC)'!H65 -> 45 | I65: =+'[1]ECOS - EXTERNAL (2019 GRC)'!I65 -> 0 | J65: =+'[1]ECOS - EXTERNAL (2019 GRC)'!J65 -> 0 | K65: =+'[1]ECOS - EXTERNAL (2019 GRC)'!K65 -> 0 | L65: =+'[1]ECOS - EXTERNAL (2019 GRC)'!L65 -> 0 | M65: =+'[1]ECOS - EXTERNAL (2019 GRC)'!M65 -> 0 | N65: =+'[1]ECOS - EXTERNAL (2019 GRC)'!N65 -> 0 | O65: =+'[1]ECOS - EXTERNAL (2019 GRC)'!O65 -> 0 | P65: =+'[1]ECOS - EXTERNAL (2019 GRC)'!P65 -> 0
A66: =IF(A91="~","~","") -> 
A67: OH_TFMRC | B67: Allocate Overhead Transformers | C67: CUS | E67: =IF($D68=0,0,E68/$D68) -> 0 | F67: 0 | G67: 0 | H67: 0 | I67: 0 | J67: 0 | K67: 0 | L67: 0 | M67: 0 | N67: 0 | O67: 0 | P67: 0 | Q67: 0 | R67: 0 | S67: 0 | T67: 0 | U67: 0 | V67: 0 | W67: 0 | X67: 0
A68: =IF(A67="~","~","") ->  | B68: =INPUTS!$B$5 -> Historic Test Year Twelve Months ended December 2018 | D68: =SUM(E68:X68) -> 0 | E68: =+'[1]ECOS - EXTERNAL (2019 GRC)'!E68 -> 0 | F68: =+'[1]ECOS - EXTERNAL (2019 GRC)'!F68 -> 0 | G68: =+'[1]ECOS - EXTERNAL (2019 GRC)'!G68 -> 0 | H68: =+'[1]ECOS - EXTERNAL (2019 GRC)'!H68 -> 0 | I68: =+'[1]ECOS - EXTERNAL (2019 GRC)'!I68 -> 0 | J68: =+'[1]ECOS - EXTERNAL (2019 GRC)'!J68 -> 0 | K68: =+'[1]ECOS - EXTERNAL (2019 GRC)'!K68 -> 0 | L68: =+'[1]ECOS - EXTERNAL (2019 GRC)'!L68 -> 0 | M68: =+'[1]ECOS - EXTERNAL (2019 GRC)'!M68 -> 0 | N68: =+'[1]ECOS - EXTERNAL (2019 GRC)'!N68 -> 0 | O68: =+'[1]ECOS - EXTERNAL (2019 GRC)'!O68 -> 0 | P68: =+'[1]ECOS - EXTERNAL (2019 GRC)'!P68 -> 0
A69: =IF(A145="~","~","") -> 
A70: PROFORMA | B70: Proforma Revenue | C70: CUS | E70: =IF($D71=0,0,E71/$D71) -> 0.5537782639 | F70: 0.1318928777 | G70: 0.1355547992 | H70: 0.08026071497 | I70: 0.05671261086 | J70: 0.0001342081524 | K70: 0.005351594016 | L70: 0.00275089807 | M70: 0.02009423942 | N70: 0.005064769121 | O70: 0.008241098831 | P70: 0.0001639256933 | Q70: 0 | R70: 0 | S70: 0 | T70: 0 | U70: 0 | V70: 0 | W70: 0 | X70: 0
A71: =IF(A70="~","~","") ->  | B71: =INPUTS!$B$5 -> Historic Test Year Twelve Months ended December 2018 | D71: =SUM(E71:X71) -> 1997002382 | E71: =+'[1]ECOS - EXTERNAL (2019 GRC)'!E71 -> 1105896512 | F71: =+'[1]ECOS - EXTERNAL (2019 GRC)'!F71 -> 263390391 | G71: =+'[1]ECOS - EXTERNAL (2019 GRC)'!G71 -> 270703257 | H71: =+'[1]ECOS - EXTERNAL (2019 GRC)'!H71 -> 160280839 | I71: =+'[1]ECOS - EXTERNAL (2019 GRC)'!I71 -> 113255219 | J71: =+'[1]ECOS - EXTERNAL (2019 GRC)'!J71 -> 268014 | K71: =+'[1]ECOS - EXTERNAL (2019 GRC)'!K71 -> 10687146 | L71: =+'[1]ECOS - EXTERNAL (2019 GRC)'!L71 -> 5493550 | M71: =+'[1]ECOS - EXTERNAL (2019 GRC)'!M71 -> 40128244 | N71: =+'[1]ECOS - EXTERNAL (2019 GRC)'!N71 -> 10114356 | O71: =+'[1]ECOS - EXTERNAL (2019 GRC)'!O71 -> 16457494 | P71: =+'[1]ECOS - EXTERNAL (2019 GRC)'!P71 -> 327360
A72: =IF(A71="~","~","") -> 
A73: PROFORMA_RETAIL | B73: Proforma Retail Revenue - No Transportation & Special Contract | C73: CUS | E73: =IF($D74=0,0,E74/$D74) -> 0.5582327339 | F73: 0.1329537949 | G73: 0.1366451721 | H73: 0.08090631442 | I73: 0.05716879457 | J73: 0.0001352876931 | K73: 0.005394641056 | L73: 0 | M73: 0.02025587304 | N73: 0 | O73: 0.008307388409 | P73: 0 | Q73: 0 | R73: 0 | S73: 0 | T73: 0 | U73: 0 | V73: 0 | W73: 0 | X73: 0
A74: =IF(A73="~","~","") ->  | B74: =INPUTS!$B$5 -> Historic Test Year Twelve Months ended December 2018 | D74: =SUM(E74:X74) -> 1981067116 | E74: =+'[1]ECOS - EXTERNAL (2019 GRC)'!E74 -> 1105896512 | F74: =+'[1]ECOS - EXTERNAL (2019 GRC)'!F74 -> 263390391 | G74: =+'[1]ECOS - EXTERNAL (2019 GRC)'!G74 -> 270703257 | H74: =+'[1]ECOS - EXTERNAL (2019 GRC)'!H74 -> 160280839 | I74: =+'[1]ECOS - EXTERNAL (2019 GRC)'!I74 -> 113255219 | J74: =+'[1]ECOS - EXTERNAL (2019 GRC)'!J74 -> 268014 | K74: =+'[1]ECOS - EXTERNAL (2019 GRC)'!K74 -> 10687146 | L74: =+'[1]ECOS - EXTERNAL (2019 GRC)'!L74 -> 0 | M74: =+'[1]ECOS - EXTERNAL (2019 GRC)'!M74 -> 40128244 | N74: =+'[1]ECOS - EXTERNAL (2019 GRC)'!N74 -> 0 | O74: =+'[1]ECOS - EXTERNAL (2019 GRC)'!O74 -> 16457494 | P74: =+'[1]ECOS - EXTERNAL (2019 GRC)'!P74 -> 0
A75: =IF(A74="~","~","") -> 
A76: RESID | B76: Residential Allocation Only | C76: CUS | E76: =IF($D77=0,0,E77/$D77) -> 1 | F76: 0 | G76: 0 | H76: 0 | I76: 0 | J76: 0 | K76: 0 | L76: 0 | M76: 0 | N76: 0 | O76: 0 | P76: 0 | Q76: 0 | R76: 0 | S76: 0 | T76: 0 | U76: 0 | V76: 0 | W76: 0 | X76: 0
A77: =IF(A76="~","~","") ->  | B77: =INPUTS!$B$5 -> Historic Test Year Twelve Months ended December 2018 | D77: =SUM(E77:X77) -> 1 | E77: =+'[1]ECOS - EXTERNAL (2019 GRC)'!E77 -> 1 | F77: =+'[1]ECOS - EXTERNAL (2019 GRC)'!F77 -> 0 | G77: =+'[1]ECOS - EXTERNAL (2019 GRC)'!G77 -> 0 | H77: =+'[1]ECOS - EXTERNAL (2019 GRC)'!H77 -> 0 | I77: =+'[1]ECOS - EXTERNAL (2019 GRC)'!I77 -> 0 | J77: =+'[1]ECOS - EXTERNAL (2019 GRC)'!J77 -> 0 | K77: =+'[1]ECOS - EXTERNAL (2019 GRC)'!K77 -> 0 | L77: =+'[1]ECOS - EXTERNAL (2019 GRC)'!L77 -> 0 | M77: =+'[1]ECOS - EXTERNAL (2019 GRC)'!M77 -> 0 | N77: =+'[1]ECOS - EXTERNAL (2019 GRC)'!N77 -> 0 | O77: =+'[1]ECOS - EXTERNAL (2019 GRC)'!O77 -> 0 | P77: =+'[1]ECOS - EXTERNAL (2019 GRC)'!P77 -> 0
A78: =IF(A77="~","~","") -> 
A79: UG_TFMRC | B79: Allocate Underground Transformers | C79: CUS | E79: =IF($D80=0,0,E80/$D80) -> 0 | F79: 0 | G79: 0 | H79: 0 | I79: 0 | J79: 0 | K79: 0 | L79: 0 | M79: 0 | N79: 0 | O79: 0 | P79: 0 | Q79: 0 | R79: 0 | S79: 0 | T79: 0 | U79: 0 | V79: 0 | W79: 0 | X79: 0
A80: =IF(A79="~","~","") ->  | B80: =INPUTS!$B$5 -> Historic Test Year Twelve Months ended December 2018 | D80: =SUM(E80:X80) -> 0 | E80: =+'[1]ECOS - EXTERNAL (2019 GRC)'!E80 -> 0 | F80: =+'[1]ECOS - EXTERNAL (2019 GRC)'!F80 -> 0 | G80: =+'[1]ECOS - EXTERNAL (2019 GRC)'!G80 -> 0 | H80: =+'[1]ECOS - EXTERNAL (2019 GRC)'!H80 -> 0 | I80: =+'[1]ECOS - EXTERNAL (2019 GRC)'!I80 -> 0 | J80: =+'[1]ECOS - EXTERNAL (2019 GRC)'!J80 -> 0 | K80: =+'[1]ECOS - EXTERNAL (2019 GRC)'!K80 -> 0 | L80: =+'[1]ECOS - EXTERNAL (2019 GRC)'!L80 -> 0 | M80: =+'[1]ECOS - EXTERNAL (2019 GRC)'!M80 -> 0 | N80: =+'[1]ECOS - EXTERNAL (2019 GRC)'!N80 -> 0 | O80: =+'[1]ECOS - EXTERNAL (2019 GRC)'!O80 -> 0 | P80: =+'[1]ECOS - EXTERNAL (2019 GRC)'!P80 -> 0
B82: DEMAND EXTERNAL ALLOCATORS
A84: DEM_1 | B84: Top 75 CP Hours (not used) | C84: DEM | E84: =IF($D85=0,0,E85/$D85) -> 0 | F84: 0 | G84: 0 | H84: 0 | I84: 0 | J84: 0 | K84: 0 | L84: 0 | M84: 0 | N84: 0 | O84: 0 | P84: 0 | Q84: 0 | R84: 0 | S84: 0 | T84: 0 | U84: 0 | V84: 0 | W84: 0 | X84: 0
A85: =IF(A84="~","~","") ->  | B85: =INPUTS!$B$5 -> Historic Test Year Twelve Months ended December 2018 | D85: =SUM(E85:X85) -> 0 | E85: =+'[1]ECOS - EXTERNAL (2019 GRC)'!E85 -> 0 | F85: =+'[1]ECOS - EXTERNAL (2019 GRC)'!F85 -> 0 | G85: =+'[1]ECOS - EXTERNAL (2019 GRC)'!G85 -> 0 | H85: =+'[1]ECOS - EXTERNAL (2019 GRC)'!H85 -> 0 | I85: =+'[1]ECOS - EXTERNAL (2019 GRC)'!I85 -> 0 | J85: =+'[1]ECOS - EXTERNAL (2019 GRC)'!J85 -> 0 | K85: =+'[1]ECOS - EXTERNAL (2019 GRC)'!K85 -> 0 | L85: =+'[1]ECOS - EXTERNAL (2019 GRC)'!L85 -> 0 | M85: =+'[1]ECOS - EXTERNAL (2019 GRC)'!M85 -> 0 | N85: =+'[1]ECOS - EXTERNAL (2019 GRC)'!N85 -> 0 | O85: =+'[1]ECOS - EXTERNAL (2019 GRC)'!O85 -> 0 | P85: =+'[1]ECOS - EXTERNAL (2019 GRC)'!P85 -> 0
A86: =IF(A85="~","~","") -> 
A87: DEM_1A | B87: Top 75 CP Hours Excl. Interruptible (Not Used) | C87: DEM | E87: =IF($D88=0,0,E88/$D88) -> 0 | F87: 0 | G87: 0 | H87: 0 | I87: 0 | J87: 0 | K87: 0 | L87: 0 | M87: 0 | N87: 0 | O87: 0 | P87: 0 | Q87: 0 | R87: 0 | S87: 0 | T87: 0 | U87: 0 | V87: 0 | W87: 0 | X87: 0
A88: =IF(A87="~","~","") ->  | B88: =INPUTS!$B$5 -> Historic Test Year Twelve Months ended December 2018 | D88: =SUM(E88:X88) -> 0 | E88: =+'[1]ECOS - EXTERNAL (2019 GRC)'!E88 -> 0 | F88: =+'[1]ECOS - EXTERNAL (2019 GRC)'!F88 -> 0 | G88: =+'[1]ECOS - EXTERNAL (2019 GRC)'!G88 -> 0 | H88: =+'[1]ECOS - EXTERNAL (2019 GRC)'!H88 -> 0 | I88: =+'[1]ECOS - EXTERNAL (2019 GRC)'!I88 -> 0 | J88: =+'[1]ECOS - EXTERNAL (2019 GRC)'!J88 -> 0 | K88: =+'[1]ECOS - EXTERNAL (2019 GRC)'!K88 -> 0 | L88: =+'[1]ECOS - EXTERNAL (2019 GRC)'!L88 -> 0 | M88: =+'[1]ECOS - EXTERNAL (2019 GRC)'!M88 -> 0 | N88: =+'[1]ECOS - EXTERNAL (2019 GRC)'!N88 -> 0 | O88: =+'[1]ECOS - EXTERNAL (2019 GRC)'!O88 -> 0 | P88: =+'[1]ECOS - EXTERNAL (2019 GRC)'!P88 -> 0
A89: =IF(A88="~","~","") -> 
A90: DEM_1B | B90: Top 75 CP - No Interruptibles or Transportation (Not Used) | C90: DEM | E90: =IF($D91=0,0,E91/$D91) -> 0 | F90: 0 | G90: 0 | H90: 0 | I90: 0 | J90: 0 | K90: 0 | L90: 0 | M90: 0 | N90: 0 | O90: 0 | P90: 0 | Q90: 0 | R90: 0 | S90: 0 | T90: 0 | U90: 0 | V90: 0 | W90: 0 | X90: 0
A91: =IF(A90="~","~","") ->  | B91: =INPUTS!$B$5 -> Historic Test Year Twelve Months ended December 2018 | D91: =SUM(E91:X91) -> 0 | E91: =+'[1]ECOS - EXTERNAL (2019 GRC)'!E91 -> 0 | F91: =+'[1]ECOS - EXTERNAL (2019 GRC)'!F91 -> 0 | G91: =+'[1]ECOS - EXTERNAL (2019 GRC)'!G91 -> 0 | H91: =+'[1]ECOS - EXTERNAL (2019 GRC)'!H91 -> 0 | I91: =+'[1]ECOS - EXTERNAL (2019 GRC)'!I91 -> 0 | J91: =+'[1]ECOS - EXTERNAL (2019 GRC)'!J91 -> 0 | K91: =+'[1]ECOS - EXTERNAL (2019 GRC)'!K91 -> 0 | L91: =+'[1]ECOS - EXTERNAL (2019 GRC)'!L91 -> 0 | M91: =+'[1]ECOS - EXTERNAL (2019 GRC)'!M91 -> 0 | N91: =+'[1]ECOS - EXTERNAL (2019 GRC)'!N91 -> 0 | O91: =+'[1]ECOS - EXTERNAL (2019 GRC)'!O91 -> 0 | P91: =+'[1]ECOS - EXTERNAL (2019 GRC)'!P91 -> 0
A93: DEM_2A | B93: 4 CP Winter Peak - No Interruptibles | C93: DEM | E93: =IF($D94=0,0,E94/$D94) -> 0.534719117 | F93: 0.1232810926 | G93: 0.1319524391 | H93: 0.06933016718 | I93: 0.04897639874 | J93: 1.673734373e-06 | K93: 0 | L93: 0.0126230425 | M93: 0.01663521149 | N93: 0.06021244472 | O93: 0.001926893131 | P93: 0.0003415198257 | Q93: 0 | R93: 0 | S93: 0 | T93: 0 | U93: 0 | V93: 0 | W93: 0 | X93: 0
A94: =IF(A93="~","~","") ->  | B94: =INPUTS!$B$5 -> Historic Test Year Twelve Months ended December 2018 | D94: =SUM(E94:X94) -> 4182521.541 | E94: =+'[1]ECOS - EXTERNAL (2019 GRC)'!E94 -> 2236474.225 | F94: =+'[1]ECOS - EXTERNAL (2019 GRC)'!F94 -> 515625.8252 | G94: =+'[1]ECOS - EXTERNAL (2019 GRC)'!G94 -> 551893.9188 | H94: =+'[1]ECOS - EXTERNAL (2019 GRC)'!H94 -> 289974.9177 | I94: =+'[1]ECOS - EXTERNAL (2019 GRC)'!I94 -> 204844.8427 | J94: =+'[1]ECOS - EXTERNAL (2019 GRC)'!J94 -> 7.000430068 | K94: =+'[1]ECOS - EXTERNAL (2019 GRC)'!K94 -> 0 | L94: =+'[1]ECOS - EXTERNAL (2019 GRC)'!L94 -> 52796.14718 | M94: =+'[1]ECOS - EXTERNAL (2019 GRC)'!M94 -> 69577.13041 | N94: =+'[1]ECOS - EXTERNAL (2019 GRC)'!N94 -> 251839.8471 | O94: =+'[1]ECOS - EXTERNAL (2019 GRC)'!O94 -> 8059.272027 | P94: =+'[1]ECOS - EXTERNAL (2019 GRC)'!P94 -> 1428.414028
A95: =IF(A94="~","~","") -> 
A96: DEM_2B | B96: 4 CP Winter Peak - No Interruptibles or Transportation | C96: DEM | E96: =IF($D97=0,0,E97/$D97) -> 0.5767251762 | F96: 0.1329657152 | G96: 0.1423182588 | H96: 0.07477655391 | I96: 0.05282384956 | J96: 1.805218329e-06 | K96: 0 | L96: 0 | M96: 0.01794202783 | N96: 0 | O96: 0.002078264541 | P96: 0.0003683486814 | Q96: 0 | R96: 0 | S96: 0 | T96: 0 | U96: 0 | V96: 0 | W96: 0 | X96: 0
A97: =IF(A96="~","~","") ->  | B97: =INPUTS!$B$5 -> Historic Test Year Twelve Months ended December 2018 | D97: =SUM(E97:X97) -> 3877885.547 | E97: =+'[1]ECOS - EXTERNAL (2019 GRC)'!E97 -> 2236474.225 | F97: =+'[1]ECOS - EXTERNAL (2019 GRC)'!F97 -> 515625.8252 | G97: =+'[1]ECOS - EXTERNAL (2019 GRC)'!G97 -> 551893.9188 | H97: =+'[1]ECOS - EXTERNAL (2019 GRC)'!H97 -> 289974.9177 | I97: =+'[1]ECOS - EXTERNAL (2019 GRC)'!I97 -> 204844.8427 | J97: =+'[1]ECOS - EXTERNAL (2019 GRC)'!J97 -> 7.000430068 | K97: =+'[1]ECOS - EXTERNAL (2019 GRC)'!K97 -> 0 | L97: =+'[1]ECOS - EXTERNAL (2019 GRC)'!L97 -> 0 | M97: =+'[1]ECOS - EXTERNAL (2019 GRC)'!M97 -> 69577.13041 | N97: =+'[1]ECOS - EXTERNAL (2019 GRC)'!N97 -> 0 | O97: =+'[1]ECOS - EXTERNAL (2019 GRC)'!O97 -> 8059.272027 | P97: =+'[1]ECOS - EXTERNAL (2019 GRC)'!P97 -> 1428.414028
A98: =IF(A97="~","~","") -> 
A99: DIR108.360 | B99: Direct Assign Substation Ease - Accum Depr | C99: DEM | E99: =IF($D100=0,0,E100/$D100) -> 0 | F99: 0 | G99: 0 | H99: 0 | I99: 0 | J99: 0 | K99: 0 | L99: 0 | M99: 1 | N99: 0 | O99: 0 | P99: 0 | Q99: 0 | R99: 0 | S99: 0 | T99: 0 | U99: 0 | V99: 0 | W99: 0 | X99: 0
A100: =IF(A99="~","~","") ->  | B100: =INPUTS!$B$5 -> Historic Test Year Twelve Months ended December 2018 | D100: =SUM(E100:X100) -> -12148.752 | E100: =+'[1]ECOS - EXTERNAL (2019 GRC)'!E100 -> 0 | F100: =+'[1]ECOS - EXTERNAL (2019 GRC)'!F100 -> 0 | G100: =+'[1]ECOS - EXTERNAL (2019 GRC)'!G100 -> 0 | H100: =+'[1]ECOS - EXTERNAL (2019 GRC)'!H100 -> 0 | I100: =+'[1]ECOS - EXTERNAL (2019 GRC)'!I100 -> 0 | J100: =+'[1]ECOS - EXTERNAL (2019 GRC)'!J100 -> 0 | K100: =+'[1]ECOS - EXTERNAL (2019 GRC)'!K100 -> 0 | L100: =+'[1]ECOS - EXTERNAL (2019 GRC)'!L100 -> 0 | M100: =+'[1]ECOS - EXTERNAL (2019 GRC)'!M100 -> -12148.752 | N100: =+'[1]ECOS - EXTERNAL (2019 GRC)'!N100 -> 0 | O100: =+'[1]ECOS - EXTERNAL (2019 GRC)'!O100 -> 0 | P100: =+'[1]ECOS - EXTERNAL (2019 GRC)'!P100 -> 0
A101: =IF(A100="~","~","") -> 
A102: DIR108.361 | B102: Direct Assign Substation Structures - Accum Depr | C102: DEM | E102: =IF($D103=0,0,E103/$D103) -> 0 | F102: 0 | G102: 0 | H102: 0 | I102: 0.0487542603 | J102: 0 | K102: 0 | L102: 0.2460801192 | M102: 0.2574662477 | N102: 0.4476993728 | O102: 0 | P102: 0 | Q102: 0 | R102: 0 | S102: 0 | T102: 0 | U102: 0 | V102: 0 | W102: 0 | X102: 0
A103: =IF(A102="~","~","") ->  | B103: =INPUTS!$B$5 -> Historic Test Year Twelve Months ended December 2018 | D103: =SUM(E103:X103) -> -224950.7619 | E103: =+'[1]ECOS - EXTERNAL (2019 GRC)'!E103 -> 0 | F103: =+'[1]ECOS - EXTERNAL (2019 GRC)'!F103 -> 0 | G103: =+'[1]ECOS - EXTERNAL (2019 GRC)'!G103 -> 0 | H103: =+'[1]ECOS - EXTERNAL (2019 GRC)'!H103 -> 0 | I103: =+'[1]ECOS - EXTERNAL (2019 GRC)'!I103 -> -10967.308 | J103: =+'[1]ECOS - EXTERNAL (2019 GRC)'!J103 -> 0 | K103: =+'[1]ECOS - EXTERNAL (2019 GRC)'!K103 -> 0 | L103: =+'[1]ECOS - EXTERNAL (2019 GRC)'!L103 -> -55355.91029 | M103: =+'[1]ECOS - EXTERNAL (2019 GRC)'!M103 -> -57917.22858 | N103: =+'[1]ECOS - EXTERNAL (2019 GRC)'!N103 -> -100710.315 | O103: =+'[1]ECOS - EXTERNAL (2019 GRC)'!O103 -> 0 | P103: =+'[1]ECOS - EXTERNAL (2019 GRC)'!P103 -> 0
A104: =IF(A103="~","~","") -> 
A105: DIR108.362 | B105: Direct Assign Substation Equipment - Accum Depr | C105: DEM | E105: =IF($D106=0,0,E106/$D106) -> 0 | F105: 0 | G105: 0 | H105: 0 | I105: 0.06183531989 | J105: 0 | K105: 0 | L105: 0.2505235863 | M105: 0.389997057 | N105: 0.2976440368 | O105: 0 | P105: 0 | Q105: 0 | R105: 0 | S105: 0 | T105: 0 | U105: 0 | V105: 0 | W105: 0 | X105: 0
A106: =IF(A105="~","~","") ->  | B106: =INPUTS!$B$5 -> Historic Test Year Twelve Months ended December 2018 | D106: =SUM(E106:X106) -> -11302572.92 | E106: =+'[1]ECOS - EXTERNAL (2019 GRC)'!E106 -> 0 | F106: =+'[1]ECOS - EXTERNAL (2019 GRC)'!F106 -> 0 | G106: =+'[1]ECOS - EXTERNAL (2019 GRC)'!G106 -> 0 | H106: =+'[1]ECOS - EXTERNAL (2019 GRC)'!H106 -> 0 | I106: =+'[1]ECOS - EXTERNAL (2019 GRC)'!I106 -> -698898.212 | J106: =+'[1]ECOS - EXTERNAL (2019 GRC)'!J106 -> 0 | K106: =+'[1]ECOS - EXTERNAL (2019 GRC)'!K106 -> 0 | L106: =+'[1]ECOS - EXTERNAL (2019 GRC)'!L106 -> -2831561.103 | M106: =+'[1]ECOS - EXTERNAL (2019 GRC)'!M106 -> -4407970.175 | N106: =+'[1]ECOS - EXTERNAL (2019 GRC)'!N106 -> -3364143.43 | O106: =+'[1]ECOS - EXTERNAL (2019 GRC)'!O106 -> 0 | P106: =+'[1]ECOS - EXTERNAL (2019 GRC)'!P106 -> 0
A107: =IF(A106="~","~","") -> 
A108: DIR108.364 | B108: Direct Assign OH Dist Lines - Accum Depr | C108: DEM | E108: =IF($D109=0,0,E109/$D109) -> 0 | F108: 0 | G108: 0 | H108: 0 | I108: 0 | J108: 0 | K108: 0 | L108: 1 | M108: 0 | N108: 0 | O108: 0 | P108: 0 | Q108: 0 | R108: 0 | S108: 0 | T108: 0 | U108: 0 | V108: 0 | W108: 0 | X108: 0
A109: =IF(A108="~","~","") ->  | B109: =INPUTS!$B$5 -> Historic Test Year Twelve Months ended December 2018 | D109: =SUM(E109:X109) -> -52160.69215 | E109: =+'[1]ECOS - EXTERNAL (2019 GRC)'!E109 -> 0 | F109: =+'[1]ECOS - EXTERNAL (2019 GRC)'!F109 -> 0 | G109: =+'[1]ECOS - EXTERNAL (2019 GRC)'!G109 -> 0 | H109: =+'[1]ECOS - EXTERNAL (2019 GRC)'!H109 -> 0 | I109: =+'[1]ECOS - EXTERNAL (2019 GRC)'!I109 -> 0 | J109: =+'[1]ECOS - EXTERNAL (2019 GRC)'!J109 -> 0 | K109: =+'[1]ECOS - EXTERNAL (2019 GRC)'!K109 -> 0 | L109: =+'[1]ECOS - EXTERNAL (2019 GRC)'!L109 -> -52160.69215 | M109: =+'[1]ECOS - EXTERNAL (2019 GRC)'!M109 -> 0 | N109: =+'[1]ECOS - EXTERNAL (2019 GRC)'!N109 -> 0 | O109: =+'[1]ECOS - EXTERNAL (2019 GRC)'!O109 -> 0 | P109: =+'[1]ECOS - EXTERNAL (2019 GRC)'!P109 -> 0
A110: =IF(A109="~","~","") -> 
A111: DIR108.366 | B111: Direct Assign UG Dist Lines | C111: DEM | E111: =IF($D112=0,0,E112/$D112) -> 0 | F111: 0 | G111: 0 | H111: 0 | I111: 0 | J111: 0 | K111: 0 | L111: 0.8754477887 | M111: 0.1229706833 | N111: 0.001581527957 | O111: 0 | P111: 0 | Q111: 0 | R111: 0 | S111: 0 | T111: 0 | U111: 0 | V111: 0 | W111: 0 | X111: 0
A112: =IF(A111="~","~","") ->  | B112: =INPUTS!$B$5 -> Historic Test Year Twelve Months ended December 2018 | D112: =SUM(E112:X112) -> -15897826.55 | E112: =+'[1]ECOS - EXTERNAL (2019 GRC)'!E112 -> 0 | F112: =+'[1]ECOS - EXTERNAL (2019 GRC)'!F112 -> 0 | G112: =+'[1]ECOS - EXTERNAL (2019 GRC)'!G112 -> 0 | H112: =+'[1]ECOS - EXTERNAL (2019 GRC)'!H112 -> 0 | I112: =+'[1]ECOS - EXTERNAL (2019 GRC)'!I112 -> 0 | J112: =+'[1]ECOS - EXTERNAL (2019 GRC)'!J112 -> 0 | K112: =+'[1]ECOS - EXTERNAL (2019 GRC)'!K112 -> 0 | L112: =+'[1]ECOS - EXTERNAL (2019 GRC)'!L112 -> -13917717.1 | M112: =+'[1]ECOS - EXTERNAL (2019 GRC)'!M112 -> -1954966.595 | N112: =+'[1]ECOS - EXTERNAL (2019 GRC)'!N112 -> -25142.85714 | O112: =+'[1]ECOS - EXTERNAL (2019 GRC)'!O112 -> 0 | P112: =+'[1]ECOS - EXTERNAL (2019 GRC)'!P112 -> 0
A113: =IF(A112="~","~","") -> 
A114: DIR360.01 | B114: Direct Assign Substation Land | C114: DEM | E114: =IF($D115=0,0,E115/$D115) -> 0 | F114: 0 | G114: 0 | H114: 0 | I114: 0 | J114: 0 | K114: 0 | L114: 0.9936745278 | M114: 0.006325472178 | N114: 0 | O114: 0 | P114: 0 | Q114: 0 | R114: 0 | S114: 0 | T114: 0 | U114: 0 | V114: 0 | W114: 0 | X114: 0
A115: =IF(A114="~","~","") ->  | B115: =INPUTS!$B$5 -> Historic Test Year Twelve Months ended December 2018 | D115: =SUM(E115:X115) -> 3584294.51 | E115: =+'[1]ECOS - EXTERNAL (2019 GRC)'!E115 -> 0 | F115: =+'[1]ECOS - EXTERNAL (2019 GRC)'!F115 -> 0 | G115: =+'[1]ECOS - EXTERNAL (2019 GRC)'!G115 -> 0 | H115: =+'[1]ECOS - EXTERNAL (2019 GRC)'!H115 -> 0 | I115: =+'[1]ECOS - EXTERNAL (2019 GRC)'!I115 -> 0 | J115: =+'[1]ECOS - EXTERNAL (2019 GRC)'!J115 -> 0 | K115: =+'[1]ECOS - EXTERNAL (2019 GRC)'!K115 -> 0 | L115: =+'[1]ECOS - EXTERNAL (2019 GRC)'!L115 -> 3561622.155 | M115: =+'[1]ECOS - EXTERNAL (2019 GRC)'!M115 -> 22672.3552 | N115: =+'[1]ECOS - EXTERNAL (2019 GRC)'!N115 -> 0 | O115: =+'[1]ECOS - EXTERNAL (2019 GRC)'!O115 -> 0 | P115: =+'[1]ECOS - EXTERNAL (2019 GRC)'!P115 -> 0
A116: =IF(A115="~","~","") -> 
A117: DIR361.01 | B117: Direct Assign Substation Structures | C117: DEM | E117: =IF($D118=0,0,E118/$D118) -> 0 | F117: 0 | G117: 0 | H117: 0 | I117: 0 | J117: 0 | K117: 0 | L117: 0.40513195 | M117: 0.2722149557 | N117: 0.3226530943 | O117: 0 | P117: 0 | Q117: 0 | R117: 0 | S117: 0 | T117: 0 | U117: 0 | V117: 0 | W117: 0 | X117: 0
A118: =IF(A117="~","~","") ->  | B118: =INPUTS!$B$5 -> Historic Test Year Twelve Months ended December 2018 | D118: =SUM(E118:X118) -> 598299.7945 | E118: =+'[1]ECOS - EXTERNAL (2019 GRC)'!E118 -> 0 | F118: =+'[1]ECOS - EXTERNAL (2019 GRC)'!F118 -> 0 | G118: =+'[1]ECOS - EXTERNAL (2019 GRC)'!G118 -> 0 | H118: =+'[1]ECOS - EXTERNAL (2019 GRC)'!H118 -> 0 | I118: =+'[1]ECOS - EXTERNAL (2019 GRC)'!I118 -> 0 | J118: =+'[1]ECOS - EXTERNAL (2019 GRC)'!J118 -> 0 | K118: =+'[1]ECOS - EXTERNAL (2019 GRC)'!K118 -> 0 | L118: =+'[1]ECOS - EXTERNAL (2019 GRC)'!L118 -> 242390.3624 | M118: =+'[1]ECOS - EXTERNAL (2019 GRC)'!M118 -> 162866.1521 | N118: =+'[1]ECOS - EXTERNAL (2019 GRC)'!N118 -> 193043.28 | O118: =+'[1]ECOS - EXTERNAL (2019 GRC)'!O118 -> 0 | P118: =+'[1]ECOS - EXTERNAL (2019 GRC)'!P118 -> 0
A119: =IF(A118="~","~","") -> 
A120: DIR362.01 | B120: Direct Assign Substation Equipment | C120: DEM | E120: =IF($D121=0,0,E121/$D121) -> 0 | F120: 0 | G120: 0 | H120: 0 | I120: 0.02427413675 | J120: 0 | K120: 0 | L120: 0.3225524369 | M120: 0.4564984846 | N120: 0.1966749418 | O120: 0 | P120: 0 | Q120: 0 | R120: 0 | S120: 0 | T120: 0 | U120: 0 | V120: 0 | W120: 0 | X120: 0
A121: =IF(A120="~","~","") ->  | B121: =INPUTS!$B$5 -> Historic Test Year Twelve Months ended December 2018 | D121: =SUM(E121:X121) -> 31963716.52 | E121: =+'[1]ECOS - EXTERNAL (2019 GRC)'!E121 -> 0 | F121: =+'[1]ECOS - EXTERNAL (2019 GRC)'!F121 -> 0 | G121: =+'[1]ECOS - EXTERNAL (2019 GRC)'!G121 -> 0 | H121: =+'[1]ECOS - EXTERNAL (2019 GRC)'!H121 -> 0 | I121: =+'[1]ECOS - EXTERNAL (2019 GRC)'!I121 -> 775891.626 | J121: =+'[1]ECOS - EXTERNAL (2019 GRC)'!J121 -> 0 | K121: =+'[1]ECOS - EXTERNAL (2019 GRC)'!K121 -> 0 | L121: =+'[1]ECOS - EXTERNAL (2019 GRC)'!L121 -> 10309974.66 | M121: =+'[1]ECOS - EXTERNAL (2019 GRC)'!M121 -> 14591388.15 | N121: =+'[1]ECOS - EXTERNAL (2019 GRC)'!N121 -> 6286462.085 | O121: =+'[1]ECOS - EXTERNAL (2019 GRC)'!O121 -> 0 | P121: =+'[1]ECOS - EXTERNAL (2019 GRC)'!P121 -> 0
A122: =IF(A121="~","~","") -> 
A123: DIR364.01 | B123: Direct Assign OH Dist Lines | C123: DEM | E123: =IF($D124=0,0,E124/$D124) -> 0 | F123: 0 | G123: 0 | H123: 0 | I123: 0 | J123: 0 | K123: 0 | L123: 1 | M123: 0 | N123: 0 | O123: 0 | P123: 0 | Q123: 0 | R123: 0 | S123: 0 | T123: 0 | U123: 0 | V123: 0 | W123: 0 | X123: 0
A124: =IF(A123="~","~","") ->  | B124: =INPUTS!$B$5 -> Historic Test Year Twelve Months ended December 2018 | D124: =SUM(E124:X124) -> 67009.35634 | E124: =+'[1]ECOS - EXTERNAL (2019 GRC)'!E124 -> 0 | F124: =+'[1]ECOS - EXTERNAL (2019 GRC)'!F124 -> 0 | G124: =+'[1]ECOS - EXTERNAL (2019 GRC)'!G124 -> 0 | H124: =+'[1]ECOS - EXTERNAL (2019 GRC)'!H124 -> 0 | I124: =+'[1]ECOS - EXTERNAL (2019 GRC)'!I124 -> 0 | J124: =+'[1]ECOS - EXTERNAL (2019 GRC)'!J124 -> 0 | K124: =+'[1]ECOS - EXTERNAL (2019 GRC)'!K124 -> 0 | L124: =+'[1]ECOS - EXTERNAL (2019 GRC)'!L124 -> 67009.35634 | M124: =+'[1]ECOS - EXTERNAL (2019 GRC)'!M124 -> 0 | N124: =+'[1]ECOS - EXTERNAL (2019 GRC)'!N124 -> 0 | O124: =+'[1]ECOS - EXTERNAL (2019 GRC)'!O124 -> 0 | P124: =+'[1]ECOS - EXTERNAL (2019 GRC)'!P124 -> 0
A125: =IF(A124="~","~","") -> 
A126: DIR366.01 | B126: Direct Assign UG Dist Lines | C126: DEM | E126: =IF($D127=0,0,E127/$D127) -> 0 | F126: 0 | G126: 0 | H126: 0 | I126: 0 | J126: 0 | K126: 0 | L126: 0.7588396667 | M126: 0.2397197541 | N126: 0.001440579134 | O126: 0 | P126: 0 | Q126: 0 | R126: 0 | S126: 0 | T126: 0 | U126: 0 | V126: 0 | W126: 0 | X126: 0
A127: =IF(A126="~","~","") ->  | B127: =INPUTS!$B$5 -> Historic Test Year Twelve Months ended December 2018 | D127: =SUM(E127:X127) -> 27766610.7 | E127: =+'[1]ECOS - EXTERNAL (2019 GRC)'!E127 -> 0 | F127: =+'[1]ECOS - EXTERNAL (2019 GRC)'!F127 -> 0 | G127: =+'[1]ECOS - EXTERNAL (2019 GRC)'!G127 -> 0 | H127: =+'[1]ECOS - EXTERNAL (2019 GRC)'!H127 -> 0 | I127: =+'[1]ECOS - EXTERNAL (2019 GRC)'!I127 -> 0 | J127: =+'[1]ECOS - EXTERNAL (2019 GRC)'!J127 -> 0 | K127: =+'[1]ECOS - EXTERNAL (2019 GRC)'!K127 -> 0 | L127: =+'[1]ECOS - EXTERNAL (2019 GRC)'!L127 -> 21070405.61 | M127: =+'[1]ECOS - EXTERNAL (2019 GRC)'!M127 -> 6656205.09 | N127: =+'[1]ECOS - EXTERNAL (2019 GRC)'!N127 -> 40000 | O127: =+'[1]ECOS - EXTERNAL (2019 GRC)'!O127 -> 0 | P127: =+'[1]ECOS - EXTERNAL (2019 GRC)'!P127 -> 0
A128: =IF(A127="~","~","") -> 
A129: DIR368.03 | B129: Line Transformers | C129: DEM | E129: =IF($D130=0,0,E130/$D130) -> 0 | F129: 0 | G129: 0 | H129: 0 | I129: 0.3590848496 | J129: 0 | K129: 0.02057968062 | L129: 0.6118869809 | M129: 0 | N129: 0 | O129: 0 | P129: 0.008448488912 | Q129: 0 | R129: 0 | S129: 0 | T129: 0 | U129: 0 | V129: 0 | W129: 0 | X129: 0
A130: =IF(A129="~","~","") ->  | B130: =INPUTS!$B$5 -> Historic Test Year Twelve Months ended December 2018 | D130: =SUM(E130:X130) -> 2295936.019 | E130: =+'[1]ECOS - EXTERNAL (2019 GRC)'!E130 -> 0 | F130: =+'[1]ECOS - EXTERNAL (2019 GRC)'!F130 -> 0 | G130: =+'[1]ECOS - EXTERNAL (2019 GRC)'!G130 -> 0 | H130: =+'[1]ECOS - EXTERNAL (2019 GRC)'!H130 -> 0 | I130: =+'[1]ECOS - EXTERNAL (2019 GRC)'!I130 -> 824435.84 | J130: =+'[1]ECOS - EXTERNAL (2019 GRC)'!J130 -> 0 | K130: =+'[1]ECOS - EXTERNAL (2019 GRC)'!K130 -> 47249.63 | L130: =+'[1]ECOS - EXTERNAL (2019 GRC)'!L130 -> 1404853.359 | M130: =+'[1]ECOS - EXTERNAL (2019 GRC)'!M130 -> 0 | N130: =+'[1]ECOS - EXTERNAL (2019 GRC)'!N130 -> 0 | O130: =+'[1]ECOS - EXTERNAL (2019 GRC)'!O130 -> 0 | P130: =+'[1]ECOS - EXTERNAL (2019 GRC)'!P130 -> 19397.19
A131: =IF(A130="~","~","") -> 
A132: NCP_360 | B132: Allocate Substation Land - 12 NCP | C132: DEM | E132: =IF($D133=0,0,E133/$D133) -> 0.4538635019 | F132: 0.1463147162 | G132: 0.190360271 | H132: 0.1118763043 | I132: 0.09214877803 | J132: 2.017101694e-05 | K132: 0.004710849321 | L132: 0 | M132: 0 | N132: 0 | O132: 0.0006441821405 | P132: 6.12261676e-05 | Q132: 0 | R132: 0 | S132: 0 | T132: 0 | U132: 0 | V132: 0 | W132: 0 | X132: 0
A133: =IF(A132="~","~","") ->  | B133: =INPUTS!$B$5 -> Historic Test Year Twelve Months ended December 2018 | D133: =SUM(E133:X133) -> 29448193 | E133: =+'[1]ECOS - EXTERNAL (2019 GRC)'!E133 -> 13365460 | F133: =+'[1]ECOS - EXTERNAL (2019 GRC)'!F133 -> 4308704 | G133: =+'[1]ECOS - EXTERNAL (2019 GRC)'!G133 -> 5605766 | H133: =+'[1]ECOS - EXTERNAL (2019 GRC)'!H133 -> 3294555 | I133: =+'[1]ECOS - EXTERNAL (2019 GRC)'!I133 -> 2713615 | J133: =+'[1]ECOS - EXTERNAL (2019 GRC)'!J133 -> 594 | K133: =+'[1]ECOS - EXTERNAL (2019 GRC)'!K133 -> 138726 | L133: =+'[1]ECOS - EXTERNAL (2019 GRC)'!L133 -> 0 | M133: =+'[1]ECOS - EXTERNAL (2019 GRC)'!M133 -> 0 | N133: =+'[1]ECOS - EXTERNAL (2019 GRC)'!N133 -> 0 | O133: =+'[1]ECOS - EXTERNAL (2019 GRC)'!O133 -> 18970 | P133: =+'[1]ECOS - EXTERNAL (2019 GRC)'!P133 -> 1803
A134: =IF(A133="~","~","") -> 
A135: NCP_361 | B135: Allocate Substation Structures - 12 NCP | C135: DEM | E135: =IF($D136=0,0,E136/$D136) -> 0.5090726472 | F135: 0.1401396915 | G135: 0.1740505684 | H135: 0.1012251546 | I135: 0.06645432099 | J135: 1.445183817e-07 | K135: 0.008170129929 | L135: 0 | M135: 0 | N135: 0 | O135: 0.0007735346378 | P135: 0.0001138082256 | Q135: 0 | R135: 0 | S135: 0 | T135: 0 | U135: 0 | V135: 0 | W135: 0 | X135: 0
A136: =IF(A135="~","~","") ->  | B136: =INPUTS!$B$5 -> Historic Test Year Twelve Months ended December 2018 | D136: =SUM(E136:X136) -> 13839070 | E136: =+'[1]ECOS - EXTERNAL (2019 GRC)'!E136 -> 7045092 | F136: =+'[1]ECOS - EXTERNAL (2019 GRC)'!F136 -> 1939403 | G136: =+'[1]ECOS - EXTERNAL (2019 GRC)'!G136 -> 2408698 | H136: =+'[1]ECOS - EXTERNAL (2019 GRC)'!H136 -> 1400862 | I136: =+'[1]ECOS - EXTERNAL (2019 GRC)'!I136 -> 919666 | J136: =+'[1]ECOS - EXTERNAL (2019 GRC)'!J136 -> 2 | K136: =+'[1]ECOS - EXTERNAL (2019 GRC)'!K136 -> 113067 | L136: =+'[1]ECOS - EXTERNAL (2019 GRC)'!L136 -> 0 | M136: =+'[1]ECOS - EXTERNAL (2019 GRC)'!M136 -> 0 | N136: =+'[1]ECOS - EXTERNAL (2019 GRC)'!N136 -> 0 | O136: =+'[1]ECOS - EXTERNAL (2019 GRC)'!O136 -> 10705 | P136: =+'[1]ECOS - EXTERNAL (2019 GRC)'!P136 -> 1575
A137: =IF(A136="~","~","") -> 
A138: NCP_362 | B138: Allocate Substation Equipment - 12 NCP | C138: DEM | E138: =IF($D139=0,0,E139/$D139) -> 0.5581957513 | F138: 0.1349571917 | G138: 0.1482895636 | H138: 0.07890364215 | I138: 0.07024677704 | J138: 0.0002582971316 | K138: 0.008067064314 | L138: 0 | M138: 0 | N138: 0 | O138: 0.0008067230403 | P138: 0.0002749897015 | Q138: 0 | R138: 0 | S138: 0 | T138: 0 | U138: 0 | V138: 0 | W138: 0 | X138: 0
A139: =IF(A138="~","~","") ->  | B139: =INPUTS!$B$5 -> Historic Test Year Twelve Months ended December 2018 | D139: =SUM(E139:X139) -> 800775443 | E139: =+'[1]ECOS - EXTERNAL (2019 GRC)'!E139 -> 446989450 | F139: =+'[1]ECOS - EXTERNAL (2019 GRC)'!F139 -> 108070405 | G139: =+'[1]ECOS - EXTERNAL (2019 GRC)'!G139 -> 118746641 | H139: =+'[1]ECOS - EXTERNAL (2019 GRC)'!H139 -> 63184099 | I139: =+'[1]ECOS - EXTERNAL (2019 GRC)'!I139 -> 56251894 | J139: =+'[1]ECOS - EXTERNAL (2019 GRC)'!J139 -> 206838 | K139: =+'[1]ECOS - EXTERNAL (2019 GRC)'!K139 -> 6459907 | L139: =+'[1]ECOS - EXTERNAL (2019 GRC)'!L139 -> 0 | M139: =+'[1]ECOS - EXTERNAL (2019 GRC)'!M139 -> 0 | N139: =+'[1]ECOS - EXTERNAL (2019 GRC)'!N139 -> 0 | O139: =+'[1]ECOS - EXTERNAL (2019 GRC)'!O139 -> 646004 | P139: =+'[1]ECOS - EXTERNAL (2019 GRC)'!P139 -> 220205
A140: =IF(A139="~","~","") -> 
A141: OH_NCP | B141: Allocate Overhead Lines - 12 NCP | C141: DEM | E141: =IF($D142=0,0,E142/$D142) -> 0.6892130511 | F141: 0.1259311043 | G141: 0.09790255446 | H141: 0.03872871618 | I141: 0.03625179793 | J141: 0.0009080024749 | K141: 0.009769062025 | L141: 0 | M141: 0 | N141: 0 | O141: 0.0006056697924 | P141: 0.0006900417038 | Q141: 0 | R141: 0 | S141: 0 | T141: 0 | U141: 0 | V141: 0 | W141: 0 | X141: 0
A142: =IF(A141="~","~","") ->  | B142: =INPUTS!$B$5 -> Historic Test Year Twelve Months ended December 2018 | D142: =SUM(E142:X142) -> 9955.92 | E142: =+'[1]ECOS - EXTERNAL (2019 GRC)'!E142 -> 6861.75 | F142: =+'[1]ECOS - EXTERNAL (2019 GRC)'!F142 -> 1253.76 | G142: =+'[1]ECOS - EXTERNAL (2019 GRC)'!G142 -> 974.71 | H142: =+'[1]ECOS - EXTERNAL (2019 GRC)'!H142 -> 385.58 | I142: =+'[1]ECOS - EXTERNAL (2019 GRC)'!I142 -> 360.92 | J142: =+'[1]ECOS - EXTERNAL (2019 GRC)'!J142 -> 9.04 | K142: =+'[1]ECOS - EXTERNAL (2019 GRC)'!K142 -> 97.26 | L142: =+'[1]ECOS - EXTERNAL (2019 GRC)'!L142 -> 0 | M142: =+'[1]ECOS - EXTERNAL (2019 GRC)'!M142 -> 0 | N142: =+'[1]ECOS - EXTERNAL (2019 GRC)'!N142 -> 0 | O142: =+'[1]ECOS - EXTERNAL (2019 GRC)'!O142 -> 6.03 | P142: =+'[1]ECOS - EXTERNAL (2019 GRC)'!P142 -> 6.87
A143: =IF(A142="~","~","") -> 
A144: OH_TFMR | B144: Allocate Overhead Transformers | C144: DEM | E144: =IF($D145=0,0,E145/$D145) -> 0.746653245 | F144: 0.1222865526 | G144: 0.01787760127 | H144: 0.0002015947182 | I144: 0 | J144: 0 | K144: 0 | L144: 0 | M144: 0 | N144: 0 | O144: 0.1129810065 | P144: 0 | Q144: 0 | R144: 0 | S144: 0 | T144: 0 | U144: 0 | V144: 0 | W144: 0 | X144: 0
A145: =IF(A144="~","~","") ->  | B145: =INPUTS!$B$5 -> Historic Test Year Twelve Months ended December 2018 | D145: =SUM(E145:X145) -> 448977328.1 | E145: =+'[1]ECOS - EXTERNAL (2019 GRC)'!E145 -> 335230378.9 | F145: =+'[1]ECOS - EXTERNAL (2019 GRC)'!F145 -> 54903889.64 | G145: =+'[1]ECOS - EXTERNAL (2019 GRC)'!G145 -> 8026637.65 | H145: =+'[1]ECOS - EXTERNAL (2019 GRC)'!H145 -> 90511.45795 | I145: =+'[1]ECOS - EXTERNAL (2019 GRC)'!I145 -> 0 | J145: =+'[1]ECOS - EXTERNAL (2019 GRC)'!J145 -> 0 | K145: =+'[1]ECOS - EXTERNAL (2019 GRC)'!K145 -> 0 | L145: =+'[1]ECOS - EXTERNAL (2019 GRC)'!L145 -> 0 | M145: =+'[1]ECOS - EXTERNAL (2019 GRC)'!M145 -> 0 | N145: =+'[1]ECOS - EXTERNAL (2019 GRC)'!N145 -> 0 | O145: =+'[1]ECOS - EXTERNAL (2019 GRC)'!O145 -> 50725910.4 | P145: =+'[1]ECOS - EXTERNAL (2019 GRC)'!P145 -> 0
A147: UG_NCP | B147: Allocate Underground Lines - 12 NCP | C147: DEM | E147: =IF($D148=0,0,E148/$D148) -> 0.6729945336 | F147: 0.1199193926 | G147: 0.1119062542 | H147: 0.04858659346 | I147: 0.03465583174 | J147: 0.0004115658942 | K147: 0.01079096023 | L147: 0 | M147: 0 | N147: 0 | O147: 0.0004611521465 | P147: 0.0002737161128 | Q147: 0 | R147: 0 | S147: 0 | T147: 0 | U147: 0 | V147: 0 | W147: 0 | X147: 0
A148: =IF(A147="~","~","") ->  | B148: =INPUTS!$B$5 -> Historic Test Year Twelve Months ended December 2018 | D148: =SUM(E148:X148) -> 10083.44 | E148: =+'[1]ECOS - EXTERNAL (2019 GRC)'!E148 -> 6786.1 | F148: =+'[1]ECOS - EXTERNAL (2019 GRC)'!F148 -> 1209.2 | G148: =+'[1]ECOS - EXTERNAL (2019 GRC)'!G148 -> 1128.4 | H148: =+'[1]ECOS - EXTERNAL (2019 GRC)'!H148 -> 489.92 | I148: =+'[1]ECOS - EXTERNAL (2019 GRC)'!I148 -> 349.45 | J148: =+'[1]ECOS - EXTERNAL (2019 GRC)'!J148 -> 4.15 | K148: =+'[1]ECOS - EXTERNAL (2019 GRC)'!K148 -> 108.81 | L148: =+'[1]ECOS - EXTERNAL (2019 GRC)'!L148 -> 0 | M148: =+'[1]ECOS - EXTERNAL (2019 GRC)'!M148 -> 0 | N148: =+'[1]ECOS - EXTERNAL (2019 GRC)'!N148 -> 0 | O148: =+'[1]ECOS - EXTERNAL (2019 GRC)'!O148 -> 4.65 | P148: =+'[1]ECOS - EXTERNAL (2019 GRC)'!P148 -> 2.76
A149: =IF(A148="~","~","") -> 
A150: UG_TFMR | B150: Allocate Underground Transformers | C150: DEM | E150: =IF($D151=0,0,E151/$D151) -> 0.7988775467 | F150: 0.123502289 | G150: 0.05886354351 | H150: 0.01626527275 | I150: 0 | J150: 0 | K150: 0 | L150: 0 | M150: 0 | N150: 0 | O150: 0.002491347974 | P150: 0 | Q150: 0 | R150: 0 | S150: 0 | T150: 0 | U150: 0 | V150: 0 | W150: 0 | X150: 0
A151: =IF(A150="~","~","") ->  | B151: =INPUTS!$B$5 -> Historic Test Year Twelve Months ended December 2018 | D151: =SUM(E151:X151) -> 784299006.2 | E151: =+'[1]ECOS - EXTERNAL (2019 GRC)'!E151 -> 626558866 | F151: =+'[1]ECOS - EXTERNAL (2019 GRC)'!F151 -> 96862722.54 | G151: =+'[1]ECOS - EXTERNAL (2019 GRC)'!G151 -> 46166618.68 | H151: =+'[1]ECOS - EXTERNAL (2019 GRC)'!H151 -> 12756837.25 | I151: =+'[1]ECOS - EXTERNAL (2019 GRC)'!I151 -> 0 | J151: =+'[1]ECOS - EXTERNAL (2019 GRC)'!J151 -> 0 | K151: =+'[1]ECOS - EXTERNAL (2019 GRC)'!K151 -> 0 | L151: =+'[1]ECOS - EXTERNAL (2019 GRC)'!L151 -> 0 | M151: =+'[1]ECOS - EXTERNAL (2019 GRC)'!M151 -> 0 | N151: =+'[1]ECOS - EXTERNAL (2019 GRC)'!N151 -> 0 | O151: =+'[1]ECOS - EXTERNAL (2019 GRC)'!O151 -> 1953961.74 | P151: =+'[1]ECOS - EXTERNAL (2019 GRC)'!P151 -> 0
A152: =IF(A151="~","~","") -> 
A153: DIR454.05 | B153: Equip. (Transformer & Substation) Rentals | C153: DEM | E153: =IF($D154=0,0,E154/$D154) -> 0 | F153: 0 | G153: 0 | H153: 0 | I153: 0.1014429463 | J153: 0 | K153: 0.002799036704 | L153: 0.01759080296 | M153: 0.6484057102 | N153: 0.2289886224 | O153: 0 | P153: 0.0007728814866 | Q153: 0 | R153: 0 | S153: 0 | T153: 0 | U153: 0 | V153: 0 | W153: 0 | X153: 0
A154: =IF(A153="~","~","") ->  | B154: =INPUTS!$B$5 -> Historic Test Year Twelve Months ended December 2018 | D154: =SUM(E154:X154) -> 4428880.83 | E154: =+'[1]ECOS - EXTERNAL (2019 GRC)'!E154 -> 0 | F154: =+'[1]ECOS - EXTERNAL (2019 GRC)'!F154 -> 0 | G154: =+'[1]ECOS - EXTERNAL (2019 GRC)'!G154 -> 0 | H154: =+'[1]ECOS - EXTERNAL (2019 GRC)'!H154 -> 0 | I154: =+'[1]ECOS - EXTERNAL (2019 GRC)'!I154 -> 449278.72 | J154: =+'[1]ECOS - EXTERNAL (2019 GRC)'!J154 -> 0 | K154: =+'[1]ECOS - EXTERNAL (2019 GRC)'!K154 -> 12396.6 | L154: =+'[1]ECOS - EXTERNAL (2019 GRC)'!L154 -> 77907.57 | M154: =+'[1]ECOS - EXTERNAL (2019 GRC)'!M154 -> 2871711.62 | N154: =+'[1]ECOS - EXTERNAL (2019 GRC)'!N154 -> 1014163.32 | O154: =+'[1]ECOS - EXTERNAL (2019 GRC)'!O154 -> 0 | P154: =+'[1]ECOS - EXTERNAL (2019 GRC)'!P154 -> 3423
A155: =IF(A154="~","~","") -> 
B163: ENERGY EXTERNAL ALLOCATORS
A165: BPAX | B165: BPA Residential Exchange kWh | C165: NRG | E165: =IF($D166=0,0,E166/$D166) -> 0.9573998118 | F165: 0.02286834147 | G165: 0.01482827747 | H165: 0.00153118062 | I165: 0.002793962469 | J165: 0.0004053721619 | K165: 0 | L165: 0 | M165: 0 | N165: 0 | O165: 0.0001730539708 | P165: 0 | Q165: 0 | R165: 0 | S165: 0 | T165: 0 | U165: 0 | V165: 0 | W165: 0 | X165: 0
A166: =IF(A165="~","~","") ->  | B166: =INPUTS!$B$5 -> Historic Test Year Twelve Months ended December 2018 | D166: =SUM(E166:X166) -> 10961926.89 | E166: =+'[1]ECOS - EXTERNAL (2019 GRC)'!E166 -> 10494946.74 | F166: =+'[1]ECOS - EXTERNAL (2019 GRC)'!F166 -> 250681.0871 | G166: =+'[1]ECOS - EXTERNAL (2019 GRC)'!G166 -> 162546.4935 | H166: =+'[1]ECOS - EXTERNAL (2019 GRC)'!H166 -> 16784.69 | I166: =+'[1]ECOS - EXTERNAL (2019 GRC)'!I166 -> 30627.21231 | J166: =+'[1]ECOS - EXTERNAL (2019 GRC)'!J166 -> 4443.66 | K166: =+'[1]ECOS - EXTERNAL (2019 GRC)'!K166 -> 0 | L166: =+'[1]ECOS - EXTERNAL (2019 GRC)'!L166 -> 0 | M166: =+'[1]ECOS - EXTERNAL (2019 GRC)'!M166 -> 0 | N166: =+'[1]ECOS - EXTERNAL (2019 GRC)'!N166 -> 0 | O166: =+'[1]ECOS - EXTERNAL (2019 GRC)'!O166 -> 1897.004976 | P166: =+'[1]ECOS - EXTERNAL (2019 GRC)'!P166 -> 0
A168: ENERGY_1 | B168: Annual kWhs | C168: NRG | E168: =IF($D169=0,0,E169/$D169) -> 0.4694694881 | F168: 0.1192866882 | G168: 0.1326559323 | H168: 0.08561160425 | I168: 0.05956365632 | J168: 0.0001880786993 | K168: 0.00519088084 | L168: 0.01432121617 | M168: 0.02578157223 | N168: 0.08452263616 | O168: 0.003104420919 | P168: 0.0003038258194 | Q168: 0 | R168: 0 | S168: 0 | T168: 0 | U168: 0 | V168: 0 | W168: 0 | X168: 0
A169: =IF(A168="~","~","") ->  | B169: =INPUTS!$B$5 -> Historic Test Year Twelve Months ended December 2018 | D169: =SUM(E169:X169) -> 2.44449374e+10 | E169: =+'[1]ECOS - EXTERNAL (2019 GRC)'!E169 -> 1.147615225e+10 | F169: =+'[1]ECOS - EXTERNAL (2019 GRC)'!F169 -> 2915955626 | G169: =+'[1]ECOS - EXTERNAL (2019 GRC)'!G169 -> 3242765960 | H169: =+'[1]ECOS - EXTERNAL (2019 GRC)'!H169 -> 2092770307 | I169: =+'[1]ECOS - EXTERNAL (2019 GRC)'!I169 -> 1456029850 | J169: =+'[1]ECOS - EXTERNAL (2019 GRC)'!J169 -> 4597572.032 | K169: =+'[1]ECOS - EXTERNAL (2019 GRC)'!K169 -> 126890757.2 | L169: =+'[1]ECOS - EXTERNAL (2019 GRC)'!L169 -> 350081232.8 | M169: =+'[1]ECOS - EXTERNAL (2019 GRC)'!M169 -> 630228919.3 | N169: =+'[1]ECOS - EXTERNAL (2019 GRC)'!N169 -> 2066150550 | O169: =+'[1]ECOS - EXTERNAL (2019 GRC)'!O169 -> 75887375.03 | P169: =+'[1]ECOS - EXTERNAL (2019 GRC)'!P169 -> 7427003.136
A171: ENERGY_2 | B171: Energy - NO RETAIL WHEELING | C171: NRG | E171: =IF($D172=0,0,E172/$D172) -> 0.5209635304 | F171: 0.1323707201 | G171: 0.1472063777 | H171: 0.09500196439 | I171: 0.06609693168 | J171: 0.0002087082242 | K171: 0.005760245717 | L171: 0 | M171: 0.02860943944 | N171: 0 | O171: 0.003444931189 | P171: 0.0003371511366 | Q171: 0 | R171: 0 | S171: 0 | T171: 0 | U171: 0 | V171: 0 | W171: 0 | X171: 0
A172: =IF(A171="~","~","") ->  | B172: =INPUTS!$B$5 -> Historic Test Year Twelve Months ended December 2018 | D172: =SUM(E172:X172) -> 2.202870562e+10 | E172: =+'[1]ECOS - EXTERNAL (2019 GRC)'!E172 -> 1.147615225e+10 | F172: =+'[1]ECOS - EXTERNAL (2019 GRC)'!F172 -> 2915955626 | G172: =+'[1]ECOS - EXTERNAL (2019 GRC)'!G172 -> 3242765960 | H172: =+'[1]ECOS - EXTERNAL (2019 GRC)'!H172 -> 2092770307 | I172: =+'[1]ECOS - EXTERNAL (2019 GRC)'!I172 -> 1456029850 | J172: =+'[1]ECOS - EXTERNAL (2019 GRC)'!J172 -> 4597572.032 | K172: =+'[1]ECOS - EXTERNAL (2019 GRC)'!K172 -> 126890757.2 | L172: =+'[1]ECOS - EXTERNAL (2019 GRC)'!L172 -> 0 | M172: =+'[1]ECOS - EXTERNAL (2019 GRC)'!M172 -> 630228919.3 | N172: =+'[1]ECOS - EXTERNAL (2019 GRC)'!N172 -> 0 | O172: =+'[1]ECOS - EXTERNAL (2019 GRC)'!O172 -> 75887375.03 | P172: =+'[1]ECOS - EXTERNAL (2019 GRC)'!P172 -> 7427003.136

Sheet INTERNAL
A1: Internal Allocators
C2: Line Ref. | D2: =FUNCALLOC!E2 -> 4 | E2: =FUNCALLOC!F2 -> 5 | F2: =FUNCALLOC!G2 -> 6 | G2: =FUNCALLOC!H2 -> 7 | H2: =FUNCALLOC!I2 -> 8 | I2: =FUNCALLOC!J2 -> 9 | J2: =FUNCALLOC!K2 -> 10 | K2: =FUNCALLOC!L2 -> 11 | L2: =FUNCALLOC!M2 -> 12 | M2: =FUNCALLOC!N2 -> 13 | N2: =FUNCALLOC!O2 -> 14 | O2: =FUNCALLOC!P2 -> 15 | P2: =FUNCALLOC!Q2 -> 16 | Q2: =FUNCALLOC!R2 -> 17 | R2: =FUNCALLOC!S2 -> 18 | S2: =FUNCALLOC!T2 -> 19 | T2: =FUNCALLOC!U2 -> 20 | U2: =FUNCALLOC!V2 -> 21 | V2: =FUNCALLOC!W2 -> 22 | W2: =FUNCALLOC!X2 -> 23 | X2: =FUNCALLOC!Y2 -> 24 | Y2: =FUNCALLOC!Z2 -> 25 | Z2: =FUNCALLOC!AA2 -> 26 | AA2: =FUNCALLOC!AB2 -> 27 | AB2: =FUNCALLOC!AC2 -> 28 | AC2: =FUNCALLOC!AD2 -> 29 | AD2: =FUNCALLOC!AE2 -> 30 | AE2: =FUNCALLOC!AF2 -> 31 | AF2: =FUNCALLOC!AG2 -> 32 | AG2: =FUNCALLOC!AH2 -> 33 | AH2: =FUNCALLOC!AI2 -> 34 | AI2: =FUNCALLOC!AJ2 -> 35 | AJ2: =FUNCALLOC!AK2 -> 36 | AK2: =FUNCALLOC!AL2 -> 37 | AL2: =FUNCALLOC!AM2 -> 38 | AM2: =FUNCALLOC!AN2 -> 39 | AN2: =FUNCALLOC!AO2 -> 40 | AO2: =FUNCALLOC!AP2 -> 41 | AP2: =FUNCALLOC!AQ2 -> 42 | AQ2: =FUNCALLOC!AR2 -> 43 | AR2: =FUNCALLOC!AS2 -> 44 | AS2: =FUNCALLOC!AT2 -> 45 | AT2: =FUNCALLOC!AU2 -> 46 | AU2: =FUNCALLOC!AV2 -> 47 | AV2: =FUNCALLOC!AW2 -> 48 | AW2: =FUNCALLOC!AX2 -> 49 | AX2: =FUNCALLOC!AY2 -> 50 | AY2: =FUNCALLOC!AZ2 -> 51 | AZ2: =FUNCALLOC!BA2 -> 52 | BA2: =FUNCALLOC!BB2 -> 53 | BB2: =FUNCALLOC!BC2 -> 54 | BC2: =FUNCALLOC!BD2 -> 55 | BD2: =FUNCALLOC!BE2 -> 56 | BE2: =FUNCALLOC!BF2 -> 57 | BF2: =FUNCALLOC!BG2 -> 58 | BG2: =FUNCALLOC!BH2 -> 59 | BH2: =FUNCALLOC!BI2 -> 60 | BI2: =FUNCALLOC!BJ2 -> 61 | BJ2: =FUNCALLOC!BK2 -> 62 | BK2: =FUNCALLOC!BL2 -> 63 | BL2: =FUNCALLOC!BM2 -> 64 | BM2: =FUNCALLOC!BN2 -> 65 | BN2: =FUNCALLOC!BO2 -> 66 | BO2: =FUNCALLOC!BP2 -> 67 | BP2: =FUNCALLOC!BQ2 -> 68 | BQ2: =FUNCALLOC!BR2 -> 69 | BR2: =FUNCALLOC!BS2 -> 70 | BS2: =FUNCALLOC!BT2 -> 71 | BT2: =FUNCALLOC!BU2 -> 72 | BU2: =FUNCALLOC!BV2 -> 73 | BV2: =FUNCALLOC!BW2 -> 74 | BW2: =FUNCALLOC!BX2 -> 75 | BX2: =FUNCALLOC!BY2 -> 76 | BY2: =FUNCALLOC!BZ2 -> 77
A3: Name | B3: Description | C3: Total | D3: =FUNCALLOC!E3 -> F_PRODU_DEM_2A | E3: =FUNCALLOC!F3 -> F_PRODU_DEM_2B | F3: =FUNCALLOC!G3 -> F_TRANS_DEM_2A | G3: =FUNCALLOC!H3 -> F_TRANS_DEM_2B | H3: =FUNCALLOC!I3 -> F_TRANS_DIR_449 | I3: =FUNCALLOC!J3 -> F_DISTR_DIR360.01 | J3: =FUNCALLOC!K3 -> F_DISTR_NCP_360 | K3: =FUNCALLOC!L3 -> F_DISTR_DIR361.01 | L3: =FUNCALLOC!M3 -> F_DISTR_NCP_361 | M3: =FUNCALLOC!N3 -> F_DISTR_DIR362.01 | N3: =FUNCALLOC!O3 -> F_DISTR_NCP_362 | O3: =FUNCALLOC!P3 -> F_DISTR_OH_NCP | P3: =FUNCALLOC!Q3 -> F_DISTR_DIR364.01 | Q3: =FUNCALLOC!R3 -> F_DISTR_DIR366.01 | R3: =FUNCALLOC!S3 -> F_DISTR_UG_NCP | S3: =FUNCALLOC!T3 -> F_DISTR_OH_TFMR | T3: =FUNCALLOC!U3 -> F_DISTR_UG_TFMR | U3: =FUNCALLOC!V3 -> F_DISTR_DIR368.03 | V3: =FUNCALLOC!W3 -> F_DISTR_DIR108.360 | W3: =FUNCALLOC!X3 -> F_DISTR_DIR108.361 | X3: =FUNCALLOC!Y3 -> F_DISTR_DIR108.362 | Y3: =FUNCALLOC!Z3 -> F_DISTR_DIR108.364 | Z3: =FUNCALLOC!AA3 -> F_DISTR_DIR108.366 | AA3: =FUNCALLOC!AB3 -> F_DISTR_DIR454.05 | AB3: =FUNCALLOC!AC3 -> F_PRODU_ENERGY_2 | AC3: =FUNCALLOC!AD3 -> F_TRANS_ENERGY_1 | AD3: =FUNCALLOC!AE3 -> F_TRANS_ENERGY_2 | AE3: =FUNCALLOC!AF3 -> F_PRODU_BPAX | AF3: =FUNCALLOC!AG3 -> F_DISTR_OH_TFMRC | AG3: =FUNCALLOC!AH3 -> F_DISTR_UG_TFMRC | AH3: =FUNCALLOC!AI3 -> F_DISTR_DIR368.03C | AI3: =FUNCALLOC!AJ3 -> F_DISTR_OH_SVC | AJ3: =FUNCALLOC!AK3 -> F_DISTR_RESID | AK3: =FUNCALLOC!AL3 -> F_DISTR_METER | AL3: =FUNCALLOC!AM3 -> F_DISTR_DIR373.00 | AM3: =FUNCALLOC!AN3 -> F_DISTR_DIR235.00 | AN3: =FUNCALLOC!AO3 -> F_DISTR_DIR252.00 | AO3: =FUNCALLOC!AP3 -> F_DISTR_CUST_4 | AP3: =FUNCALLOC!AQ3 -> F_DISTR_CUST_3 | AQ3: =FUNCALLOC!AR3 -> F_DISTR_DIR904.00 | AR3: =FUNCALLOC!AS3 -> F_DISTR_CUST_1 | AS3: =FUNCALLOC!AT3 -> F_DISTR_DIR450.01 | AT3: =FUNCALLOC!AU3 -> F_DISTR_DIR450.02 | AU3: =FUNCALLOC!AV3 -> F_DISTR_CUST_2 | AV3: =FUNCALLOC!AW3 -> F_DISTR_DIR451.02 | AW3: =FUNCALLOC!AX3 -> F_DISTR_DIR451.05 | AX3: =FUNCALLOC!AY3 -> F_DISTR_DIR451.06 | AY3: =FUNCALLOC!AZ3 -> F_TRANS_DIR_SC | AZ3: =FUNCALLOC!BA3 -> ~ | BA3: =FUNCALLOC!BB3 -> ~ | BB3: =FUNCALLOC!BC3 -> ~ | BC3: =FUNCALLOC!BD3 -> ~ | BD3: =FUNCALLOC!BE3 -> ~ | BE3: =FUNCALLOC!BF3 -> ~ | BF3: =FUNCALLOC!BG3 -> ~ | BG3: =FUNCALLOC!BH3 -> ~ | BH3: =FUNCALLOC!BI3 -> ~ | BI3: =FUNCALLOC!BJ3 -> ~ | BJ3: =FUNCALLOC!BK3 -> ~ | BK3: =FUNCALLOC!BL3 -> ~ | BL3: =FUNCALLOC!BM3 -> ~ | BM3: =FUNCALLOC!BN3 -> ~ | BN3: =FUNCALLOC!BO3 -> ~ | BO3: =FUNCALLOC!BP3 -> ~ | BP3: =FUNCALLOC!BQ3 -> ~ | BQ3: =FUNCALLOC!BR3 -> ~ | BR3: =FUNCALLOC!BS3 -> ~ | BS3: =FUNCALLOC!BT3 -> ~ | BT3: =FUNCALLOC!BU3 -> ~ | BU3: =FUNCALLOC!BV3 -> ~ | BV3: =FUNCALLOC!BW3 -> ~ | BW3: =FUNCALLOC!BX3 -> ~ | BX3: =FUNCALLOC!BY3 -> ~ | BY3: =FUNCALLOC!BZ3 -> ~
A4: D360.T | B4: Total Struct and Improvements | C4: =SUM(D4:BA4) -> 51488000 | D4: =SUM(FUNCALLOC!E42:E43) -> 0 | E4: =SUM(FUNCALLOC!F42:F43) -> 0 | F4: =SUM(FUNCALLOC!G42:G43) -> 0 | G4: =SUM(FUNCALLOC!H42:H43) -> 0 | H4: =SUM(FUNCALLOC!I42:I43) -> 0 | I4: =SUM(FUNCALLOC!J42:J43) -> 3584294.51 | J4: =SUM(FUNCALLOC!K42:K43) -> 47903705.49 | K4: =SUM(FUNCALLOC!L42:L43) -> 0 | L4: =SUM(FUNCALLOC!M42:M43) -> 0 | M4: =SUM(FUNCALLOC!N42:N43) -> 0 | N4: =SUM(FUNCALLOC!O42:O43) -> 0 | O4: =SUM(FUNCALLOC!P42:P43) -> 0 | P4: =SUM(FUNCALLOC!Q42:Q43) -> 0 | Q4: =SUM(FUNCALLOC!R42:R43) -> 0 | R4: =SUM(FUNCALLOC!S42:S43) -> 0 | S4: =SUM(FUNCALLOC!T42:T43) -> 0 | T4: =SUM(FUNCALLOC!U42:U43) -> 0 | U4: =SUM(FUNCALLOC!V42:V43) -> 0 | V4: =SUM(FUNCALLOC!W42:W43) -> 0 | W4: =SUM(FUNCALLOC!X42:X43) -> 0 | X4: =SUM(FUNCALLOC!Y42:Y43) -> 0 | Y4: =SUM(FUNCALLOC!Z42:Z43) -> 0 | Z4: =SUM(FUNCALLOC!AA42:AA43) -> 0 | AA4: =SUM(FUNCALLOC!AB42:AB43) -> 0 | AB4: =SUM(FUNCALLOC!AC42:AC43) -> 0 | AC4: =SUM(FUNCALLOC!AD42:AD43) -> 0 | AD4: =SUM(FUNCALLOC!AE42:AE43) -> 0 | AE4: =SUM(FUNCALLOC!AF42:AF43) -> 0 | AF4: =SUM(FUNCALLOC!AG42:AG43) -> 0 | AG4: =SUM(FUNCALLOC!AH42:AH43) -> 0 | AH4: =SUM(FUNCALLOC!AI42:AI43) -> 0 | AI4: =SUM(FUNCALLOC!AJ42:AJ43) -> 0 | AJ4: =SUM(FUNCALLOC!AK42:AK43) -> 0 | AK4: =SUM(FUNCALLOC!AL42:AL43) -> 0 | AL4: =SUM(FUNCALLOC!AM42:AM43) -> 0 | AM4: =SUM(FUNCALLOC!AN42:AN43) -> 0 | AN4: =SUM(FUNCALLOC!AO42:AO43) -> 0 | AO4: =SUM(FUNCALLOC!AP42:AP43) -> 0 | AP4: =SUM(FUNCALLOC!AQ42:AQ43) -> 0 | AQ4: =SUM(FUNCALLOC!AR42:AR43) -> 0 | AR4: =SUM(FUNCALLOC!AS42:AS43) -> 0 | AS4: =SUM(FUNCALLOC!AT42:AT43) -> 0 | AT4: =SUM(FUNCALLOC!AU42:AU43) -> 0 | AU4: =SUM(FUNCALLOC!AV42:AV43) -> 0 | AV4: =SUM(FUNCALLOC!AW42:AW43) -> 0 | AW4: =SUM(FUNCALLOC!AX42:AX43) -> 0 | AX4: =SUM(FUNCALLOC!AY42:AY43) -> 0 | AY4: =SUM(FUNCALLOC!AZ42:AZ43) -> 0 | AZ4: =SUM(FUNCALLOC!BA42:BA43) -> 0 | BA4: =SUM(FUNCALLOC!BB42:BB43) -> 0 | BB4: =SUM(FUNCALLOC!BC42:BC43) -> 0 | BC4: =SUM(FUNCALLOC!BD42:BD43) -> 0 | BD4: =SUM(FUNCALLOC!BE42:BE43) -> 0 | BE4: =SUM(FUNCALLOC!BF42:BF43) -> 0 | BF4: =SUM(FUNCALLOC!BG42:BG43) -> 0 | BG4: =SUM(FUNCALLOC!BH42:BH43) -> 0 | BH4: =SUM(FUNCALLOC!BI42:BI43) -> 0 | BI4: =SUM(FUNCALLOC!BJ42:BJ43) -> 0 | BJ4: =SUM(FUNCALLOC!BK42:BK43) -> 0 | BK4: =SUM(FUNCALLOC!BL42:BL43) -> 0 | BL4: =SUM(FUNCALLOC!BM42:BM43) -> 0 | BM4: =SUM(FUNCALLOC!BN42:BN43) -> 0 | BN4: =SUM(FUNCALLOC!BO42:BO43) -> 0 | BO4: =SUM(FUNCALLOC!BP42:BP43) -> 0 | BP4: =SUM(FUNCALLOC!BQ42:BQ43) -> 0 | BQ4: =SUM(FUNCALLOC!BR42:BR43) -> 0 | BR4: =SUM(FUNCALLOC!BS42:BS43) -> 0 | BS4: =SUM(FUNCALLOC!BT42:BT43) -> 0 | BT4: =SUM(FUNCALLOC!BU42:BU43) -> 0 | BU4: =SUM(FUNCALLOC!BV42:BV43) -> 0 | BV4: =SUM(FUNCALLOC!BW42:BW43) -> 0 | BW4: =SUM(FUNCALLOC!BX42:BX43) -> 0 | BX4: =SUM(FUNCALLOC!BY42:BY43) -> 0 | BY4: =SUM(FUNCALLOC!BZ42:BZ43) -> 0
D5: =IF((D4=0)*OR($C4=0),0,D4/$C4) -> 0 | E5: 0 | F5: 0 | G5: 0 | H5: 0 | I5: 0.06961417243 | J5: 0.9303858276 | K5: 0 | L5: 0 | M5: 0 | N5: 0 | O5: 0 | P5: 0 | Q5: 0 | R5: 0 | S5: 0 | T5: 0 | U5: 0 | V5: 0 | W5: 0 | X5: 0 | Y5: 0 | Z5: 0 | AA5: 0 | AB5: 0 | AC5: 0 | AD5: 0 | AE5: 0 | AF5: 0 | AG5: 0 | AH5: 0 | AI5: 0 | AJ5: 0 | AK5: 0 | AL5: 0 | AM5: 0 | AN5: 0 | AO5: 0 | AP5: 0 | AQ5: 0 | AR5: =IF((AR4=0)*OR($C4=0),0,AR4/$C4) -> 0 | AS5: 0 | AT5: 0 | AU5: 0 | AV5: 0 | AW5: 0 | AX5: 0 | AY5: 0 | AZ5: 0 | BA5: =IF((BA4=0)*OR($C4=0),0,BA4/$C4) -> 0 | BB5: 0 | BC5: 0 | BD5: 0 | BE5: 0 | BF5: 0 | BG5: 0 | BH5: 0 | BI5: 0 | BJ5: 0 | BK5: 0 | BL5: 0 | BM5: 0 | BN5: 0 | BO5: 0 | BP5: 0 | BQ5: 0 | BR5: 0 | BS5: 0 | BT5: 0 | BU5: 0 | BV5: 0 | BW5: 0 | BX5: 0 | BY5: 0
A7: D361.T | B7: Total Struct and Improvements | C7: =SUM(D7:BA7) -> 8103000 | D7: =SUM(FUNCALLOC!E44:E45) -> 0 | E7: =SUM(FUNCALLOC!F44:F45) -> 0 | F7: =SUM(FUNCALLOC!G44:G45) -> 0 | G7: =SUM(FUNCALLOC!H44:H45) -> 0 | H7: =SUM(FUNCALLOC!I44:I45) -> 0 | I7: =SUM(FUNCALLOC!J44:J45) -> 0 | J7: =SUM(FUNCALLOC!K44:K45) -> 0 | K7: =SUM(FUNCALLOC!L44:L45) -> 598299.7945 | L7: =SUM(FUNCALLOC!M44:M45) -> 7504700.206 | M7: =SUM(FUNCALLOC!N44:N45) -> 0 | N7: =SUM(FUNCALLOC!O44:O45) -> 0 | O7: =SUM(FUNCALLOC!P44:P45) -> 0 | P7: =SUM(FUNCALLOC!Q44:Q45) -> 0 | Q7: =SUM(FUNCALLOC!R44:R45) -> 0 | R7: =SUM(FUNCALLOC!S44:S45) -> 0 | S7: =SUM(FUNCALLOC!T44:T45) -> 0 | T7: =SUM(FUNCALLOC!U44:U45) -> 0 | U7: =SUM(FUNCALLOC!V44:V45) -> 0 | V7: =SUM(FUNCALLOC!W44:W45) -> 0 | W7: =SUM(FUNCALLOC!X44:X45) -> 0 | X7: =SUM(FUNCALLOC!Y44:Y45) -> 0 | Y7: =SUM(FUNCALLOC!Z44:Z45) -> 0 | Z7: =SUM(FUNCALLOC!AA44:AA45) -> 0 | AA7: =SUM(FUNCALLOC!AB44:AB45) -> 0 | AB7: =SUM(FUNCALLOC!AC44:AC45) -> 0 | AC7: =SUM(FUNCALLOC!AD44:AD45) -> 0 | AD7: =SUM(FUNCALLOC!AE44:AE45) -> 0 | AE7: =SUM(FUNCALLOC!AF44:AF45) -> 0 | AF7: =SUM(FUNCALLOC!AG44:AG45) -> 0 | AG7: =SUM(FUNCALLOC!AH44:AH45) -> 0 | AH7: =SUM(FUNCALLOC!AI44:AI45) -> 0 | AI7: =SUM(FUNCALLOC!AJ44:AJ45) -> 0 | AJ7: =SUM(FUNCALLOC!AK44:AK45) -> 0 | AK7: =SUM(FUNCALLOC!AL44:AL45) -> 0 | AL7: =SUM(FUNCALLOC!AM44:AM45) -> 0 | AM7: =SUM(FUNCALLOC!AN44:AN45) -> 0 | AN7: =SUM(FUNCALLOC!AO44:AO45) -> 0 | AO7: =SUM(FUNCALLOC!AP44:AP45) -> 0 | AP7: =SUM(FUNCALLOC!AQ44:AQ45) -> 0 | AQ7: =SUM(FUNCALLOC!AR44:AR45) -> 0 | AR7: =SUM(FUNCALLOC!AS44:AS45) -> 0 | AS7: =SUM(FUNCALLOC!AT44:AT45) -> 0 | AT7: =SUM(FUNCALLOC!AU44:AU45) -> 0 | AU7: =SUM(FUNCALLOC!AV44:AV45) -> 0 | AV7: =SUM(FUNCALLOC!AW44:AW45) -> 0 | AW7: =SUM(FUNCALLOC!AX44:AX45) -> 0 | AX7: =SUM(FUNCALLOC!AY44:AY45) -> 0 | AY7: =SUM(FUNCALLOC!AZ44:AZ45) -> 0 | AZ7: =SUM(FUNCALLOC!BA44:BA45) -> 0 | BA7: =SUM(FUNCALLOC!BB44:BB45) -> 0 | BB7: =SUM(FUNCALLOC!BC44:BC45) -> 0 | BC7: =SUM(FUNCALLOC!BD44:BD45) -> 0 | BD7: =SUM(FUNCALLOC!BE44:BE45) -> 0 | BE7: =SUM(FUNCALLOC!BF44:BF45) -> 0 | BF7: =SUM(FUNCALLOC!BG44:BG45) -> 0 | BG7: =SUM(FUNCALLOC!BH44:BH45) -> 0 | BH7: =SUM(FUNCALLOC!BI44:BI45) -> 0 | BI7: =SUM(FUNCALLOC!BJ44:BJ45) -> 0 | BJ7: =SUM(FUNCALLOC!BK44:BK45) -> 0 | BK7: =SUM(FUNCALLOC!BL44:BL45) -> 0 | BL7: =SUM(FUNCALLOC!BM44:BM45) -> 0 | BM7: =SUM(FUNCALLOC!BN44:BN45) -> 0 | BN7: =SUM(FUNCALLOC!BO44:BO45) -> 0 | BO7: =SUM(FUNCALLOC!BP44:BP45) -> 0 | BP7: =SUM(FUNCALLOC!BQ44:BQ45) -> 0 | BQ7: =SUM(FUNCALLOC!BR44:BR45) -> 0 | BR7: =SUM(FUNCALLOC!BS44:BS45) -> 0 | BS7: =SUM(FUNCALLOC!BT44:BT45) -> 0 | BT7: =SUM(FUNCALLOC!BU44:BU45) -> 0 | BU7: =SUM(FUNCALLOC!BV44:BV45) -> 0 | BV7: =SUM(FUNCALLOC!BW44:BW45) -> 0 | BW7: =SUM(FUNCALLOC!BX44:BX45) -> 0 | BX7: =SUM(FUNCALLOC!BY44:BY45) -> 0 | BY7: =SUM(FUNCALLOC!BZ44:BZ45) -> 0
D8: =IF((D7=0)*OR($C7=0),0,D7/$C7) -> 0 | E8: 0 | F8: 0 | G8: 0 | H8: 0 | I8: 0 | J8: 0 | K8: 0.07383682519 | L8: 0.9261631748 | M8: 0 | N8: 0 | O8: 0 | P8: 0 | Q8: 0 | R8: 0 | S8: 0 | T8: 0 | U8: 0 | V8: 0 | W8: 0 | X8: 0 | Y8: 0 | Z8: 0 | AA8: 0 | AB8: 0 | AC8: 0 | AD8: 0 | AE8: 0 | AF8: 0 | AG8: 0 | AH8: 0 | AI8: 0 | AJ8: =IF((AJ7=0)*OR($C7=0),0,AJ7/$C7) -> 0 | AK8: 0 | AL8: 0 | AM8: 0 | AN8: 0 | AO8: 0 | AP8: 0 | AQ8: 0 | AR8: 0 | AS8: 0 | AT8: 0 | AU8: 0 | AV8: 0 | AW8: 0 | AX8: 0 | AY8: 0 | AZ8: 0 | BA8: 0 | BB8: 0 | BC8: 0 | BD8: 0 | BE8: 0 | BF8: 0 | BG8: 0 | BH8: 0 | BI8: 0 | BJ8: 0 | BK8: 0 | BL8: 0 | BM8: 0 | BN8: 0 | BO8: 0 | BP8: =IF((BP7=0)*OR($C7=0),0,BP7/$C7) -> 0 | BQ8: 0 | BR8: 0 | BS8: 0 | BT8: 0 | BU8: 0 | BV8: 0 | BW8: 0 | BX8: 0 | BY8: 0
A10: D362.T | B10: Total Station Equip | C10: =SUM(D10:BA10) -> 471186000 | D10: =SUM(FUNCALLOC!E46:E47) -> 0 | E10: =SUM(FUNCALLOC!F46:F47) -> 0 | F10: =SUM(FUNCALLOC!G46:G47) -> 0 | G10: =SUM(FUNCALLOC!H46:H47) -> 0 | H10: =SUM(FUNCALLOC!I46:I47) -> 0 | I10: =SUM(FUNCALLOC!J46:J47) -> 0 | J10: =SUM(FUNCALLOC!K46:K47) -> 0 | K10: =SUM(FUNCALLOC!L46:L47) -> 0 | L10: =SUM(FUNCALLOC!M46:M47) -> 0 | M10: =SUM(FUNCALLOC!N46:N47) -> 31963716.52 | N10: =SUM(FUNCALLOC!O46:O47) -> 439222283.5 | O10: =SUM(FUNCALLOC!P46:P47) -> 0 | P10: =SUM(FUNCALLOC!Q46:Q47) -> 0 | Q10: =SUM(FUNCALLOC!R46:R47) -> 0 | R10: =SUM(FUNCALLOC!S46:S47) -> 0 | S10: =SUM(FUNCALLOC!T46:T47) -> 0 | T10: =SUM(FUNCALLOC!U46:U47) -> 0 | U10: =SUM(FUNCALLOC!V46:V47) -> 0 | V10: =SUM(FUNCALLOC!W46:W47) -> 0 | W10: =SUM(FUNCALLOC!X46:X47) -> 0 | X10: =SUM(FUNCALLOC!Y46:Y47) -> 0 | Y10: =SUM(FUNCALLOC!Z46:Z47) -> 0 | Z10: =SUM(FUNCALLOC!AA46:AA47) -> 0 | AA10: =SUM(FUNCALLOC!AB46:AB47) -> 0 | AB10: =SUM(FUNCALLOC!AC46:AC47) -> 0 | AC10: =SUM(FUNCALLOC!AD46:AD47) -> 0 | AD10: =SUM(FUNCALLOC!AE46:AE47) -> 0 | AE10: =SUM(FUNCALLOC!AF46:AF47) -> 0 | AF10: =SUM(FUNCALLOC!AG46:AG47) -> 0 | AG10: =SUM(FUNCALLOC!AH46:AH47) -> 0 | AH10: =SUM(FUNCALLOC!AI46:AI47) -> 0 | AI10: =SUM(FUNCALLOC!AJ46:AJ47) -> 0 | AJ10: =SUM(FUNCALLOC!AK46:AK47) -> 0 | AK10: =SUM(FUNCALLOC!AL46:AL47) -> 0 | AL10: =SUM(FUNCALLOC!AM46:AM47) -> 0 | AM10: =SUM(FUNCALLOC!AN46:AN47) -> 0 | AN10: =SUM(FUNCALLOC!AO46:AO47) -> 0 | AO10: =SUM(FUNCALLOC!AP46:AP47) -> 0 | AP10: =SUM(FUNCALLOC!AQ46:AQ47) -> 0 | AQ10: =SUM(FUNCALLOC!AR46:AR47) -> 0 | AR10: =SUM(FUNCALLOC!AS46:AS47) -> 0 | AS10: =SUM(FUNCALLOC!AT46:AT47) -> 0 | AT10: =SUM(FUNCALLOC!AU46:AU47) -> 0 | AU10: =SUM(FUNCALLOC!AV46:AV47) -> 0 | AV10: =SUM(FUNCALLOC!AW46:AW47) -> 0 | AW10: =SUM(FUNCALLOC!AX46:AX47) -> 0 | AX10: =SUM(FUNCALLOC!AY46:AY47) -> 0 | AY10: =SUM(FUNCALLOC!AZ46:AZ47) -> 0 | AZ10: =SUM(FUNCALLOC!BA46:BA47) -> 0 | BA10: =SUM(FUNCALLOC!BB46:BB47) -> 0 | BB10: =SUM(FUNCALLOC!BC46:BC47) -> 0 | BC10: =SUM(FUNCALLOC!BD46:BD47) -> 0 | BD10: =SUM(FUNCALLOC!BE46:BE47) -> 0 | BE10: =SUM(FUNCALLOC!BF46:BF47) -> 0 | BF10: =SUM(FUNCALLOC!BG46:BG47) -> 0 | BG10: =SUM(FUNCALLOC!BH46:BH47) -> 0 | BH10: =SUM(FUNCALLOC!BI46:BI47) -> 0 | BI10: =SUM(FUNCALLOC!BJ46:BJ47) -> 0 | BJ10: =SUM(FUNCALLOC!BK46:BK47) -> 0 | BK10: =SUM(FUNCALLOC!BL46:BL47) -> 0 | BL10: =SUM(FUNCALLOC!BM46:BM47) -> 0 | BM10: =SUM(FUNCALLOC!BN46:BN47) -> 0 | BN10: =SUM(FUNCALLOC!BO46:BO47) -> 0 | BO10: =SUM(FUNCALLOC!BP46:BP47) -> 0 | BP10: =SUM(FUNCALLOC!BQ46:BQ47) -> 0 | BQ10: =SUM(FUNCALLOC!BR46:BR47) -> 0 | BR10: =SUM(FUNCALLOC!BS46:BS47) -> 0 | BS10: =SUM(FUNCALLOC!BT46:BT47) -> 0 | BT10: =SUM(FUNCALLOC!BU46:BU47) -> 0 | BU10: =SUM(FUNCALLOC!BV46:BV47) -> 0 | BV10: =SUM(FUNCALLOC!BW46:BW47) -> 0 | BW10: =SUM(FUNCALLOC!BX46:BX47) -> 0 | BX10: =SUM(FUNCALLOC!BY46:BY47) -> 0 | BY10: =SUM(FUNCALLOC!BZ46:BZ47) -> 0
D11: =IF((D10=0)*OR($C10=0),0,D10/$C10) -> 0 | E11: 0 | F11: 0 | G11: 0 | H11: 0 | I11: 0 | J11: 0 | K11: 0 | L11: 0 | M11: 0.067836728 | N11: 0.932163272 | O11: 0 | P11: 0 | Q11: 0 | R11: 0 | S11: 0 | T11: 0 | U11: 0 | V11: 0 | W11: 0 | X11: 0 | Y11: 0 | Z11: 0 | AA11: 0 | AB11: 0 | AC11: 0 | AD11: 0 | AE11: 0 | AF11: 0 | AG11: 0 | AH11: 0 | AI11: 0 | AJ11: 0 | AK11: 0 | AL11: 0 | AM11: 0 | AN11: 0 | AO11: 0 | AP11: 0 | AQ11: 0 | AR11: =IF((AR10=0)*OR($C10=0),0,AR10/$C10) -> 0 | AS11: 0 | AT11: 0 | AU11: 0 | AV11: 0 | AW11: 0 | AX11: 0 | AY11: 0 | AZ11: 0 | BA11: =IF((BA10=0)*OR($C10=0),0,BA10/$C10) -> 0 | BB11: 0 | BC11: 0 | BD11: 0 | BE11: 0 | BF11: 0 | BG11: 0 | BH11: 0 | BI11: 0 | BJ11: 0 | BK11: 0 | BL11: 0 | BM11: 0 | BN11: 0 | BO11: 0 | BP11: 0 | BQ11: 0 | BR11: 0 | BS11: 0 | BT11: 0 | BU11: 0 | BV11: 0 | BW11: 0 | BX11: 0 | BY11: 0
A13: D364.T | B13: Total OVHD Lines | C13: =SUM(D13:BA13) -> 844422820.1 | D13: =SUM(FUNCALLOC!E49:E51) -> 0 | E13: =SUM(FUNCALLOC!F49:F51) -> 0 | F13: =SUM(FUNCALLOC!G49:G51) -> 0 | G13: =SUM(FUNCALLOC!H49:H51) -> 0 | H13: =SUM(FUNCALLOC!I49:I51) -> 0 | I13: =SUM(FUNCALLOC!J49:J51) -> 0 | J13: =SUM(FUNCALLOC!K49:K51) -> 0 | K13: =SUM(FUNCALLOC!L49:L51) -> 0 | L13: =SUM(FUNCALLOC!M49:M51) -> 0 | M13: =SUM(FUNCALLOC!N49:N51) -> 0 | N13: =SUM(FUNCALLOC!O49:O51) -> 0 | O13: =SUM(FUNCALLOC!P49:P51) -> 844355810.8 | P13: =SUM(FUNCALLOC!Q49:Q51) -> 67009.35634 | Q13: =SUM(FUNCALLOC!R49:R51) -> 0 | R13: =SUM(FUNCALLOC!S49:S51) -> 0 | S13: =SUM(FUNCALLOC!T49:T51) -> 0 | T13: =SUM(FUNCALLOC!U49:U51) -> 0 | U13: =SUM(FUNCALLOC!V49:V51) -> 0 | V13: =SUM(FUNCALLOC!W49:W51) -> 0 | W13: =SUM(FUNCALLOC!X49:X51) -> 0 | X13: =SUM(FUNCALLOC!Y49:Y51) -> 0 | Y13: =SUM(FUNCALLOC!Z49:Z51) -> 0 | Z13: =SUM(FUNCALLOC!AA49:AA51) -> 0 | AA13: =SUM(FUNCALLOC!AB49:AB51) -> 0 | AB13: =SUM(FUNCALLOC!AC49:AC51) -> 0 | AC13: =SUM(FUNCALLOC!AD49:AD51) -> 0 | AD13: =SUM(FUNCALLOC!AE49:AE51) -> 0 | AE13: =SUM(FUNCALLOC!AF49:AF51) -> 0 | AF13: =SUM(FUNCALLOC!AG49:AG51) -> 0 | AG13: =SUM(FUNCALLOC!AH49:AH51) -> 0 | AH13: =SUM(FUNCALLOC!AI49:AI51) -> 0 | AI13: =SUM(FUNCALLOC!AJ49:AJ51) -> 0 | AJ13: =SUM(FUNCALLOC!AK49:AK51) -> 0 | AK13: =SUM(FUNCALLOC!AL49:AL51) -> 0 | AL13: =SUM(FUNCALLOC!AM49:AM51) -> 0 | AM13: =SUM(FUNCALLOC!AN49:AN51) -> 0 | AN13: =SUM(FUNCALLOC!AO49:AO51) -> 0 | AO13: =SUM(FUNCALLOC!AP49:AP51) -> 0 | AP13: =SUM(FUNCALLOC!AQ49:AQ51) -> 0 | AQ13: =SUM(FUNCALLOC!AR49:AR51) -> 0 | AR13: =SUM(FUNCALLOC!AS49:AS51) -> 0 | AS13: =SUM(FUNCALLOC!AT49:AT51) -> 0 | AT13: =SUM(FUNCALLOC!AU49:AU51) -> 0 | AU13: =SUM(FUNCALLOC!AV49:AV51) -> 0 | AV13: =SUM(FUNCALLOC!AW49:AW51) -> 0 | AW13: =SUM(FUNCALLOC!AX49:AX51) -> 0 | AX13: =SUM(FUNCALLOC!AY49:AY51) -> 0 | AY13: =SUM(FUNCALLOC!AZ49:AZ51) -> 0 | AZ13: =SUM(FUNCALLOC!BA49:BA51) -> 0 | BA13: =SUM(FUNCALLOC!BB49:BB51) -> 0 | BB13: =SUM(FUNCALLOC!BC49:BC51) -> 0 | BC13: =SUM(FUNCALLOC!BD49:BD51) -> 0 | BD13: =SUM(FUNCALLOC!BE49:BE51) -> 0 | BE13: =SUM(FUNCALLOC!BF49:BF51) -> 0 | BF13: =SUM(FUNCALLOC!BG49:BG51) -> 0 | BG13: =SUM(FUNCALLOC!BH49:BH51) -> 0 | BH13: =SUM(FUNCALLOC!BI49:BI51) -> 0 | BI13: =SUM(FUNCALLOC!BJ49:BJ51) -> 0 | BJ13: =SUM(FUNCALLOC!BK49:BK51) -> 0 | BK13: =SUM(FUNCALLOC!BL49:BL51) -> 0 | BL13: =SUM(FUNCALLOC!BM49:BM51) -> 0 | BM13: =SUM(FUNCALLOC!BN49:BN51) -> 0 | BN13: =SUM(FUNCALLOC!BO49:BO51) -> 0 | BO13: =SUM(FUNCALLOC!BP49:BP51) -> 0 | BP13: =SUM(FUNCALLOC!BQ49:BQ51) -> 0 | BQ13: =SUM(FUNCALLOC!BR49:BR51) -> 0 | BR13: =SUM(FUNCALLOC!BS49:BS51) -> 0 | BS13: =SUM(FUNCALLOC!BT49:BT51) -> 0 | BT13: =SUM(FUNCALLOC!BU49:BU51) -> 0 | BU13: =SUM(FUNCALLOC!BV49:BV51) -> 0 | BV13: =SUM(FUNCALLOC!BW49:BW51) -> 0 | BW13: =SUM(FUNCALLOC!BX49:BX51) -> 0 | BX13: =SUM(FUNCALLOC!BY49:BY51) -> 0 | BY13: =SUM(FUNCALLOC!BZ49:BZ51) -> 0
D14: =IF((D13=0)*OR($C13=0),0,D13/$C13) -> 0 | E14: 0 | F14: 0 | G14: 0 | H14: 0 | I14: 0 | J14: 0 | K14: 0 | L14: 0 | M14: 0 | N14: 0 | O14: 0.9999206448 | P14: 7.935521725e-05 | Q14: 0 | R14: 0 | S14: 0 | T14: 0 | U14: 0 | V14: 0 | W14: 0 | X14: 0 | Y14: 0 | Z14: 0 | AA14: 0 | AB14: 0 | AC14: 0 | AD14: 0 | AE14: 0 | AF14: 0 | AG14: 0 | AH14: 0 | AI14: 0 | AJ14: 0 | AK14: 0 | AL14: 0 | AM14: 0 | AN14: 0 | AO14: 0 | AP14: 0 | AQ14: 0 | AR14: =IF((AR13=0)*OR($C13=0),0,AR13/$C13) -> 0 | AS14: 0 | AT14: 0 | AU14: 0 | AV14: 0 | AW14: 0 | AX14: 0 | AY14: 0 | AZ14: 0 | BA14: =IF((BA13=0)*OR($C13=0),0,BA13/$C13) -> 0 | BB14: 0 | BC14: 0 | BD14: 0 | BE14: 0 | BF14: 0 | BG14: 0 | BH14: 0 | BI14: 0 | BJ14: 0 | BK14: 0 | BL14: 0 | BM14: 0 | BN14: 0 | BO14: 0 | BP14: 0 | BQ14: 0 | BR14: 0 | BS14: 0 | BT14: 0 | BU14: 0 | BV14: 0 | BW14: 0 | BX14: 0 | BY14: 0
A16: D366.T | B16: Total UNGD Lines | C16: =SUM(D16:BA16) -> 1733346677 | D16: =SUM(FUNCALLOC!E52:E54) -> 0 | E16: =SUM(FUNCALLOC!F52:F54) -> 0 | F16: =SUM(FUNCALLOC!G52:G54) -> 0 | G16: =SUM(FUNCALLOC!H52:H54) -> 0 | H16: =SUM(FUNCALLOC!I52:I54) -> 0 | I16: =SUM(FUNCALLOC!J52:J54) -> 0 | J16: =SUM(FUNCALLOC!K52:K54) -> 0 | K16: =SUM(FUNCALLOC!L52:L54) -> 0 | L16: =SUM(FUNCALLOC!M52:M54) -> 0 | M16: =SUM(FUNCALLOC!N52:N54) -> 0 | N16: =SUM(FUNCALLOC!O52:O54) -> 0 | O16: =SUM(FUNCALLOC!P52:P54) -> 0 | P16: =SUM(FUNCALLOC!Q52:Q54) -> 0 | Q16: =SUM(FUNCALLOC!R52:R54) -> 27766610.7 | R16: =SUM(FUNCALLOC!S52:S54) -> 1705580067 | S16: =SUM(FUNCALLOC!T52:T54) -> 0 | T16: =SUM(FUNCALLOC!U52:U54) -> 0 | U16: =SUM(FUNCALLOC!V52:V54) -> 0 | V16: =SUM(FUNCALLOC!W52:W54) -> 0 | W16: =SUM(FUNCALLOC!X52:X54) -> 0 | X16: =SUM(FUNCALLOC!Y52:Y54) -> 0 | Y16: =SUM(FUNCALLOC!Z52:Z54) -> 0 | Z16: =SUM(FUNCALLOC!AA52:AA54) -> 0 | AA16: =SUM(FUNCALLOC!AB52:AB54) -> 0 | AB16: =SUM(FUNCALLOC!AC52:AC54) -> 0 | AC16: =SUM(FUNCALLOC!AD52:AD54) -> 0 | AD16: =SUM(FUNCALLOC!AE52:AE54) -> 0 | AE16: =SUM(FUNCALLOC!AF52:AF54) -> 0 | AF16: =SUM(FUNCALLOC!AG52:AG54) -> 0 | AG16: =SUM(FUNCALLOC!AH52:AH54) -> 0 | AH16: =SUM(FUNCALLOC!AI52:AI54) -> 0 | AI16: =SUM(FUNCALLOC!AJ52:AJ54) -> 0 | AJ16: =SUM(FUNCALLOC!AK52:AK54) -> 0 | AK16: =SUM(FUNCALLOC!AL52:AL54) -> 0 | AL16: =SUM(FUNCALLOC!AM52:AM54) -> 0 | AM16: =SUM(FUNCALLOC!AN52:AN54) -> 0 | AN16: =SUM(FUNCALLOC!AO52:AO54) -> 0 | AO16: =SUM(FUNCALLOC!AP52:AP54) -> 0 | AP16: =SUM(FUNCALLOC!AQ52:AQ54) -> 0 | AQ16: =SUM(FUNCALLOC!AR52:AR54) -> 0 | AR16: =SUM(FUNCALLOC!AS52:AS54) -> 0 | AS16: =SUM(FUNCALLOC!AT52:AT54) -> 0 | AT16: =SUM(FUNCALLOC!AU52:AU54) -> 0 | AU16: =SUM(FUNCALLOC!AV52:AV54) -> 0 | AV16: =SUM(FUNCALLOC!AW52:AW54) -> 0 | AW16: =SUM(FUNCALLOC!AX52:AX54) -> 0 | AX16: =SUM(FUNCALLOC!AY52:AY54) -> 0 | AY16: =SUM(FUNCALLOC!AZ52:AZ54) -> 0 | AZ16: =SUM(FUNCALLOC!BA52:BA54) -> 0 | BA16: =SUM(FUNCALLOC!BB52:BB54) -> 0 | BB16: =SUM(FUNCALLOC!BC52:BC54) -> 0 | BC16: =SUM(FUNCALLOC!BD52:BD54) -> 0 | BD16: =SUM(FUNCALLOC!BE52:BE54) -> 0 | BE16: =SUM(FUNCALLOC!BF52:BF54) -> 0 | BF16: =SUM(FUNCALLOC!BG52:BG54) -> 0 | BG16: =SUM(FUNCALLOC!BH52:BH54) -> 0 | BH16: =SUM(FUNCALLOC!BI52:BI54) -> 0 | BI16: =SUM(FUNCALLOC!BJ52:BJ54) -> 0 | BJ16: =SUM(FUNCALLOC!BK52:BK54) -> 0 | BK16: =SUM(FUNCALLOC!BL52:BL54) -> 0 | BL16: =SUM(FUNCALLOC!BM52:BM54) -> 0 | BM16: =SUM(FUNCALLOC!BN52:BN54) -> 0 | BN16: =SUM(FUNCALLOC!BO52:BO54) -> 0 | BO16: =SUM(FUNCALLOC!BP52:BP54) -> 0 | BP16: =SUM(FUNCALLOC!BQ52:BQ54) -> 0 | BQ16: =SUM(FUNCALLOC!BR52:BR54) -> 0 | BR16: =SUM(FUNCALLOC!BS52:BS54) -> 0 | BS16: =SUM(FUNCALLOC!BT52:BT54) -> 0 | BT16: =SUM(FUNCALLOC!BU52:BU54) -> 0 | BU16: =SUM(FUNCALLOC!BV52:BV54) -> 0 | BV16: =SUM(FUNCALLOC!BW52:BW54) -> 0 | BW16: =SUM(FUNCALLOC!BX52:BX54) -> 0 | BX16: =SUM(FUNCALLOC!BY52:BY54) -> 0 | BY16: =SUM(FUNCALLOC!BZ52:BZ54) -> 0
D17: =IF((D16=0)*OR($C16=0),0,D16/$C16) -> 0 | E17: 0 | F17: 0 | G17: 0 | H17: 0 | I17: 0 | J17: 0 | K17: 0 | L17: 0 | M17: 0 | N17: 0 | O17: 0 | P17: 0 | Q17: 0.01601907516 | R17: 0.9839809248 | S17: 0 | T17: 0 | U17: 0 | V17: 0 | W17: 0 | X17: 0 | Y17: 0 | Z17: 0 | AA17: 0 | AB17: 0 | AC17: 0 | AD17: 0 | AE17: 0 | AF17: 0 | AG17: 0 | AH17: 0 | AI17: 0 | AJ17: 0 | AK17: 0 | AL17: 0 | AM17: 0 | AN17: 0 | AO17: 0 | AP17: 0 | AQ17: 0 | AR17: =IF((AR16=0)*OR($C16=0),0,AR16/$C16) -> 0 | AS17: 0 | AT17: 0 | AU17: 0 | AV17: 0 | AW17: 0 | AX17: 0 | AY17: 0 | AZ17: 0 | BA17: =IF((BA16=0)*OR($C16=0),0,BA16/$C16) -> 0 | BB17: 0 | BC17: 0 | BD17: 0 | BE17: 0 | BF17: 0 | BG17: 0 | BH17: 0 | BI17: 0 | BJ17: 0 | BK17: 0 | BL17: 0 | BM17: 0 | BN17: 0 | BO17: 0 | BP17: 0 | BQ17: 0 | BR17: 0 | BS17: 0 | BT17: 0 | BU17: 0 | BV17: 0 | BW17: 0 | BX17: 0 | BY17: 0
A19: D368.T | B19: Total Transformers | C19: =SUM(D19:BA19) -> 499533456.5 | D19: =SUM(FUNCALLOC!E55:E57) -> 0 | E19: =SUM(FUNCALLOC!F55:F57) -> 0 | F19: =SUM(FUNCALLOC!G55:G57) -> 0 | G19: =SUM(FUNCALLOC!H55:H57) -> 0 | H19: =SUM(FUNCALLOC!I55:I57) -> 0 | I19: =SUM(FUNCALLOC!J55:J57) -> 0 | J19: =SUM(FUNCALLOC!K55:K57) -> 0 | K19: =SUM(FUNCALLOC!L55:L57) -> 0 | L19: =SUM(FUNCALLOC!M55:M57) -> 0 | M19: =SUM(FUNCALLOC!N55:N57) -> 0 | N19: =SUM(FUNCALLOC!O55:O57) -> 0 | O19: =SUM(FUNCALLOC!P55:P57) -> 0 | P19: =SUM(FUNCALLOC!Q55:Q57) -> 0 | Q19: =SUM(FUNCALLOC!R55:R57) -> 0 | R19: =SUM(FUNCALLOC!S55:S57) -> 0 | S19: =SUM(FUNCALLOC!T55:T57) -> 173605063.3 | T19: =SUM(FUNCALLOC!U55:U57) -> 318350548.3 | U19: =SUM(FUNCALLOC!V55:V57) -> 7577844.977 | V19: =SUM(FUNCALLOC!W55:W57) -> 0 | W19: =SUM(FUNCALLOC!X55:X57) -> 0 | X19: =SUM(FUNCALLOC!Y55:Y57) -> 0 | Y19: =SUM(FUNCALLOC!Z55:Z57) -> 0 | Z19: =SUM(FUNCALLOC!AA55:AA57) -> 0 | AA19: =SUM(FUNCALLOC!AB55:AB57) -> 0 | AB19: =SUM(FUNCALLOC!AC55:AC57) -> 0 | AC19: =SUM(FUNCALLOC!AD55:AD57) -> 0 | AD19: =SUM(FUNCALLOC!AE55:AE57) -> 0 | AE19: =SUM(FUNCALLOC!AF55:AF57) -> 0 | AF19: =SUM(FUNCALLOC!AG55:AG57) -> 0 | AG19: =SUM(FUNCALLOC!AH55:AH57) -> 0 | AH19: =SUM(FUNCALLOC!AI55:AI57) -> 0 | AI19: =SUM(FUNCALLOC!AJ55:AJ57) -> 0 | AJ19: =SUM(FUNCALLOC!AK55:AK57) -> 0 | AK19: =SUM(FUNCALLOC!AL55:AL57) -> 0 | AL19: =SUM(FUNCALLOC!AM55:AM57) -> 0 | AM19: =SUM(FUNCALLOC!AN55:AN57) -> 0 | AN19: =SUM(FUNCALLOC!AO55:AO57) -> 0 | AO19: =SUM(FUNCALLOC!AP55:AP57) -> 0 | AP19: =SUM(FUNCALLOC!AQ55:AQ57) -> 0 | AQ19: =SUM(FUNCALLOC!AR55:AR57) -> 0 | AR19: =SUM(FUNCALLOC!AS55:AS57) -> 0 | AS19: =SUM(FUNCALLOC!AT55:AT57) -> 0 | AT19: =SUM(FUNCALLOC!AU55:AU57) -> 0 | AU19: =SUM(FUNCALLOC!AV55:AV57) -> 0 | AV19: =SUM(FUNCALLOC!AW55:AW57) -> 0 | AW19: =SUM(FUNCALLOC!AX55:AX57) -> 0 | AX19: =SUM(FUNCALLOC!AY55:AY57) -> 0 | AY19: =SUM(FUNCALLOC!AZ55:AZ57) -> 0 | AZ19: =SUM(FUNCALLOC!BA55:BA57) -> 0 | BA19: =SUM(FUNCALLOC!BB55:BB57) -> 0 | BB19: =SUM(FUNCALLOC!BC55:BC57) -> 0 | BC19: =SUM(FUNCALLOC!BD55:BD57) -> 0 | BD19: =SUM(FUNCALLOC!BE55:BE57) -> 0 | BE19: =SUM(FUNCALLOC!BF55:BF57) -> 0 | BF19: =SUM(FUNCALLOC!BG55:BG57) -> 0 | BG19: =SUM(FUNCALLOC!BH55:BH57) -> 0 | BH19: =SUM(FUNCALLOC!BI55:BI57) -> 0 | BI19: =SUM(FUNCALLOC!BJ55:BJ57) -> 0 | BJ19: =SUM(FUNCALLOC!BK55:BK57) -> 0 | BK19: =SUM(FUNCALLOC!BL55:BL57) -> 0 | BL19: =SUM(FUNCALLOC!BM55:BM57) -> 0 | BM19: =SUM(FUNCALLOC!BN55:BN57) -> 0 | BN19: =SUM(FUNCALLOC!BO55:BO57) -> 0 | BO19: =SUM(FUNCALLOC!BP55:BP57) -> 0 | BP19: =SUM(FUNCALLOC!BQ55:BQ57) -> 0 | BQ19: =SUM(FUNCALLOC!BR55:BR57) -> 0 | BR19: =SUM(FUNCALLOC!BS55:BS57) -> 0 | BS19: =SUM(FUNCALLOC!BT55:BT57) -> 0 | BT19: =SUM(FUNCALLOC!BU55:BU57) -> 0 | BU19: =SUM(FUNCALLOC!BV55:BV57) -> 0 | BV19: =SUM(FUNCALLOC!BW55:BW57) -> 0 | BW19: =SUM(FUNCALLOC!BX55:BX57) -> 0 | BX19: =SUM(FUNCALLOC!BY55:BY57) -> 0 | BY19: =SUM(FUNCALLOC!BZ55:BZ57) -> 0
D20: =IF((D19=0)*OR($C19=0),0,D19/$C19) -> 0 | E20: 0 | F20: 0 | G20: 0 | H20: 0 | I20: 0 | J20: 0 | K20: 0 | L20: 0 | M20: 0 | N20: 0 | O20: 0 | P20: 0 | Q20: 0 | R20: 0 | S20: 0.3475344064 | T20: 0.6372957489 | U20: 0.01516984474 | V20: 0 | W20: 0 | X20: 0 | Y20: 0 | Z20: 0 | AA20: 0 | AB20: 0 | AC20: 0 | AD20: 0 | AE20: 0 | AF20: 0 | AG20: 0 | AH20: 0 | AI20: 0 | AJ20: 0 | AK20: 0 | AL20: 0 | AM20: 0 | AN20: 0 | AO20: 0 | AP20: 0 | AQ20: 0 | AR20: =IF((AR19=0)*OR($C19=0),0,AR19/$C19) -> 0 | AS20: 0 | AT20: 0 | AU20: 0 | AV20: 0 | AW20: 0 | AX20: 0 | AY20: 0 | AZ20: 0 | BA20: =IF((BA19=0)*OR($C19=0),0,BA19/$C19) -> 0 | BB20: 0 | BC20: 0 | BD20: 0 | BE20: 0 | BF20: 0 | BG20: 0 | BH20: 0 | BI20: 0 | BJ20: 0 | BK20: 0 | BL20: 0 | BM20: 0 | BN20: 0 | BO20: 0 | BP20: 0 | BQ20: 0 | BR20: 0 | BS20: 0 | BT20: 0 | BU20: 0 | BV20: 0 | BW20: 0 | BX20: 0 | BY20: 0
A22: D369.T | B22: Total Services | C22: =SUM(D22:BA22) -> 189031794.3 | D22: =SUM(FUNCALLOC!E58:E59) -> 0 | E22: =SUM(FUNCALLOC!F58:F59) -> 0 | F22: =SUM(FUNCALLOC!G58:G59) -> 0 | G22: =SUM(FUNCALLOC!H58:H59) -> 0 | H22: =SUM(FUNCALLOC!I58:I59) -> 0 | I22: =SUM(FUNCALLOC!J58:J59) -> 0 | J22: =SUM(FUNCALLOC!K58:K59) -> 0 | K22: =SUM(FUNCALLOC!L58:L59) -> 0 | L22: =SUM(FUNCALLOC!M58:M59) -> 0 | M22: =SUM(FUNCALLOC!N58:N59) -> 0 | N22: =SUM(FUNCALLOC!O58:O59) -> 0 | O22: =SUM(FUNCALLOC!P58:P59) -> 0 | P22: =SUM(FUNCALLOC!Q58:Q59) -> 0 | Q22: =SUM(FUNCALLOC!R58:R59) -> 0 | R22: =SUM(FUNCALLOC!S58:S59) -> 0 | S22: =SUM(FUNCALLOC!T58:T59) -> 0 | T22: =SUM(FUNCALLOC!U58:U59) -> 0 | U22: =SUM(FUNCALLOC!V58:V59) -> 0 | V22: =SUM(FUNCALLOC!W58:W59) -> 0 | W22: =SUM(FUNCALLOC!X58:X59) -> 0 | X22: =SUM(FUNCALLOC!Y58:Y59) -> 0 | Y22: =SUM(FUNCALLOC!Z58:Z59) -> 0 | Z22: =SUM(FUNCALLOC!AA58:AA59) -> 0 | AA22: =SUM(FUNCALLOC!AB58:AB59) -> 0 | AB22: =SUM(FUNCALLOC!AC58:AC59) -> 0 | AC22: =SUM(FUNCALLOC!AD58:AD59) -> 0 | AD22: =SUM(FUNCALLOC!AE58:AE59) -> 0 | AE22: =SUM(FUNCALLOC!AF58:AF59) -> 0 | AF22: =SUM(FUNCALLOC!AG58:AG59) -> 0 | AG22: =SUM(FUNCALLOC!AH58:AH59) -> 0 | AH22: =SUM(FUNCALLOC!AI58:AI59) -> 0 | AI22: =SUM(FUNCALLOC!AJ58:AJ59) -> 40889975.45 | AJ22: =SUM(FUNCALLOC!AK58:AK59) -> 148141818.8 | AK22: =SUM(FUNCALLOC!AL58:AL59) -> 0 | AL22: =SUM(FUNCALLOC!AM58:AM59) -> 0 | AM22: =SUM(FUNCALLOC!AN58:AN59) -> 0 | AN22: =SUM(FUNCALLOC!AO58:AO59) -> 0 | AO22: =SUM(FUNCALLOC!AP58:AP59) -> 0 | AP22: =SUM(FUNCALLOC!AQ58:AQ59) -> 0 | AQ22: =SUM(FUNCALLOC!AR58:AR59) -> 0 | AR22: =SUM(FUNCALLOC!AS58:AS59) -> 0 | AS22: =SUM(FUNCALLOC!AT58:AT59) -> 0 | AT22: =SUM(FUNCALLOC!AU58:AU59) -> 0 | AU22: =SUM(FUNCALLOC!AV58:AV59) -> 0 | AV22: =SUM(FUNCALLOC!AW58:AW59) -> 0 | AW22: =SUM(FUNCALLOC!AX58:AX59) -> 0 | AX22: =SUM(FUNCALLOC!AY58:AY59) -> 0 | AY22: =SUM(FUNCALLOC!AZ58:AZ59) -> 0 | AZ22: =SUM(FUNCALLOC!BA58:BA59) -> 0 | BA22: =SUM(FUNCALLOC!BB58:BB59) -> 0 | BB22: =SUM(FUNCALLOC!BC58:BC59) -> 0 | BC22: =SUM(FUNCALLOC!BD58:BD59) -> 0 | BD22: =SUM(FUNCALLOC!BE58:BE59) -> 0 | BE22: =SUM(FUNCALLOC!BF58:BF59) -> 0 | BF22: =SUM(FUNCALLOC!BG58:BG59) -> 0 | BG22: =SUM(FUNCALLOC!BH58:BH59) -> 0 | BH22: =SUM(FUNCALLOC!BI58:BI59) -> 0 | BI22: =SUM(FUNCALLOC!BJ58:BJ59) -> 0 | BJ22: =SUM(FUNCALLOC!BK58:BK59) -> 0 | BK22: =SUM(FUNCALLOC!BL58:BL59) -> 0 | BL22: =SUM(FUNCALLOC!BM58:BM59) -> 0 | BM22: =SUM(FUNCALLOC!BN58:BN59) -> 0 | BN22: =SUM(FUNCALLOC!BO58:BO59) -> 0 | BO22: =SUM(FUNCALLOC!BP58:BP59) -> 0 | BP22: =SUM(FUNCALLOC!BQ58:BQ59) -> 0 | BQ22: =SUM(FUNCALLOC!BR58:BR59) -> 0 | BR22: =SUM(FUNCALLOC!BS58:BS59) -> 0 | BS22: =SUM(FUNCALLOC!BT58:BT59) -> 0 | BT22: =SUM(FUNCALLOC!BU58:BU59) -> 0 | BU22: =SUM(FUNCALLOC!BV58:BV59) -> 0 | BV22: =SUM(FUNCALLOC!BW58:BW59) -> 0 | BW22: =SUM(FUNCALLOC!BX58:BX59) -> 0 | BX22: =SUM(FUNCALLOC!BY58:BY59) -> 0 | BY22: =SUM(FUNCALLOC!BZ58:BZ59) -> 0
D23: =IF((D22=0)*OR($C22=0),0,D22/$C22) -> 0 | E23: 0 | F23: 0 | G23: 0 | H23: 0 | I23: 0 | J23: 0 | K23: 0 | L23: 0 | M23: 0 | N23: 0 | O23: 0 | P23: 0 | Q23: 0 | R23: 0 | S23: 0 | T23: 0 | U23: 0 | V23: 0 | W23: 0 | X23: 0 | Y23: 0 | Z23: 0 | AA23: 0 | AB23: 0 | AC23: 0 | AD23: 0 | AE23: 0 | AF23: 0 | AG23: 0 | AH23: 0 | AI23: 0.2163126876 | AJ23: =IF((AJ22=0)*OR($C22=0),0,AJ22/$C22) -> 0.7836873124 | AK23: 0 | AL23: 0 | AM23: 0 | AN23: 0 | AO23: 0 | AP23: 0 | AQ23: 0 | AR23: 0 | AS23: 0 | AT23: 0 | AU23: 0 | AV23: 0 | AW23: 0 | AX23: 0 | AY23: 0 | AZ23: 0 | BA23: 0 | BB23: 0 | BC23: 0 | BD23: 0 | BE23: 0 | BF23: 0 | BG23: 0 | BH23: 0 | BI23: 0 | BJ23: 0 | BK23: 0 | BL23: 0 | BM23: 0 | BN23: 0 | BO23: 0 | BP23: =IF((BP22=0)*OR($C22=0),0,BP22/$C22) -> 0 | BQ23: 0 | BR23: 0 | BS23: 0 | BT23: 0 | BU23: 0 | BV23: 0 | BW23: 0 | BX23: 0 | BY23: 0
A25: D370.T | B25: Total Meters | C25: =SUM(D25:BA25) -> 206004867.6 | D25: =SUM(FUNCALLOC!E60) -> 0 | E25: =SUM(FUNCALLOC!F60) -> 0 | F25: =SUM(FUNCALLOC!G60) -> 0 | G25: =SUM(FUNCALLOC!H60) -> 0 | H25: =SUM(FUNCALLOC!I60) -> 0 | I25: =SUM(FUNCALLOC!J60) -> 0 | J25: =SUM(FUNCALLOC!K60) -> 0 | K25: =SUM(FUNCALLOC!L60) -> 0 | L25: =SUM(FUNCALLOC!M60) -> 0 | M25: =SUM(FUNCALLOC!N60) -> 0 | N25: =SUM(FUNCALLOC!O60) -> 0 | O25: =SUM(FUNCALLOC!P60) -> 0 | P25: =SUM(FUNCALLOC!Q60) -> 0 | Q25: =SUM(FUNCALLOC!R60) -> 0 | R25: =SUM(FUNCALLOC!S60) -> 0 | S25: =SUM(FUNCALLOC!T60) -> 0 | T25: =SUM(FUNCALLOC!U60) -> 0 | U25: =SUM(FUNCALLOC!V60) -> 0 | V25: =SUM(FUNCALLOC!W60) -> 0 | W25: =SUM(FUNCALLOC!X60) -> 0 | X25: =SUM(FUNCALLOC!Y60) -> 0 | Y25: =SUM(FUNCALLOC!Z60) -> 0 | Z25: =SUM(FUNCALLOC!AA60) -> 0 | AA25: =SUM(FUNCALLOC!AB60) -> 0 | AB25: =SUM(FUNCALLOC!AC60) -> 0 | AC25: =SUM(FUNCALLOC!AD60) -> 0 | AD25: =SUM(FUNCALLOC!AE60) -> 0 | AE25: =SUM(FUNCALLOC!AF60) -> 0 | AF25: =SUM(FUNCALLOC!AG60) -> 0 | AG25: =SUM(FUNCALLOC!AH60) -> 0 | AH25: =SUM(FUNCALLOC!AI60) -> 0 | AI25: =SUM(FUNCALLOC!AJ60) -> 0 | AJ25: =SUM(FUNCALLOC!AK60) -> 0 | AK25: =SUM(FUNCALLOC!AL60) -> 206004867.6 | AL25: =SUM(FUNCALLOC!AM60) -> 0 | AM25: =SUM(FUNCALLOC!AN60) -> 0 | AN25: =SUM(FUNCALLOC!AO60) -> 0 | AO25: =SUM(FUNCALLOC!AP60) -> 0 | AP25: =SUM(FUNCALLOC!AQ60) -> 0 | AQ25: =SUM(FUNCALLOC!AR60) -> 0 | AR25: =SUM(FUNCALLOC!AS60) -> 0 | AS25: =SUM(FUNCALLOC!AT60) -> 0 | AT25: =SUM(FUNCALLOC!AU60) -> 0 | AU25: =SUM(FUNCALLOC!AV60) -> 0 | AV25: =SUM(FUNCALLOC!AW60) -> 0 | AW25: =SUM(FUNCALLOC!AX60) -> 0 | AX25: =SUM(FUNCALLOC!AY60) -> 0 | AY25: =SUM(FUNCALLOC!AZ60) -> 0 | AZ25: =SUM(FUNCALLOC!BA60) -> 0 | BA25: =SUM(FUNCALLOC!BB60) -> 0 | BB25: =SUM(FUNCALLOC!BC60) -> 0 | BC25: =SUM(FUNCALLOC!BD60) -> 0 | BD25: =SUM(FUNCALLOC!BE60) -> 0 | BE25: =SUM(FUNCALLOC!BF60) -> 0 | BF25: =SUM(FUNCALLOC!BG60) -> 0 | BG25: =SUM(FUNCALLOC!BH60) -> 0 | BH25: =SUM(FUNCALLOC!BI60) -> 0 | BI25: =SUM(FUNCALLOC!BJ60) -> 0 | BJ25: =SUM(FUNCALLOC!BK60) -> 0 | BK25: =SUM(FUNCALLOC!BL60) -> 0 | BL25: =SUM(FUNCALLOC!BM60) -> 0 | BM25: =SUM(FUNCALLOC!BN60) -> 0 | BN25: =SUM(FUNCALLOC!BO60) -> 0 | BO25: =SUM(FUNCALLOC!BP60) -> 0 | BP25: =SUM(FUNCALLOC!BQ60) -> 0 | BQ25: =SUM(FUNCALLOC!BR60) -> 0 | BR25: =SUM(FUNCALLOC!BS60) -> 0 | BS25: =SUM(FUNCALLOC!BT60) -> 0 | BT25: =SUM(FUNCALLOC!BU60) -> 0 | BU25: =SUM(FUNCALLOC!BV60) -> 0 | BV25: =SUM(FUNCALLOC!BW60) -> 0 | BW25: =SUM(FUNCALLOC!BX60) -> 0 | BX25: =SUM(FUNCALLOC!BY60) -> 0 | BY25: =SUM(FUNCALLOC!BZ60) -> 0
D26: =IF((D25=0)*OR($C25=0),0,D25/$C25) -> 0 | E26: 0 | F26: 0 | G26: 0 | H26: 0 | I26: 0 | J26: 0 | K26: 0 | L26: 0 | M26: 0 | N26: 0 | O26: 0 | P26: 0 | Q26: 0 | R26: 0 | S26: 0 | T26: 0 | U26: 0 | V26: 0 | W26: 0 | X26: 0 | Y26: 0 | Z26: 0 | AA26: 0 | AB26: 0 | AC26: 0 | AD26: 0 | AE26: 0 | AF26: 0 | AG26: 0 | AH26: 0 | AI26: 0 | AJ26: 0 | AK26: 1 | AL26: 0 | AM26: 0 | AN26: 0 | AO26: 0 | AP26: 0 | AQ26: 0 | AR26: =IF((AR25=0)*OR($C25=0),0,AR25/$C25) -> 0 | AS26: 0 | AT26: 0 | AU26: 0 | AV26: 0 | AW26: 0 | AX26: 0 | AY26: 0 | AZ26: 0 | BA26: =IF((BA25=0)*OR($C25=0),0,BA25/$C25) -> 0 | BB26: 0 | BC26: 0 | BD26: 0 | BE26: 0 | BF26: 0 | BG26: 0 | BH26: 0 | BI26: 0 | BJ26: 0 | BK26: 0 | BL26: 0 | BM26: 0 | BN26: 0 | BO26: 0 | BP26: 0 | BQ26: 0 | BR26: 0 | BS26: 0 | BT26: 0 | BU26: 0 | BV26: 0 | BW26: 0 | BX26: 0 | BY26: 0
A28: ADJPTDCE.T | B28: Adj Total Prod Trans Dist & Cust Exp | C28: =SUM(D28:BA28) -> 275723939.9 | D28: =SUM(FUNCALLOC!E285,FUNCALLOC!E300,FUNCALLOC!E316,FUNCALLOC!E327,FUNCALLOC!E330,FUNCALLOC!E332:E338,FUNCALLOC!E267,FUNCALLOC!E393) -> 0 | E28: =SUM(FUNCALLOC!F285,FUNCALLOC!F300,FUNCALLOC!F316,FUNCALLOC!F327,FUNCALLOC!F330,FUNCALLOC!F332:F338,FUNCALLOC!F267,FUNCALLOC!F393) -> 109175792.2 | F28: =SUM(FUNCALLOC!G285,FUNCALLOC!G300,FUNCALLOC!G316,FUNCALLOC!G327,FUNCALLOC!G330,FUNCALLOC!G332:G338,FUNCALLOC!G267,FUNCALLOC!G393) -> 19056918.89 | G28: =SUM(FUNCALLOC!H285,FUNCALLOC!H300,FUNCALLOC!H316,FUNCALLOC!H327,FUNCALLOC!H330,FUNCALLOC!H332:H338,FUNCALLOC!H267,FUNCALLOC!H393) -> 5744913.114 | H28: =SUM(FUNCALLOC!I285,FUNCALLOC!I300,FUNCALLOC!I316,FUNCALLOC!I327,FUNCALLOC!I330,FUNCALLOC!I332:I338,FUNCALLOC!I267,FUNCALLOC!I393) -> 6423.511963 | I28: =SUM(FUNCALLOC!J285,FUNCALLOC!J300,FUNCALLOC!J316,FUNCALLOC!J327,FUNCALLOC!J330,FUNCALLOC!J332:J338,FUNCALLOC!J267,FUNCALLOC!J393) -> 0 | J28: =SUM(FUNCALLOC!K285,FUNCALLOC!K300,FUNCALLOC!K316,FUNCALLOC!K327,FUNCALLOC!K330,FUNCALLOC!K332:K338,FUNCALLOC!K267,FUNCALLOC!K393) -> 0 | K28: =SUM(FUNCALLOC!L285,FUNCALLOC!L300,FUNCALLOC!L316,FUNCALLOC!L327,FUNCALLOC!L330,FUNCALLOC!L332:L338,FUNCALLOC!L267,FUNCALLOC!L393) -> -0.3692706317 | L28: =SUM(FUNCALLOC!M285,FUNCALLOC!M300,FUNCALLOC!M316,FUNCALLOC!M327,FUNCALLOC!M330,FUNCALLOC!M332:M338,FUNCALLOC!M267,FUNCALLOC!M393) -> -4.631900949 | M28: =SUM(FUNCALLOC!N285,FUNCALLOC!N300,FUNCALLOC!N316,FUNCALLOC!N327,FUNCALLOC!N330,FUNCALLOC!N332:N338,FUNCALLOC!N267,FUNCALLOC!N393) -> 380230.2663 | N28: =SUM(FUNCALLOC!O285,FUNCALLOC!O300,FUNCALLOC!O316,FUNCALLOC!O327,FUNCALLOC!O330,FUNCALLOC!O332:O338,FUNCALLOC!O267,FUNCALLOC!O393) -> 5224849.423 | O28: =SUM(FUNCALLOC!P285,FUNCALLOC!P300,FUNCALLOC!P316,FUNCALLOC!P327,FUNCALLOC!P330,FUNCALLOC!P332:P338,FUNCALLOC!P267,FUNCALLOC!P393) -> 42195633.62 | P28: =SUM(FUNCALLOC!Q285,FUNCALLOC!Q300,FUNCALLOC!Q316,FUNCALLOC!Q327,FUNCALLOC!Q330,FUNCALLOC!Q332:Q338,FUNCALLOC!Q267,FUNCALLOC!Q393) -> 3348.709411 | Q28: =SUM(FUNCALLOC!R285,FUNCALLOC!R300,FUNCALLOC!R316,FUNCALLOC!R327,FUNCALLOC!R330,FUNCALLOC!R332:R338,FUNCALLOC!R267,FUNCALLOC!R393) -> 370493.4268 | R28: =SUM(FUNCALLOC!S285,FUNCALLOC!S300,FUNCALLOC!S316,FUNCALLOC!S327,FUNCALLOC!S330,FUNCALLOC!S332:S338,FUNCALLOC!S267,FUNCALLOC!S393) -> 22757772.29 | S28: =SUM(FUNCALLOC!T285,FUNCALLOC!T300,FUNCALLOC!T316,FUNCALLOC!T327,FUNCALLOC!T330,FUNCALLOC!T332:T338,FUNCALLOC!T267,FUNCALLOC!T393) -> 61129.54145 | T28: =SUM(FUNCALLOC!U285,FUNCALLOC!U300,FUNCALLOC!U316,FUNCALLOC!U327,FUNCALLOC!U330,FUNCALLOC!U332:U338,FUNCALLOC!U267,FUNCALLOC!U393) -> 112097.0936 | U28: =SUM(FUNCALLOC!V285,FUNCALLOC!V300,FUNCALLOC!V316,FUNCALLOC!V327,FUNCALLOC!V330,FUNCALLOC!V332:V338,FUNCALLOC!V267,FUNCALLOC!V393) -> 2668.298838 | V28: =SUM(FUNCALLOC!W285,FUNCALLOC!W300,FUNCALLOC!W316,FUNCALLOC!W327,FUNCALLOC!W330,FUNCALLOC!W332:W338,FUNCALLOC!W267,FUNCALLOC!W393) -> 0 | W28: =SUM(FUNCALLOC!X285,FUNCALLOC!X300,FUNCALLOC!X316,FUNCALLOC!X327,FUNCALLOC!X330,FUNCALLOC!X332:X338,FUNCALLOC!X267,FUNCALLOC!X393) -> 0 | X28: =SUM(FUNCALLOC!Y285,FUNCALLOC!Y300,FUNCALLOC!Y316,FUNCALLOC!Y327,FUNCALLOC!Y330,FUNCALLOC!Y332:Y338,FUNCALLOC!Y267,FUNCALLOC!Y393) -> 0 | Y28: =SUM(FUNCALLOC!Z285,FUNCALLOC!Z300,FUNCALLOC!Z316,FUNCALLOC!Z327,FUNCALLOC!Z330,FUNCALLOC!Z332:Z338,FUNCALLOC!Z267,FUNCALLOC!Z393) -> 0 | Z28: =SUM(FUNCALLOC!AA285,FUNCALLOC!AA300,FUNCALLOC!AA316,FUNCALLOC!AA327,FUNCALLOC!AA330,FUNCALLOC!AA332:AA338,FUNCALLOC!AA267,FUNCALLOC!AA393) -> 0 | AA28: =SUM(FUNCALLOC!AB285,FUNCALLOC!AB300,FUNCALLOC!AB316,FUNCALLOC!AB327,FUNCALLOC!AB330,FUNCALLOC!AB332:AB338,FUNCALLOC!AB267,FUNCALLOC!AB393) -> 0 | AB28: =SUM(FUNCALLOC!AC285,FUNCALLOC!AC300,FUNCALLOC!AC316,FUNCALLOC!AC327,FUNCALLOC!AC330,FUNCALLOC!AC332:AC338,FUNCALLOC!AC267,FUNCALLOC!AC393) -> 0 | AC28: =SUM(FUNCALLOC!AD285,FUNCALLOC!AD300,FUNCALLOC!AD316,FUNCALLOC!AD327,FUNCALLOC!AD330,FUNCALLOC!AD332:AD338,FUNCALLOC!AD267,FUNCALLOC!AD393) -> 0 | AD28: =SUM(FUNCALLOC!AE285,FUNCALLOC!AE300,FUNCALLOC!AE316,FUNCALLOC!AE327,FUNCALLOC!AE330,FUNCALLOC!AE332:AE338,FUNCALLOC!AE267,FUNCALLOC!AE393) -> 0 | AE28: =SUM(FUNCALLOC!AF285,FUNCALLOC!AF300,FUNCALLOC!AF316,FUNCALLOC!AF327,FUNCALLOC!AF330,FUNCALLOC!AF332:AF338,FUNCALLOC!AF267,FUNCALLOC!AF393) -> 0 | AF28: =SUM(FUNCALLOC!AG285,FUNCALLOC!AG300,FUNCALLOC!AG316,FUNCALLOC!AG327,FUNCALLOC!AG330,FUNCALLOC!AG332:AG338,FUNCALLOC!AG267,FUNCALLOC!AG393) -> 0 | AG28: =SUM(FUNCALLOC!AH285,FUNCALLOC!AH300,FUNCALLOC!AH316,FUNCALLOC!AH327,FUNCALLOC!AH330,FUNCALLOC!AH332:AH338,FUNCALLOC!AH267,FUNCALLOC!AH393) -> 0 | AH28: =SUM(FUNCALLOC!AI285,FUNCALLOC!AI300,FUNCALLOC!AI316,FUNCALLOC!AI327,FUNCALLOC!AI330,FUNCALLOC!AI332:AI338,FUNCALLOC!AI267,FUNCALLOC!AI393) -> 0 | AI28: =SUM(FUNCALLOC!AJ285,FUNCALLOC!AJ300,FUNCALLOC!AJ316,FUNCALLOC!AJ327,FUNCALLOC!AJ330,FUNCALLOC!AJ332:AJ338,FUNCALLOC!AJ267,FUNCALLOC!AJ393) -> 0 | AJ28: =SUM(FUNCALLOC!AK285,FUNCALLOC!AK300,FUNCALLOC!AK316,FUNCALLOC!AK327,FUNCALLOC!AK330,FUNCALLOC!AK332:AK338,FUNCALLOC!AK267,FUNCALLOC!AK393) -> 181452.7741 | AK28: =SUM(FUNCALLOC!AL285,FUNCALLOC!AL300,FUNCALLOC!AL316,FUNCALLOC!AL327,FUNCALLOC!AL330,FUNCALLOC!AL332:AL338,FUNCALLOC!AL267,FUNCALLOC!AL393) -> 12112095.75 | AL28: =SUM(FUNCALLOC!AM285,FUNCALLOC!AM300,FUNCALLOC!AM316,FUNCALLOC!AM327,FUNCALLOC!AM330,FUNCALLOC!AM332:AM338,FUNCALLOC!AM267,FUNCALLOC!AM393) -> 2348493.477 | AM28: =SUM(FUNCALLOC!AN285,FUNCALLOC!AN300,FUNCALLOC!AN316,FUNCALLOC!AN327,FUNCALLOC!AN330,FUNCALLOC!AN332:AN338,FUNCALLOC!AN267,FUNCALLOC!AN393) -> 0 | AN28: =SUM(FUNCALLOC!AO285,FUNCALLOC!AO300,FUNCALLOC!AO316,FUNCALLOC!AO327,FUNCALLOC!AO330,FUNCALLOC!AO332:AO338,FUNCALLOC!AO267,FUNCALLOC!AO393) -> 0 | AO28: =SUM(FUNCALLOC!AP285,FUNCALLOC!AP300,FUNCALLOC!AP316,FUNCALLOC!AP327,FUNCALLOC!AP330,FUNCALLOC!AP332:AP338,FUNCALLOC!AP267,FUNCALLOC!AP393) -> 11400607.1 | AP28: =SUM(FUNCALLOC!AQ285,FUNCALLOC!AQ300,FUNCALLOC!AQ316,FUNCALLOC!AQ327,FUNCALLOC!AQ330,FUNCALLOC!AQ332:AQ338,FUNCALLOC!AQ267,FUNCALLOC!AQ393) -> 23684040.77 | AQ28: =SUM(FUNCALLOC!AR285,FUNCALLOC!AR300,FUNCALLOC!AR316,FUNCALLOC!AR327,FUNCALLOC!AR330,FUNCALLOC!AR332:AR338,FUNCALLOC!AR267,FUNCALLOC!AR393) -> 17002897.35 | AR28: =SUM(FUNCALLOC!AS285,FUNCALLOC!AS300,FUNCALLOC!AS316,FUNCALLOC!AS327,FUNCALLOC!AS330,FUNCALLOC!AS332:AS338,FUNCALLOC!AS267,FUNCALLOC!AS393) -> 3902087.313 | AS28: =SUM(FUNCALLOC!AT285,FUNCALLOC!AT300,FUNCALLOC!AT316,FUNCALLOC!AT327,FUNCALLOC!AT330,FUNCALLOC!AT332:AT338,FUNCALLOC!AT267,FUNCALLOC!AT393) -> 0 | AT28: =SUM(FUNCALLOC!AU285,FUNCALLOC!AU300,FUNCALLOC!AU316,FUNCALLOC!AU327,FUNCALLOC!AU330,FUNCALLOC!AU332:AU338,FUNCALLOC!AU267,FUNCALLOC!AU393) -> 0 | AU28: =SUM(FUNCALLOC!AV285,FUNCALLOC!AV300,FUNCALLOC!AV316,FUNCALLOC!AV327,FUNCALLOC!AV330,FUNCALLOC!AV332:AV338,FUNCALLOC!AV267,FUNCALLOC!AV393) -> 0 | AV28: =SUM(FUNCALLOC!AW285,FUNCALLOC!AW300,FUNCALLOC!AW316,FUNCALLOC!AW327,FUNCALLOC!AW330,FUNCALLOC!AW332:AW338,FUNCALLOC!AW267,FUNCALLOC!AW393) -> 0 | AW28: =SUM(FUNCALLOC!AX285,FUNCALLOC!AX300,FUNCALLOC!AX316,FUNCALLOC!AX327,FUNCALLOC!AX330,FUNCALLOC!AX332:AX338,FUNCALLOC!AX267,FUNCALLOC!AX393) -> 0 | AX28: =SUM(FUNCALLOC!AY285,FUNCALLOC!AY300,FUNCALLOC!AY316,FUNCALLOC!AY327,FUNCALLOC!AY330,FUNCALLOC!AY332:AY338,FUNCALLOC!AY267,FUNCALLOC!AY393) -> 0 | AY28: =SUM(FUNCALLOC!AZ285,FUNCALLOC!AZ300,FUNCALLOC!AZ316,FUNCALLOC!AZ327,FUNCALLOC!AZ330,FUNCALLOC!AZ332:AZ338,FUNCALLOC!AZ267,FUNCALLOC!AZ393) -> 0 | AZ28: =SUM(FUNCALLOC!BA285,FUNCALLOC!BA300,FUNCALLOC!BA316,FUNCALLOC!BA327,FUNCALLOC!BA330,FUNCALLOC!BA332:BA338,FUNCALLOC!BA267,FUNCALLOC!BA393) -> 0 | BA28: =SUM(FUNCALLOC!BB285,FUNCALLOC!BB300,FUNCALLOC!BB316,FUNCALLOC!BB327,FUNCALLOC!BB330,FUNCALLOC!BB332:BB338,FUNCALLOC!BB267,FUNCALLOC!BB393) -> 0 | BB28: =SUM(FUNCALLOC!BC285,FUNCALLOC!BC300,FUNCALLOC!BC316,FUNCALLOC!BC327,FUNCALLOC!BC330,FUNCALLOC!BC332:BC338,FUNCALLOC!BC267,FUNCALLOC!BC393) -> 0 | BC28: =SUM(FUNCALLOC!BD285,FUNCALLOC!BD300,FUNCALLOC!BD316,FUNCALLOC!BD327,FUNCALLOC!BD330,FUNCALLOC!BD332:BD338,FUNCALLOC!BD267,FUNCALLOC!BD393) -> 0 | BD28: =SUM(FUNCALLOC!BE285,FUNCALLOC!BE300,FUNCALLOC!BE316,FUNCALLOC!BE327,FUNCALLOC!BE330,FUNCALLOC!BE332:BE338,FUNCALLOC!BE267,FUNCALLOC!BE393) -> 0 | BE28: =SUM(FUNCALLOC!BF285,FUNCALLOC!BF300,FUNCALLOC!BF316,FUNCALLOC!BF327,FUNCALLOC!BF330,FUNCALLOC!BF332:BF338,FUNCALLOC!BF267,FUNCALLOC!BF393) -> 0 | BF28: =SUM(FUNCALLOC!BG285,FUNCALLOC!BG300,FUNCALLOC!BG316,FUNCALLOC!BG327,FUNCALLOC!BG330,FUNCALLOC!BG332:BG338,FUNCALLOC!BG267,FUNCALLOC!BG393) -> 0 | BG28: =SUM(FUNCALLOC!BH285,FUNCALLOC!BH300,FUNCALLOC!BH316,FUNCALLOC!BH327,FUNCALLOC!BH330,FUNCALLOC!BH332:BH338,FUNCALLOC!BH267,FUNCALLOC!BH393) -> 0 | BH28: =SUM(FUNCALLOC!BI285,FUNCALLOC!BI300,FUNCALLOC!BI316,FUNCALLOC!BI327,FUNCALLOC!BI330,FUNCALLOC!BI332:BI338,FUNCALLOC!BI267,FUNCALLOC!BI393) -> 0 | BI28: =SUM(FUNCALLOC!BJ285,FUNCALLOC!BJ300,FUNCALLOC!BJ316,FUNCALLOC!BJ327,FUNCALLOC!BJ330,FUNCALLOC!BJ332:BJ338,FUNCALLOC!BJ267,FUNCALLOC!BJ393) -> 0 | BJ28: =SUM(FUNCALLOC!BK285,FUNCALLOC!BK300,FUNCALLOC!BK316,FUNCALLOC!BK327,FUNCALLOC!BK330,FUNCALLOC!BK332:BK338,FUNCALLOC!BK267,FUNCALLOC!BK393) -> 0 | BK28: =SUM(FUNCALLOC!BL285,FUNCALLOC!BL300,FUNCALLOC!BL316,FUNCALLOC!BL327,FUNCALLOC!BL330,FUNCALLOC!BL332:BL338,FUNCALLOC!BL267,FUNCALLOC!BL393) -> 0 | BL28: =SUM(FUNCALLOC!BM285,FUNCALLOC!BM300,FUNCALLOC!BM316,FUNCALLOC!BM327,FUNCALLOC!BM330,FUNCALLOC!BM332:BM338,FUNCALLOC!BM267,FUNCALLOC!BM393) -> 0 | BM28: =SUM(FUNCALLOC!BN285,FUNCALLOC!BN300,FUNCALLOC!BN316,FUNCALLOC!BN327,FUNCALLOC!BN330,FUNCALLOC!BN332:BN338,FUNCALLOC!BN267,FUNCALLOC!BN393) -> 0 | BN28: =SUM(FUNCALLOC!BO285,FUNCALLOC!BO300,FUNCALLOC!BO316,FUNCALLOC!BO327,FUNCALLOC!BO330,FUNCALLOC!BO332:BO338,FUNCALLOC!BO267,FUNCALLOC!BO393) -> 0 | BO28: =SUM(FUNCALLOC!BP285,FUNCALLOC!BP300,FUNCALLOC!BP316,FUNCALLOC!BP327,FUNCALLOC!BP330,FUNCALLOC!BP332:BP338,FUNCALLOC!BP267,FUNCALLOC!BP393) -> 0 | BP28: =SUM(FUNCALLOC!BQ285,FUNCALLOC!BQ300,FUNCALLOC!BQ316,FUNCALLOC!BQ327,FUNCALLOC!BQ330,FUNCALLOC!BQ332:BQ338,FUNCALLOC!BQ267,FUNCALLOC!BQ393) -> 0 | BQ28: =SUM(FUNCALLOC!BR285,FUNCALLOC!BR300,FUNCALLOC!BR316,FUNCALLOC!BR327,FUNCALLOC!BR330,FUNCALLOC!BR332:BR338,FUNCALLOC!BR267,FUNCALLOC!BR393) -> 0 | BR28: =SUM(FUNCALLOC!BS285,FUNCALLOC!BS300,FUNCALLOC!BS316,FUNCALLOC!BS327,FUNCALLOC!BS330,FUNCALLOC!BS332:BS338,FUNCALLOC!BS267,FUNCALLOC!BS393) -> 0 | BS28: =SUM(FUNCALLOC!BT285,FUNCALLOC!BT300,FUNCALLOC!BT316,FUNCALLOC!BT327,FUNCALLOC!BT330,FUNCALLOC!BT332:BT338,FUNCALLOC!BT267,FUNCALLOC!BT393) -> 0 | BT28: =SUM(FUNCALLOC!BU285,FUNCALLOC!BU300,FUNCALLOC!BU316,FUNCALLOC!BU327,FUNCALLOC!BU330,FUNCALLOC!BU332:BU338,FUNCALLOC!BU267,FUNCALLOC!BU393) -> 0 | BU28: =SUM(FUNCALLOC!BV285,FUNCALLOC!BV300,FUNCALLOC!BV316,FUNCALLOC!BV327,FUNCALLOC!BV330,FUNCALLOC!BV332:BV338,FUNCALLOC!BV267,FUNCALLOC!BV393) -> 0 | BV28: =SUM(FUNCALLOC!BW285,FUNCALLOC!BW300,FUNCALLOC!BW316,FUNCALLOC!BW327,FUNCALLOC!BW330,FUNCALLOC!BW332:BW338,FUNCALLOC!BW267,FUNCALLOC!BW393) -> 0 | BW28: =SUM(FUNCALLOC!BX285,FUNCALLOC!BX300,FUNCALLOC!BX316,FUNCALLOC!BX327,FUNCALLOC!BX330,FUNCALLOC!BX332:BX338,FUNCALLOC!BX267,FUNCALLOC!BX393) -> 0 | BX28: =SUM(FUNCALLOC!BY285,FUNCALLOC!BY300,FUNCALLOC!BY316,FUNCALLOC!BY327,FUNCALLOC!BY330,FUNCALLOC!BY332:BY338,FUNCALLOC!BY267,FUNCALLOC!BY393) -> 0 | BY28: =SUM(FUNCALLOC!BZ285,FUNCALLOC!BZ300,FUNCALLOC!BZ316,FUNCALLOC!BZ327,FUNCALLOC!BZ330,FUNCALLOC!BZ332:BZ338,FUNCALLOC!BZ267,FUNCALLOC!BZ393) -> 0
D29: =IF((D28=0)*OR($C28=0),0,D28/$C28) -> 0 | E29: 0.3959605111 | F29: 0.06911593856 | G29: 0.02083574287 | H29: 2.329689604e-05 | I29: 0 | J29: 0 | K29: -1.33927664e-09 | L29: -1.679905253e-08 | M29: 0.001379025218 | N29: 0.01894956754 | O29: 0.1530357997 | P29: 1.214515291e-05 | Q29: 0.001343711493 | R29: 0.08253825295 | S29: 0.0002217055997 | T29: 0.0004065555341 | U29: 9.677428949e-06 | V29: 0 | W29: 0 | X29: 0 | Y29: 0 | Z29: 0 | AA29: 0 | AB29: 0 | AC29: 0 | AD29: 0 | AE29: 0 | AF29: 0 | AG29: 0 | AH29: 0 | AI29: 0 | AJ29: 0.0006580958266 | AK29: 0.04392834279 | AL29: 0.008517553744 | AM29: 0 | AN29: 0 | AO29: 0.04134790436 | AP29: 0.0858976583 | AQ29: 0.06166638035 | AR29: =IF((AR28=0)*OR($C28=0),0,AR28/$C28) -> 0.01415215275 | AS29: 0 | AT29: 0 | AU29: 0 | AV29: 0 | AW29: 0 | AX29: 0 | AY29: 0 | AZ29: 0 | BA29: =IF((BA28=0)*OR($C28=0),0,BA28/$C28) -> 0 | BB29: 0 | BC29: 0 | BD29: 0 | BE29: 0 | BF29: 0 | BG29: 0 | BH29: 0 | BI29: 0 | BJ29: 0 | BK29: 0 | BL29: 0 | BM29: 0 | BN29: 0 | BO29: 0 | BP29: 0 | BQ29: 0 | BR29: 0 | BS29: 0 | BT29: 0 | BU29: 0 | BV29: 0 | BW29: 0 | BX29: 0 | BY29: 0
A31: CAE.T | B31: Cust Accts Exp - Total | C31: =SUM(D31:BA31) -> 52087545.22 | D31: =SUM(FUNCALLOC!E327) -> 0 | E31: =SUM(FUNCALLOC!F327) -> 0 | F31: =SUM(FUNCALLOC!G327) -> 0 | G31: =SUM(FUNCALLOC!H327) -> 0 | H31: =SUM(FUNCALLOC!I327) -> 0 | I31: =SUM(FUNCALLOC!J327) -> 0 | J31: =SUM(FUNCALLOC!K327) -> 0 | K31: =SUM(FUNCALLOC!L327) -> 0 | L31: =SUM(FUNCALLOC!M327) -> 0 | M31: =SUM(FUNCALLOC!N327) -> 0 | N31: =SUM(FUNCALLOC!O327) -> 0 | O31: =SUM(FUNCALLOC!P327) -> 0 | P31: =SUM(FUNCALLOC!Q327) -> 0 | Q31: =SUM(FUNCALLOC!R327) -> 0 | R31: =SUM(FUNCALLOC!S327) -> 0 | S31: =SUM(FUNCALLOC!T327) -> 0 | T31: =SUM(FUNCALLOC!U327) -> 0 | U31: =SUM(FUNCALLOC!V327) -> 0 | V31: =SUM(FUNCALLOC!W327) -> 0 | W31: =SUM(FUNCALLOC!X327) -> 0 | X31: =SUM(FUNCALLOC!Y327) -> 0 | Y31: =SUM(FUNCALLOC!Z327) -> 0 | Z31: =SUM(FUNCALLOC!AA327) -> 0 | AA31: =SUM(FUNCALLOC!AB327) -> 0 | AB31: =SUM(FUNCALLOC!AC327) -> 0 | AC31: =SUM(FUNCALLOC!AD327) -> 0 | AD31: =SUM(FUNCALLOC!AE327) -> 0 | AE31: =SUM(FUNCALLOC!AF327) -> 0 | AF31: =SUM(FUNCALLOC!AG327) -> 0 | AG31: =SUM(FUNCALLOC!AH327) -> 0 | AH31: =SUM(FUNCALLOC!AI327) -> 0 | AI31: =SUM(FUNCALLOC!AJ327) -> 0 | AJ31: =SUM(FUNCALLOC!AK327) -> 0 | AK31: =SUM(FUNCALLOC!AL327) -> 0 | AL31: =SUM(FUNCALLOC!AM327) -> 0 | AM31: =SUM(FUNCALLOC!AN327) -> 0 | AN31: =SUM(FUNCALLOC!AO327) -> 0 | AO31: =SUM(FUNCALLOC!AP327) -> 11400607.1 | AP31: =SUM(FUNCALLOC!AQ327) -> 23684040.77 | AQ31: =SUM(FUNCALLOC!AR327) -> 17002897.35 | AR31: =SUM(FUNCALLOC!AS327) -> 0 | AS31: =SUM(FUNCALLOC!AT327) -> 0 | AT31: =SUM(FUNCALLOC!AU327) -> 0 | AU31: =SUM(FUNCALLOC!AV327) -> 0 | AV31: =SUM(FUNCALLOC!AW327) -> 0 | AW31: =SUM(FUNCALLOC!AX327) -> 0 | AX31: =SUM(FUNCALLOC!AY327) -> 0 | AY31: =SUM(FUNCALLOC!AZ327) -> 0 | AZ31: =SUM(FUNCALLOC!BA327) -> 0 | BA31: =SUM(FUNCALLOC!BB327) -> 0 | BB31: =SUM(FUNCALLOC!BC327) -> 0 | BC31: =SUM(FUNCALLOC!BD327) -> 0 | BD31: =SUM(FUNCALLOC!BE327) -> 0 | BE31: =SUM(FUNCALLOC!BF327) -> 0 | BF31: =SUM(FUNCALLOC!BG327) -> 0 | BG31: =SUM(FUNCALLOC!BH327) -> 0 | BH31: =SUM(FUNCALLOC!BI327) -> 0 | BI31: =SUM(FUNCALLOC!BJ327) -> 0 | BJ31: =SUM(FUNCALLOC!BK327) -> 0 | BK31: =SUM(FUNCALLOC!BL327) -> 0 | BL31: =SUM(FUNCALLOC!BM327) -> 0 | BM31: =SUM(FUNCALLOC!BN327) -> 0 | BN31: =SUM(FUNCALLOC!BO327) -> 0 | BO31: =SUM(FUNCALLOC!BP327) -> 0 | BP31: =SUM(FUNCALLOC!BQ327) -> 0 | BQ31: =SUM(FUNCALLOC!BR327) -> 0 | BR31: =SUM(FUNCALLOC!BS327) -> 0 | BS31: =SUM(FUNCALLOC!BT327) -> 0 | BT31: =SUM(FUNCALLOC!BU327) -> 0 | BU31: =SUM(FUNCALLOC!BV327) -> 0 | BV31: =SUM(FUNCALLOC!BW327) -> 0 | BW31: =SUM(FUNCALLOC!BX327) -> 0 | BX31: =SUM(FUNCALLOC!BY327) -> 0 | BY31: =SUM(FUNCALLOC!BZ327) -> 0
D32: =IF((D31=0)*OR($C31=0),0,D31/$C31) -> 0 | E32: 0 | F32: 0 | G32: 0 | H32: 0 | I32: 0 | J32: 0 | K32: 0 | L32: 0 | M32: 0 | N32: 0 | O32: 0 | P32: 0 | Q32: 0 | R32: 0 | S32: 0 | T32: 0 | U32: 0 | V32: 0 | W32: 0 | X32: 0 | Y32: 0 | Z32: 0 | AA32: 0 | AB32: 0 | AC32: 0 | AD32: 0 | AE32: 0 | AF32: 0 | AG32: 0 | AH32: 0 | AI32: 0 | AJ32: 0 | AK32: 0 | AL32: 0 | AM32: 0 | AN32: 0 | AO32: 0.2188739563 | AP32: 0.4546968123 | AQ32: 0.3264292314 | AR32: =IF((AR31=0)*OR($C31=0),0,AR31/$C31) -> 0 | AS32: 0 | AT32: 0 | AU32: 0 | AV32: 0 | AW32: 0 | AX32: 0 | AY32: 0 | AZ32: 0 | BA32: =IF((BA31=0)*OR($C31=0),0,BA31/$C31) -> 0 | BB32: 0 | BC32: 0 | BD32: 0 | BE32: 0 | BF32: 0 | BG32: 0 | BH32: 0 | BI32: 0 | BJ32: 0 | BK32: 0 | BL32: 0 | BM32: 0 | BN32: 0 | BO32: 0 | BP32: 0 | BQ32: 0 | BR32: 0 | BS32: 0 | BT32: 0 | BU32: 0 | BV32: 0 | BW32: 0 | BX32: 0 | BY32: 0
A34: CAES1.T | B34: Cust Accts Exp - Subtotal ID902.00 to ID905.00 | C34: =SUM(D34:BA34) -> 51952923.29 | D34: =SUM(FUNCALLOC!E320:E323) -> 0 | E34: =SUM(FUNCALLOC!F320:F323) -> 0 | F34: =SUM(FUNCALLOC!G320:G323) -> 0 | G34: =SUM(FUNCALLOC!H320:H323) -> 0 | H34: =SUM(FUNCALLOC!I320:I323) -> 0 | I34: =SUM(FUNCALLOC!J320:J323) -> 0 | J34: =SUM(FUNCALLOC!K320:K323) -> 0 | K34: =SUM(FUNCALLOC!L320:L323) -> 0 | L34: =SUM(FUNCALLOC!M320:M323) -> 0 | M34: =SUM(FUNCALLOC!N320:N323) -> 0 | N34: =SUM(FUNCALLOC!O320:O323) -> 0 | O34: =SUM(FUNCALLOC!P320:P323) -> 0 | P34: =SUM(FUNCALLOC!Q320:Q323) -> 0 | Q34: =SUM(FUNCALLOC!R320:R323) -> 0 | R34: =SUM(FUNCALLOC!S320:S323) -> 0 | S34: =SUM(FUNCALLOC!T320:T323) -> 0 | T34: =SUM(FUNCALLOC!U320:U323) -> 0 | U34: =SUM(FUNCALLOC!V320:V323) -> 0 | V34: =SUM(FUNCALLOC!W320:W323) -> 0 | W34: =SUM(FUNCALLOC!X320:X323) -> 0 | X34: =SUM(FUNCALLOC!Y320:Y323) -> 0 | Y34: =SUM(FUNCALLOC!Z320:Z323) -> 0 | Z34: =SUM(FUNCALLOC!AA320:AA323) -> 0 | AA34: =SUM(FUNCALLOC!AB320:AB323) -> 0 | AB34: =SUM(FUNCALLOC!AC320:AC323) -> 0 | AC34: =SUM(FUNCALLOC!AD320:AD323) -> 0 | AD34: =SUM(FUNCALLOC!AE320:AE323) -> 0 | AE34: =SUM(FUNCALLOC!AF320:AF323) -> 0 | AF34: =SUM(FUNCALLOC!AG320:AG323) -> 0 | AG34: =SUM(FUNCALLOC!AH320:AH323) -> 0 | AH34: =SUM(FUNCALLOC!AI320:AI323) -> 0 | AI34: =SUM(FUNCALLOC!AJ320:AJ323) -> 0 | AJ34: =SUM(FUNCALLOC!AK320:AK323) -> 0 | AK34: =SUM(FUNCALLOC!AL320:AL323) -> 0 | AL34: =SUM(FUNCALLOC!AM320:AM323) -> 0 | AM34: =SUM(FUNCALLOC!AN320:AN323) -> 0 | AN34: =SUM(FUNCALLOC!AO320:AO323) -> 0 | AO34: =SUM(FUNCALLOC!AP320:AP323) -> 11371141.86 | AP34: =SUM(FUNCALLOC!AQ320:AQ323) -> 23622828.61 | AQ34: =SUM(FUNCALLOC!AR320:AR323) -> 16958952.82 | AR34: =SUM(FUNCALLOC!AS320:AS323) -> 0 | AS34: =SUM(FUNCALLOC!AT320:AT323) -> 0 | AT34: =SUM(FUNCALLOC!AU320:AU323) -> 0 | AU34: =SUM(FUNCALLOC!AV320:AV323) -> 0 | AV34: =SUM(FUNCALLOC!AW320:AW323) -> 0 | AW34: =SUM(FUNCALLOC!AX320:AX323) -> 0 | AX34: =SUM(FUNCALLOC!AY320:AY323) -> 0 | AY34: =SUM(FUNCALLOC!AZ320:AZ323) -> 0 | AZ34: =SUM(FUNCALLOC!BA320:BA323) -> 0 | BA34: =SUM(FUNCALLOC!BB320:BB323) -> 0 | BB34: =SUM(FUNCALLOC!BC320:BC323) -> 0 | BC34: =SUM(FUNCALLOC!BD320:BD323) -> 0 | BD34: =SUM(FUNCALLOC!BE320:BE323) -> 0 | BE34: =SUM(FUNCALLOC!BF320:BF323) -> 0 | BF34: =SUM(FUNCALLOC!BG320:BG323) -> 0 | BG34: =SUM(FUNCALLOC!BH320:BH323) -> 0 | BH34: =SUM(FUNCALLOC!BI320:BI323) -> 0 | BI34: =SUM(FUNCALLOC!BJ320:BJ323) -> 0 | BJ34: =SUM(FUNCALLOC!BK320:BK323) -> 0 | BK34: =SUM(FUNCALLOC!BL320:BL323) -> 0 | BL34: =SUM(FUNCALLOC!BM320:BM323) -> 0 | BM34: =SUM(FUNCALLOC!BN320:BN323) -> 0 | BN34: =SUM(FUNCALLOC!BO320:BO323) -> 0 | BO34: =SUM(FUNCALLOC!BP320:BP323) -> 0 | BP34: =SUM(FUNCALLOC!BQ320:BQ323) -> 0 | BQ34: =SUM(FUNCALLOC!BR320:BR323) -> 0 | BR34: =SUM(FUNCALLOC!BS320:BS323) -> 0 | BS34: =SUM(FUNCALLOC!BT320:BT323) -> 0 | BT34: =SUM(FUNCALLOC!BU320:BU323) -> 0 | BU34: =SUM(FUNCALLOC!BV320:BV323) -> 0 | BV34: =SUM(FUNCALLOC!BW320:BW323) -> 0 | BW34: =SUM(FUNCALLOC!BX320:BX323) -> 0 | BX34: =SUM(FUNCALLOC!BY320:BY323) -> 0 | BY34: =SUM(FUNCALLOC!BZ320:BZ323) -> 0
D35: =IF((D34=0)*OR($C34=0),0,D34/$C34) -> 0 | E35: 0 | F35: 0 | G35: 0 | H35: 0 | I35: 0 | J35: 0 | K35: 0 | L35: 0 | M35: 0 | N35: 0 | O35: 0 | P35: 0 | Q35: 0 | R35: 0 | S35: 0 | T35: 0 | U35: 0 | V35: 0 | W35: 0 | X35: 0 | Y35: 0 | Z35: 0 | AA35: 0 | AB35: 0 | AC35: 0 | AD35: 0 | AE35: 0 | AF35: 0 | AG35: 0 | AH35: 0 | AI35: 0 | AJ35: 0 | AK35: 0 | AL35: 0 | AM35: 0 | AN35: 0 | AO35: 0.2188739563 | AP35: 0.4546968123 | AQ35: 0.3264292314 | AR35: =IF((AR34=0)*OR($C34=0),0,AR34/$C34) -> 0 | AS35: 0 | AT35: 0 | AU35: 0 | AV35: 0 | AW35: 0 | AX35: 0 | AY35: 0 | AZ35: 0 | BA35: =IF((BA34=0)*OR($C34=0),0,BA34/$C34) -> 0 | BB35: 0 | BC35: 0 | BD35: 0 | BE35: 0 | BF35: 0 | BG35: 0 | BH35: 0 | BI35: 0 | BJ35: 0 | BK35: 0 | BL35: 0 | BM35: 0 | BN35: 0 | BO35: 0 | BP35: 0 | BQ35: 0 | BR35: 0 | BS35: 0 | BT35: 0 | BU35: 0 | BV35: 0 | BW35: 0 | BX35: 0 | BY35: 0
A37: DES1.T | B37: Dist O&M - ID581.00 to ID589.00 Subtotal | C37: =SUM(D37:BA37) -> 17588898.47 | D37: =SUM(FUNCALLOC!E303:E310) -> 0 | E37: =SUM(FUNCALLOC!F303:F310) -> 0 | F37: =SUM(FUNCALLOC!G303:G310) -> 0 | G37: =SUM(FUNCALLOC!H303:H310) -> 0 | H37: =SUM(FUNCALLOC!I303:I310) -> 0 | I37: =SUM(FUNCALLOC!J303:J310) -> 0 | J37: =SUM(FUNCALLOC!K303:K310) -> 0 | K37: =SUM(FUNCALLOC!L303:L310) -> 0 | L37: =SUM(FUNCALLOC!M303:M310) -> 0 | M37: =SUM(FUNCALLOC!N303:N310) -> 148760.1723 | N37: =SUM(FUNCALLOC!O303:O310) -> 2044154.738 | O37: =SUM(FUNCALLOC!P303:P310) -> 3242830.011 | P37: =SUM(FUNCALLOC!Q303:Q310) -> 257.3559026 | Q37: =SUM(FUNCALLOC!R303:R310) -> 92008.93335 | R37: =SUM(FUNCALLOC!S303:S310) -> 5651701.765 | S37: =SUM(FUNCALLOC!T303:T310) -> 0 | T37: =SUM(FUNCALLOC!U303:U310) -> 0 | U37: =SUM(FUNCALLOC!V303:V310) -> 0 | V37: =SUM(FUNCALLOC!W303:W310) -> 0 | W37: =SUM(FUNCALLOC!X303:X310) -> 0 | X37: =SUM(FUNCALLOC!Y303:Y310) -> 0 | Y37: =SUM(FUNCALLOC!Z303:Z310) -> 0 | Z37: =SUM(FUNCALLOC!AA303:AA310) -> 0 | AA37: =SUM(FUNCALLOC!AB303:AB310) -> 0 | AB37: =SUM(FUNCALLOC!AC303:AC310) -> 0 | AC37: =SUM(FUNCALLOC!AD303:AD310) -> 0 | AD37: =SUM(FUNCALLOC!AE303:AE310) -> 0 | AE37: =SUM(FUNCALLOC!AF303:AF310) -> 0 | AF37: =SUM(FUNCALLOC!AG303:AG310) -> 0 | AG37: =SUM(FUNCALLOC!AH303:AH310) -> 0 | AH37: =SUM(FUNCALLOC!AI303:AI310) -> 0 | AI37: =SUM(FUNCALLOC!AJ303:AJ310) -> 0 | AJ37: =SUM(FUNCALLOC!AK303:AK310) -> 0 | AK37: =SUM(FUNCALLOC!AL303:AL310) -> 6233098.56 | AL37: =SUM(FUNCALLOC!AM303:AM310) -> 176086.9369 | AM37: =SUM(FUNCALLOC!AN303:AN310) -> 0 | AN37: =SUM(FUNCALLOC!AO303:AO310) -> 0 | AO37: =SUM(FUNCALLOC!AP303:AP310) -> 0 | AP37: =SUM(FUNCALLOC!AQ303:AQ310) -> 0 | AQ37: =SUM(FUNCALLOC!AR303:AR310) -> 0 | AR37: =SUM(FUNCALLOC!AS303:AS310) -> 0 | AS37: =SUM(FUNCALLOC!AT303:AT310) -> 0 | AT37: =SUM(FUNCALLOC!AU303:AU310) -> 0 | AU37: =SUM(FUNCALLOC!AV303:AV310) -> 0 | AV37: =SUM(FUNCALLOC!AW303:AW310) -> 0 | AW37: =SUM(FUNCALLOC!AX303:AX310) -> 0 | AX37: =SUM(FUNCALLOC!AY303:AY310) -> 0 | AY37: =SUM(FUNCALLOC!AZ303:AZ310) -> 0 | AZ37: =SUM(FUNCALLOC!BA303:BA310) -> 0 | BA37: =SUM(FUNCALLOC!BB303:BB310) -> 0 | BB37: =SUM(FUNCALLOC!BC303:BC310) -> 0 | BC37: =SUM(FUNCALLOC!BD303:BD310) -> 0 | BD37: =SUM(FUNCALLOC!BE303:BE310) -> 0 | BE37: =SUM(FUNCALLOC!BF303:BF310) -> 0 | BF37: =SUM(FUNCALLOC!BG303:BG310) -> 0 | BG37: =SUM(FUNCALLOC!BH303:BH310) -> 0 | BH37: =SUM(FUNCALLOC!BI303:BI310) -> 0 | BI37: =SUM(FUNCALLOC!BJ303:BJ310) -> 0 | BJ37: =SUM(FUNCALLOC!BK303:BK310) -> 0 | BK37: =SUM(FUNCALLOC!BL303:BL310) -> 0 | BL37: =SUM(FUNCALLOC!BM303:BM310) -> 0 | BM37: =SUM(FUNCALLOC!BN303:BN310) -> 0 | BN37: =SUM(FUNCALLOC!BO303:BO310) -> 0 | BO37: =SUM(FUNCALLOC!BP303:BP310) -> 0 | BP37: =SUM(FUNCALLOC!BQ303:BQ310) -> 0 | BQ37: =SUM(FUNCALLOC!BR303:BR310) -> 0 | BR37: =SUM(FUNCALLOC!BS303:BS310) -> 0 | BS37: =SUM(FUNCALLOC!BT303:BT310) -> 0 | BT37: =SUM(FUNCALLOC!BU303:BU310) -> 0 | BU37: =SUM(FUNCALLOC!BV303:BV310) -> 0 | BV37: =SUM(FUNCALLOC!BW303:BW310) -> 0 | BW37: =SUM(FUNCALLOC!BX303:BX310) -> 0 | BX37: =SUM(FUNCALLOC!BY303:BY310) -> 0 | BY37: =SUM(FUNCALLOC!BZ303:BZ310) -> 0
D38: =IF((D37=0)*OR($C37=0),0,D37/$C37) -> 0 | E38: 0 | F38: 0 | G38: 0 | H38: 0 | I38: 0 | J38: 0 | K38: 0 | L38: 0 | M38: 0.008457617317 | N38: 0.1162184625 | O38: 0.1843679987 | P38: 1.46317237e-05 | Q38: 0.005231079905 | R38: 0.3213220984 | S38: 0 | T38: 0 | U38: 0 | V38: 0 | W38: 0 | X38: 0 | Y38: 0 | Z38: 0 | AA38: 0 | AB38: 0 | AC38: 0 | AD38: 0 | AE38: 0 | AF38: 0 | AG38: 0 | AH38: 0 | AI38: 0 | AJ38: 0 | AK38: 0.3543768571 | AL38: 0.01001125438 | AM38: 0 | AN38: 0 | AO38: 0 | AP38: 0 | AQ38: 0 | AR38: =IF((AR37=0)*OR($C37=0),0,AR37/$C37) -> 0 | AS38: 0 | AT38: 0 | AU38: 0 | AV38: 0 | AW38: 0 | AX38: 0 | AY38: 0 | AZ38: 0 | BA38: =IF((BA37=0)*OR($C37=0),0,BA37/$C37) -> 0 | BB38: 0 | BC38: 0 | BD38: 0 | BE38: 0 | BF38: 0 | BG38: 0 | BH38: 0 | BI38: 0 | BJ38: 0 | BK38: 0 | BL38: 0 | BM38: 0 | BN38: 0 | BO38: 0 | BP38: 0 | BQ38: 0 | BR38: 0 | BS38: 0 | BT38: 0 | BU38: 0 | BV38: 0 | BW38: 0 | BX38: 0 | BY38: 0
A40: DES2.T | B40: Dist O&M - ID591.00 to ID597.00 Subtotal | C40: =SUM(D40:BA40) -> 52368320.68 | D40: =SUM(FUNCALLOC!E382:E388) -> 0 | E40: =SUM(FUNCALLOC!F382:F388) -> 0 | F40: =SUM(FUNCALLOC!G382:G388) -> 0 | G40: =SUM(FUNCALLOC!H382:H388) -> 0 | H40: =SUM(FUNCALLOC!I382:I388) -> 0 | I40: =SUM(FUNCALLOC!J382:J388) -> 0 | J40: =SUM(FUNCALLOC!K382:K388) -> 0 | K40: =SUM(FUNCALLOC!L382:L388) -> -0.3654922847 | L40: =SUM(FUNCALLOC!M382:M388) -> -4.584507715 | M40: =SUM(FUNCALLOC!N382:N388) -> 102947.6976 | N40: =SUM(FUNCALLOC!O382:O388) -> 1414632.832 | O40: =SUM(FUNCALLOC!P382:P388) -> 35804204.42 | P40: =SUM(FUNCALLOC!Q382:Q388) -> 2841.475906 | Q40: =SUM(FUNCALLOC!R382:R388) -> 197608.1554 | R40: =SUM(FUNCALLOC!S382:S388) -> 12138194.84 | S40: =SUM(FUNCALLOC!T382:T388) -> 60504.06896 | T40: =SUM(FUNCALLOC!U382:U388) -> 110950.1253 | U40: =SUM(FUNCALLOC!V382:V388) -> 2640.997021 | V40: =SUM(FUNCALLOC!W382:W388) -> 0 | W40: =SUM(FUNCALLOC!X382:X388) -> 0 | X40: =SUM(FUNCALLOC!Y382:Y388) -> 0 | Y40: =SUM(FUNCALLOC!Z382:Z388) -> 0 | Z40: =SUM(FUNCALLOC!AA382:AA388) -> 0 | AA40: =SUM(FUNCALLOC!AB382:AB388) -> 0 | AB40: =SUM(FUNCALLOC!AC382:AC388) -> 0 | AC40: =SUM(FUNCALLOC!AD382:AD388) -> 0 | AD40: =SUM(FUNCALLOC!AE382:AE388) -> 0 | AE40: =SUM(FUNCALLOC!AF382:AF388) -> 0 | AF40: =SUM(FUNCALLOC!AG382:AG388) -> 0 | AG40: =SUM(FUNCALLOC!AH382:AH388) -> 0 | AH40: =SUM(FUNCALLOC!AI382:AI388) -> 0 | AI40: =SUM(FUNCALLOC!AJ382:AJ388) -> 0 | AJ40: =SUM(FUNCALLOC!AK382:AK388) -> 0 | AK40: =SUM(FUNCALLOC!AL382:AL388) -> 532950.4667 | AL40: =SUM(FUNCALLOC!AM382:AM388) -> 2000850.554 | AM40: =SUM(FUNCALLOC!AN382:AN388) -> 0 | AN40: =SUM(FUNCALLOC!AO382:AO388) -> 0 | AO40: =SUM(FUNCALLOC!AP382:AP388) -> 0 | AP40: =SUM(FUNCALLOC!AQ382:AQ388) -> 0 | AQ40: =SUM(FUNCALLOC!AR382:AR388) -> 0 | AR40: =SUM(FUNCALLOC!AS382:AS388) -> 0 | AS40: =SUM(FUNCALLOC!AT382:AT388) -> 0 | AT40: =SUM(FUNCALLOC!AU382:AU388) -> 0 | AU40: =SUM(FUNCALLOC!AV382:AV388) -> 0 | AV40: =SUM(FUNCALLOC!AW382:AW388) -> 0 | AW40: =SUM(FUNCALLOC!AX382:AX388) -> 0 | AX40: =SUM(FUNCALLOC!AY382:AY388) -> 0 | AY40: =SUM(FUNCALLOC!AZ382:AZ388) -> 0 | AZ40: =SUM(FUNCALLOC!BA382:BA388) -> 0 | BA40: =SUM(FUNCALLOC!BB382:BB388) -> 0 | BB40: =SUM(FUNCALLOC!BC382:BC388) -> 0 | BC40: =SUM(FUNCALLOC!BD382:BD388) -> 0 | BD40: =SUM(FUNCALLOC!BE382:BE388) -> 0 | BE40: =SUM(FUNCALLOC!BF382:BF388) -> 0 | BF40: =SUM(FUNCALLOC!BG382:BG388) -> 0 | BG40: =SUM(FUNCALLOC!BH382:BH388) -> 0 | BH40: =SUM(FUNCALLOC!BI382:BI388) -> 0 | BI40: =SUM(FUNCALLOC!BJ382:BJ388) -> 0 | BJ40: =SUM(FUNCALLOC!BK382:BK388) -> 0 | BK40: =SUM(FUNCALLOC!BL382:BL388) -> 0 | BL40: =SUM(FUNCALLOC!BM382:BM388) -> 0 | BM40: =SUM(FUNCALLOC!BN382:BN388) -> 0 | BN40: =SUM(FUNCALLOC!BO382:BO388) -> 0 | BO40: =SUM(FUNCALLOC!BP382:BP388) -> 0 | BP40: =SUM(FUNCALLOC!BQ382:BQ388) -> 0 | BQ40: =SUM(FUNCALLOC!BR382:BR388) -> 0 | BR40: =SUM(FUNCALLOC!BS382:BS388) -> 0 | BS40: =SUM(FUNCALLOC!BT382:BT388) -> 0 | BT40: =SUM(FUNCALLOC!BU382:BU388) -> 0 | BU40: =SUM(FUNCALLOC!BV382:BV388) -> 0 | BV40: =SUM(FUNCALLOC!BW382:BW388) -> 0 | BW40: =SUM(FUNCALLOC!BX382:BX388) -> 0 | BX40: =SUM(FUNCALLOC!BY382:BY388) -> 0 | BY40: =SUM(FUNCALLOC!BZ382:BZ388) -> 0
D41: =IF((D40=0)*OR($C40=0),0,D40/$C40) -> 0 | E41: 0 | F41: 0 | G41: 0 | H41: 0 | I41: 0 | J41: 0 | K41: -6.979263034e-09 | L41: -8.75435312e-08 | M41: 0.0019658392 | N41: 0.02701314103 | O41: 0.6836996862 | P41: 5.42594429e-05 | Q41: 0.003773429295 | R41: 0.2317850694 | S41: 0.001155356295 | T41: 0.002118649669 | U41: 5.043119555e-05 | V41: 0 | W41: 0 | X41: 0 | Y41: 0 | Z41: 0 | AA41: 0 | AB41: 0 | AC41: 0 | AD41: 0 | AE41: 0 | AF41: 0 | AG41: 0 | AH41: 0 | AI41: 0 | AJ41: 0 | AK41: 0.01017696309 | AL41: 0.03820726973 | AM41: 0 | AN41: 0 | AO41: 0 | AP41: 0 | AQ41: 0 | AR41: =IF((AR40=0)*OR($C40=0),0,AR40/$C40) -> 0 | AS41: 0 | AT41: 0 | AU41: 0 | AV41: 0 | AW41: 0 | AX41: 0 | AY41: 0 | AZ41: 0 | BA41: =IF((BA40=0)*OR($C40=0),0,BA40/$C40) -> 0 | BB41: 0 | BC41: 0 | BD41: 0 | BE41: 0 | BF41: 0 | BG41: 0 | BH41: 0 | BI41: 0 | BJ41: 0 | BK41: 0 | BL41: 0 | BM41: 0 | BN41: 0 | BO41: 0 | BP41: 0 | BQ41: 0 | BR41: 0 | BS41: 0 | BT41: 0 | BU41: 0 | BV41: 0 | BW41: 0 | BX41: 0 | BY41: 0
A43: DES3.T | B43: Dist O&M - ID582.00 to ID587.00 Subtotal | C43: =SUM(D43:BA43) -> 14513729.03 | D43: =SUM(FUNCALLOC!E304:E309) -> 0 | E43: =SUM(FUNCALLOC!F304:F309) -> 0 | F43: =SUM(FUNCALLOC!G304:G309) -> 0 | G43: =SUM(FUNCALLOC!H304:H309) -> 0 | H43: =SUM(FUNCALLOC!I304:I309) -> 0 | I43: =SUM(FUNCALLOC!J304:J309) -> 0 | J43: =SUM(FUNCALLOC!K304:K309) -> 0 | K43: =SUM(FUNCALLOC!L304:L309) -> 0 | L43: =SUM(FUNCALLOC!M304:M309) -> 0 | M43: =SUM(FUNCALLOC!N304:N309) -> 122751.566 | N43: =SUM(FUNCALLOC!O304:O309) -> 1686763.274 | O43: =SUM(FUNCALLOC!P304:P309) -> 2675867.175 | P43: =SUM(FUNCALLOC!Q304:Q309) -> 212.360873 | Q43: =SUM(FUNCALLOC!R304:R309) -> 75922.47629 | R43: =SUM(FUNCALLOC!S304:S309) -> 4663581.867 | S43: =SUM(FUNCALLOC!T304:T309) -> 0 | T43: =SUM(FUNCALLOC!U304:U309) -> 0 | U43: =SUM(FUNCALLOC!V304:V309) -> 0 | V43: =SUM(FUNCALLOC!W304:W309) -> 0 | W43: =SUM(FUNCALLOC!X304:X309) -> 0 | X43: =SUM(FUNCALLOC!Y304:Y309) -> 0 | Y43: =SUM(FUNCALLOC!Z304:Z309) -> 0 | Z43: =SUM(FUNCALLOC!AA304:AA309) -> 0 | AA43: =SUM(FUNCALLOC!AB304:AB309) -> 0 | AB43: =SUM(FUNCALLOC!AC304:AC309) -> 0 | AC43: =SUM(FUNCALLOC!AD304:AD309) -> 0 | AD43: =SUM(FUNCALLOC!AE304:AE309) -> 0 | AE43: =SUM(FUNCALLOC!AF304:AF309) -> 0 | AF43: =SUM(FUNCALLOC!AG304:AG309) -> 0 | AG43: =SUM(FUNCALLOC!AH304:AH309) -> 0 | AH43: =SUM(FUNCALLOC!AI304:AI309) -> 0 | AI43: =SUM(FUNCALLOC!AJ304:AJ309) -> 0 | AJ43: =SUM(FUNCALLOC!AK304:AK309) -> 0 | AK43: =SUM(FUNCALLOC!AL304:AL309) -> 5143329.678 | AL43: =SUM(FUNCALLOC!AM304:AM309) -> 145300.6334 | AM43: =SUM(FUNCALLOC!AN304:AN309) -> 0 | AN43: =SUM(FUNCALLOC!AO304:AO309) -> 0 | AO43: =SUM(FUNCALLOC!AP304:AP309) -> 0 | AP43: =SUM(FUNCALLOC!AQ304:AQ309) -> 0 | AQ43: =SUM(FUNCALLOC!AR304:AR309) -> 0 | AR43: =SUM(FUNCALLOC!AS304:AS309) -> 0 | AS43: =SUM(FUNCALLOC!AT304:AT309) -> 0 | AT43: =SUM(FUNCALLOC!AU304:AU309) -> 0 | AU43: =SUM(FUNCALLOC!AV304:AV309) -> 0 | AV43: =SUM(FUNCALLOC!AW304:AW309) -> 0 | AW43: =SUM(FUNCALLOC!AX304:AX309) -> 0 | AX43: =SUM(FUNCALLOC!AY304:AY309) -> 0 | AY43: =SUM(FUNCALLOC!AZ304:AZ309) -> 0 | AZ43: =SUM(FUNCALLOC!BA304:BA309) -> 0 | BA43: =SUM(FUNCALLOC!BB304:BB309) -> 0 | BB43: =SUM(FUNCALLOC!BC304:BC309) -> 0 | BC43: =SUM(FUNCALLOC!BD304:BD309) -> 0 | BD43: =SUM(FUNCALLOC!BE304:BE309) -> 0 | BE43: =SUM(FUNCALLOC!BF304:BF309) -> 0 | BF43: =SUM(FUNCALLOC!BG304:BG309) -> 0 | BG43: =SUM(FUNCALLOC!BH304:BH309) -> 0 | BH43: =SUM(FUNCALLOC!BI304:BI309) -> 0 | BI43: =SUM(FUNCALLOC!BJ304:BJ309) -> 0 | BJ43: =SUM(FUNCALLOC!BK304:BK309) -> 0 | BK43: =SUM(FUNCALLOC!BL304:BL309) -> 0 | BL43: =SUM(FUNCALLOC!BM304:BM309) -> 0 | BM43: =SUM(FUNCALLOC!BN304:BN309) -> 0 | BN43: =SUM(FUNCALLOC!BO304:BO309) -> 0 | BO43: =SUM(FUNCALLOC!BP304:BP309) -> 0 | BP43: =SUM(FUNCALLOC!BQ304:BQ309) -> 0 | BQ43: =SUM(FUNCALLOC!BR304:BR309) -> 0 | BR43: =SUM(FUNCALLOC!BS304:BS309) -> 0 | BS43: =SUM(FUNCALLOC!BT304:BT309) -> 0 | BT43: =SUM(FUNCALLOC!BU304:BU309) -> 0 | BU43: =SUM(FUNCALLOC!BV304:BV309) -> 0 | BV43: =SUM(FUNCALLOC!BW304:BW309) -> 0 | BW43: =SUM(FUNCALLOC!BX304:BX309) -> 0 | BX43: =SUM(FUNCALLOC!BY304:BY309) -> 0 | BY43: =SUM(FUNCALLOC!BZ304:BZ309) -> 0
D44: =IF((D43=0)*OR($C43=0),0,D43/$C43) -> 0 | E44: 0 | F44: 0 | G44: 0 | H44: 0 | I44: 0 | J44: 0 | K44: 0 | L44: 0 | M44: 0.008457617317 | N44: 0.1162184625 | O44: 0.1843679987 | P44: 1.46317237e-05 | Q44: 0.005231079905 | R44: 0.3213220984 | S44: 0 | T44: 0 | U44: 0 | V44: 0 | W44: 0 | X44: 0 | Y44: 0 | Z44: 0 | AA44: 0 | AB44: 0 | AC44: 0 | AD44: 0 | AE44: 0 | AF44: 0 | AG44: 0 | AH44: 0 | AI44: 0 | AJ44: =IF((AJ43=0)*OR($C43=0),0,AJ43/$C43) -> 0 | AK44: 0.3543768571 | AL44: 0.01001125438 | AM44: 0 | AN44: 0 | AO44: 0 | AP44: 0 | AQ44: 0 | AR44: 0 | AS44: 0 | AT44: 0 | AU44: 0 | AV44: 0 | AW44: 0 | AX44: 0 | AY44: 0 | AZ44: 0 | BA44: 0 | BB44: 0 | BC44: 0 | BD44: 0 | BE44: 0 | BF44: 0 | BG44: 0 | BH44: 0 | BI44: 0 | BJ44: 0 | BK44: 0 | BL44: 0 | BM44: 0 | BN44: 0 | BO44: 0 | BP44: =IF((BP43=0)*OR($C43=0),0,BP43/$C43) -> 0 | BQ44: 0 | BR44: 0 | BS44: 0 | BT44: 0 | BU44: 0 | BV44: 0 | BW44: 0 | BX44: 0 | BY44: 0
A46: DP.T | B46: Total Distribution Plant | C46: =SUM(D46:BA46) -> 4089276604 | D46: =SUM(FUNCALLOC!E72) -> 0 | E46: =SUM(FUNCALLOC!F72) -> 0 | F46: =SUM(FUNCALLOC!G72) -> 0 | G46: =SUM(FUNCALLOC!H72) -> 0 | H46: =SUM(FUNCALLOC!I72) -> 0 | I46: =SUM(FUNCALLOC!J72) -> 3584294.51 | J46: =SUM(FUNCALLOC!K72) -> 47903705.49 | K46: =SUM(FUNCALLOC!L72) -> 598299.7945 | L46: =SUM(FUNCALLOC!M72) -> 7504700.206 | M46: =SUM(FUNCALLOC!N72) -> 31963716.52 | N46: =SUM(FUNCALLOC!O72) -> 440323283.5 | O46: =SUM(FUNCALLOC!P72) -> 853455120.2 | P46: =SUM(FUNCALLOC!Q72) -> 67731.49133 | Q46: =SUM(FUNCALLOC!R72) -> 28065841.16 | R46: =SUM(FUNCALLOC!S72) -> 1723960471 | S46: =SUM(FUNCALLOC!T72) -> 173605063.3 | T46: =SUM(FUNCALLOC!U72) -> 318350548.3 | U46: =SUM(FUNCALLOC!V72) -> 7577844.977 | V46: =SUM(FUNCALLOC!W72) -> 0 | W46: =SUM(FUNCALLOC!X72) -> 0 | X46: =SUM(FUNCALLOC!Y72) -> 0 | Y46: =SUM(FUNCALLOC!Z72) -> 0 | Z46: =SUM(FUNCALLOC!AA72) -> 0 | AA46: =SUM(FUNCALLOC!AB72) -> 0 | AB46: =SUM(FUNCALLOC!AC72) -> 0 | AC46: =SUM(FUNCALLOC!AD72) -> 0 | AD46: =SUM(FUNCALLOC!AE72) -> 0 | AE46: =SUM(FUNCALLOC!AF72) -> 0 | AF46: =SUM(FUNCALLOC!AG72) -> 0 | AG46: =SUM(FUNCALLOC!AH72) -> 0 | AH46: =SUM(FUNCALLOC!AI72) -> 0 | AI46: =SUM(FUNCALLOC!AJ72) -> 40889975.45 | AJ46: =SUM(FUNCALLOC!AK72) -> 148141818.8 | AK46: =SUM(FUNCALLOC!AL72) -> 206004867.6 | AL46: =SUM(FUNCALLOC!AM72) -> 57279322.09 | AM46: =SUM(FUNCALLOC!AN72) -> 0 | AN46: =SUM(FUNCALLOC!AO72) -> 0 | AO46: =SUM(FUNCALLOC!AP72) -> 0 | AP46: =SUM(FUNCALLOC!AQ72) -> 0 | AQ46: =SUM(FUNCALLOC!AR72) -> 0 | AR46: =SUM(FUNCALLOC!AS72) -> 0 | AS46: =SUM(FUNCALLOC!AT72) -> 0 | AT46: =SUM(FUNCALLOC!AU72) -> 0 | AU46: =SUM(FUNCALLOC!AV72) -> 0 | AV46: =SUM(FUNCALLOC!AW72) -> 0 | AW46: =SUM(FUNCALLOC!AX72) -> 0 | AX46: =SUM(FUNCALLOC!AY72) -> 0 | AY46: =SUM(FUNCALLOC!AZ72) -> 0 | AZ46: =SUM(FUNCALLOC!BA72) -> 0 | BA46: =SUM(FUNCALLOC!BB72) -> 0 | BB46: =SUM(FUNCALLOC!BC72) -> 0 | BC46: =SUM(FUNCALLOC!BD72) -> 0 | BD46: =SUM(FUNCALLOC!BE72) -> 0 | BE46: =SUM(FUNCALLOC!BF72) -> 0 | BF46: =SUM(FUNCALLOC!BG72) -> 0 | BG46: =SUM(FUNCALLOC!BH72) -> 0 | BH46: =SUM(FUNCALLOC!BI72) -> 0 | BI46: =SUM(FUNCALLOC!BJ72) -> 0 | BJ46: =SUM(FUNCALLOC!BK72) -> 0 | BK46: =SUM(FUNCALLOC!BL72) -> 0 | BL46: =SUM(FUNCALLOC!BM72) -> 0 | BM46: =SUM(FUNCALLOC!BN72) -> 0 | BN46: =SUM(FUNCALLOC!BO72) -> 0 | BO46: =SUM(FUNCALLOC!BP72) -> 0 | BP46: =SUM(FUNCALLOC!BQ72) -> 0 | BQ46: =SUM(FUNCALLOC!BR72) -> 0 | BR46: =SUM(FUNCALLOC!BS72) -> 0 | BS46: =SUM(FUNCALLOC!BT72) -> 0 | BT46: =SUM(FUNCALLOC!BU72) -> 0 | BU46: =SUM(FUNCALLOC!BV72) -> 0 | BV46: =SUM(FUNCALLOC!BW72) -> 0 | BW46: =SUM(FUNCALLOC!BX72) -> 0 | BX46: =SUM(FUNCALLOC!BY72) -> 0 | BY46: =SUM(FUNCALLOC!BZ72) -> 0
D47: =IF((D46=0)*OR($C46=0),0,D46/$C46) -> 0 | E47: 0 | F47: 0 | G47: 0 | H47: 0 | I47: 0.0008765106539 | J47: 0.01171446936 | K47: 0.000146309446 | L47: 0.001835214619 | M47: 0.007816472109 | N47: 0.1076775494 | O47: 0.2087056472 | P47: 1.656319635e-05 | Q47: 0.006863277759 | R47: 0.4215807923 | S47: 0.04245373452 | T47: 0.07785008917 | U47: 0.00185310159 | V47: 0 | W47: 0 | X47: 0 | Y47: 0 | Z47: 0 | AA47: 0 | AB47: 0 | AC47: 0 | AD47: 0 | AE47: 0 | AF47: 0 | AG47: 0 | AH47: 0 | AI47: 0.009999317584 | AJ47: 0.03622690103 | AK47: 0.05037684842 | AL47: 0.01400720167 | AM47: 0 | AN47: 0 | AO47: 0 | AP47: 0 | AQ47: 0 | AR47: =IF((AR46=0)*OR($C46=0),0,AR46/$C46) -> 0 | AS47: 0 | AT47: 0 | AU47: 0 | AV47: 0 | AW47: 0 | AX47: 0 | AY47: 0 | AZ47: 0 | BA47: =IF((BA46=0)*OR($C46=0),0,BA46/$C46) -> 0 | BB47: 0 | BC47: 0 | BD47: 0 | BE47: 0 | BF47: 0 | BG47: 0 | BH47: 0 | BI47: 0 | BJ47: 0 | BK47: 0 | BL47: 0 | BM47: 0 | BN47: 0 | BO47: 0 | BP47: 0 | BQ47: 0 | BR47: 0 | BS47: 0 | BT47: 0 | BU47: 0 | BV47: 0 | BW47: 0 | BX47: 0 | BY47: 0
A49: EPIS.T | B49: Total Elec Plant In Service | C49: =SUM(D49:BA49) -> 1.075441711e+10 | D49: =SUM(FUNCALLOC!E90,FUNCALLOC!E185) -> 0 | E49: =SUM(FUNCALLOC!F90,FUNCALLOC!F185) -> 4495302259 | F49: =SUM(FUNCALLOC!G90,FUNCALLOC!G185) -> 1318254734 | G49: =SUM(FUNCALLOC!H90,FUNCALLOC!H185) -> 388198529.6 | H49: =SUM(FUNCALLOC!I90,FUNCALLOC!I185) -> 433745.3088 | I49: =SUM(FUNCALLOC!J90,FUNCALLOC!J185) -> 3906355.008 | J49: =SUM(FUNCALLOC!K90,FUNCALLOC!K185) -> 52208008.95 | K49: =SUM(FUNCALLOC!L90,FUNCALLOC!L185) -> 652058.9734 | L49: =SUM(FUNCALLOC!M90,FUNCALLOC!M185) -> 8179021.883 | M49: =SUM(FUNCALLOC!N90,FUNCALLOC!N185) -> 34835760.22 | N49: =SUM(FUNCALLOC!O90,FUNCALLOC!O185) -> 479887760 | O49: =SUM(FUNCALLOC!P90,FUNCALLOC!P185) -> 930140833.5 | P49: =SUM(FUNCALLOC!Q90,FUNCALLOC!Q185) -> 73817.38572 | Q49: =SUM(FUNCALLOC!R90,FUNCALLOC!R185) -> 30587648.11 | R49: =SUM(FUNCALLOC!S90,FUNCALLOC!S185) -> 1878863916 | S49: =SUM(FUNCALLOC!T90,FUNCALLOC!T185) -> 189204041.9 | T49: =SUM(FUNCALLOC!U90,FUNCALLOC!U185) -> 346955378.6 | U49: =SUM(FUNCALLOC!V90,FUNCALLOC!V185) -> 8258738.95 | V49: =SUM(FUNCALLOC!W90,FUNCALLOC!W185) -> 0 | W49: =SUM(FUNCALLOC!X90,FUNCALLOC!X185) -> 0 | X49: =SUM(FUNCALLOC!Y90,FUNCALLOC!Y185) -> 0 | Y49: =SUM(FUNCALLOC!Z90,FUNCALLOC!Z185) -> 0 | Z49: =SUM(FUNCALLOC!AA90,FUNCALLOC!AA185) -> 0 | AA49: =SUM(FUNCALLOC!AB90,FUNCALLOC!AB185) -> 0 | AB49: =SUM(FUNCALLOC!AC90,FUNCALLOC!AC185) -> 0 | AC49: =SUM(FUNCALLOC!AD90,FUNCALLOC!AD185) -> 0 | AD49: =SUM(FUNCALLOC!AE90,FUNCALLOC!AE185) -> 0 | AE49: =SUM(FUNCALLOC!AF90,FUNCALLOC!AF185) -> 0 | AF49: =SUM(FUNCALLOC!AG90,FUNCALLOC!AG185) -> 0 | AG49: =SUM(FUNCALLOC!AH90,FUNCALLOC!AH185) -> 0 | AH49: =SUM(FUNCALLOC!AI90,FUNCALLOC!AI185) -> 0 | AI49: =SUM(FUNCALLOC!AJ90,FUNCALLOC!AJ185) -> 44564072.5 | AJ49: =SUM(FUNCALLOC!AK90,FUNCALLOC!AK185) -> 161452842.2 | AK49: =SUM(FUNCALLOC!AL90,FUNCALLOC!AL185) -> 224515073.8 | AL49: =SUM(FUNCALLOC!AM90,FUNCALLOC!AM185) -> 66145635.29 | AM49: =SUM(FUNCALLOC!AN90,FUNCALLOC!AN185) -> 0 | AN49: =SUM(FUNCALLOC!AO90,FUNCALLOC!AO185) -> 0 | AO49: =SUM(FUNCALLOC!AP90,FUNCALLOC!AP185) -> 17858675.47 | AP49: =SUM(FUNCALLOC!AQ90,FUNCALLOC!AQ185) -> 37100269.71 | AQ49: =SUM(FUNCALLOC!AR90,FUNCALLOC!AR185) -> 26634478.61 | AR49: =SUM(FUNCALLOC!AS90,FUNCALLOC!AS185) -> 10203456.28 | AS49: =SUM(FUNCALLOC!AT90,FUNCALLOC!AT185) -> 0 | AT49: =SUM(FUNCALLOC!AU90,FUNCALLOC!AU185) -> 0 | AU49: =SUM(FUNCALLOC!AV90,FUNCALLOC!AV185) -> 0 | AV49: =SUM(FUNCALLOC!AW90,FUNCALLOC!AW185) -> 0 | AW49: =SUM(FUNCALLOC!AX90,FUNCALLOC!AX185) -> 0 | AX49: =SUM(FUNCALLOC!AY90,FUNCALLOC!AY185) -> 0 | AY49: =SUM(FUNCALLOC!AZ90,FUNCALLOC!AZ185) -> 0 | AZ49: =SUM(FUNCALLOC!BA90,FUNCALLOC!BA185) -> 0 | BA49: =SUM(FUNCALLOC!BB90,FUNCALLOC!BB185) -> 0 | BB49: =SUM(FUNCALLOC!BC90,FUNCALLOC!BC185) -> 0 | BC49: =SUM(FUNCALLOC!BD90,FUNCALLOC!BD185) -> 0 | BD49: =SUM(FUNCALLOC!BE90,FUNCALLOC!BE185) -> 0 | BE49: =SUM(FUNCALLOC!BF90,FUNCALLOC!BF185) -> 0 | BF49: =SUM(FUNCALLOC!BG90,FUNCALLOC!BG185) -> 0 | BG49: =SUM(FUNCALLOC!BH90,FUNCALLOC!BH185) -> 0 | BH49: =SUM(FUNCALLOC!BI90,FUNCALLOC!BI185) -> 0 | BI49: =SUM(FUNCALLOC!BJ90,FUNCALLOC!BJ185) -> 0 | BJ49: =SUM(FUNCALLOC!BK90,FUNCALLOC!BK185) -> 0 | BK49: =SUM(FUNCALLOC!BL90,FUNCALLOC!BL185) -> 0 | BL49: =SUM(FUNCALLOC!BM90,FUNCALLOC!BM185) -> 0 | BM49: =SUM(FUNCALLOC!BN90,FUNCALLOC!BN185) -> 0 | BN49: =SUM(FUNCALLOC!BO90,FUNCALLOC!BO185) -> 0 | BO49: =SUM(FUNCALLOC!BP90,FUNCALLOC!BP185) -> 0 | BP49: =SUM(FUNCALLOC!BQ90,FUNCALLOC!BQ185) -> 0 | BQ49: =SUM(FUNCALLOC!BR90,FUNCALLOC!BR185) -> 0 | BR49: =SUM(FUNCALLOC!BS90,FUNCALLOC!BS185) -> 0 | BS49: =SUM(FUNCALLOC!BT90,FUNCALLOC!BT185) -> 0 | BT49: =SUM(FUNCALLOC!BU90,FUNCALLOC!BU185) -> 0 | BU49: =SUM(FUNCALLOC!BV90,FUNCALLOC!BV185) -> 0 | BV49: =SUM(FUNCALLOC!BW90,FUNCALLOC!BW185) -> 0 | BW49: =SUM(FUNCALLOC!BX90,FUNCALLOC!BX185) -> 0 | BX49: =SUM(FUNCALLOC!BY90,FUNCALLOC!BY185) -> 0 | BY49: =SUM(FUNCALLOC!BZ90,FUNCALLOC!BZ185) -> 0
D50: =IF((D49=0)*OR($C49=0),0,D49/$C49) -> 0 | E50: 0.4179958999 | F50: 0.1225779808 | G50: 0.03609665922 | H50: 4.033182871e-05 | I50: 0.0003632326111 | J50: 0.004854564261 | K50: 6.063173547e-05 | L50: 0.0007605267491 | M50: 0.003239204865 | N50: 0.04462238679 | O50: 0.08648919081 | P50: 6.863913214e-06 | Q50: 0.002844193953 | R50: 0.1747062529 | S50: 0.01759314707 | T50: 0.03226166281 | U50: 0.0007679392444 | V50: 0 | W50: 0 | X50: 0 | Y50: 0 | Z50: 0 | AA50: 0 | AB50: 0 | AC50: 0 | AD50: 0 | AE50: 0 | AF50: 0 | AG50: 0 | AH50: 0 | AI50: 0.004143792457 | AJ50: 0.01501270041 | AK50: 0.02087654509 | AL50: 0.006150555126 | AM50: 0 | AN50: 0 | AO50: 0.001660589811 | AP50: 0.00344977039 | AQ50: 0.002476608294 | AR50: =IF((AR49=0)*OR($C49=0),0,AR49/$C49) -> 0.00094876888 | AS50: 0 | AT50: 0 | AU50: 0 | AV50: 0 | AW50: 0 | AX50: 0 | AY50: 0 | AZ50: 0 | BA50: =IF((BA49=0)*OR($C49=0),0,BA49/$C49) -> 0 | BB50: 0 | BC50: 0 | BD50: 0 | BE50: 0 | BF50: 0 | BG50: 0 | BH50: 0 | BI50: 0 | BJ50: 0 | BK50: 0 | BL50: 0 | BM50: 0 | BN50: 0 | BO50: 0 | BP50: 0 | BQ50: 0 | BR50: 0 | BS50: 0 | BT50: 0 | BU50: 0 | BV50: 0 | BW50: 0 | BX50: 0 | BY50: 0
A52: GP.T | B52: Total General Plant | C52: =SUM(D52:BA52) -> 540077856.4 | D52: =+FUNCALLOC!E88 -> 0 | E52: =+FUNCALLOC!F88 -> 204076623.8 | F52: =+FUNCALLOC!G88 -> 55282140.21 | G52: =+FUNCALLOC!H88 -> 16279437.49 | H52: =+FUNCALLOC!I88 -> 18189.48065 | I52: =+FUNCALLOC!J88 -> 178333.1008 | J52: =+FUNCALLOC!K88 -> 2383402.456 | K52: =+FUNCALLOC!L88 -> 29767.82662 | L52: =+FUNCALLOC!M88 -> 373389.0879 | M52: =+FUNCALLOC!N88 -> 1590323.748 | N52: =+FUNCALLOC!O88 -> 21907858.37 | O52: =+FUNCALLOC!P88 -> 42462832.65 | P52: =+FUNCALLOC!Q88 -> 3369.91473 | Q52: =+FUNCALLOC!R88 -> 1396388.736 | R52: =+FUNCALLOC!S88 -> 85773982.98 | S52: =+FUNCALLOC!T88 -> 8637551.73 | T52: =+FUNCALLOC!U88 -> 15839223.1 | U52: =+FUNCALLOC!V88 -> 377028.3352 | V52: =+FUNCALLOC!W88 -> 0 | W52: =+FUNCALLOC!X88 -> 0 | X52: =+FUNCALLOC!Y88 -> 0 | Y52: =+FUNCALLOC!Z88 -> 0 | Z52: =+FUNCALLOC!AA88 -> 0 | AA52: =+FUNCALLOC!AB88 -> 0 | AB52: =+FUNCALLOC!AC88 -> 0 | AC52: =+FUNCALLOC!AD88 -> 0 | AD52: =+FUNCALLOC!AE88 -> 0 | AE52: =+FUNCALLOC!AF88 -> 0 | AF52: =+FUNCALLOC!AG88 -> 0 | AG52: =+FUNCALLOC!AH88 -> 0 | AH52: =+FUNCALLOC!AI88 -> 0 | AI52: =+FUNCALLOC!AJ88 -> 2034441.113 | AJ52: =+FUNCALLOC!AK88 -> 7370652.67 | AK52: =+FUNCALLOC!AL88 -> 10249572.6 | AL52: =+FUNCALLOC!AM88 -> 5223902.675 | AM52: =+FUNCALLOC!AN88 -> 0 | AN52: =+FUNCALLOC!AO88 -> 0 | AO52: =+FUNCALLOC!AP88 -> 11398316.26 | AP52: =+FUNCALLOC!AQ88 -> 23679281.71 | AQ52: =+FUNCALLOC!AR88 -> 16999480.79 | AR52: =+FUNCALLOC!AS88 -> 6512365.477 | AS52: =+FUNCALLOC!AT88 -> 0 | AT52: =+FUNCALLOC!AU88 -> 0 | AU52: =+FUNCALLOC!AV88 -> 0 | AV52: =+FUNCALLOC!AW88 -> 0 | AW52: =+FUNCALLOC!AX88 -> 0 | AX52: =+FUNCALLOC!AY88 -> 0 | AY52: =+FUNCALLOC!AZ88 -> 0 | AZ52: =+FUNCALLOC!BA88 -> 0 | BA52: =+FUNCALLOC!BB88 -> 0 | BB52: =+FUNCALLOC!BC88 -> 0 | BC52: =+FUNCALLOC!BD88 -> 0 | BD52: =+FUNCALLOC!BE88 -> 0 | BE52: =+FUNCALLOC!BF88 -> 0 | BF52: =+FUNCALLOC!BG88 -> 0 | BG52: =+FUNCALLOC!BH88 -> 0 | BH52: =+FUNCALLOC!BI88 -> 0 | BI52: =+FUNCALLOC!BJ88 -> 0 | BJ52: =+FUNCALLOC!BK88 -> 0 | BK52: =+FUNCALLOC!BL88 -> 0 | BL52: =+FUNCALLOC!BM88 -> 0 | BM52: =+FUNCALLOC!BN88 -> 0 | BN52: =+FUNCALLOC!BO88 -> 0 | BO52: =+FUNCALLOC!BP88 -> 0 | BP52: =+FUNCALLOC!BQ88 -> 0 | BQ52: =+FUNCALLOC!BR88 -> 0 | BR52: =+FUNCALLOC!BS88 -> 0 | BS52: =+FUNCALLOC!BT88 -> 0 | BT52: =+FUNCALLOC!BU88 -> 0 | BU52: =+FUNCALLOC!BV88 -> 0 | BV52: =+FUNCALLOC!BW88 -> 0 | BW52: =+FUNCALLOC!BX88 -> 0 | BX52: =+FUNCALLOC!BY88 -> 0 | BY52: =+FUNCALLOC!BZ88 -> 0
D53: =IF((D52=0)*OR($C52=0),0,D52/$C52) -> 0 | E53: 0.3778651938 | F53: 0.1023595757 | G53: 0.03014276052 | H53: 3.367936758e-05 | I53: 0.0003301988753 | J53: 0.004413071982 | K53: 5.511765808e-05 | L53: 0.0006913615945 | M53: 0.002944619427 | N53: 0.0405642596 | O53: 0.07862353946 | P53: 6.239683206e-06 | Q53: 0.002585532289 | R53: 0.1588178111 | S53: 0.0159931603 | T53: 0.02932766621 | U53: 0.0006980999697 | V53: 0 | W53: 0 | X53: 0 | Y53: 0 | Z53: 0 | AA53: 0 | AB53: 0 | AC53: 0 | AD53: 0 | AE53: 0 | AF53: 0 | AG53: 0 | AH53: 0 | AI53: 0.003766940431 | AJ53: 0.01364738914 | AK53: 0.01897795379 | AL53: 0.009672499276 | AM53: 0 | AN53: 0 | AO53: 0.0211049502 | AP53: 0.0438442003 | AQ53: 0.03147598183 | AR53: =IF((AR52=0)*OR($C52=0),0,AR52/$C52) -> 0.01205819754 | AS53: 0 | AT53: 0 | AU53: 0 | AV53: 0 | AW53: 0 | AX53: 0 | AY53: 0 | AZ53: 0 | BA53: =IF((BA52=0)*OR($C52=0),0,BA52/$C52) -> 0 | BB53: 0 | BC53: 0 | BD53: 0 | BE53: 0 | BF53: 0 | BG53: 0 | BH53: 0 | BI53: 0 | BJ53: 0 | BK53: 0 | BL53: 0 | BM53: 0 | BN53: 0 | BO53: 0 | BP53: 0 | BQ53: 0 | BR53: 0 | BS53: 0 | BT53: 0 | BU53: 0 | BV53: 0 | BW53: 0 | BX53: 0 | BY53: 0
A55: LINE.T | B55: Total Distribution OH & UG Lines | C55: =SUM(D55:BA55) -> 2577769498 | D55: =SUM(D13,D16) -> 0 | E55: 0 | F55: 0 | G55: 0 | H55: 0 | I55: 0 | J55: 0 | K55: 0 | L55: 0 | M55: 0 | N55: 0 | O55: 844355810.8 | P55: 67009.35634 | Q55: 27766610.7 | R55: 1705580067 | S55: 0 | T55: 0 | U55: 0 | V55: 0 | W55: 0 | X55: 0 | Y55: 0 | Z55: 0 | AA55: 0 | AB55: 0 | AC55: 0 | AD55: 0 | AE55: 0 | AF55: 0 | AG55: 0 | AH55: 0 | AI55: 0 | AJ55: =SUM(AJ13,AJ16) -> 0 | AK55: 0 | AL55: 0 | AM55: 0 | AN55: 0 | AO55: 0 | AP55: 0 | AQ55: 0 | AR55: 0 | AS55: 0 | AT55: 0 | AU55: 0 | AV55: 0 | AW55: 0 | AX55: 0 | AY55: 0 | AZ55: 0 | BA55: 0 | BB55: 0 | BC55: 0 | BD55: 0 | BE55: 0 | BF55: 0 | BG55: 0 | BH55: 0 | BI55: 0 | BJ55: 0 | BK55: 0 | BL55: 0 | BM55: 0 | BN55: 0 | BO55: 0 | BP55: =SUM(BP13,BP16) -> 0 | BQ55: 0 | BR55: 0 | BS55: 0 | BT55: 0 | BU55: 0 | BV55: 0 | BW55: 0 | BX55: 0 | BY55: 0
D56: =IF((D55=0)*OR($C55=0),0,D55/$C55) -> 0 | E56: 0 | F56: 0 | G56: 0 | H56: 0 | I56: 0 | J56: 0 | K56: 0 | L56: 0 | M56: 0 | N56: 0 | O56: 0.3275528753 | P56: 2.599509243e-05 | Q56: 0.01077156461 | R56: 0.661649565 | S56: 0 | T56: 0 | U56: 0 | V56: 0 | W56: 0 | X56: 0 | Y56: 0 | Z56: 0 | AA56: 0 | AB56: 0 | AC56: 0 | AD56: 0 | AE56: 0 | AF56: 0 | AG56: 0 | AH56: 0 | AI56: 0 | AJ56: 0 | AK56: 0 | AL56: 0 | AM56: 0 | AN56: 0 | AO56: 0 | AP56: 0 | AQ56: 0 | AR56: =IF((AR55=0)*OR($C55=0),0,AR55/$C55) -> 0 | AS56: 0 | AT56: 0 | AU56: 0 | AV56: 0 | AW56: 0 | AX56: 0 | AY56: 0 | AZ56: 0 | BA56: =IF((BA55=0)*OR($C55=0),0,BA55/$C55) -> 0 | BB56: 0 | BC56: 0 | BD56: 0 | BE56: 0 | BF56: 0 | BG56: 0 | BH56: 0 | BI56: 0 | BJ56: 0 | BK56: 0 | BL56: 0 | BM56: 0 | BN56: 0 | BO56: 0 | BP56: 0 | BQ56: 0 | BR56: 0 | BS56: 0 | BT56: 0 | BU56: 0 | BV56: 0 | BW56: 0 | BX56: 0 | BY56: 0
A58: POWER.T | B58: Sales of Electricity - Non Firm | C58: =SUM(D58:BA58) -> 873670533.8 | D58: =SUM(FUNCALLOC!E300,FUNCALLOC!E285,FUNCALLOC!E276,FUNCALLOC!E270,FUNCALLOC!E261) -> 0 | E58: =SUM(FUNCALLOC!F300,FUNCALLOC!F285,FUNCALLOC!F276,FUNCALLOC!F270,FUNCALLOC!F261) -> 221510113.5 | F58: =SUM(FUNCALLOC!G300,FUNCALLOC!G285,FUNCALLOC!G276,FUNCALLOC!G270,FUNCALLOC!G261) -> 19056918.89 | G58: =SUM(FUNCALLOC!H300,FUNCALLOC!H285,FUNCALLOC!H276,FUNCALLOC!H270,FUNCALLOC!H261) -> 5744913.114 | H58: =SUM(FUNCALLOC!I300,FUNCALLOC!I285,FUNCALLOC!I276,FUNCALLOC!I270,FUNCALLOC!I261) -> 6423.511963 | I58: =SUM(FUNCALLOC!J300,FUNCALLOC!J285,FUNCALLOC!J276,FUNCALLOC!J270,FUNCALLOC!J261) -> 0 | J58: =SUM(FUNCALLOC!K300,FUNCALLOC!K285,FUNCALLOC!K276,FUNCALLOC!K270,FUNCALLOC!K261) -> 0 | K58: =SUM(FUNCALLOC!L300,FUNCALLOC!L285,FUNCALLOC!L276,FUNCALLOC!L270,FUNCALLOC!L261) -> 0 | L58: =SUM(FUNCALLOC!M300,FUNCALLOC!M285,FUNCALLOC!M276,FUNCALLOC!M270,FUNCALLOC!M261) -> 0 | M58: =SUM(FUNCALLOC!N300,FUNCALLOC!N285,FUNCALLOC!N276,FUNCALLOC!N270,FUNCALLOC!N261) -> 0 | N58: =SUM(FUNCALLOC!O300,FUNCALLOC!O285,FUNCALLOC!O276,FUNCALLOC!O270,FUNCALLOC!O261) -> 0 | O58: =SUM(FUNCALLOC!P300,FUNCALLOC!P285,FUNCALLOC!P276,FUNCALLOC!P270,FUNCALLOC!P261) -> 0 | P58: =SUM(FUNCALLOC!Q300,FUNCALLOC!Q285,FUNCALLOC!Q276,FUNCALLOC!Q270,FUNCALLOC!Q261) -> 0 | Q58: =SUM(FUNCALLOC!R300,FUNCALLOC!R285,FUNCALLOC!R276,FUNCALLOC!R270,FUNCALLOC!R261) -> 0 | R58: =SUM(FUNCALLOC!S300,FUNCALLOC!S285,FUNCALLOC!S276,FUNCALLOC!S270,FUNCALLOC!S261) -> 0 | S58: =SUM(FUNCALLOC!T300,FUNCALLOC!T285,FUNCALLOC!T276,FUNCALLOC!T270,FUNCALLOC!T261) -> 0 | T58: =SUM(FUNCALLOC!U300,FUNCALLOC!U285,FUNCALLOC!U276,FUNCALLOC!U270,FUNCALLOC!U261) -> 0 | U58: =SUM(FUNCALLOC!V300,FUNCALLOC!V285,FUNCALLOC!V276,FUNCALLOC!V270,FUNCALLOC!V261) -> 0 | V58: =SUM(FUNCALLOC!W300,FUNCALLOC!W285,FUNCALLOC!W276,FUNCALLOC!W270,FUNCALLOC!W261) -> 0 | W58: =SUM(FUNCALLOC!X300,FUNCALLOC!X285,FUNCALLOC!X276,FUNCALLOC!X270,FUNCALLOC!X261) -> 0 | X58: =SUM(FUNCALLOC!Y300,FUNCALLOC!Y285,FUNCALLOC!Y276,FUNCALLOC!Y270,FUNCALLOC!Y261) -> 0 | Y58: =SUM(FUNCALLOC!Z300,FUNCALLOC!Z285,FUNCALLOC!Z276,FUNCALLOC!Z270,FUNCALLOC!Z261) -> 0 | Z58: =SUM(FUNCALLOC!AA300,FUNCALLOC!AA285,FUNCALLOC!AA276,FUNCALLOC!AA270,FUNCALLOC!AA261) -> 0 | AA58: =SUM(FUNCALLOC!AB300,FUNCALLOC!AB285,FUNCALLOC!AB276,FUNCALLOC!AB270,FUNCALLOC!AB261) -> 0 | AB58: =SUM(FUNCALLOC!AC300,FUNCALLOC!AC285,FUNCALLOC!AC276,FUNCALLOC!AC270,FUNCALLOC!AC261) -> 627352164.7 | AC58: =SUM(FUNCALLOC!AD300,FUNCALLOC!AD285,FUNCALLOC!AD276,FUNCALLOC!AD270,FUNCALLOC!AD261) -> 0 | AD58: =SUM(FUNCALLOC!AE300,FUNCALLOC!AE285,FUNCALLOC!AE276,FUNCALLOC!AE270,FUNCALLOC!AE261) -> 0 | AE58: =SUM(FUNCALLOC!AF300,FUNCALLOC!AF285,FUNCALLOC!AF276,FUNCALLOC!AF270,FUNCALLOC!AF261) -> 0 | AF58: =SUM(FUNCALLOC!AG300,FUNCALLOC!AG285,FUNCALLOC!AG276,FUNCALLOC!AG270,FUNCALLOC!AG261) -> 0 | AG58: =SUM(FUNCALLOC!AH300,FUNCALLOC!AH285,FUNCALLOC!AH276,FUNCALLOC!AH270,FUNCALLOC!AH261) -> 0 | AH58: =SUM(FUNCALLOC!AI300,FUNCALLOC!AI285,FUNCALLOC!AI276,FUNCALLOC!AI270,FUNCALLOC!AI261) -> 0 | AI58: =SUM(FUNCALLOC!AJ300,FUNCALLOC!AJ285,FUNCALLOC!AJ276,FUNCALLOC!AJ270,FUNCALLOC!AJ261) -> 0 | AJ58: =SUM(FUNCALLOC!AK300,FUNCALLOC!AK285,FUNCALLOC!AK276,FUNCALLOC!AK270,FUNCALLOC!AK261) -> 0 | AK58: =SUM(FUNCALLOC!AL300,FUNCALLOC!AL285,FUNCALLOC!AL276,FUNCALLOC!AL270,FUNCALLOC!AL261) -> 0 | AL58: =SUM(FUNCALLOC!AM300,FUNCALLOC!AM285,FUNCALLOC!AM276,FUNCALLOC!AM270,FUNCALLOC!AM261) -> 0 | AM58: =SUM(FUNCALLOC!AN300,FUNCALLOC!AN285,FUNCALLOC!AN276,FUNCALLOC!AN270,FUNCALLOC!AN261) -> 0 | AN58: =SUM(FUNCALLOC!AO300,FUNCALLOC!AO285,FUNCALLOC!AO276,FUNCALLOC!AO270,FUNCALLOC!AO261) -> 0 | AO58: =SUM(FUNCALLOC!AP300,FUNCALLOC!AP285,FUNCALLOC!AP276,FUNCALLOC!AP270,FUNCALLOC!AP261) -> 0 | AP58: =SUM(FUNCALLOC!AQ300,FUNCALLOC!AQ285,FUNCALLOC!AQ276,FUNCALLOC!AQ270,FUNCALLOC!AQ261) -> 0 | AQ58: =SUM(FUNCALLOC!AR300,FUNCALLOC!AR285,FUNCALLOC!AR276,FUNCALLOC!AR270,FUNCALLOC!AR261) -> 0 | AR58: =SUM(FUNCALLOC!AS300,FUNCALLOC!AS285,FUNCALLOC!AS276,FUNCALLOC!AS270,FUNCALLOC!AS261) -> 0 | AS58: =SUM(FUNCALLOC!AT300,FUNCALLOC!AT285,FUNCALLOC!AT276,FUNCALLOC!AT270,FUNCALLOC!AT261) -> 0 | AT58: =SUM(FUNCALLOC!AU300,FUNCALLOC!AU285,FUNCALLOC!AU276,FUNCALLOC!AU270,FUNCALLOC!AU261) -> 0 | AU58: =SUM(FUNCALLOC!AV300,FUNCALLOC!AV285,FUNCALLOC!AV276,FUNCALLOC!AV270,FUNCALLOC!AV261) -> 0 | AV58: =SUM(FUNCALLOC!AW300,FUNCALLOC!AW285,FUNCALLOC!AW276,FUNCALLOC!AW270,FUNCALLOC!AW261) -> 0 | AW58: =SUM(FUNCALLOC!AX300,FUNCALLOC!AX285,FUNCALLOC!AX276,FUNCALLOC!AX270,FUNCALLOC!AX261) -> 0 | AX58: =SUM(FUNCALLOC!AY300,FUNCALLOC!AY285,FUNCALLOC!AY276,FUNCALLOC!AY270,FUNCALLOC!AY261) -> 0 | AY58: =SUM(FUNCALLOC!AZ300,FUNCALLOC!AZ285,FUNCALLOC!AZ276,FUNCALLOC!AZ270,FUNCALLOC!AZ261) -> 0 | AZ58: =SUM(FUNCALLOC!BA300,FUNCALLOC!BA285,FUNCALLOC!BA276,FUNCALLOC!BA270,FUNCALLOC!BA261) -> 0 | BA58: =SUM(FUNCALLOC!BB300,FUNCALLOC!BB285,FUNCALLOC!BB276,FUNCALLOC!BB270,FUNCALLOC!BB261) -> 0 | BB58: =SUM(FUNCALLOC!BC300,FUNCALLOC!BC285,FUNCALLOC!BC276,FUNCALLOC!BC270,FUNCALLOC!BC261) -> 0 | BC58: =SUM(FUNCALLOC!BD300,FUNCALLOC!BD285,FUNCALLOC!BD276,FUNCALLOC!BD270,FUNCALLOC!BD261) -> 0 | BD58: =SUM(FUNCALLOC!BE300,FUNCALLOC!BE285,FUNCALLOC!BE276,FUNCALLOC!BE270,FUNCALLOC!BE261) -> 0 | BE58: =SUM(FUNCALLOC!BF300,FUNCALLOC!BF285,FUNCALLOC!BF276,FUNCALLOC!BF270,FUNCALLOC!BF261) -> 0 | BF58: =SUM(FUNCALLOC!BG300,FUNCALLOC!BG285,FUNCALLOC!BG276,FUNCALLOC!BG270,FUNCALLOC!BG261) -> 0 | BG58: =SUM(FUNCALLOC!BH300,FUNCALLOC!BH285,FUNCALLOC!BH276,FUNCALLOC!BH270,FUNCALLOC!BH261) -> 0 | BH58: =SUM(FUNCALLOC!BI300,FUNCALLOC!BI285,FUNCALLOC!BI276,FUNCALLOC!BI270,FUNCALLOC!BI261) -> 0 | BI58: =SUM(FUNCALLOC!BJ300,FUNCALLOC!BJ285,FUNCALLOC!BJ276,FUNCALLOC!BJ270,FUNCALLOC!BJ261) -> 0 | BJ58: =SUM(FUNCALLOC!BK300,FUNCALLOC!BK285,FUNCALLOC!BK276,FUNCALLOC!BK270,FUNCALLOC!BK261) -> 0 | BK58: =SUM(FUNCALLOC!BL300,FUNCALLOC!BL285,FUNCALLOC!BL276,FUNCALLOC!BL270,FUNCALLOC!BL261) -> 0 | BL58: =SUM(FUNCALLOC!BM300,FUNCALLOC!BM285,FUNCALLOC!BM276,FUNCALLOC!BM270,FUNCALLOC!BM261) -> 0 | BM58: =SUM(FUNCALLOC!BN300,FUNCALLOC!BN285,FUNCALLOC!BN276,FUNCALLOC!BN270,FUNCALLOC!BN261) -> 0 | BN58: =SUM(FUNCALLOC!BO300,FUNCALLOC!BO285,FUNCALLOC!BO276,FUNCALLOC!BO270,FUNCALLOC!BO261) -> 0 | BO58: =SUM(FUNCALLOC!BP300,FUNCALLOC!BP285,FUNCALLOC!BP276,FUNCALLOC!BP270,FUNCALLOC!BP261) -> 0 | BP58: =SUM(FUNCALLOC!BQ300,FUNCALLOC!BQ285,FUNCALLOC!BQ276,FUNCALLOC!BQ270,FUNCALLOC!BQ261) -> 0 | BQ58: =SUM(FUNCALLOC!BR300,FUNCALLOC!BR285,FUNCALLOC!BR276,FUNCALLOC!BR270,FUNCALLOC!BR261) -> 0 | BR58: =SUM(FUNCALLOC!BS300,FUNCALLOC!BS285,FUNCALLOC!BS276,FUNCALLOC!BS270,FUNCALLOC!BS261) -> 0 | BS58: =SUM(FUNCALLOC!BT300,FUNCALLOC!BT285,FUNCALLOC!BT276,FUNCALLOC!BT270,FUNCALLOC!BT261) -> 0 | BT58: =SUM(FUNCALLOC!BU300,FUNCALLOC!BU285,FUNCALLOC!BU276,FUNCALLOC!BU270,FUNCALLOC!BU261) -> 0 | BU58: =SUM(FUNCALLOC!BV300,FUNCALLOC!BV285,FUNCALLOC!BV276,FUNCALLOC!BV270,FUNCALLOC!BV261) -> 0 | BV58: =SUM(FUNCALLOC!BW300,FUNCALLOC!BW285,FUNCALLOC!BW276,FUNCALLOC!BW270,FUNCALLOC!BW261) -> 0 | BW58: =SUM(FUNCALLOC!BX300,FUNCALLOC!BX285,FUNCALLOC!BX276,FUNCALLOC!BX270,FUNCALLOC!BX261) -> 0 | BX58: =SUM(FUNCALLOC!BY300,FUNCALLOC!BY285,FUNCALLOC!BY276,FUNCALLOC!BY270,FUNCALLOC!BY261) -> 0 | BY58: =SUM(FUNCALLOC!BZ300,FUNCALLOC!BZ285,FUNCALLOC!BZ276,FUNCALLOC!BZ270,FUNCALLOC!BZ261) -> 0
D59: =IF((D58=0)*OR($C58=0),0,D58/$C58) -> 0 | E59: 0.253539641 | F59: 0.02181247753 | G59: 0.006575605897 | H59: 7.352327583e-06 | I59: 0 | J59: 0 | K59: 0 | L59: 0 | M59: 0 | N59: 0 | O59: 0 | P59: 0 | Q59: 0 | R59: 0 | S59: 0 | T59: 0 | U59: 0 | V59: 0 | W59: 0 | X59: 0 | Y59: 0 | Z59: 0 | AA59: 0 | AB59: 0.7180649232 | AC59: 0 | AD59: 0 | AE59: 0 | AF59: 0 | AG59: 0 | AH59: 0 | AI59: 0 | AJ59: 0 | AK59: 0 | AL59: 0 | AM59: 0 | AN59: 0 | AO59: 0 | AP59: 0 | AQ59: 0 | AR59: =IF((AR58=0)*OR($C58=0),0,AR58/$C58) -> 0 | AS59: 0 | AT59: 0 | AU59: 0 | AV59: 0 | AW59: 0 | AX59: 0 | AY59: 0 | AZ59: 0 | BA59: =IF((BA58=0)*OR($C58=0),0,BA58/$C58) -> 0 | BB59: 0 | BC59: 0 | BD59: 0 | BE59: 0 | BF59: 0 | BG59: 0 | BH59: 0 | BI59: 0 | BJ59: 0 | BK59: 0 | BL59: 0 | BM59: 0 | BN59: 0 | BO59: 0 | BP59: 0 | BQ59: 0 | BR59: 0 | BS59: 0 | BT59: 0 | BU59: 0 | BV59: 0 | BW59: 0 | BX59: 0 | BY59: 0
A61: PP.T | B61: Total Production Plant | C61: =SUM(D61:BA61) -> 4097835000 | D61: =SUM(FUNCALLOC!E28) -> 0 | E61: =SUM(FUNCALLOC!F28) -> 4097835000 | F61: =SUM(FUNCALLOC!G28) -> 0 | G61: =SUM(FUNCALLOC!H28) -> 0 | H61: =SUM(FUNCALLOC!I28) -> 0 | I61: =SUM(FUNCALLOC!J28) -> 0 | J61: =SUM(FUNCALLOC!K28) -> 0 | K61: =SUM(FUNCALLOC!L28) -> 0 | L61: =SUM(FUNCALLOC!M28) -> 0 | M61: =SUM(FUNCALLOC!N28) -> 0 | N61: =SUM(FUNCALLOC!O28) -> 0 | O61: =SUM(FUNCALLOC!P28) -> 0 | P61: =SUM(FUNCALLOC!Q28) -> 0 | Q61: =SUM(FUNCALLOC!R28) -> 0 | R61: =SUM(FUNCALLOC!S28) -> 0 | S61: =SUM(FUNCALLOC!T28) -> 0 | T61: =SUM(FUNCALLOC!U28) -> 0 | U61: =SUM(FUNCALLOC!V28) -> 0 | V61: =SUM(FUNCALLOC!W28) -> 0 | W61: =SUM(FUNCALLOC!X28) -> 0 | X61: =SUM(FUNCALLOC!Y28) -> 0 | Y61: =SUM(FUNCALLOC!Z28) -> 0 | Z61: =SUM(FUNCALLOC!AA28) -> 0 | AA61: =SUM(FUNCALLOC!AB28) -> 0 | AB61: =SUM(FUNCALLOC!AC28) -> 0 | AC61: =SUM(FUNCALLOC!AD28) -> 0 | AD61: =SUM(FUNCALLOC!AE28) -> 0 | AE61: =SUM(FUNCALLOC!AF28) -> 0 | AF61: =SUM(FUNCALLOC!AG28) -> 0 | AG61: =SUM(FUNCALLOC!AH28) -> 0 | AH61: =SUM(FUNCALLOC!AI28) -> 0 | AI61: =SUM(FUNCALLOC!AJ28) -> 0 | AJ61: =SUM(FUNCALLOC!AK28) -> 0 | AK61: =SUM(FUNCALLOC!AL28) -> 0 | AL61: =SUM(FUNCALLOC!AM28) -> 0 | AM61: =SUM(FUNCALLOC!AN28) -> 0 | AN61: =SUM(FUNCALLOC!AO28) -> 0 | AO61: =SUM(FUNCALLOC!AP28) -> 0 | AP61: =SUM(FUNCALLOC!AQ28) -> 0 | AQ61: =SUM(FUNCALLOC!AR28) -> 0 | AR61: =SUM(FUNCALLOC!AS28) -> 0 | AS61: =SUM(FUNCALLOC!AT28) -> 0 | AT61: =SUM(FUNCALLOC!AU28) -> 0 | AU61: =SUM(FUNCALLOC!AV28) -> 0 | AV61: =SUM(FUNCALLOC!AW28) -> 0 | AW61: =SUM(FUNCALLOC!AX28) -> 0 | AX61: =SUM(FUNCALLOC!AY28) -> 0 | AY61: =SUM(FUNCALLOC!AZ28) -> 0 | AZ61: =SUM(FUNCALLOC!BA28) -> 0 | BA61: =SUM(FUNCALLOC!BB28) -> 0 | BB61: =SUM(FUNCALLOC!BC28) -> 0 | BC61: =SUM(FUNCALLOC!BD28) -> 0 | BD61: =SUM(FUNCALLOC!BE28) -> 0 | BE61: =SUM(FUNCALLOC!BF28) -> 0 | BF61: =SUM(FUNCALLOC!BG28) -> 0 | BG61: =SUM(FUNCALLOC!BH28) -> 0 | BH61: =SUM(FUNCALLOC!BI28) -> 0 | BI61: =SUM(FUNCALLOC!BJ28) -> 0 | BJ61: =SUM(FUNCALLOC!BK28) -> 0 | BK61: =SUM(FUNCALLOC!BL28) -> 0 | BL61: =SUM(FUNCALLOC!BM28) -> 0 | BM61: =SUM(FUNCALLOC!BN28) -> 0 | BN61: =SUM(FUNCALLOC!BO28) -> 0 | BO61: =SUM(FUNCALLOC!BP28) -> 0 | BP61: =SUM(FUNCALLOC!BQ28) -> 0 | BQ61: =SUM(FUNCALLOC!BR28) -> 0 | BR61: =SUM(FUNCALLOC!BS28) -> 0 | BS61: =SUM(FUNCALLOC!BT28) -> 0 | BT61: =SUM(FUNCALLOC!BU28) -> 0 | BU61: =SUM(FUNCALLOC!BV28) -> 0 | BV61: =SUM(FUNCALLOC!BW28) -> 0 | BW61: =SUM(FUNCALLOC!BX28) -> 0 | BX61: =SUM(FUNCALLOC!BY28) -> 0 | BY61: =SUM(FUNCALLOC!BZ28) -> 0
D62: =IF((D61=0)*OR($C61=0),0,D61/$C61) -> 0 | E62: 1 | F62: 0 | G62: 0 | H62: 0 | I62: 0 | J62: 0 | K62: 0 | L62: 0 | M62: 0 | N62: 0 | O62: 0 | P62: 0 | Q62: 0 | R62: 0 | S62: 0 | T62: 0 | U62: 0 | V62: 0 | W62: 0 | X62: 0 | Y62: 0 | Z62: 0 | AA62: 0 | AB62: 0 | AC62: 0 | AD62: 0 | AE62: 0 | AF62: 0 | AG62: 0 | AH62: 0 | AI62: 0 | AJ62: 0 | AK62: 0 | AL62: 0 | AM62: 0 | AN62: 0 | AO62: 0 | AP62: 0 | AQ62: 0 | AR62: =IF((AR61=0)*OR($C61=0),0,AR61/$C61) -> 0 | AS62: 0 | AT62: 0 | AU62: 0 | AV62: 0 | AW62: 0 | AX62: 0 | AY62: 0 | AZ62: 0 | BA62: =IF((BA61=0)*OR($C61=0),0,BA61/$C61) -> 0 | BB62: 0 | BC62: 0 | BD62: 0 | BE62: 0 | BF62: 0 | BG62: 0 | BH62: 0 | BI62: 0 | BJ62: 0 | BK62: 0 | BL62: 0 | BM62: 0 | BN62: 0 | BO62: 0 | BP62: 0 | BQ62: 0 | BR62: 0 | BS62: 0 | BT62: 0 | BU62: 0 | BV62: 0 | BW62: 0 | BX62: 0 | BY62: 0
A64: PTDGP.T | B64: Total Prod, Trans, Dist & Gen Plant | C64: =SUM(D64:BA64) -> 1.032192659e+10 | D64: =SUM(FUNCALLOC!E28,FUNCALLOC!E39,FUNCALLOC!E72,FUNCALLOC!E88) -> 0 | E64: =SUM(FUNCALLOC!F28,FUNCALLOC!F39,FUNCALLOC!F72,FUNCALLOC!F88) -> 4301911624 | F64: =SUM(FUNCALLOC!G28,FUNCALLOC!G39,FUNCALLOC!G72,FUNCALLOC!G88) -> 1286921819 | G64: =SUM(FUNCALLOC!H28,FUNCALLOC!H39,FUNCALLOC!H72,FUNCALLOC!H88) -> 378971639.3 | H64: =SUM(FUNCALLOC!I28,FUNCALLOC!I39,FUNCALLOC!I72,FUNCALLOC!I88) -> 423435.8406 | I64: =SUM(FUNCALLOC!J28,FUNCALLOC!J39,FUNCALLOC!J72,FUNCALLOC!J88) -> 3762627.611 | J64: =SUM(FUNCALLOC!K28,FUNCALLOC!K39,FUNCALLOC!K72,FUNCALLOC!K88) -> 50287107.95 | K64: =SUM(FUNCALLOC!L28,FUNCALLOC!L39,FUNCALLOC!L72,FUNCALLOC!L88) -> 628067.6211 | L64: =SUM(FUNCALLOC!M28,FUNCALLOC!M39,FUNCALLOC!M72,FUNCALLOC!M88) -> 7878089.293 | M64: =SUM(FUNCALLOC!N28,FUNCALLOC!N39,FUNCALLOC!N72,FUNCALLOC!N88) -> 33554040.27 | N64: =SUM(FUNCALLOC!O28,FUNCALLOC!O39,FUNCALLOC!O72,FUNCALLOC!O88) -> 462231141.8 | O64: =SUM(FUNCALLOC!P28,FUNCALLOC!P39,FUNCALLOC!P72,FUNCALLOC!P88) -> 895917952.9 | P64: =SUM(FUNCALLOC!Q28,FUNCALLOC!Q39,FUNCALLOC!Q72,FUNCALLOC!Q88) -> 71101.40606 | Q64: =SUM(FUNCALLOC!R28,FUNCALLOC!R39,FUNCALLOC!R72,FUNCALLOC!R88) -> 29462229.9 | R64: =SUM(FUNCALLOC!S28,FUNCALLOC!S39,FUNCALLOC!S72,FUNCALLOC!S88) -> 1809734454 | S64: =SUM(FUNCALLOC!T28,FUNCALLOC!T39,FUNCALLOC!T72,FUNCALLOC!T88) -> 182242615 | T64: =SUM(FUNCALLOC!U28,FUNCALLOC!U39,FUNCALLOC!U72,FUNCALLOC!U88) -> 334189771.4 | U64: =SUM(FUNCALLOC!V28,FUNCALLOC!V39,FUNCALLOC!V72,FUNCALLOC!V88) -> 7954873.312 | V64: =SUM(FUNCALLOC!W28,FUNCALLOC!W39,FUNCALLOC!W72,FUNCALLOC!W88) -> 0 | W64: =SUM(FUNCALLOC!X28,FUNCALLOC!X39,FUNCALLOC!X72,FUNCALLOC!X88) -> 0 | X64: =SUM(FUNCALLOC!Y28,FUNCALLOC!Y39,FUNCALLOC!Y72,FUNCALLOC!Y88) -> 0 | Y64: =SUM(FUNCALLOC!Z28,FUNCALLOC!Z39,FUNCALLOC!Z72,FUNCALLOC!Z88) -> 0 | Z64: =SUM(FUNCALLOC!AA28,FUNCALLOC!AA39,FUNCALLOC!AA72,FUNCALLOC!AA88) -> 0 | AA64: =SUM(FUNCALLOC!AB28,FUNCALLOC!AB39,FUNCALLOC!AB72,FUNCALLOC!AB88) -> 0 | AB64: =SUM(FUNCALLOC!AC28,FUNCALLOC!AC39,FUNCALLOC!AC72,FUNCALLOC!AC88) -> 0 | AC64: =SUM(FUNCALLOC!AD28,FUNCALLOC!AD39,FUNCALLOC!AD72,FUNCALLOC!AD88) -> 0 | AD64: =SUM(FUNCALLOC!AE28,FUNCALLOC!AE39,FUNCALLOC!AE72,FUNCALLOC!AE88) -> 0 | AE64: =SUM(FUNCALLOC!AF28,FUNCALLOC!AF39,FUNCALLOC!AF72,FUNCALLOC!AF88) -> 0 | AF64: =SUM(FUNCALLOC!AG28,FUNCALLOC!AG39,FUNCALLOC!AG72,FUNCALLOC!AG88) -> 0 | AG64: =SUM(FUNCALLOC!AH28,FUNCALLOC!AH39,FUNCALLOC!AH72,FUNCALLOC!AH88) -> 0 | AH64: =SUM(FUNCALLOC!AI28,FUNCALLOC!AI39,FUNCALLOC!AI72,FUNCALLOC!AI88) -> 0 | AI64: =SUM(FUNCALLOC!AJ28,FUNCALLOC!AJ39,FUNCALLOC!AJ72,FUNCALLOC!AJ88) -> 42924416.57 | AJ64: =SUM(FUNCALLOC!AK28,FUNCALLOC!AK39,FUNCALLOC!AK72,FUNCALLOC!AK88) -> 155512471.5 | AK64: =SUM(FUNCALLOC!AL28,FUNCALLOC!AL39,FUNCALLOC!AL72,FUNCALLOC!AL88) -> 216254440.2 | AL64: =SUM(FUNCALLOC!AM28,FUNCALLOC!AM39,FUNCALLOC!AM72,FUNCALLOC!AM88) -> 62503224.77 | AM64: =SUM(FUNCALLOC!AN28,FUNCALLOC!AN39,FUNCALLOC!AN72,FUNCALLOC!AN88) -> 0 | AN64: =SUM(FUNCALLOC!AO28,FUNCALLOC!AO39,FUNCALLOC!AO72,FUNCALLOC!AO88) -> 0 | AO64: =SUM(FUNCALLOC!AP28,FUNCALLOC!AP39,FUNCALLOC!AP72,FUNCALLOC!AP88) -> 11398316.26 | AP64: =SUM(FUNCALLOC!AQ28,FUNCALLOC!AQ39,FUNCALLOC!AQ72,FUNCALLOC!AQ88) -> 23679281.71 | AQ64: =SUM(FUNCALLOC!AR28,FUNCALLOC!AR39,FUNCALLOC!AR72,FUNCALLOC!AR88) -> 16999480.79 | AR64: =SUM(FUNCALLOC!AS28,FUNCALLOC!AS39,FUNCALLOC!AS72,FUNCALLOC!AS88) -> 6512365.477 | AS64: =SUM(FUNCALLOC!AT28,FUNCALLOC!AT39,FUNCALLOC!AT72,FUNCALLOC!AT88) -> 0 | AT64: =SUM(FUNCALLOC!AU28,FUNCALLOC!AU39,FUNCALLOC!AU72,FUNCALLOC!AU88) -> 0 | AU64: =SUM(FUNCALLOC!AV28,FUNCALLOC!AV39,FUNCALLOC!AV72,FUNCALLOC!AV88) -> 0 | AV64: =SUM(FUNCALLOC!AW28,FUNCALLOC!AW39,FUNCALLOC!AW72,FUNCALLOC!AW88) -> 0 | AW64: =SUM(FUNCALLOC!AX28,FUNCALLOC!AX39,FUNCALLOC!AX72,FUNCALLOC!AX88) -> 0 | AX64: =SUM(FUNCALLOC!AY28,FUNCALLOC!AY39,FUNCALLOC!AY72,FUNCALLOC!AY88) -> 0 | AY64: =SUM(FUNCALLOC!AZ28,FUNCALLOC!AZ39,FUNCALLOC!AZ72,FUNCALLOC!AZ88) -> 0 | AZ64: =SUM(FUNCALLOC!BA28,FUNCALLOC!BA39,FUNCALLOC!BA72,FUNCALLOC!BA88) -> 0 | BA64: =SUM(FUNCALLOC!BB28,FUNCALLOC!BB39,FUNCALLOC!BB72,FUNCALLOC!BB88) -> 0 | BB64: =SUM(FUNCALLOC!BC28,FUNCALLOC!BC39,FUNCALLOC!BC72,FUNCALLOC!BC88) -> 0 | BC64: =SUM(FUNCALLOC!BD28,FUNCALLOC!BD39,FUNCALLOC!BD72,FUNCALLOC!BD88) -> 0 | BD64: =SUM(FUNCALLOC!BE28,FUNCALLOC!BE39,FUNCALLOC!BE72,FUNCALLOC!BE88) -> 0 | BE64: =SUM(FUNCALLOC!BF28,FUNCALLOC!BF39,FUNCALLOC!BF72,FUNCALLOC!BF88) -> 0 | BF64: =SUM(FUNCALLOC!BG28,FUNCALLOC!BG39,FUNCALLOC!BG72,FUNCALLOC!BG88) -> 0 | BG64: =SUM(FUNCALLOC!BH28,FUNCALLOC!BH39,FUNCALLOC!BH72,FUNCALLOC!BH88) -> 0 | BH64: =SUM(FUNCALLOC!BI28,FUNCALLOC!BI39,FUNCALLOC!BI72,FUNCALLOC!BI88) -> 0 | BI64: =SUM(FUNCALLOC!BJ28,FUNCALLOC!BJ39,FUNCALLOC!BJ72,FUNCALLOC!BJ88) -> 0 | BJ64: =SUM(FUNCALLOC!BK28,FUNCALLOC!BK39,FUNCALLOC!BK72,FUNCALLOC!BK88) -> 0 | BK64: =SUM(FUNCALLOC!BL28,FUNCALLOC!BL39,FUNCALLOC!BL72,FUNCALLOC!BL88) -> 0 | BL64: =SUM(FUNCALLOC!BM28,FUNCALLOC!BM39,FUNCALLOC!BM72,FUNCALLOC!BM88) -> 0 | BM64: =SUM(FUNCALLOC!BN28,FUNCALLOC!BN39,FUNCALLOC!BN72,FUNCALLOC!BN88) -> 0 | BN64: =SUM(FUNCALLOC!BO28,FUNCALLOC!BO39,FUNCALLOC!BO72,FUNCALLOC!BO88) -> 0 | BO64: =SUM(FUNCALLOC!BP28,FUNCALLOC!BP39,FUNCALLOC!BP72,FUNCALLOC!BP88) -> 0 | BP64: =SUM(FUNCALLOC!BQ28,FUNCALLOC!BQ39,FUNCALLOC!BQ72,FUNCALLOC!BQ88) -> 0 | BQ64: =SUM(FUNCALLOC!BR28,FUNCALLOC!BR39,FUNCALLOC!BR72,FUNCALLOC!BR88) -> 0 | BR64: =SUM(FUNCALLOC!BS28,FUNCALLOC!BS39,FUNCALLOC!BS72,FUNCALLOC!BS88) -> 0 | BS64: =SUM(FUNCALLOC!BT28,FUNCALLOC!BT39,FUNCALLOC!BT72,FUNCALLOC!BT88) -> 0 | BT64: =SUM(FUNCALLOC!BU28,FUNCALLOC!BU39,FUNCALLOC!BU72,FUNCALLOC!BU88) -> 0 | BU64: =SUM(FUNCALLOC!BV28,FUNCALLOC!BV39,FUNCALLOC!BV72,FUNCALLOC!BV88) -> 0 | BV64: =SUM(FUNCALLOC!BW28,FUNCALLOC!BW39,FUNCALLOC!BW72,FUNCALLOC!BW88) -> 0 | BW64: =SUM(FUNCALLOC!BX28,FUNCALLOC!BX39,FUNCALLOC!BX72,FUNCALLOC!BX88) -> 0 | BX64: =SUM(FUNCALLOC!BY28,FUNCALLOC!BY39,FUNCALLOC!BY72,FUNCALLOC!BY88) -> 0 | BY64: =SUM(FUNCALLOC!BZ28,FUNCALLOC!BZ39,FUNCALLOC!BZ72,FUNCALLOC!BZ88) -> 0
D65: =IF((D64=0)*OR($C64=0),0,D64/$C64) -> 0 | E65: 0.4167740962 | F65: 0.124678451 | G65: 0.0367152039 | H65: 4.102294635e-05 | I65: 0.000364527647 | J65: 0.004871872273 | K65: 6.084790623e-05 | L65: 0.0007632382605 | M65: 0.003250753625 | N65: 0.04478147931 | O65: 0.08679755134 | P65: 6.888385173e-06 | Q65: 0.002854334378 | R65: 0.1753291344 | S65: 0.01765587204 | T65: 0.03237668555 | U65: 0.0007706771837 | V65: 0 | W65: 0 | X65: 0 | Y65: 0 | Z65: 0 | AA65: 0 | AB65: 0 | AC65: 0 | AD65: 0 | AE65: 0 | AF65: 0 | AG65: 0 | AH65: 0 | AI65: 0.004158566349 | AJ65: 0.0150662253 | AK65: 0.02095097639 | AL65: 0.00605538358 | AM65: 0 | AN65: 0 | AO65: 0.001104281857 | AP65: 0.002294075773 | AQ65: 0.001646929055 | AR65: =IF((AR64=0)*OR($C64=0),0,AR64/$C64) -> 0.0006309253822 | AS65: 0 | AT65: 0 | AU65: 0 | AV65: 0 | AW65: 0 | AX65: 0 | AY65: 0 | AZ65: 0 | BA65: =IF((BA64=0)*OR($C64=0),0,BA64/$C64) -> 0 | BB65: 0 | BC65: 0 | BD65: 0 | BE65: 0 | BF65: 0 | BG65: 0 | BH65: 0 | BI65: 0 | BJ65: 0 | BK65: 0 | BL65: 0 | BM65: 0 | BN65: 0 | BO65: 0 | BP65: 0 | BQ65: 0 | BR65: 0 | BS65: 0 | BT65: 0 | BU65: 0 | BV65: 0 | BW65: 0 | BX65: 0 | BY65: 0
A67: PTDP.T | B67: Prod Trans Dist Allocation Factor | C67: =SUM(D67:BA67) -> 9781848730 | D67: =SUM(FUNCALLOC!E28,FUNCALLOC!E39,FUNCALLOC!E72) -> 0 | E67: =SUM(FUNCALLOC!F28,FUNCALLOC!F39,FUNCALLOC!F72) -> 4097835000 | F67: =SUM(FUNCALLOC!G28,FUNCALLOC!G39,FUNCALLOC!G72) -> 1231639678 | G67: =SUM(FUNCALLOC!H28,FUNCALLOC!H39,FUNCALLOC!H72) -> 362692201.8 | H67: =SUM(FUNCALLOC!I28,FUNCALLOC!I39,FUNCALLOC!I72) -> 405246.36 | I67: =SUM(FUNCALLOC!J28,FUNCALLOC!J39,FUNCALLOC!J72) -> 3584294.51 | J67: =SUM(FUNCALLOC!K28,FUNCALLOC!K39,FUNCALLOC!K72) -> 47903705.49 | K67: =SUM(FUNCALLOC!L28,FUNCALLOC!L39,FUNCALLOC!L72) -> 598299.7945 | L67: =SUM(FUNCALLOC!M28,FUNCALLOC!M39,FUNCALLOC!M72) -> 7504700.206 | M67: =SUM(FUNCALLOC!N28,FUNCALLOC!N39,FUNCALLOC!N72) -> 31963716.52 | N67: =SUM(FUNCALLOC!O28,FUNCALLOC!O39,FUNCALLOC!O72) -> 440323283.5 | O67: =SUM(FUNCALLOC!P28,FUNCALLOC!P39,FUNCALLOC!P72) -> 853455120.2 | P67: =SUM(FUNCALLOC!Q28,FUNCALLOC!Q39,FUNCALLOC!Q72) -> 67731.49133 | Q67: =SUM(FUNCALLOC!R28,FUNCALLOC!R39,FUNCALLOC!R72) -> 28065841.16 | R67: =SUM(FUNCALLOC!S28,FUNCALLOC!S39,FUNCALLOC!S72) -> 1723960471 | S67: =SUM(FUNCALLOC!T28,FUNCALLOC!T39,FUNCALLOC!T72) -> 173605063.3 | T67: =SUM(FUNCALLOC!U28,FUNCALLOC!U39,FUNCALLOC!U72) -> 318350548.3 | U67: =SUM(FUNCALLOC!V28,FUNCALLOC!V39,FUNCALLOC!V72) -> 7577844.977 | V67: =SUM(FUNCALLOC!W28,FUNCALLOC!W39,FUNCALLOC!W72) -> 0 | W67: =SUM(FUNCALLOC!X28,FUNCALLOC!X39,FUNCALLOC!X72) -> 0 | X67: =SUM(FUNCALLOC!Y28,FUNCALLOC!Y39,FUNCALLOC!Y72) -> 0 | Y67: =SUM(FUNCALLOC!Z28,FUNCALLOC!Z39,FUNCALLOC!Z72) -> 0 | Z67: =SUM(FUNCALLOC!AA28,FUNCALLOC!AA39,FUNCALLOC!AA72) -> 0 | AA67: =SUM(FUNCALLOC!AB28,FUNCALLOC!AB39,FUNCALLOC!AB72) -> 0 | AB67: =SUM(FUNCALLOC!AC28,FUNCALLOC!AC39,FUNCALLOC!AC72) -> 0 | AC67: =SUM(FUNCALLOC!AD28,FUNCALLOC!AD39,FUNCALLOC!AD72) -> 0 | AD67: =SUM(FUNCALLOC!AE28,FUNCALLOC!AE39,FUNCALLOC!AE72) -> 0 | AE67: =SUM(FUNCALLOC!AF28,FUNCALLOC!AF39,FUNCALLOC!AF72) -> 0 | AF67: =SUM(FUNCALLOC!AG28,FUNCALLOC!AG39,FUNCALLOC!AG72) -> 0 | AG67: =SUM(FUNCALLOC!AH28,FUNCALLOC!AH39,FUNCALLOC!AH72) -> 0 | AH67: =SUM(FUNCALLOC!AI28,FUNCALLOC!AI39,FUNCALLOC!AI72) -> 0 | AI67: =SUM(FUNCALLOC!AJ28,FUNCALLOC!AJ39,FUNCALLOC!AJ72) -> 40889975.45 | AJ67: =SUM(FUNCALLOC!AK28,FUNCALLOC!AK39,FUNCALLOC!AK72) -> 148141818.8 | AK67: =SUM(FUNCALLOC!AL28,FUNCALLOC!AL39,FUNCALLOC!AL72) -> 206004867.6 | AL67: =SUM(FUNCALLOC!AM28,FUNCALLOC!AM39,FUNCALLOC!AM72) -> 57279322.09 | AM67: =SUM(FUNCALLOC!AN28,FUNCALLOC!AN39,FUNCALLOC!AN72) -> 0 | AN67: =SUM(FUNCALLOC!AO28,FUNCALLOC!AO39,FUNCALLOC!AO72) -> 0 | AO67: =SUM(FUNCALLOC!AP28,FUNCALLOC!AP39,FUNCALLOC!AP72) -> 0 | AP67: =SUM(FUNCALLOC!AQ28,FUNCALLOC!AQ39,FUNCALLOC!AQ72) -> 0 | AQ67: =SUM(FUNCALLOC!AR28,FUNCALLOC!AR39,FUNCALLOC!AR72) -> 0 | AR67: =SUM(FUNCALLOC!AS28,FUNCALLOC!AS39,FUNCALLOC!AS72) -> 0 | AS67: =SUM(FUNCALLOC!AT28,FUNCALLOC!AT39,FUNCALLOC!AT72) -> 0 | AT67: =SUM(FUNCALLOC!AU28,FUNCALLOC!AU39,FUNCALLOC!AU72) -> 0 | AU67: =SUM(FUNCALLOC!AV28,FUNCALLOC!AV39,FUNCALLOC!AV72) -> 0 | AV67: =SUM(FUNCALLOC!AW28,FUNCALLOC!AW39,FUNCALLOC!AW72) -> 0 | AW67: =SUM(FUNCALLOC!AX28,FUNCALLOC!AX39,FUNCALLOC!AX72) -> 0 | AX67: =SUM(FUNCALLOC!AY28,FUNCALLOC!AY39,FUNCALLOC!AY72) -> 0 | AY67: =SUM(FUNCALLOC!AZ28,FUNCALLOC!AZ39,FUNCALLOC!AZ72) -> 0 | AZ67: =SUM(FUNCALLOC!BA28,FUNCALLOC!BA39,FUNCALLOC!BA72) -> 0 | BA67: =SUM(FUNCALLOC!BB28,FUNCALLOC!BB39,FUNCALLOC!BB72) -> 0 | BB67: =SUM(FUNCALLOC!BC28,FUNCALLOC!BC39,FUNCALLOC!BC72) -> 0 | BC67: =SUM(FUNCALLOC!BD28,FUNCALLOC!BD39,FUNCALLOC!BD72) -> 0 | BD67: =SUM(FUNCALLOC!BE28,FUNCALLOC!BE39,FUNCALLOC!BE72) -> 0 | BE67: =SUM(FUNCALLOC!BF28,FUNCALLOC!BF39,FUNCALLOC!BF72) -> 0 | BF67: =SUM(FUNCALLOC!BG28,FUNCALLOC!BG39,FUNCALLOC!BG72) -> 0 | BG67: =SUM(FUNCALLOC!BH28,FUNCALLOC!BH39,FUNCALLOC!BH72) -> 0 | BH67: =SUM(FUNCALLOC!BI28,FUNCALLOC!BI39,FUNCALLOC!BI72) -> 0 | BI67: =SUM(FUNCALLOC!BJ28,FUNCALLOC!BJ39,FUNCALLOC!BJ72) -> 0 | BJ67: =SUM(FUNCALLOC!BK28,FUNCALLOC!BK39,FUNCALLOC!BK72) -> 0 | BK67: =SUM(FUNCALLOC!BL28,FUNCALLOC!BL39,FUNCALLOC!BL72) -> 0 | BL67: =SUM(FUNCALLOC!BM28,FUNCALLOC!BM39,FUNCALLOC!BM72) -> 0 | BM67: =SUM(FUNCALLOC!BN28,FUNCALLOC!BN39,FUNCALLOC!BN72) -> 0 | BN67: =SUM(FUNCALLOC!BO28,FUNCALLOC!BO39,FUNCALLOC!BO72) -> 0 | BO67: =SUM(FUNCALLOC!BP28,FUNCALLOC!BP39,FUNCALLOC!BP72) -> 0 | BP67: =SUM(FUNCALLOC!BQ28,FUNCALLOC!BQ39,FUNCALLOC!BQ72) -> 0 | BQ67: =SUM(FUNCALLOC!BR28,FUNCALLOC!BR39,FUNCALLOC!BR72) -> 0 | BR67: =SUM(FUNCALLOC!BS28,FUNCALLOC!BS39,FUNCALLOC!BS72) -> 0 | BS67: =SUM(FUNCALLOC!BT28,FUNCALLOC!BT39,FUNCALLOC!BT72) -> 0 | BT67: =SUM(FUNCALLOC!BU28,FUNCALLOC!BU39,FUNCALLOC!BU72) -> 0 | BU67: =SUM(FUNCALLOC!BV28,FUNCALLOC!BV39,FUNCALLOC!BV72) -> 0 | BV67: =SUM(FUNCALLOC!BW28,FUNCALLOC!BW39,FUNCALLOC!BW72) -> 0 | BW67: =SUM(FUNCALLOC!BX28,FUNCALLOC!BX39,FUNCALLOC!BX72) -> 0 | BX67: =SUM(FUNCALLOC!BY28,FUNCALLOC!BY39,FUNCALLOC!BY72) -> 0 | BY67: =SUM(FUNCALLOC!BZ28,FUNCALLOC!BZ39,FUNCALLOC!BZ72) -> 0
D68: =IF((D67=0)*OR($C67=0),0,D67/$C67) -> 0 | E68: 0.4189223441 | F68: 0.1259107263 | G68: 0.03707808327 | H68: 4.142840185e-05 | I68: 0.0003664230156 | J68: 0.004897203669 | K68: 6.116428612e-05 | L68: 0.0007672067328 | M68: 0.003267655982 | N68: 0.04501432149 | O68: 0.08724885691 | P68: 6.924201467e-06 | Q68: 0.002869175545 | R68: 0.1762407616 | S68: 0.01774767409 | T68: 0.03254502876 | U68: 0.0007746843348 | V68: 0 | W68: 0 | X68: 0 | Y68: 0 | Z68: 0 | AA68: 0 | AB68: 0 | AC68: 0 | AD68: 0 | AE68: 0 | AF68: 0 | AG68: 0 | AH68: 0 | AI68: 0.004180188897 | AJ68: 0.01514456243 | AK68: 0.0210599114 | AL68: 0.005855674492 | AM68: 0 | AN68: 0 | AO68: 0 | AP68: 0 | AQ68: 0 | AR68: =IF((AR67=0)*OR($C67=0),0,AR67/$C67) -> 0 | AS68: 0 | AT68: 0 | AU68: 0 | AV68: 0 | AW68: 0 | AX68: 0 | AY68: 0 | AZ68: 0 | BA68: =IF((BA67=0)*OR($C67=0),0,BA67/$C67) -> 0 | BB68: 0 | BC68: 0 | BD68: 0 | BE68: 0 | BF68: 0 | BG68: 0 | BH68: 0 | BI68: 0 | BJ68: 0 | BK68: 0 | BL68: 0 | BM68: 0 | BN68: 0 | BO68: 0 | BP68: 0 | BQ68: 0 | BR68: 0 | BS68: 0 | BT68: 0 | BU68: 0 | BV68: 0 | BW68: 0 | BX68: 0 | BY68: 0
A70: RB.T | B70: Total Ratebase | C70: =SUM(D70:BA70) -> 5428588080 | D70: =+FUNCALLOC!E245 -> 0 | E70: =+FUNCALLOC!F245 -> 2207943647 | F70: =+FUNCALLOC!G245 -> 785071725.9 | G70: =+FUNCALLOC!H245 -> 166389525.5 | H70: =+FUNCALLOC!I245 -> 82813.55547 | I70: =+FUNCALLOC!J245 -> 3337213.251 | J70: =+FUNCALLOC!K245 -> 41215640.14 | K70: =+FUNCALLOC!L245 -> 557056.3458 | L70: =+FUNCALLOC!M245 -> 4628010.48 | M70: =+FUNCALLOC!N245 -> 29760316.3 | N70: =+FUNCALLOC!O245 -> 284059894.8 | O70: =+FUNCALLOC!P245 -> 512530014.6 | P70: =+FUNCALLOC!Q245 -> 63050.91773 | Q70: =+FUNCALLOC!R245 -> 26126355.81 | R70: =+FUNCALLOC!S245 -> 942740660.3 | S70: =+FUNCALLOC!T245 -> 88683133.08 | T70: =+FUNCALLOC!U245 -> 161444378.6 | U70: =+FUNCALLOC!V245 -> 5809798.957 | V70: =+FUNCALLOC!W245 -> -12148.752 | W70: =+FUNCALLOC!X245 -> -224950.7619 | X70: =+FUNCALLOC!Y245 -> -11302572.92 | Y70: =+FUNCALLOC!Z245 -> -52160.69215 | Z70: =+FUNCALLOC!AA245 -> -15897826.55 | AA70: =+FUNCALLOC!AB245 -> 0 | AB70: =+FUNCALLOC!AC245 -> 0 | AC70: =+FUNCALLOC!AD245 -> 0 | AD70: =+FUNCALLOC!AE245 -> 0 | AE70: =+FUNCALLOC!AF245 -> 0 | AF70: =+FUNCALLOC!AG245 -> 0 | AG70: =+FUNCALLOC!AH245 -> 0 | AH70: =+FUNCALLOC!AI245 -> 0 | AI70: =+FUNCALLOC!AJ245 -> 4964335.645 | AJ70: =+FUNCALLOC!AK245 -> 44288533.39 | AK70: =+FUNCALLOC!AL245 -> 152590178.5 | AL70: =+FUNCALLOC!AM245 -> 35876971.79 | AM70: =+FUNCALLOC!AN245 -> -25836611.38 | AN70: =+FUNCALLOC!AO245 -> -79258524.65 | AO70: =+FUNCALLOC!AP245 -> 12258241.94 | AP70: =+FUNCALLOC!AQ245 -> 25465722.96 | AQ70: =+FUNCALLOC!AR245 -> 18281976.36 | AR70: =+FUNCALLOC!AS245 -> 7003679.296 | AS70: =+FUNCALLOC!AT245 -> 0 | AT70: =+FUNCALLOC!AU245 -> 0 | AU70: =+FUNCALLOC!AV245 -> 0 | AV70: =+FUNCALLOC!AW245 -> 0 | AW70: =+FUNCALLOC!AX245 -> 0 | AX70: =+FUNCALLOC!AY245 -> 0 | AY70: =+FUNCALLOC!AZ245 -> 0 | AZ70: =+FUNCALLOC!BA245 -> 0 | BA70: =+FUNCALLOC!BB245 -> 0 | BB70: =+FUNCALLOC!BC245 -> 0 | BC70: =+FUNCALLOC!BD245 -> 0 | BD70: =+FUNCALLOC!BE245 -> 0 | BE70: =+FUNCALLOC!BF245 -> 0 | BF70: =+FUNCALLOC!BG245 -> 0 | BG70: =+FUNCALLOC!BH245 -> 0 | BH70: =+FUNCALLOC!BI245 -> 0 | BI70: =+FUNCALLOC!BJ245 -> 0 | BJ70: =+FUNCALLOC!BK245 -> 0 | BK70: =+FUNCALLOC!BL245 -> 0 | BL70: =+FUNCALLOC!BM245 -> 0 | BM70: =+FUNCALLOC!BN245 -> 0 | BN70: =+FUNCALLOC!BO245 -> 0 | BO70: =+FUNCALLOC!BP245 -> 0 | BP70: =+FUNCALLOC!BQ245 -> 0 | BQ70: =+FUNCALLOC!BR245 -> 0 | BR70: =+FUNCALLOC!BS245 -> 0 | BS70: =+FUNCALLOC!BT245 -> 0 | BT70: =+FUNCALLOC!BU245 -> 0 | BU70: =+FUNCALLOC!BV245 -> 0 | BV70: =+FUNCALLOC!BW245 -> 0 | BW70: =+FUNCALLOC!BX245 -> 0 | BX70: =+FUNCALLOC!BY245 -> 0 | BY70: =+FUNCALLOC!BZ245 -> 0
D71: =IF((D70=0)*OR($C70=0),0,D70/$C70) -> 0 | E71: 0.4067252137 | F71: 0.1446180322 | G71: 0.03065060806 | H71: 1.525508185e-05 | I71: 0.0006147479237 | J71: 0.007592331475 | K71: 0.0001026153279 | L71: 0.0008525256313 | M71: 0.005482146713 | N71: 0.05232666222 | O71: 0.09441313415 | P71: 1.161460711e-05 | Q71: 0.004812734993 | R71: 0.1736622205 | S71: 0.01633631651 | T71: 0.02973966274 | U71: 0.001070222841 | V71: -2.237921136e-06 | W71: -4.143817114e-05 | X71: -0.00208204652 | Y71: -9.608519082e-06 | Z71: -0.002928538014 | AA71: 0 | AB71: 0 | AC71: 0 | AD71: 0 | AE71: 0 | AF71: 0 | AG71: 0 | AH71: 0 | AI71: 0.000914480077 | AJ71: 0.008158389021 | AK71: 0.02810863088 | AL71: 0.006608895585 | AM71: -0.004759361183 | AN71: -0.01460020976 | AO71: 0.002258090273 | AP71: 0.004691039841 | AQ71: 0.003367722157 | AR71: =IF((AR70=0)*OR($C70=0),0,AR70/$C70) -> 0.001290147492 | AS71: 0 | AT71: 0 | AU71: 0 | AV71: 0 | AW71: 0 | AX71: 0 | AY71: 0 | AZ71: 0 | BA71: =IF((BA70=0)*OR($C70=0),0,BA70/$C70) -> 0 | BB71: 0 | BC71: 0 | BD71: 0 | BE71: 0 | BF71: 0 | BG71: 0 | BH71: 0 | BI71: 0 | BJ71: 0 | BK71: 0 | BL71: 0 | BM71: 0 | BN71: 0 | BO71: 0 | BP71: 0 | BQ71: 0 | BR71: 0 | BS71: 0 | BT71: 0 | BU71: 0 | BV71: 0 | BW71: 0 | BX71: 0 | BY71: 0
A73: REVFAC1.T | B73: REVFAC1 = (OME.T+DAE.T+RRB.T) | C73: =SUM(D73:BA73) -> 2053872813 | D73: =+FUNCALLOC!E409+FUNCALLOC!E584+FUNCALLOC!E245*ROR -> 0 | E73: =+FUNCALLOC!F409+FUNCALLOC!F584+FUNCALLOC!F245*ROR -> 664225471.1 | F73: =+FUNCALLOC!G409+FUNCALLOC!G584+FUNCALLOC!G245*ROR -> 136305123.9 | G73: =+FUNCALLOC!H409+FUNCALLOC!H584+FUNCALLOC!H245*ROR -> 33495671.8 | H73: =+FUNCALLOC!I409+FUNCALLOC!I584+FUNCALLOC!I245*ROR -> 32200.75273 | I73: =+FUNCALLOC!J409+FUNCALLOC!J584+FUNCALLOC!J245*ROR -> 336039.601 | J73: =+FUNCALLOC!K409+FUNCALLOC!K584+FUNCALLOC!K245*ROR -> 4233130.779 | K73: =+FUNCALLOC!L409+FUNCALLOC!L584+FUNCALLOC!L245*ROR -> 65790.02194 | L73: =+FUNCALLOC!M409+FUNCALLOC!M584+FUNCALLOC!M245*ROR -> 645446.0363 | M73: =+FUNCALLOC!N409+FUNCALLOC!N584+FUNCALLOC!N245*ROR -> 4063780.338 | N73: =+FUNCALLOC!O409+FUNCALLOC!O584+FUNCALLOC!O245*ROR -> 46403835.19 | O73: =+FUNCALLOC!P409+FUNCALLOC!P584+FUNCALLOC!P245*ROR -> 138229015.5 | P73: =+FUNCALLOC!Q409+FUNCALLOC!Q584+FUNCALLOC!Q245*ROR -> 10337.23953 | Q73: =+FUNCALLOC!R409+FUNCALLOC!R584+FUNCALLOC!R245*ROR -> 3043531.445 | R73: =+FUNCALLOC!S409+FUNCALLOC!S584+FUNCALLOC!S245*ROR -> 188417193.5 | S73: =+FUNCALLOC!T409+FUNCALLOC!T584+FUNCALLOC!T245*ROR -> 17585176.67 | T73: =+FUNCALLOC!U409+FUNCALLOC!U584+FUNCALLOC!U245*ROR -> 32157171.15 | U73: =+FUNCALLOC!V409+FUNCALLOC!V584+FUNCALLOC!V245*ROR -> 915327.0124 | V73: =+FUNCALLOC!W409+FUNCALLOC!W584+FUNCALLOC!W245*ROR -> -925.7349024 | W73: =+FUNCALLOC!X409+FUNCALLOC!X584+FUNCALLOC!X245*ROR -> -17141.24805 | X73: =+FUNCALLOC!Y409+FUNCALLOC!Y584+FUNCALLOC!Y245*ROR -> -861256.0564 | Y73: =+FUNCALLOC!Z409+FUNCALLOC!Z584+FUNCALLOC!Z245*ROR -> -3974.644742 | Z73: =+FUNCALLOC!AA409+FUNCALLOC!AA584+FUNCALLOC!AA245*ROR -> -1211414.383 | AA73: =+FUNCALLOC!AB409+FUNCALLOC!AB584+FUNCALLOC!AB245*ROR -> 0 | AB73: =+FUNCALLOC!AC409+FUNCALLOC!AC584+FUNCALLOC!AC245*ROR -> 632361243.3 | AC73: =+FUNCALLOC!AD409+FUNCALLOC!AD584+FUNCALLOC!AD245*ROR -> 0 | AD73: =+FUNCALLOC!AE409+FUNCALLOC!AE584+FUNCALLOC!AE245*ROR -> 0 | AE73: =+FUNCALLOC!AF409+FUNCALLOC!AF584+FUNCALLOC!AF245*ROR -> 0 | AF73: =+FUNCALLOC!AG409+FUNCALLOC!AG584+FUNCALLOC!AG245*ROR -> 0 | AG73: =+FUNCALLOC!AH409+FUNCALLOC!AH584+FUNCALLOC!AH245*ROR -> 0 | AH73: =+FUNCALLOC!AI409+FUNCALLOC!AI584+FUNCALLOC!AI245*ROR -> 0 | AI73: =+FUNCALLOC!AJ409+FUNCALLOC!AJ584+FUNCALLOC!AJ245*ROR -> 2540275.461 | AJ73: =+FUNCALLOC!AK409+FUNCALLOC!AK584+FUNCALLOC!AK245*ROR -> 11427302.15 | AK73: =+FUNCALLOC!AL409+FUNCALLOC!AL584+FUNCALLOC!AL245*ROR -> 46289927.66 | AL73: =+FUNCALLOC!AM409+FUNCALLOC!AM584+FUNCALLOC!AM245*ROR -> 10236918.6 | AM73: =+FUNCALLOC!AN409+FUNCALLOC!AN584+FUNCALLOC!AN245*ROR -> -1968749.787 | AN73: =+FUNCALLOC!AO409+FUNCALLOC!AO584+FUNCALLOC!AO245*ROR -> -6039499.578 | AO73: =+FUNCALLOC!AP409+FUNCALLOC!AP584+FUNCALLOC!AP245*ROR -> 18310366.89 | AP73: =+FUNCALLOC!AQ409+FUNCALLOC!AQ584+FUNCALLOC!AQ245*ROR -> 38038630.08 | AQ73: =+FUNCALLOC!AR409+FUNCALLOC!AR584+FUNCALLOC!AR245*ROR -> 27308132.46 | AR73: =+FUNCALLOC!AS409+FUNCALLOC!AS584+FUNCALLOC!AS245*ROR -> 7298735.664 | AS73: =+FUNCALLOC!AT409+FUNCALLOC!AT584+FUNCALLOC!AT245*ROR -> 0 | AT73: =+FUNCALLOC!AU409+FUNCALLOC!AU584+FUNCALLOC!AU245*ROR -> 0 | AU73: =+FUNCALLOC!AV409+FUNCALLOC!AV584+FUNCALLOC!AV245*ROR -> 0 | AV73: =+FUNCALLOC!AW409+FUNCALLOC!AW584+FUNCALLOC!AW245*ROR -> 0 | AW73: =+FUNCALLOC!AX409+FUNCALLOC!AX584+FUNCALLOC!AX245*ROR -> 0 | AX73: =+FUNCALLOC!AY409+FUNCALLOC!AY584+FUNCALLOC!AY245*ROR -> 0 | AY73: =+FUNCALLOC!AZ409+FUNCALLOC!AZ584+FUNCALLOC!AZ245*ROR -> 0 | AZ73: =+FUNCALLOC!BA409+FUNCALLOC!BA584+FUNCALLOC!BA245*ROR -> 0 | BA73: =+FUNCALLOC!BB409+FUNCALLOC!BB584+FUNCALLOC!BB245*ROR -> 0 | BB73: =+FUNCALLOC!BC409+FUNCALLOC!BC584+FUNCALLOC!BC245*ROR -> 0 | BC73: =+FUNCALLOC!BD409+FUNCALLOC!BD584+FUNCALLOC!BD245*ROR -> 0 | BD73: =+FUNCALLOC!BE409+FUNCALLOC!BE584+FUNCALLOC!BE245*ROR -> 0 | BE73: =+FUNCALLOC!BF409+FUNCALLOC!BF584+FUNCALLOC!BF245*ROR -> 0 | BF73: =+FUNCALLOC!BG409+FUNCALLOC!BG584+FUNCALLOC!BG245*ROR -> 0 | BG73: =+FUNCALLOC!BH409+FUNCALLOC!BH584+FUNCALLOC!BH245*ROR -> 0 | BH73: =+FUNCALLOC!BI409+FUNCALLOC!BI584+FUNCALLOC!BI245*ROR -> 0 | BI73: =+FUNCALLOC!BJ409+FUNCALLOC!BJ584+FUNCALLOC!BJ245*ROR -> 0 | BJ73: =+FUNCALLOC!BK409+FUNCALLOC!BK584+FUNCALLOC!BK245*ROR -> 0 | BK73: =+FUNCALLOC!BL409+FUNCALLOC!BL584+FUNCALLOC!BL245*ROR -> 0 | BL73: =+FUNCALLOC!BM409+FUNCALLOC!BM584+FUNCALLOC!BM245*ROR -> 0 | BM73: =+FUNCALLOC!BN409+FUNCALLOC!BN584+FUNCALLOC!BN245*ROR -> 0 | BN73: =+FUNCALLOC!BO409+FUNCALLOC!BO584+FUNCALLOC!BO245*ROR -> 0 | BO73: =+FUNCALLOC!BP409+FUNCALLOC!BP584+FUNCALLOC!BP245*ROR -> 0 | BP73: =+FUNCALLOC!BQ409+FUNCALLOC!BQ584+FUNCALLOC!BQ245*ROR -> 0 | BQ73: =+FUNCALLOC!BR409+FUNCALLOC!BR584+FUNCALLOC!BR245*ROR -> 0 | BR73: =+FUNCALLOC!BS409+FUNCALLOC!BS584+FUNCALLOC!BS245*ROR -> 0 | BS73: =+FUNCALLOC!BT409+FUNCALLOC!BT584+FUNCALLOC!BT245*ROR -> 0 | BT73: =+FUNCALLOC!BU409+FUNCALLOC!BU584+FUNCALLOC!BU245*ROR -> 0 | BU73: =+FUNCALLOC!BV409+FUNCALLOC!BV584+FUNCALLOC!BV245*ROR -> 0 | BV73: =+FUNCALLOC!BW409+FUNCALLOC!BW584+FUNCALLOC!BW245*ROR -> 0 | BW73: =+FUNCALLOC!BX409+FUNCALLOC!BX584+FUNCALLOC!BX245*ROR -> 0 | BX73: =+FUNCALLOC!BY409+FUNCALLOC!BY584+FUNCALLOC!BY245*ROR -> 0 | BY73: =+FUNCALLOC!BZ409+FUNCALLOC!BZ584+FUNCALLOC!BZ245*ROR -> 0
D74: =IF((D73=0)*OR($C73=0),0,D73/$C73) -> 0 | E74: 0.3234014623 | F74: 0.06636492922 | G74: 0.01630854238 | H74: 1.567806562e-05 | I74: 0.0001636126633 | J74: 0.002061048159 | K74: 3.203217918e-05 | L74: 0.000314258036 | M74: 0.001978593958 | N74: 0.02259333436 | O74: 0.06730164333 | P74: 5.033047553e-06 | Q74: 0.001481850008 | R74: 0.0917375177 | S74: 0.008561959901 | T74: 0.0156568464 | U74: 0.0004456590528 | V74: -4.50726499e-07 | W74: -8.34581769e-06 | X74: -0.0004193327119 | Y74: -1.935195168e-06 | Z74: -0.0005898195719 | AA74: 0 | AB74: 0.3078872457 | AC74: 0 | AD74: 0 | AE74: 0 | AF74: 0 | AG74: 0 | AH74: 0 | AI74: 0.001236822185 | AJ74: 0.005563782762 | AK74: 0.02253787448 | AL74: 0.004984202786 | AM74: -0.0009585548702 | AN74: -0.002940542151 | AO74: 0.008915044192 | AP74: 0.01852044092 | AQ74: 0.01329592187 | AR74: =IF((AR73=0)*OR($C73=0),0,AR73/$C73) -> 0.003553645395 | AS74: 0 | AT74: 0 | AU74: 0 | AV74: 0 | AW74: 0 | AX74: 0 | AY74: 0 | AZ74: 0 | BA74: =IF((BA73=0)*OR($C73=0),0,BA73/$C73) -> 0 | BB74: 0 | BC74: 0 | BD74: 0 | BE74: 0 | BF74: 0 | BG74: 0 | BH74: 0 | BI74: 0 | BJ74: 0 | BK74: 0 | BL74: 0 | BM74: 0 | BN74: 0 | BO74: 0 | BP74: 0 | BQ74: 0 | BR74: 0 | BS74: 0 | BT74: 0 | BU74: 0 | BV74: 0 | BW74: 0 | BX74: 0 | BY74: 0
A76: SW.T | B76: Salary & Wages - Total | C76: =SUM(D76:BA76) -> 108304747.1 | D76: =SUM(FUNCALLOC!E531) -> 0 | E76: =SUM(FUNCALLOC!F531) -> 40628065.76 | F76: =SUM(FUNCALLOC!G531) -> 11034305.43 | G76: =SUM(FUNCALLOC!H531) -> 3249372.849 | H76: =SUM(FUNCALLOC!I531) -> 3630.617126 | I76: =SUM(FUNCALLOC!J531) -> 35503.77991 | J76: =SUM(FUNCALLOC!K531) -> 474504.149 | K76: =SUM(FUNCALLOC!L531) -> 5926.383606 | L76: =SUM(FUNCALLOC!M531) -> 74336.86702 | M76: =SUM(FUNCALLOC!N531) -> 316612.5867 | N76: =SUM(FUNCALLOC!O531) -> 4361567.081 | O76: =SUM(FUNCALLOC!P531) -> 8453792.696 | P76: =SUM(FUNCALLOC!Q531) -> 670.9057958 | Q76: =SUM(FUNCALLOC!R531) -> 278002.671 | R76: =SUM(FUNCALLOC!S531) -> 17076474.31 | S76: =SUM(FUNCALLOC!T531) -> 1719623.19 | T76: =SUM(FUNCALLOC!U531) -> 3153381.444 | U76: =SUM(FUNCALLOC!V531) -> 75061.39338 | V76: =SUM(FUNCALLOC!W531) -> 0 | W76: =SUM(FUNCALLOC!X531) -> 0 | X76: =SUM(FUNCALLOC!Y531) -> 0 | Y76: =SUM(FUNCALLOC!Z531) -> 0 | Z76: =SUM(FUNCALLOC!AA531) -> 0 | AA76: =SUM(FUNCALLOC!AB531) -> 0 | AB76: =SUM(FUNCALLOC!AC531) -> 0 | AC76: =SUM(FUNCALLOC!AD531) -> 0 | AD76: =SUM(FUNCALLOC!AE531) -> 0 | AE76: =SUM(FUNCALLOC!AF531) -> 0 | AF76: =SUM(FUNCALLOC!AG531) -> 0 | AG76: =SUM(FUNCALLOC!AH531) -> 0 | AH76: =SUM(FUNCALLOC!AI531) -> 0 | AI76: =SUM(FUNCALLOC!AJ531) -> 405030.5255 | AJ76: =SUM(FUNCALLOC!AK531) -> 1467400.214 | AK76: =SUM(FUNCALLOC!AL531) -> 2040555.389 | AL76: =SUM(FUNCALLOC!AM531) -> 1069081.625 | AM76: =SUM(FUNCALLOC!AN531) -> 0 | AN76: =SUM(FUNCALLOC!AO531) -> 0 | AO76: =SUM(FUNCALLOC!AP531) -> 2408833.409 | AP76: =SUM(FUNCALLOC!AQ531) -> 5004199.18 | AQ76: =SUM(FUNCALLOC!AR531) -> 3592540.892 | AR76: =SUM(FUNCALLOC!AS531) -> 1376273.756 | AS76: =SUM(FUNCALLOC!AT531) -> 0 | AT76: =SUM(FUNCALLOC!AU531) -> 0 | AU76: =SUM(FUNCALLOC!AV531) -> 0 | AV76: =SUM(FUNCALLOC!AW531) -> 0 | AW76: =SUM(FUNCALLOC!AX531) -> 0 | AX76: =SUM(FUNCALLOC!AY531) -> 0 | AY76: =SUM(FUNCALLOC!AZ531) -> 0 | AZ76: =SUM(FUNCALLOC!BA531) -> 0 | BA76: =SUM(FUNCALLOC!BB531) -> 0 | BB76: =SUM(FUNCALLOC!BC531) -> 0 | BC76: =SUM(FUNCALLOC!BD531) -> 0 | BD76: =SUM(FUNCALLOC!BE531) -> 0 | BE76: =SUM(FUNCALLOC!BF531) -> 0 | BF76: =SUM(FUNCALLOC!BG531) -> 0 | BG76: =SUM(FUNCALLOC!BH531) -> 0 | BH76: =SUM(FUNCALLOC!BI531) -> 0 | BI76: =SUM(FUNCALLOC!BJ531) -> 0 | BJ76: =SUM(FUNCALLOC!BK531) -> 0 | BK76: =SUM(FUNCALLOC!BL531) -> 0 | BL76: =SUM(FUNCALLOC!BM531) -> 0 | BM76: =SUM(FUNCALLOC!BN531) -> 0 | BN76: =SUM(FUNCALLOC!BO531) -> 0 | BO76: =SUM(FUNCALLOC!BP531) -> 0 | BP76: =SUM(FUNCALLOC!BQ531) -> 0 | BQ76: =SUM(FUNCALLOC!BR531) -> 0 | BR76: =SUM(FUNCALLOC!BS531) -> 0 | BS76: =SUM(FUNCALLOC!BT531) -> 0 | BT76: =SUM(FUNCALLOC!BU531) -> 0 | BU76: =SUM(FUNCALLOC!BV531) -> 0 | BV76: =SUM(FUNCALLOC!BW531) -> 0 | BW76: =SUM(FUNCALLOC!BX531) -> 0 | BX76: =SUM(FUNCALLOC!BY531) -> 0 | BY76: =SUM(FUNCALLOC!BZ531) -> 0
D77: =IF((D76=0)*OR($C76=0),0,D76/$C76) -> 0 | E77: 0.3751272852 | F77: 0.1018820109 | G77: 0.03000212766 | H77: 3.352223447e-05 | I77: 0.0003278137003 | J77: 0.004381194378 | K77: 5.471951844e-05 | L77: 0.0006863675787 | M77: 0.002923349116 | N77: 0.0402712457 | O77: 0.07805560626 | P77: 6.194611167e-06 | Q77: 0.002566855826 | R77: 0.1576705986 | S77: 0.01587763451 | T77: 0.02911581929 | U77: 0.0006930572796 | V77: 0 | W77: 0 | X77: 0 | Y77: 0 | Z77: 0 | AA77: 0 | AB77: 0 | AC77: 0 | AD77: 0 | AE77: 0 | AF77: 0 | AG77: 0 | AH77: 0 | AI77: 0.003739730126 | AJ77: 0.01354880791 | AK77: 0.0188408675 | AL77: 0.009871050468 | AM77: 0 | AN77: 0 | AO77: 0.02224125418 | AP77: 0.04620480001 | AQ77: 0.03317066877 | AR77: =IF((AR76=0)*OR($C76=0),0,AR76/$C76) -> 0.01270741858 | AS77: 0 | AT77: 0 | AU77: 0 | AV77: 0 | AW77: 0 | AX77: 0 | AY77: 0 | AZ77: 0 | BA77: =IF((BA76=0)*OR($C76=0),0,BA76/$C76) -> 0 | BB77: 0 | BC77: 0 | BD77: 0 | BE77: 0 | BF77: 0 | BG77: 0 | BH77: 0 | BI77: 0 | BJ77: 0 | BK77: 0 | BL77: 0 | BM77: 0 | BN77: 0 | BO77: 0 | BP77: 0 | BQ77: 0 | BR77: 0 | BS77: 0 | BT77: 0 | BU77: 0 | BV77: 0 | BW77: 0 | BX77: 0 | BY77: 0
A79: SWPTD.T | B79: Salary & Wages - PTD Subtotal | C79: =SUM(D79:BA79) -> 66206134.04 | D79: =SUM(FUNCALLOC!E423,FUNCALLOC!E456,FUNCALLOC!E469) -> 0 | E79: =SUM(FUNCALLOC!F423,FUNCALLOC!F456,FUNCALLOC!F469) -> 28389225.46 | F79: =SUM(FUNCALLOC!G423,FUNCALLOC!G456,FUNCALLOC!G469) -> 7355816.339 | G79: =SUM(FUNCALLOC!H423,FUNCALLOC!H456,FUNCALLOC!H469) -> 2166134.52 | H79: =SUM(FUNCALLOC!I423,FUNCALLOC!I456,FUNCALLOC!I469) -> 2420.283991 | I79: =SUM(FUNCALLOC!J423,FUNCALLOC!J456,FUNCALLOC!J469) -> 24798.7105 | J79: =SUM(FUNCALLOC!K423,FUNCALLOC!K456,FUNCALLOC!K469) -> 331432.0631 | K79: =SUM(FUNCALLOC!L423,FUNCALLOC!L456,FUNCALLOC!L469) -> 4139.46548 | L79: =SUM(FUNCALLOC!M423,FUNCALLOC!M456,FUNCALLOC!M469) -> 51922.87834 | M79: =SUM(FUNCALLOC!N423,FUNCALLOC!N456,FUNCALLOC!N469) -> 221147.8299 | N79: =SUM(FUNCALLOC!O423,FUNCALLOC!O456,FUNCALLOC!O469) -> 3046471.098 | O79: =SUM(FUNCALLOC!P423,FUNCALLOC!P456,FUNCALLOC!P469) -> 5904812.339 | P79: =SUM(FUNCALLOC!Q423,FUNCALLOC!Q456,FUNCALLOC!Q469) -> 468.614853 | Q79: =SUM(FUNCALLOC!R423,FUNCALLOC!R456,FUNCALLOC!R469) -> 194179.543 | R79: =SUM(FUNCALLOC!S423,FUNCALLOC!S456,FUNCALLOC!S469) -> 11927590.35 | S79: =SUM(FUNCALLOC!T423,FUNCALLOC!T456,FUNCALLOC!T469) -> 1201123.874 | T79: =SUM(FUNCALLOC!U423,FUNCALLOC!U456,FUNCALLOC!U469) -> 2202576.563 | U79: =SUM(FUNCALLOC!V423,FUNCALLOC!V456,FUNCALLOC!V469) -> 52428.94613 | V79: =SUM(FUNCALLOC!W423,FUNCALLOC!W456,FUNCALLOC!W469) -> 0 | W79: =SUM(FUNCALLOC!X423,FUNCALLOC!X456,FUNCALLOC!X469) -> 0 | X79: =SUM(FUNCALLOC!Y423,FUNCALLOC!Y456,FUNCALLOC!Y469) -> 0 | Y79: =SUM(FUNCALLOC!Z423,FUNCALLOC!Z456,FUNCALLOC!Z469) -> 0 | Z79: =SUM(FUNCALLOC!AA423,FUNCALLOC!AA456,FUNCALLOC!AA469) -> 0 | AA79: =SUM(FUNCALLOC!AB423,FUNCALLOC!AB456,FUNCALLOC!AB469) -> 0 | AB79: =SUM(FUNCALLOC!AC423,FUNCALLOC!AC456,FUNCALLOC!AC469) -> 0 | AC79: =SUM(FUNCALLOC!AD423,FUNCALLOC!AD456,FUNCALLOC!AD469) -> 0 | AD79: =SUM(FUNCALLOC!AE423,FUNCALLOC!AE456,FUNCALLOC!AE469) -> 0 | AE79: =SUM(FUNCALLOC!AF423,FUNCALLOC!AF456,FUNCALLOC!AF469) -> 0 | AF79: =SUM(FUNCALLOC!AG423,FUNCALLOC!AG456,FUNCALLOC!AG469) -> 0 | AG79: =SUM(FUNCALLOC!AH423,FUNCALLOC!AH456,FUNCALLOC!AH469) -> 0 | AH79: =SUM(FUNCALLOC!AI423,FUNCALLOC!AI456,FUNCALLOC!AI469) -> 0 | AI79: =SUM(FUNCALLOC!AJ423,FUNCALLOC!AJ456,FUNCALLOC!AJ469) -> 282906.0672 | AJ79: =SUM(FUNCALLOC!AK423,FUNCALLOC!AK456,FUNCALLOC!AK469) -> 1024950.954 | AK79: =SUM(FUNCALLOC!AL423,FUNCALLOC!AL456,FUNCALLOC!AL469) -> 1425288.87 | AL79: =SUM(FUNCALLOC!AM423,FUNCALLOC!AM456,FUNCALLOC!AM469) -> 396299.2779 | AM79: =SUM(FUNCALLOC!AN423,FUNCALLOC!AN456,FUNCALLOC!AN469) -> 0 | AN79: =SUM(FUNCALLOC!AO423,FUNCALLOC!AO456,FUNCALLOC!AO469) -> 0 | AO79: =SUM(FUNCALLOC!AP423,FUNCALLOC!AP456,FUNCALLOC!AP469) -> 0 | AP79: =SUM(FUNCALLOC!AQ423,FUNCALLOC!AQ456,FUNCALLOC!AQ469) -> 0 | AQ79: =SUM(FUNCALLOC!AR423,FUNCALLOC!AR456,FUNCALLOC!AR469) -> 0 | AR79: =SUM(FUNCALLOC!AS423,FUNCALLOC!AS456,FUNCALLOC!AS469) -> 0 | AS79: =SUM(FUNCALLOC!AT423,FUNCALLOC!AT456,FUNCALLOC!AT469) -> 0 | AT79: =SUM(FUNCALLOC!AU423,FUNCALLOC!AU456,FUNCALLOC!AU469) -> 0 | AU79: =SUM(FUNCALLOC!AV423,FUNCALLOC!AV456,FUNCALLOC!AV469) -> 0 | AV79: =SUM(FUNCALLOC!AW423,FUNCALLOC!AW456,FUNCALLOC!AW469) -> 0 | AW79: =SUM(FUNCALLOC!AX423,FUNCALLOC!AX456,FUNCALLOC!AX469) -> 0 | AX79: =SUM(FUNCALLOC!AY423,FUNCALLOC!AY456,FUNCALLOC!AY469) -> 0 | AY79: =SUM(FUNCALLOC!AZ423,FUNCALLOC!AZ456,FUNCALLOC!AZ469) -> 0 | AZ79: =SUM(FUNCALLOC!BA423,FUNCALLOC!BA456,FUNCALLOC!BA469) -> 0 | BA79: =SUM(FUNCALLOC!BB423,FUNCALLOC!BB456,FUNCALLOC!BB469) -> 0 | BB79: =SUM(FUNCALLOC!BC423,FUNCALLOC!BC456,FUNCALLOC!BC469) -> 0 | BC79: =SUM(FUNCALLOC!BD423,FUNCALLOC!BD456,FUNCALLOC!BD469) -> 0 | BD79: =SUM(FUNCALLOC!BE423,FUNCALLOC!BE456,FUNCALLOC!BE469) -> 0 | BE79: =SUM(FUNCALLOC!BF423,FUNCALLOC!BF456,FUNCALLOC!BF469) -> 0 | BF79: =SUM(FUNCALLOC!BG423,FUNCALLOC!BG456,FUNCALLOC!BG469) -> 0 | BG79: =SUM(FUNCALLOC!BH423,FUNCALLOC!BH456,FUNCALLOC!BH469) -> 0 | BH79: =SUM(FUNCALLOC!BI423,FUNCALLOC!BI456,FUNCALLOC!BI469) -> 0 | BI79: =SUM(FUNCALLOC!BJ423,FUNCALLOC!BJ456,FUNCALLOC!BJ469) -> 0 | BJ79: =SUM(FUNCALLOC!BK423,FUNCALLOC!BK456,FUNCALLOC!BK469) -> 0 | BK79: =SUM(FUNCALLOC!BL423,FUNCALLOC!BL456,FUNCALLOC!BL469) -> 0 | BL79: =SUM(FUNCALLOC!BM423,FUNCALLOC!BM456,FUNCALLOC!BM469) -> 0 | BM79: =SUM(FUNCALLOC!BN423,FUNCALLOC!BN456,FUNCALLOC!BN469) -> 0 | BN79: =SUM(FUNCALLOC!BO423,FUNCALLOC!BO456,FUNCALLOC!BO469) -> 0 | BO79: =SUM(FUNCALLOC!BP423,FUNCALLOC!BP456,FUNCALLOC!BP469) -> 0 | BP79: =SUM(FUNCALLOC!BQ423,FUNCALLOC!BQ456,FUNCALLOC!BQ469) -> 0 | BQ79: =SUM(FUNCALLOC!BR423,FUNCALLOC!BR456,FUNCALLOC!BR469) -> 0 | BR79: =SUM(FUNCALLOC!BS423,FUNCALLOC!BS456,FUNCALLOC!BS469) -> 0 | BS79: =SUM(FUNCALLOC!BT423,FUNCALLOC!BT456,FUNCALLOC!BT469) -> 0 | BT79: =SUM(FUNCALLOC!BU423,FUNCALLOC!BU456,FUNCALLOC!BU469) -> 0 | BU79: =SUM(FUNCALLOC!BV423,FUNCALLOC!BV456,FUNCALLOC!BV469) -> 0 | BV79: =SUM(FUNCALLOC!BW423,FUNCALLOC!BW456,FUNCALLOC!BW469) -> 0 | BW79: =SUM(FUNCALLOC!BX423,FUNCALLOC!BX456,FUNCALLOC!BX469) -> 0 | BX79: =SUM(FUNCALLOC!BY423,FUNCALLOC!BY456,FUNCALLOC!BY469) -> 0 | BY79: =SUM(FUNCALLOC!BZ423,FUNCALLOC!BZ456,FUNCALLOC!BZ469) -> 0
D80: =IF((D79=0)*OR($C79=0),0,D79/$C79) -> 0 | E80: 0.4288005313 | F80: 0.1111047555 | G80: 0.03271803363 | H80: 3.65567938e-05 | I80: 0.0003745681704 | J80: 0.005006062775 | K80: 6.252389661e-05 | L80: 0.0007842608406 | M80: 0.00334029215 | N80: 0.04601493717 | O80: 0.08918829689 | P80: 7.078118361e-06 | Q80: 0.00293295396 | R80: 0.1801583875 | S80: 0.01814218412 | T80: 0.03326846666 | U80: 0.0007919046609 | V80: 0 | W80: 0 | X80: 0 | Y80: 0 | Z80: 0 | AA80: 0 | AB80: 0 | AC80: 0 | AD80: 0 | AE80: 0 | AF80: 0 | AG80: 0 | AH80: 0 | AI80: 0.004273109603 | AJ80: 0.01548120833 | AK80: 0.02152804858 | AL80: 0.005985839282 | AM80: 0 | AN80: 0 | AO80: 0 | AP80: 0 | AQ80: 0 | AR80: =IF((AR79=0)*OR($C79=0),0,AR79/$C79) -> 0 | AS80: 0 | AT80: 0 | AU80: 0 | AV80: 0 | AW80: 0 | AX80: 0 | AY80: 0 | AZ80: 0 | BA80: =IF((BA79=0)*OR($C79=0),0,BA79/$C79) -> 0 | BB80: 0 | BC80: 0 | BD80: 0 | BE80: 0 | BF80: 0 | BG80: 0 | BH80: 0 | BI80: 0 | BJ80: 0 | BK80: 0 | BL80: 0 | BM80: 0 | BN80: 0 | BO80: 0 | BP80: 0 | BQ80: 0 | BR80: 0 | BS80: 0 | BT80: 0 | BU80: 0 | BV80: 0 | BW80: 0 | BX80: 0 | BY80: 0
A82: TDP.T | B82: Total Transmission & Distribution Plant | C82: =SUM(D82:BA82) -> 5684013730 | D82: =SUM(FUNCALLOC!E39,FUNCALLOC!E72) -> 0 | E82: =SUM(FUNCALLOC!F39,FUNCALLOC!F72) -> 0 | F82: =SUM(FUNCALLOC!G39,FUNCALLOC!G72) -> 1231639678 | G82: =SUM(FUNCALLOC!H39,FUNCALLOC!H72) -> 362692201.8 | H82: =SUM(FUNCALLOC!I39,FUNCALLOC!I72) -> 405246.36 | I82: =SUM(FUNCALLOC!J39,FUNCALLOC!J72) -> 3584294.51 | J82: =SUM(FUNCALLOC!K39,FUNCALLOC!K72) -> 47903705.49 | K82: =SUM(FUNCALLOC!L39,FUNCALLOC!L72) -> 598299.7945 | L82: =SUM(FUNCALLOC!M39,FUNCALLOC!M72) -> 7504700.206 | M82: =SUM(FUNCALLOC!N39,FUNCALLOC!N72) -> 31963716.52 | N82: =SUM(FUNCALLOC!O39,FUNCALLOC!O72) -> 440323283.5 | O82: =SUM(FUNCALLOC!P39,FUNCALLOC!P72) -> 853455120.2 | P82: =SUM(FUNCALLOC!Q39,FUNCALLOC!Q72) -> 67731.49133 | Q82: =SUM(FUNCALLOC!R39,FUNCALLOC!R72) -> 28065841.16 | R82: =SUM(FUNCALLOC!S39,FUNCALLOC!S72) -> 1723960471 | S82: =SUM(FUNCALLOC!T39,FUNCALLOC!T72) -> 173605063.3 | T82: =SUM(FUNCALLOC!U39,FUNCALLOC!U72) -> 318350548.3 | U82: =SUM(FUNCALLOC!V39,FUNCALLOC!V72) -> 7577844.977 | V82: =SUM(FUNCALLOC!W39,FUNCALLOC!W72) -> 0 | W82: =SUM(FUNCALLOC!X39,FUNCALLOC!X72) -> 0 | X82: =SUM(FUNCALLOC!Y39,FUNCALLOC!Y72) -> 0 | Y82: =SUM(FUNCALLOC!Z39,FUNCALLOC!Z72) -> 0 | Z82: =SUM(FUNCALLOC!AA39,FUNCALLOC!AA72) -> 0 | AA82: =SUM(FUNCALLOC!AB39,FUNCALLOC!AB72) -> 0 | AB82: =SUM(FUNCALLOC!AC39,FUNCALLOC!AC72) -> 0 | AC82: =SUM(FUNCALLOC!AD39,FUNCALLOC!AD72) -> 0 | AD82: =SUM(FUNCALLOC!AE39,FUNCALLOC!AE72) -> 0 | AE82: =SUM(FUNCALLOC!AF39,FUNCALLOC!AF72) -> 0 | AF82: =SUM(FUNCALLOC!AG39,FUNCALLOC!AG72) -> 0 | AG82: =SUM(FUNCALLOC!AH39,FUNCALLOC!AH72) -> 0 | AH82: =SUM(FUNCALLOC!AI39,FUNCALLOC!AI72) -> 0 | AI82: =SUM(FUNCALLOC!AJ39,FUNCALLOC!AJ72) -> 40889975.45 | AJ82: =SUM(FUNCALLOC!AK39,FUNCALLOC!AK72) -> 148141818.8 | AK82: =SUM(FUNCALLOC!AL39,FUNCALLOC!AL72) -> 206004867.6 | AL82: =SUM(FUNCALLOC!AM39,FUNCALLOC!AM72) -> 57279322.09 | AM82: =SUM(FUNCALLOC!AN39,FUNCALLOC!AN72) -> 0 | AN82: =SUM(FUNCALLOC!AO39,FUNCALLOC!AO72) -> 0 | AO82: =SUM(FUNCALLOC!AP39,FUNCALLOC!AP72) -> 0 | AP82: =SUM(FUNCALLOC!AQ39,FUNCALLOC!AQ72) -> 0 | AQ82: =SUM(FUNCALLOC!AR39,FUNCALLOC!AR72) -> 0 | AR82: =SUM(FUNCALLOC!AS39,FUNCALLOC!AS72) -> 0 | AS82: =SUM(FUNCALLOC!AT39,FUNCALLOC!AT72) -> 0 | AT82: =SUM(FUNCALLOC!AU39,FUNCALLOC!AU72) -> 0 | AU82: =SUM(FUNCALLOC!AV39,FUNCALLOC!AV72) -> 0 | AV82: =SUM(FUNCALLOC!AW39,FUNCALLOC!AW72) -> 0 | AW82: =SUM(FUNCALLOC!AX39,FUNCALLOC!AX72) -> 0 | AX82: =SUM(FUNCALLOC!AY39,FUNCALLOC!AY72) -> 0 | AY82: =SUM(FUNCALLOC!AZ39,FUNCALLOC!AZ72) -> 0 | AZ82: =SUM(FUNCALLOC!BA39,FUNCALLOC!BA72) -> 0 | BA82: =SUM(FUNCALLOC!BB39,FUNCALLOC!BB72) -> 0 | BB82: =SUM(FUNCALLOC!BC39,FUNCALLOC!BC72) -> 0 | BC82: =SUM(FUNCALLOC!BD39,FUNCALLOC!BD72) -> 0 | BD82: =SUM(FUNCALLOC!BE39,FUNCALLOC!BE72) -> 0 | BE82: =SUM(FUNCALLOC!BF39,FUNCALLOC!BF72) -> 0 | BF82: =SUM(FUNCALLOC!BG39,FUNCALLOC!BG72) -> 0 | BG82: =SUM(FUNCALLOC!BH39,FUNCALLOC!BH72) -> 0 | BH82: =SUM(FUNCALLOC!BI39,FUNCALLOC!BI72) -> 0 | BI82: =SUM(FUNCALLOC!BJ39,FUNCALLOC!BJ72) -> 0 | BJ82: =SUM(FUNCALLOC!BK39,FUNCALLOC!BK72) -> 0 | BK82: =SUM(FUNCALLOC!BL39,FUNCALLOC!BL72) -> 0 | BL82: =SUM(FUNCALLOC!BM39,FUNCALLOC!BM72) -> 0 | BM82: =SUM(FUNCALLOC!BN39,FUNCALLOC!BN72) -> 0 | BN82: =SUM(FUNCALLOC!BO39,FUNCALLOC!BO72) -> 0 | BO82: =SUM(FUNCALLOC!BP39,FUNCALLOC!BP72) -> 0 | BP82: =SUM(FUNCALLOC!BQ39,FUNCALLOC!BQ72) -> 0 | BQ82: =SUM(FUNCALLOC!BR39,FUNCALLOC!BR72) -> 0 | BR82: =SUM(FUNCALLOC!BS39,FUNCALLOC!BS72) -> 0 | BS82: =SUM(FUNCALLOC!BT39,FUNCALLOC!BT72) -> 0 | BT82: =SUM(FUNCALLOC!BU39,FUNCALLOC!BU72) -> 0 | BU82: =SUM(FUNCALLOC!BV39,FUNCALLOC!BV72) -> 0 | BV82: =SUM(FUNCALLOC!BW39,FUNCALLOC!BW72) -> 0 | BW82: =SUM(FUNCALLOC!BX39,FUNCALLOC!BX72) -> 0 | BX82: =SUM(FUNCALLOC!BY39,FUNCALLOC!BY72) -> 0 | BY82: =SUM(FUNCALLOC!BZ39,FUNCALLOC!BZ72) -> 0
D83: =IF((D82=0)*OR($C82=0),0,D82/$C82) -> 0 | E83: 0 | F83: 0.2166848528 | G83: 0.0638091706 | H83: 7.129580948e-05 | I83: 0.0006305921625 | J83: 0.008427795527 | K83: 0.0001052600896 | L83: 0.001320317044 | M83: 0.005623441117 | N83: 0.07746696338 | O83: 0.1501500807 | P83: 1.191613788e-05 | Q83: 0.004937680044 | R83: 0.3032998427 | S83: 0.03054268894 | T83: 0.05600805406 | U83: 0.001333185551 | V83: 0 | W83: 0 | X83: 0 | Y83: 0 | Z83: 0 | AA83: 0 | AB83: 0 | AC83: 0 | AD83: 0 | AE83: 0 | AF83: 0 | AG83: 0 | AH83: 0 | AI83: 0.007193855855 | AJ83: 0.02606288898 | AK83: 0.03624285186 | AL83: 0.01007726667 | AM83: 0 | AN83: 0 | AO83: 0 | AP83: 0 | AQ83: 0 | AR83: =IF((AR82=0)*OR($C82=0),0,AR82/$C82) -> 0 | AS83: 0 | AT83: 0 | AU83: 0 | AV83: 0 | AW83: 0 | AX83: 0 | AY83: 0 | AZ83: 0 | BA83: =IF((BA82=0)*OR($C82=0),0,BA82/$C82) -> 0 | BB83: 0 | BC83: 0 | BD83: 0 | BE83: 0 | BF83: 0 | BG83: 0 | BH83: 0 | BI83: 0 | BJ83: 0 | BK83: 0 | BL83: 0 | BM83: 0 | BN83: 0 | BO83: 0 | BP83: 0 | BQ83: 0 | BR83: 0 | BS83: 0 | BT83: 0 | BU83: 0 | BV83: 0 | BW83: 0 | BX83: 0 | BY83: 0
A85: EBFIT.T | B85: Total Expenses Before FIT | C85: =SUM(D85:BA85) -> 1726709962 | D85: =SUM(FUNCALLOC!E409,FUNCALLOC!E584,FUNCALLOC!E597) -> 0 | E85: =SUM(FUNCALLOC!F409,FUNCALLOC!F584,FUNCALLOC!F597) -> 524086043.2 | F85: =SUM(FUNCALLOC!G409,FUNCALLOC!G584,FUNCALLOC!G597) -> 82435387.88 | G85: =SUM(FUNCALLOC!H409,FUNCALLOC!H584,FUNCALLOC!H597) -> 22316534.63 | H85: =SUM(FUNCALLOC!I409,FUNCALLOC!I584,FUNCALLOC!I597) -> 27366.92044 | I85: =SUM(FUNCALLOC!J409,FUNCALLOC!J584,FUNCALLOC!J597) -> 96989.30549 | J85: =SUM(FUNCALLOC!K409,FUNCALLOC!K584,FUNCALLOC!K597) -> 1286417.797 | K85: =SUM(FUNCALLOC!L409,FUNCALLOC!L584,FUNCALLOC!L597) -> 26256.73814 | L85: =SUM(FUNCALLOC!M409,FUNCALLOC!M584,FUNCALLOC!M597) -> 322495.777 | M85: =SUM(FUNCALLOC!N409,FUNCALLOC!N584,FUNCALLOC!N597) -> 1972669.353 | N85: =SUM(FUNCALLOC!O409,FUNCALLOC!O584,FUNCALLOC!O597) -> 26826558.23 | O85: =SUM(FUNCALLOC!P409,FUNCALLOC!P584,FUNCALLOC!P597) -> 105023140.1 | P85: =SUM(FUNCALLOC!Q409,FUNCALLOC!Q584,FUNCALLOC!Q597) -> 5972.818091 | Q85: =SUM(FUNCALLOC!R409,FUNCALLOC!R584,FUNCALLOC!R597) -> 1187791.136 | R85: =SUM(FUNCALLOC!S409,FUNCALLOC!S584,FUNCALLOC!S597) -> 124934109.9 | S85: =SUM(FUNCALLOC!T409,FUNCALLOC!T584,FUNCALLOC!T597) -> 11615826.58 | T85: =SUM(FUNCALLOC!U409,FUNCALLOC!U584,FUNCALLOC!U597) -> 21297247.83 | U85: =SUM(FUNCALLOC!V409,FUNCALLOC!V584,FUNCALLOC!V597) -> 512660.6791 | V85: =SUM(FUNCALLOC!W409,FUNCALLOC!W584,FUNCALLOC!W597) -> -35.28423964 | W85: =SUM(FUNCALLOC!X409,FUNCALLOC!X584,FUNCALLOC!X597) -> -653.3359632 | X85: =SUM(FUNCALLOC!Y409,FUNCALLOC!Y584,FUNCALLOC!Y597) -> -32826.63861 | Y85: =SUM(FUNCALLOC!Z409,FUNCALLOC!Z584,FUNCALLOC!Z597) -> -151.4929568 | Z85: =SUM(FUNCALLOC!AA409,FUNCALLOC!AA584,FUNCALLOC!AA597) -> -46172.86795 | AA85: =SUM(FUNCALLOC!AB409,FUNCALLOC!AB584,FUNCALLOC!AB597) -> 0 | AB85: =SUM(FUNCALLOC!AC409,FUNCALLOC!AC584,FUNCALLOC!AC597) -> 657241227.9 | AC85: =SUM(FUNCALLOC!AD409,FUNCALLOC!AD584,FUNCALLOC!AD597) -> 0 | AD85: =SUM(FUNCALLOC!AE409,FUNCALLOC!AE584,FUNCALLOC!AE597) -> 0 | AE85: =SUM(FUNCALLOC!AF409,FUNCALLOC!AF584,FUNCALLOC!AF597) -> 0 | AF85: =SUM(FUNCALLOC!AG409,FUNCALLOC!AG584,FUNCALLOC!AG597) -> 0 | AG85: =SUM(FUNCALLOC!AH409,FUNCALLOC!AH584,FUNCALLOC!AH597) -> 0 | AH85: =SUM(FUNCALLOC!AI409,FUNCALLOC!AI584,FUNCALLOC!AI597) -> 0 | AI85: =SUM(FUNCALLOC!AJ409,FUNCALLOC!AJ584,FUNCALLOC!AJ597) -> 2286619.754 | AJ85: =SUM(FUNCALLOC!AK409,FUNCALLOC!AK584,FUNCALLOC!AK597) -> 8588799.583 | AK85: =SUM(FUNCALLOC!AL409,FUNCALLOC!AL584,FUNCALLOC!AL597) -> 36566969.06 | AL85: =SUM(FUNCALLOC!AM409,FUNCALLOC!AM584,FUNCALLOC!AM597) -> 7966662.028 | AM85: =SUM(FUNCALLOC!AN409,FUNCALLOC!AN584,FUNCALLOC!AN597) -> -75038.5873 | AN85: =SUM(FUNCALLOC!AO409,FUNCALLOC!AO584,FUNCALLOC!AO597) -> -230194.5728 | AO85: =SUM(FUNCALLOC!AP409,FUNCALLOC!AP584,FUNCALLOC!AP597) -> 18239546.81 | AP85: =SUM(FUNCALLOC!AQ409,FUNCALLOC!AQ584,FUNCALLOC!AQ597) -> 37891505.85 | AQ85: =SUM(FUNCALLOC!AR409,FUNCALLOC!AR584,FUNCALLOC!AR597) -> 27202511.2 | AR85: =SUM(FUNCALLOC!AS409,FUNCALLOC!AS584,FUNCALLOC!AS597) -> 7137723.682 | AS85: =SUM(FUNCALLOC!AT409,FUNCALLOC!AT584,FUNCALLOC!AT597) -> 0 | AT85: =SUM(FUNCALLOC!AU409,FUNCALLOC!AU584,FUNCALLOC!AU597) -> 0 | AU85: =SUM(FUNCALLOC!AV409,FUNCALLOC!AV584,FUNCALLOC!AV597) -> 0 | AV85: =SUM(FUNCALLOC!AW409,FUNCALLOC!AW584,FUNCALLOC!AW597) -> 0 | AW85: =SUM(FUNCALLOC!AX409,FUNCALLOC!AX584,FUNCALLOC!AX597) -> 0 | AX85: =SUM(FUNCALLOC!AY409,FUNCALLOC!AY584,FUNCALLOC!AY597) -> 0 | AY85: =SUM(FUNCALLOC!AZ409,FUNCALLOC!AZ584,FUNCALLOC!AZ597) -> 0 | AZ85: =SUM(FUNCALLOC!BA409,FUNCALLOC!BA584,FUNCALLOC!BA597) -> 0 | BA85: =SUM(FUNCALLOC!BB409,FUNCALLOC!BB584,FUNCALLOC!BB597) -> 0 | BB85: =SUM(FUNCALLOC!BC409,FUNCALLOC!BC584,FUNCALLOC!BC597) -> 0 | BC85: =SUM(FUNCALLOC!BD409,FUNCALLOC!BD584,FUNCALLOC!BD597) -> 0 | BD85: =SUM(FUNCALLOC!BE409,FUNCALLOC!BE584,FUNCALLOC!BE597) -> 0 | BE85: =SUM(FUNCALLOC!BF409,FUNCALLOC!BF584,FUNCALLOC!BF597) -> 0 | BF85: =SUM(FUNCALLOC!BG409,FUNCALLOC!BG584,FUNCALLOC!BG597) -> 0 | BG85: =SUM(FUNCALLOC!BH409,FUNCALLOC!BH584,FUNCALLOC!BH597) -> 0 | BH85: =SUM(FUNCALLOC!BI409,FUNCALLOC!BI584,FUNCALLOC!BI597) -> 0 | BI85: =SUM(FUNCALLOC!BJ409,FUNCALLOC!BJ584,FUNCALLOC!BJ597) -> 0 | BJ85: =SUM(FUNCALLOC!BK409,FUNCALLOC!BK584,FUNCALLOC!BK597) -> 0 | BK85: =SUM(FUNCALLOC!BL409,FUNCALLOC!BL584,FUNCALLOC!BL597) -> 0 | BL85: =SUM(FUNCALLOC!BM409,FUNCALLOC!BM584,FUNCALLOC!BM597) -> 0 | BM85: =SUM(FUNCALLOC!BN409,FUNCALLOC!BN584,FUNCALLOC!BN597) -> 0 | BN85: =SUM(FUNCALLOC!BO409,FUNCALLOC!BO584,FUNCALLOC!BO597) -> 0 | BO85: =SUM(FUNCALLOC!BP409,FUNCALLOC!BP584,FUNCALLOC!BP597) -> 0 | BP85: =SUM(FUNCALLOC!BQ409,FUNCALLOC!BQ584,FUNCALLOC!BQ597) -> 0 | BQ85: =SUM(FUNCALLOC!BR409,FUNCALLOC!BR584,FUNCALLOC!BR597) -> 0 | BR85: =SUM(FUNCALLOC!BS409,FUNCALLOC!BS584,FUNCALLOC!BS597) -> 0 | BS85: =SUM(FUNCALLOC!BT409,FUNCALLOC!BT584,FUNCALLOC!BT597) -> 0 | BT85: =SUM(FUNCALLOC!BU409,FUNCALLOC!BU584,FUNCALLOC!BU597) -> 0 | BU85: =SUM(FUNCALLOC!BV409,FUNCALLOC!BV584,FUNCALLOC!BV597) -> 0 | BV85: =SUM(FUNCALLOC!BW409,FUNCALLOC!BW584,FUNCALLOC!BW597) -> 0 | BW85: =SUM(FUNCALLOC!BX409,FUNCALLOC!BX584,FUNCALLOC!BX597) -> 0 | BX85: =SUM(FUNCALLOC!BY409,FUNCALLOC!BY584,FUNCALLOC!BY597) -> 0 | BY85: =SUM(FUNCALLOC!BZ409,FUNCALLOC!BZ584,FUNCALLOC!BZ597) -> 0
D86: =IF((D85=0)*OR($C85=0),0,D85/$C85) -> 0 | E86: 0.3035171249 | F86: 0.04774130554 | G86: 0.01292430989 | H86: 1.584917041e-05 | I86: 5.617000401e-05 | J86: 0.0007450109315 | K86: 1.520622381e-05 | L86: 0.0001867689329 | M86: 0.001142443952 | N86: 0.01553622717 | O86: 0.06082268732 | P86: 3.459074322e-06 | Q86: 0.0006878926756 | R86: 0.07235384786 | S86: 0.00672714401 | T86: 0.01233400415 | U86: 0.0002969002846 | V86: -2.043437544e-08 | W86: -3.78370414e-07 | X86: -1.901109007e-05 | Y86: -8.773503375e-08 | Z86: -2.674037271e-05 | AA86: 0 | AB86: 0.3806320936 | AC86: 0 | AD86: 0 | AE86: 0 | AF86: 0 | AG86: 0 | AH86: 0 | AI86: 0.00132426395 | AJ86: =IF((AJ85=0)*OR($C85=0),0,AJ85/$C85) -> 0.00497408353 | AK86: 0.0211772503 | AL86: 0.004613781239 | AM86: -4.345755162e-05 | AN86: -0.0001333139774 | AO86: 0.01056317923 | AP86: 0.02194433731 | AQ86: 0.01575395509 | AR86: 0.004133713154 | AS86: 0 | AT86: 0 | AU86: 0 | AV86: 0 | AW86: 0 | AX86: 0 | AY86: 0 | AZ86: 0 | BA86: 0 | BB86: 0 | BC86: 0 | BD86: 0 | BE86: 0 | BF86: 0 | BG86: 0 | BH86: 0 | BI86: 0 | BJ86: 0 | BK86: 0 | BL86: 0 | BM86: 0 | BN86: 0 | BO86: 0 | BP86: =IF((BP85=0)*OR($C85=0),0,BP85/$C85) -> 0 | BQ86: 0 | BR86: 0 | BS86: 0 | BT86: 0 | BU86: 0 | BV86: 0 | BW86: 0 | BX86: 0 | BY86: 0
A88: TP.T | B88: Total Transmission Plant | C88: =SUM(D88:BA88) -> 1594737127 | D88: =SUM(FUNCALLOC!E39) -> 0 | E88: =SUM(FUNCALLOC!F39) -> 0 | F88: =SUM(FUNCALLOC!G39) -> 1231639678 | G88: =SUM(FUNCALLOC!H39) -> 362692201.8 | H88: =SUM(FUNCALLOC!I39) -> 405246.36 | I88: =SUM(FUNCALLOC!J39) -> 0 | J88: =SUM(FUNCALLOC!K39) -> 0 | K88: =SUM(FUNCALLOC!L39) -> 0 | L88: =SUM(FUNCALLOC!M39) -> 0 | M88: =SUM(FUNCALLOC!N39) -> 0 | N88: =SUM(FUNCALLOC!O39) -> 0 | O88: =SUM(FUNCALLOC!P39) -> 0 | P88: =SUM(FUNCALLOC!Q39) -> 0 | Q88: =SUM(FUNCALLOC!R39) -> 0 | R88: =SUM(FUNCALLOC!S39) -> 0 | S88: =SUM(FUNCALLOC!T39) -> 0 | T88: =SUM(FUNCALLOC!U39) -> 0 | U88: =SUM(FUNCALLOC!V39) -> 0 | V88: =SUM(FUNCALLOC!W39) -> 0 | W88: =SUM(FUNCALLOC!X39) -> 0 | X88: =SUM(FUNCALLOC!Y39) -> 0 | Y88: =SUM(FUNCALLOC!Z39) -> 0 | Z88: =SUM(FUNCALLOC!AA39) -> 0 | AA88: =SUM(FUNCALLOC!AB39) -> 0 | AB88: =SUM(FUNCALLOC!AC39) -> 0 | AC88: =SUM(FUNCALLOC!AD39) -> 0 | AD88: =SUM(FUNCALLOC!AE39) -> 0 | AE88: =SUM(FUNCALLOC!AF39) -> 0 | AF88: =SUM(FUNCALLOC!AG39) -> 0 | AG88: =SUM(FUNCALLOC!AH39) -> 0 | AH88: =SUM(FUNCALLOC!AI39) -> 0 | AI88: =SUM(FUNCALLOC!AJ39) -> 0 | AJ88: =SUM(FUNCALLOC!AK39) -> 0 | AK88: =SUM(FUNCALLOC!AL39) -> 0 | AL88: =SUM(FUNCALLOC!AM39) -> 0 | AM88: =SUM(FUNCALLOC!AN39) -> 0 | AN88: =SUM(FUNCALLOC!AO39) -> 0 | AO88: =SUM(FUNCALLOC!AP39) -> 0 | AP88: =SUM(FUNCALLOC!AQ39) -> 0 | AQ88: =SUM(FUNCALLOC!AR39) -> 0 | AR88: =SUM(FUNCALLOC!AS39) -> 0 | AS88: =SUM(FUNCALLOC!AT39) -> 0 | AT88: =SUM(FUNCALLOC!AU39) -> 0 | AU88: =SUM(FUNCALLOC!AV39) -> 0 | AV88: =SUM(FUNCALLOC!AW39) -> 0 | AW88: =SUM(FUNCALLOC!AX39) -> 0 | AX88: =SUM(FUNCALLOC!AY39) -> 0 | AY88: =SUM(FUNCALLOC!AZ39) -> 0 | AZ88: =SUM(FUNCALLOC!BA39) -> 0 | BA88: =SUM(FUNCALLOC!BB39) -> 0 | BB88: =SUM(FUNCALLOC!BC39) -> 0 | BC88: =SUM(FUNCALLOC!BD39) -> 0 | BD88: =SUM(FUNCALLOC!BE39) -> 0 | BE88: =SUM(FUNCALLOC!BF39) -> 0 | BF88: =SUM(FUNCALLOC!BG39) -> 0 | BG88: =SUM(FUNCALLOC!BH39) -> 0 | BH88: =SUM(FUNCALLOC!BI39) -> 0 | BI88: =SUM(FUNCALLOC!BJ39) -> 0 | BJ88: =SUM(FUNCALLOC!BK39) -> 0 | BK88: =SUM(FUNCALLOC!BL39) -> 0 | BL88: =SUM(FUNCALLOC!BM39) -> 0 | BM88: =SUM(FUNCALLOC!BN39) -> 0 | BN88: =SUM(FUNCALLOC!BO39) -> 0 | BO88: =SUM(FUNCALLOC!BP39) -> 0 | BP88: =SUM(FUNCALLOC!BQ39) -> 0 | BQ88: =SUM(FUNCALLOC!BR39) -> 0 | BR88: =SUM(FUNCALLOC!BS39) -> 0 | BS88: =SUM(FUNCALLOC!BT39) -> 0 | BT88: =SUM(FUNCALLOC!BU39) -> 0 | BU88: =SUM(FUNCALLOC!BV39) -> 0 | BV88: =SUM(FUNCALLOC!BW39) -> 0 | BW88: =SUM(FUNCALLOC!BX39) -> 0 | BX88: =SUM(FUNCALLOC!BY39) -> 0 | BY88: =SUM(FUNCALLOC!BZ39) -> 0
D89: =IF((D88=0)*OR($C88=0),0,D88/$C88) -> 0 | E89: 0 | F89: 0.7723151721 | G89: 0.227430713 | H89: 0.0002541148339 | I89: 0 | J89: 0 | K89: 0 | L89: 0 | M89: 0 | N89: 0 | O89: 0 | P89: 0 | Q89: 0 | R89: 0 | S89: 0 | T89: 0 | U89: 0 | V89: 0 | W89: 0 | X89: 0 | Y89: 0 | Z89: 0 | AA89: 0 | AB89: 0 | AC89: 0 | AD89: 0 | AE89: 0 | AF89: 0 | AG89: 0 | AH89: 0 | AI89: 0 | AJ89: =IF((AJ88=0)*OR($C88=0),0,AJ88/$C88) -> 0 | AK89: 0 | AL89: 0 | AM89: 0 | AN89: 0 | AO89: 0 | AP89: 0 | AQ89: 0 | AR89: 0 | AS89: 0 | AT89: 0 | AU89: 0 | AV89: 0 | AW89: 0 | AX89: 0 | AY89: 0 | AZ89: 0 | BA89: 0 | BB89: 0 | BC89: 0 | BD89: 0 | BE89: 0 | BF89: 0 | BG89: 0 | BH89: 0 | BI89: 0 | BJ89: 0 | BK89: 0 | BL89: 0 | BM89: 0 | BN89: 0 | BO89: 0 | BP89: =IF((BP88=0)*OR($C88=0),0,BP88/$C88) -> 0 | BQ89: 0 | BR89: 0 | BS89: 0 | BT89: 0 | BU89: 0 | BV89: 0 | BW89: 0 | BX89: 0 | BY89: 0
A91: PTDE.T | B91: Prod Trans Dist Exp Allocation Factor | C91: =SUM(D91:BA91) -> 959239340.7 | D91: =SUM(FUNCALLOC!E261,FUNCALLOC!E270,FUNCALLOC!E276,FUNCALLOC!E285,FUNCALLOC!E300,FUNCALLOC!E316,FUNCALLOC!E393) -> 0 | E91: =SUM(FUNCALLOC!F261,FUNCALLOC!F270,FUNCALLOC!F276,FUNCALLOC!F285,FUNCALLOC!F300,FUNCALLOC!F316,FUNCALLOC!F393) -> 221510113.5 | F91: =SUM(FUNCALLOC!G261,FUNCALLOC!G270,FUNCALLOC!G276,FUNCALLOC!G285,FUNCALLOC!G300,FUNCALLOC!G316,FUNCALLOC!G393) -> 19056918.89 | G91: =SUM(FUNCALLOC!H261,FUNCALLOC!H270,FUNCALLOC!H276,FUNCALLOC!H285,FUNCALLOC!H300,FUNCALLOC!H316,FUNCALLOC!H393) -> 5744913.114 | H91: =SUM(FUNCALLOC!I261,FUNCALLOC!I270,FUNCALLOC!I276,FUNCALLOC!I285,FUNCALLOC!I300,FUNCALLOC!I316,FUNCALLOC!I393) -> 6423.511963 | I91: =SUM(FUNCALLOC!J261,FUNCALLOC!J270,FUNCALLOC!J276,FUNCALLOC!J285,FUNCALLOC!J300,FUNCALLOC!J316,FUNCALLOC!J393) -> 0 | J91: =SUM(FUNCALLOC!K261,FUNCALLOC!K270,FUNCALLOC!K276,FUNCALLOC!K285,FUNCALLOC!K300,FUNCALLOC!K316,FUNCALLOC!K393) -> 0 | K91: =SUM(FUNCALLOC!L261,FUNCALLOC!L270,FUNCALLOC!L276,FUNCALLOC!L285,FUNCALLOC!L300,FUNCALLOC!L316,FUNCALLOC!L393) -> -0.3692706317 | L91: =SUM(FUNCALLOC!M261,FUNCALLOC!M270,FUNCALLOC!M276,FUNCALLOC!M285,FUNCALLOC!M300,FUNCALLOC!M316,FUNCALLOC!M393) -> -4.631900949 | M91: =SUM(FUNCALLOC!N261,FUNCALLOC!N270,FUNCALLOC!N276,FUNCALLOC!N285,FUNCALLOC!N300,FUNCALLOC!N316,FUNCALLOC!N393) -> 380230.2663 | N91: =SUM(FUNCALLOC!O261,FUNCALLOC!O270,FUNCALLOC!O276,FUNCALLOC!O285,FUNCALLOC!O300,FUNCALLOC!O316,FUNCALLOC!O393) -> 5224849.423 | O91: =SUM(FUNCALLOC!P261,FUNCALLOC!P270,FUNCALLOC!P276,FUNCALLOC!P285,FUNCALLOC!P300,FUNCALLOC!P316,FUNCALLOC!P393) -> 42195633.62 | P91: =SUM(FUNCALLOC!Q261,FUNCALLOC!Q270,FUNCALLOC!Q276,FUNCALLOC!Q285,FUNCALLOC!Q300,FUNCALLOC!Q316,FUNCALLOC!Q393) -> 3348.709411 | Q91: =SUM(FUNCALLOC!R261,FUNCALLOC!R270,FUNCALLOC!R276,FUNCALLOC!R285,FUNCALLOC!R300,FUNCALLOC!R316,FUNCALLOC!R393) -> 370493.4268 | R91: =SUM(FUNCALLOC!S261,FUNCALLOC!S270,FUNCALLOC!S276,FUNCALLOC!S285,FUNCALLOC!S300,FUNCALLOC!S316,FUNCALLOC!S393) -> 22757772.29 | S91: =SUM(FUNCALLOC!T261,FUNCALLOC!T270,FUNCALLOC!T276,FUNCALLOC!T285,FUNCALLOC!T300,FUNCALLOC!T316,FUNCALLOC!T393) -> 61129.54145 | T91: =SUM(FUNCALLOC!U261,FUNCALLOC!U270,FUNCALLOC!U276,FUNCALLOC!U285,FUNCALLOC!U300,FUNCALLOC!U316,FUNCALLOC!U393) -> 112097.0936 | U91: =SUM(FUNCALLOC!V261,FUNCALLOC!V270,FUNCALLOC!V276,FUNCALLOC!V285,FUNCALLOC!V300,FUNCALLOC!V316,FUNCALLOC!V393) -> 2668.298838 | V91: =SUM(FUNCALLOC!W261,FUNCALLOC!W270,FUNCALLOC!W276,FUNCALLOC!W285,FUNCALLOC!W300,FUNCALLOC!W316,FUNCALLOC!W393) -> 0 | W91: =SUM(FUNCALLOC!X261,FUNCALLOC!X270,FUNCALLOC!X276,FUNCALLOC!X285,FUNCALLOC!X300,FUNCALLOC!X316,FUNCALLOC!X393) -> 0 | X91: =SUM(FUNCALLOC!Y261,FUNCALLOC!Y270,FUNCALLOC!Y276,FUNCALLOC!Y285,FUNCALLOC!Y300,FUNCALLOC!Y316,FUNCALLOC!Y393) -> 0 | Y91: =SUM(FUNCALLOC!Z261,FUNCALLOC!Z270,FUNCALLOC!Z276,FUNCALLOC!Z285,FUNCALLOC!Z300,FUNCALLOC!Z316,FUNCALLOC!Z393) -> 0 | Z91: =SUM(FUNCALLOC!AA261,FUNCALLOC!AA270,FUNCALLOC!AA276,FUNCALLOC!AA285,FUNCALLOC!AA300,FUNCALLOC!AA316,FUNCALLOC!AA393) -> 0 | AA91: =SUM(FUNCALLOC!AB261,FUNCALLOC!AB270,FUNCALLOC!AB276,FUNCALLOC!AB285,FUNCALLOC!AB300,FUNCALLOC!AB316,FUNCALLOC!AB393) -> 0 | AB91: =SUM(FUNCALLOC!AC261,FUNCALLOC!AC270,FUNCALLOC!AC276,FUNCALLOC!AC285,FUNCALLOC!AC300,FUNCALLOC!AC316,FUNCALLOC!AC393) -> 627352164.7 | AC91: =SUM(FUNCALLOC!AD261,FUNCALLOC!AD270,FUNCALLOC!AD276,FUNCALLOC!AD285,FUNCALLOC!AD300,FUNCALLOC!AD316,FUNCALLOC!AD393) -> 0 | AD91: =SUM(FUNCALLOC!AE261,FUNCALLOC!AE270,FUNCALLOC!AE276,FUNCALLOC!AE285,FUNCALLOC!AE300,FUNCALLOC!AE316,FUNCALLOC!AE393) -> 0 | AE91: =SUM(FUNCALLOC!AF261,FUNCALLOC!AF270,FUNCALLOC!AF276,FUNCALLOC!AF285,FUNCALLOC!AF300,FUNCALLOC!AF316,FUNCALLOC!AF393) -> 0 | AF91: =SUM(FUNCALLOC!AG261,FUNCALLOC!AG270,FUNCALLOC!AG276,FUNCALLOC!AG285,FUNCALLOC!AG300,FUNCALLOC!AG316,FUNCALLOC!AG393) -> 0 | AG91: =SUM(FUNCALLOC!AH261,FUNCALLOC!AH270,FUNCALLOC!AH276,FUNCALLOC!AH285,FUNCALLOC!AH300,FUNCALLOC!AH316,FUNCALLOC!AH393) -> 0 | AH91: =SUM(FUNCALLOC!AI261,FUNCALLOC!AI270,FUNCALLOC!AI276,FUNCALLOC!AI285,FUNCALLOC!AI300,FUNCALLOC!AI316,FUNCALLOC!AI393) -> 0 | AI91: =SUM(FUNCALLOC!AJ261,FUNCALLOC!AJ270,FUNCALLOC!AJ276,FUNCALLOC!AJ285,FUNCALLOC!AJ300,FUNCALLOC!AJ316,FUNCALLOC!AJ393) -> 0 | AJ91: =SUM(FUNCALLOC!AK261,FUNCALLOC!AK270,FUNCALLOC!AK276,FUNCALLOC!AK285,FUNCALLOC!AK300,FUNCALLOC!AK316,FUNCALLOC!AK393) -> 0 | AK91: =SUM(FUNCALLOC!AL261,FUNCALLOC!AL270,FUNCALLOC!AL276,FUNCALLOC!AL285,FUNCALLOC!AL300,FUNCALLOC!AL316,FUNCALLOC!AL393) -> 12112095.75 | AL91: =SUM(FUNCALLOC!AM261,FUNCALLOC!AM270,FUNCALLOC!AM276,FUNCALLOC!AM285,FUNCALLOC!AM300,FUNCALLOC!AM316,FUNCALLOC!AM393) -> 2348493.477 | AM91: =SUM(FUNCALLOC!AN261,FUNCALLOC!AN270,FUNCALLOC!AN276,FUNCALLOC!AN285,FUNCALLOC!AN300,FUNCALLOC!AN316,FUNCALLOC!AN393) -> 0 | AN91: =SUM(FUNCALLOC!AO261,FUNCALLOC!AO270,FUNCALLOC!AO276,FUNCALLOC!AO285,FUNCALLOC!AO300,FUNCALLOC!AO316,FUNCALLOC!AO393) -> 0 | AO91: =SUM(FUNCALLOC!AP261,FUNCALLOC!AP270,FUNCALLOC!AP276,FUNCALLOC!AP285,FUNCALLOC!AP300,FUNCALLOC!AP316,FUNCALLOC!AP393) -> 0 | AP91: =SUM(FUNCALLOC!AQ261,FUNCALLOC!AQ270,FUNCALLOC!AQ276,FUNCALLOC!AQ285,FUNCALLOC!AQ300,FUNCALLOC!AQ316,FUNCALLOC!AQ393) -> 0 | AQ91: =SUM(FUNCALLOC!AR261,FUNCALLOC!AR270,FUNCALLOC!AR276,FUNCALLOC!AR285,FUNCALLOC!AR300,FUNCALLOC!AR316,FUNCALLOC!AR393) -> 0 | AR91: =SUM(FUNCALLOC!AS261,FUNCALLOC!AS270,FUNCALLOC!AS276,FUNCALLOC!AS285,FUNCALLOC!AS300,FUNCALLOC!AS316,FUNCALLOC!AS393) -> 0 | AS91: =SUM(FUNCALLOC!AT261,FUNCALLOC!AT270,FUNCALLOC!AT276,FUNCALLOC!AT285,FUNCALLOC!AT300,FUNCALLOC!AT316,FUNCALLOC!AT393) -> 0 | AT91: =SUM(FUNCALLOC!AU261,FUNCALLOC!AU270,FUNCALLOC!AU276,FUNCALLOC!AU285,FUNCALLOC!AU300,FUNCALLOC!AU316,FUNCALLOC!AU393) -> 0 | AU91: =SUM(FUNCALLOC!AV261,FUNCALLOC!AV270,FUNCALLOC!AV276,FUNCALLOC!AV285,FUNCALLOC!AV300,FUNCALLOC!AV316,FUNCALLOC!AV393) -> 0 | AV91: =SUM(FUNCALLOC!AW261,FUNCALLOC!AW270,FUNCALLOC!AW276,FUNCALLOC!AW285,FUNCALLOC!AW300,FUNCALLOC!AW316,FUNCALLOC!AW393) -> 0 | AW91: =SUM(FUNCALLOC!AX261,FUNCALLOC!AX270,FUNCALLOC!AX276,FUNCALLOC!AX285,FUNCALLOC!AX300,FUNCALLOC!AX316,FUNCALLOC!AX393) -> 0 | AX91: =SUM(FUNCALLOC!AY261,FUNCALLOC!AY270,FUNCALLOC!AY276,FUNCALLOC!AY285,FUNCALLOC!AY300,FUNCALLOC!AY316,FUNCALLOC!AY393) -> 0 | AY91: =SUM(FUNCALLOC!AZ261,FUNCALLOC!AZ270,FUNCALLOC!AZ276,FUNCALLOC!AZ285,FUNCALLOC!AZ300,FUNCALLOC!AZ316,FUNCALLOC!AZ393) -> 0 | AZ91: =SUM(FUNCALLOC!BA261,FUNCALLOC!BA270,FUNCALLOC!BA276,FUNCALLOC!BA285,FUNCALLOC!BA300,FUNCALLOC!BA316,FUNCALLOC!BA393) -> 0 | BA91: =SUM(FUNCALLOC!BB261,FUNCALLOC!BB270,FUNCALLOC!BB276,FUNCALLOC!BB285,FUNCALLOC!BB300,FUNCALLOC!BB316,FUNCALLOC!BB393) -> 0 | BB91: =SUM(FUNCALLOC!BC261,FUNCALLOC!BC270,FUNCALLOC!BC276,FUNCALLOC!BC285,FUNCALLOC!BC300,FUNCALLOC!BC316,FUNCALLOC!BC393) -> 0 | BC91: =SUM(FUNCALLOC!BD261,FUNCALLOC!BD270,FUNCALLOC!BD276,FUNCALLOC!BD285,FUNCALLOC!BD300,FUNCALLOC!BD316,FUNCALLOC!BD393) -> 0 | BD91: =SUM(FUNCALLOC!BE261,FUNCALLOC!BE270,FUNCALLOC!BE276,FUNCALLOC!BE285,FUNCALLOC!BE300,FUNCALLOC!BE316,FUNCALLOC!BE393) -> 0 | BE91: =SUM(FUNCALLOC!BF261,FUNCALLOC!BF270,FUNCALLOC!BF276,FUNCALLOC!BF285,FUNCALLOC!BF300,FUNCALLOC!BF316,FUNCALLOC!BF393) -> 0 | BF91: =SUM(FUNCALLOC!BG261,FUNCALLOC!BG270,FUNCALLOC!BG276,FUNCALLOC!BG285,FUNCALLOC!BG300,FUNCALLOC!BG316,FUNCALLOC!BG393) -> 0 | BG91: =SUM(FUNCALLOC!BH261,FUNCALLOC!BH270,FUNCALLOC!BH276,FUNCALLOC!BH285,FUNCALLOC!BH300,FUNCALLOC!BH316,FUNCALLOC!BH393) -> 0 | BH91: =SUM(FUNCALLOC!BI261,FUNCALLOC!BI270,FUNCALLOC!BI276,FUNCALLOC!BI285,FUNCALLOC!BI300,FUNCALLOC!BI316,FUNCALLOC!BI393) -> 0 | BI91: =SUM(FUNCALLOC!BJ261,FUNCALLOC!BJ270,FUNCALLOC!BJ276,FUNCALLOC!BJ285,FUNCALLOC!BJ300,FUNCALLOC!BJ316,FUNCALLOC!BJ393) -> 0 | BJ91: =SUM(FUNCALLOC!BK261,FUNCALLOC!BK270,FUNCALLOC!BK276,FUNCALLOC!BK285,FUNCALLOC!BK300,FUNCALLOC!BK316,FUNCALLOC!BK393) -> 0 | BK91: =SUM(FUNCALLOC!BL261,FUNCALLOC!BL270,FUNCALLOC!BL276,FUNCALLOC!BL285,FUNCALLOC!BL300,FUNCALLOC!BL316,FUNCALLOC!BL393) -> 0 | BL91: =SUM(FUNCALLOC!BM261,FUNCALLOC!BM270,FUNCALLOC!BM276,FUNCALLOC!BM285,FUNCALLOC!BM300,FUNCALLOC!BM316,FUNCALLOC!BM393) -> 0 | BM91: =SUM(FUNCALLOC!BN261,FUNCALLOC!BN270,FUNCALLOC!BN276,FUNCALLOC!BN285,FUNCALLOC!BN300,FUNCALLOC!BN316,FUNCALLOC!BN393) -> 0 | BN91: =SUM(FUNCALLOC!BO261,FUNCALLOC!BO270,FUNCALLOC!BO276,FUNCALLOC!BO285,FUNCALLOC!BO300,FUNCALLOC!BO316,FUNCALLOC!BO393) -> 0 | BO91: =SUM(FUNCALLOC!BP261,FUNCALLOC!BP270,FUNCALLOC!BP276,FUNCALLOC!BP285,FUNCALLOC!BP300,FUNCALLOC!BP316,FUNCALLOC!BP393) -> 0 | BP91: =SUM(FUNCALLOC!BQ261,FUNCALLOC!BQ270,FUNCALLOC!BQ276,FUNCALLOC!BQ285,FUNCALLOC!BQ300,FUNCALLOC!BQ316,FUNCALLOC!BQ393) -> 0 | BQ91: =SUM(FUNCALLOC!BR261,FUNCALLOC!BR270,FUNCALLOC!BR276,FUNCALLOC!BR285,FUNCALLOC!BR300,FUNCALLOC!BR316,FUNCALLOC!BR393) -> 0 | BR91: =SUM(FUNCALLOC!BS261,FUNCALLOC!BS270,FUNCALLOC!BS276,FUNCALLOC!BS285,FUNCALLOC!BS300,FUNCALLOC!BS316,FUNCALLOC!BS393) -> 0 | BS91: =SUM(FUNCALLOC!BT261,FUNCALLOC!BT270,FUNCALLOC!BT276,FUNCALLOC!BT285,FUNCALLOC!BT300,FUNCALLOC!BT316,FUNCALLOC!BT393) -> 0 | BT91: =SUM(FUNCALLOC!BU261,FUNCALLOC!BU270,FUNCALLOC!BU276,FUNCALLOC!BU285,FUNCALLOC!BU300,FUNCALLOC!BU316,FUNCALLOC!BU393) -> 0 | BU91: =SUM(FUNCALLOC!BV261,FUNCALLOC!BV270,FUNCALLOC!BV276,FUNCALLOC!BV285,FUNCALLOC!BV300,FUNCALLOC!BV316,FUNCALLOC!BV393) -> 0 | BV91: =SUM(FUNCALLOC!BW261,FUNCALLOC!BW270,FUNCALLOC!BW276,FUNCALLOC!BW285,FUNCALLOC!BW300,FUNCALLOC!BW316,FUNCALLOC!BW393) -> 0 | BW91: =SUM(FUNCALLOC!BX261,FUNCALLOC!BX270,FUNCALLOC!BX276,FUNCALLOC!BX285,FUNCALLOC!BX300,FUNCALLOC!BX316,FUNCALLOC!BX393) -> 0 | BX91: =SUM(FUNCALLOC!BY261,FUNCALLOC!BY270,FUNCALLOC!BY276,FUNCALLOC!BY285,FUNCALLOC!BY300,FUNCALLOC!BY316,FUNCALLOC!BY393) -> 0 | BY91: =SUM(FUNCALLOC!BZ261,FUNCALLOC!BZ270,FUNCALLOC!BZ276,FUNCALLOC!BZ285,FUNCALLOC!BZ300,FUNCALLOC!BZ316,FUNCALLOC!BZ393) -> 0
D92: =IF((D91=0)*OR($C91=0),0,D91/$C91) -> 0 | E92: 0.2309226739 | F92: 0.01986669862 | G92: 0.005989029922 | H92: 6.696464262e-06 | I92: 0 | J92: 0 | K92: -3.84961934e-10 | L92: -4.828722877e-09 | M92: 0.0003963872729 | N92: 0.005446867326 | O92: 0.04398863958 | P92: 3.49100508e-06 | Q92: 0.0003862366889 | R92: 0.02372481124 | S92: 6.372710007e-05 | T92: 0.0001168604006 | U92: 2.781682031e-06 | V92: 0 | W92: 0 | X92: 0 | Y92: 0 | Z92: 0 | AA92: 0 | AB92: 0.6540100454 | AC92: 0 | AD92: 0 | AE92: 0 | AF92: 0 | AG92: 0 | AH92: 0 | AI92: 0 | AJ92: 0 | AK92: 0.01262677127 | AL92: 0.00244828728 | AM92: 0 | AN92: 0 | AO92: 0 | AP92: 0 | AQ92: 0 | AR92: 0 | AS92: 0 | AT92: 0 | AU92: 0 | AV92: 0 | AW92: 0 | AX92: 0 | AY92: 0 | AZ92: 0 | BA92: 0 | BB92: 0 | BC92: 0 | BD92: 0 | BE92: 0 | BF92: 0 | BG92: 0 | BH92: 0 | BI92: 0 | BJ92: 0 | BK92: 0 | BL92: 0 | BM92: 0 | BN92: 0 | BO92: 0 | BP92: =IF((BP91=0)*OR($C91=0),0,BP91/$C91) -> 0 | BQ92: 0 | BR92: 0 | BS92: 0 | BT92: 0 | BU92: 0 | BV92: 0 | BW92: 0 | BX92: 0 | BY92: 0
A94: ~ | C94: =SUM(D94:BA94) -> 0
A95: ~ | D95: =IF((D94=0)*OR($C94=0),0,D94/$C94) -> 0 | E95: 0 | F95: 0 | G95: 0 | H95: 0 | I95: 0 | J95: 0 | K95: 0 | L95: 0 | M95: 0 | N95: 0 | O95: 0 | P95: 0 | Q95: 0 | R95: 0 | S95: 0 | T95: 0 | U95: 0 | V95: 0 | W95: 0 | X95: 0 | Y95: 0 | Z95: 0 | AA95: 0 | AB95: 0 | AC95: 0 | AD95: 0 | AE95: 0 | AF95: 0 | AG95: 0 | AH95: 0 | AI95: 0 | AJ95: =IF((AJ94=0)*OR($C94=0),0,AJ94/$C94) -> 0 | AK95: 0 | AL95: 0 | AM95: 0 | AN95: 0 | AO95: 0 | AP95: 0 | AQ95: 0 | AR95: =IF((AR94=0)*OR($C94=0),0,AR94/$C94) -> 0 | AS95: 0 | AT95: 0 | AU95: 0 | AV95: 0 | AW95: 0 | AX95: 0 | AY95: 0 | AZ95: 0 | BA95: =IF((BA94=0)*OR($C94=0),0,BA94/$C94) -> 0 | BB95: 0 | BC95: 0 | BD95: 0 | BE95: 0 | BF95: 0 | BG95: 0 | BH95: 0 | BI95: 0 | BJ95: 0 | BK95: 0 | BL95: 0 | BM95: 0 | BN95: 0 | BO95: 0 | BP95: 0 | BQ95: 0 | BR95: 0 | BS95: 0 | BT95: 0 | BU95: 0 | BV95: 0 | BW95: 0 | BX95: 0 | BY95: 0
A96: ~
A97: ~ | C97: =SUM(D97:BA97) -> 0
A98: ~ | D98: =IF((D97=0)*OR($C97=0),0,D97/$C97) -> 0 | E98: 0 | F98: 0 | G98: 0 | H98: 0 | I98: 0 | J98: 0 | K98: 0 | L98: 0 | M98: 0 | N98: 0 | O98: 0 | P98: 0 | Q98: 0 | R98: 0 | S98: 0 | T98: 0 | U98: 0 | V98: 0 | W98: 0 | X98: 0 | Y98: 0 | Z98: 0 | AA98: 0 | AB98: 0 | AC98: 0 | AD98: 0 | AE98: 0 | AF98: 0 | AG98: 0 | AH98: 0 | AI98: 0 | AJ98: =IF((AJ97=0)*OR($C97=0),0,AJ97/$C97) -> 0 | AK98: 0 | AL98: 0 | AM98: 0 | AN98: 0 | AO98: 0 | AP98: 0 | AQ98: 0 | AR98: =IF((AR97=0)*OR($C97=0),0,AR97/$C97) -> 0 | AS98: 0 | AT98: 0 | AU98: 0 | AV98: 0 | AW98: 0 | AX98: 0 | AY98: 0 | AZ98: 0 | BA98: =IF((BA97=0)*OR($C97=0),0,BA97/$C97) -> 0 | BB98: 0 | BC98: 0 | BD98: 0 | BE98: 0 | BF98: 0 | BG98: 0 | BH98: 0 | BI98: 0 | BJ98: 0 | BK98: 0 | BL98: 0 | BM98: 0 | BN98: 0 | BO98: 0 | BP98: 0 | BQ98: 0 | BR98: 0 | BS98: 0 | BT98: 0 | BU98: 0 | BV98: 0 | BW98: 0 | BX98: 0 | BY98: 0
A99: ~
A100: ~ | C100: =SUM(D100:BA100) -> 0
A101: ~ | D101: =IF((D100=0)*OR($C100=0),0,D100/$C100) -> 0 | E101: 0 | F101: 0 | G101: 0 | H101: 0 | I101: 0 | J101: 0 | K101: 0 | L101: 0 | M101: 0 | N101: 0 | O101: 0 | P101: 0 | Q101: 0 | R101: 0 | S101: 0 | T101: 0 | U101: 0 | V101: 0 | W101: 0 | X101: 0 | Y101: 0 | Z101: 0 | AA101: 0 | AB101: 0 | AC101: 0 | AD101: 0 | AE101: 0 | AF101: 0 | AG101: 0 | AH101: 0 | AI101: 0 | AJ101: =IF((AJ100=0)*OR($C100=0),0,AJ100/$C100) -> 0 | AK101: 0 | AL101: 0 | AM101: 0 | AN101: 0 | AO101: 0 | AP101: 0 | AQ101: 0 | AR101: =IF((AR100=0)*OR($C100=0),0,AR100/$C100) -> 0 | AS101: 0 | AT101: 0 | AU101: 0 | AV101: 0 | AW101: 0 | AX101: 0 | AY101: 0 | AZ101: 0 | BA101: =IF((BA100=0)*OR($C100=0),0,BA100/$C100) -> 0 | BB101: 0 | BC101: 0 | BD101: 0 | BE101: 0 | BF101: 0 | BG101: 0 | BH101: 0 | BI101: 0 | BJ101: 0 | BK101: 0 | BL101: 0 | BM101: 0 | BN101: 0 | BO101: 0 | BP101: 0 | BQ101: 0 | BR101: 0 | BS101: 0 | BT101: 0 | BU101: 0 | BV101: 0 | BW101: 0 | BX101: 0 | BY101: 0
A102: ~
A103: ~ | C103: =SUM(D103:BA103) -> 0
A104: ~ | D104: =IF((D103=0)*OR($C103=0),0,D103/$C103) -> 0 | E104: 0 | F104: 0 | G104: 0 | H104: 0 | I104: 0 | J104: 0 | K104: 0 | L104: 0 | M104: 0 | N104: 0 | O104: 0 | P104: 0 | Q104: 0 | R104: 0 | S104: 0 | T104: 0 | U104: 0 | V104: 0 | W104: 0 | X104: 0 | Y104: 0 | Z104: 0 | AA104: 0 | AB104: 0 | AC104: 0 | AD104: 0 | AE104: 0 | AF104: 0 | AG104: 0 | AH104: 0 | AI104: 0 | AJ104: =IF((AJ103=0)*OR($C103=0),0,AJ103/$C103) -> 0 | AK104: 0 | AL104: 0 | AM104: 0 | AN104: 0 | AO104: 0 | AP104: 0 | AQ104: 0 | AR104: =IF((AR103=0)*OR($C103=0),0,AR103/$C103) -> 0 | AS104: 0 | AT104: 0 | AU104: 0 | AV104: 0 | AW104: 0 | AX104: 0 | AY104: 0 | AZ104: 0 | BA104: =IF((BA103=0)*OR($C103=0),0,BA103/$C103) -> 0 | BB104: 0 | BC104: 0 | BD104: 0 | BE104: 0 | BF104: 0 | BG104: 0 | BH104: 0 | BI104: 0 | BJ104: 0 | BK104: 0 | BL104: 0 | BM104: 0 | BN104: 0 | BO104: 0 | BP104: 0 | BQ104: 0 | BR104: 0 | BS104: 0 | BT104: 0 | BU104: 0 | BV104: 0 | BW104: 0 | BX104: 0 | BY104: 0
A105: ~
A106: ~ | C106: =SUM(D106:BA106) -> 0
A107: ~ | D107: =IF((D106=0)*OR($C106=0),0,D106/$C106) -> 0 | E107: 0 | F107: 0 | G107: 0 | H107: 0 | I107: 0 | J107: 0 | K107: 0 | L107: 0 | M107: 0 | N107: 0 | O107: 0 | P107: 0 | Q107: 0 | R107: 0 | S107: 0 | T107: 0 | U107: 0 | V107: 0 | W107: 0 | X107: 0 | Y107: 0 | Z107: 0 | AA107: 0 | AB107: 0 | AC107: 0 | AD107: 0 | AE107: 0 | AF107: 0 | AG107: 0 | AH107: 0 | AI107: 0 | AJ107: =IF((AJ106=0)*OR($C106=0),0,AJ106/$C106) -> 0 | AK107: 0 | AL107: 0 | AM107: 0 | AN107: 0 | AO107: 0 | AP107: 0 | AQ107: 0 | AR107: =IF((AR106=0)*OR($C106=0),0,AR106/$C106) -> 0 | AS107: 0 | AT107: 0 | AU107: 0 | AV107: 0 | AW107: 0 | AX107: 0 | AY107: 0 | AZ107: 0 | BA107: =IF((BA106=0)*OR($C106=0),0,BA106/$C106) -> 0 | BB107: 0 | BC107: 0 | BD107: 0 | BE107: 0 | BF107: 0 | BG107: 0 | BH107: 0 | BI107: 0 | BJ107: 0 | BK107: 0 | BL107: 0 | BM107: 0 | BN107: 0 | BO107: 0 | BP107: 0 | BQ107: 0 | BR107: 0 | BS107: 0 | BT107: 0 | BU107: 0 | BV107: 0 | BW107: 0 | BX107: 0 | BY107: 0
A108: ~
A109: ~ | C109: =SUM(D109:BA109) -> 0
A110: ~ | D110: =IF((D109=0)*OR($C109=0),0,D109/$C109) -> 0 | E110: 0 | F110: 0 | G110: 0 | H110: 0 | I110: 0 | J110: 0 | K110: 0 | L110: 0 | M110: 0 | N110: 0 | O110: 0 | P110: 0 | Q110: 0 | R110: 0 | S110: 0 | T110: 0 | U110: 0 | V110: 0 | W110: 0 | X110: 0 | Y110: 0 | Z110: 0 | AA110: 0 | AB110: 0 | AC110: 0 | AD110: 0 | AE110: 0 | AF110: 0 | AG110: 0 | AH110: 0 | AI110: 0 | AJ110: =IF((AJ109=0)*OR($C109=0),0,AJ109/$C109) -> 0 | AK110: 0 | AL110: 0 | AM110: 0 | AN110: 0 | AO110: 0 | AP110: 0 | AQ110: 0 | AR110: =IF((AR109=0)*OR($C109=0),0,AR109/$C109) -> 0 | AS110: 0 | AT110: 0 | AU110: 0 | AV110: 0 | AW110: 0 | AX110: 0 | AY110: 0 | AZ110: 0 | BA110: =IF((BA109=0)*OR($C109=0),0,BA109/$C109) -> 0 | BB110: 0 | BC110: 0 | BD110: 0 | BE110: 0 | BF110: 0 | BG110: 0 | BH110: 0 | BI110: 0 | BJ110: 0 | BK110: 0 | BL110: 0 | BM110: 0 | BN110: 0 | BO110: 0 | BP110: 0 | BQ110: 0 | BR110: 0 | BS110: 0 | BT110: 0 | BU110: 0 | BV110: 0 | BW110: 0 | BX110: 0 | BY110: 0
A111: ~

Sheet ACCOUNTS
A1: Account Inputs
A3: No. | B3: Account Description | D3: =+INPUTS!B5 -> Historic Test Year Twelve Months ended December 2018 | E3: Restating & Pro Forma Adjustments | F3: Rate Increase Related Adjustments | G3: =INPUTS!B6 -> Adjusted Test Year Twelve Months ended December 2018 @ Proforma Rev Requirement | I3: Function | J3: Classifier | K3: =INPUTS!$B$42 -> DEM | L3: =INPUTS!$B$43 -> NRG | M3: =INPUTS!$B$44 -> CUS | N3: =INPUTS!$B$45 -> ~ | O3: =INPUTS!$B$46 -> ~ | P3: =INPUTS!$B$47 -> ~ | R3: Internal
A5: RATE BASE
A7: Plant-in-Service
B9: Intangible Plant
A10: 300 | B10: Generation/Transmission | C10: =CHOOSE(INPUTS!$C$11,SUM($D10),SUM($D10,$E10),SUM($D10,$E10,$F10),$G10,$G10) -> 77723700.54 | D10: =+'[2]COS Account Input'!C10 -> 77723700.54 | E10: =+'[2]COS Account Input'!D10 -> 0 | F10: =+'[2]COS Account Input'!E10 -> 0 | G10: =D10+E10+F10 -> 77723700.54 | I10: F_PRODU | J10: _PC4 | K10: DEM_2B | L10: ENERGY_2
A11: 300.01 | B11: Distribution | C11: =CHOOSE(INPUTS!$C$11,SUM($D11),SUM($D11,$E11),SUM($D11,$E11,$F11),$G11,$G11) -> 48660476.44 | D11: =+'[2]COS Account Input'!C11 -> 48660476.44 | E11: =+'[2]COS Account Input'!D11 -> 0 | F11: =+'[2]COS Account Input'!E11 -> 0 | G11: =D11+E11+F11 -> 48660476.44 | R11: DP.T
A12: 300.02 | B12: Other | C12: =CHOOSE(INPUTS!$C$11,SUM($D12),SUM($D12,$E12),SUM($D12,$E12,$F12),$G12,$G12) -> 306106347.1 | D12: =+'[2]COS Account Input'!C12 -> 255525499.3 | E12: =+'[2]COS Account Input'!D12 -> 50580847.77 | F12: =+'[2]COS Account Input'!E12 -> 0 | G12: =D12+E12+F12 -> 306106347.1 | R12: GP.T
B13: Sub-total | C13: =SUM(C10:C12) -> 432490524 | D13: =SUM(D10:D12) -> 381909676.3 | E13: =SUM(E10:E12) -> 50580847.77 | F13: =SUM(F10:F12) -> 0 | G13: =SUM(G10:G12) -> 432490524
B15: Production Plant
A16: 310 | B16: Thermal Baseload Generation | C16: =CHOOSE(INPUTS!$C$11,SUM($D16),SUM($D16,$E16),SUM($D16,$E16,$F16),$G16,$G16) -> 1396510000 | D16: =+'[2]COS Account Input'!C16 -> 1400303421 | E16: =+'[2]COS Account Input'!D16 -> -3793421 | F16: =+'[2]COS Account Input'!E16 -> 0 | G16: =D16+E16+F16 -> 1396510000 | I16: F_PRODU | J16: _PC4 | K16: DEM_2B | L16: ENERGY_2
A17: 330 | B17: Hydro Baseload Generation | C17: =CHOOSE(INPUTS!$C$11,SUM($D17),SUM($D17,$E17),SUM($D17,$E17,$F17),$G17,$G17) -> 729618000 | D17: =+'[2]COS Account Input'!C17 -> 721052179 | E17: =+'[2]COS Account Input'!D17 -> 8565821 | F17: =+'[2]COS Account Input'!E17 -> 0 | G17: 729618000 | I17: F_PRODU | J17: _PC4 | K17: DEM_2B | L17: ENERGY_2
A18: 340 | B18: Other Production Generation | C18: =CHOOSE(INPUTS!$C$11,SUM($D18),SUM($D18,$E18),SUM($D18,$E18,$F18),$G18,$G18) -> 1971707000 | D18: =+'[2]COS Account Input'!C18 -> 1966002966 | E18: =+'[2]COS Account Input'!D18 -> 5704034 | F18: =+'[2]COS Account Input'!E18 -> 0 | G18: 1971707000 | I18: F_PRODU | J18: _PC4 | K18: DEM_2B | L18: ENERGY_2
A19: ~ | B19: ~ | C19: =CHOOSE(INPUTS!$C$11,SUM($D19),SUM($D19,$E19),SUM($D19,$E19,$F19),$G19,$G19) -> 0 | D19: =+'[2]COS Account Input'!C19 -> 0 | E19: =+'[2]COS Account Input'!D19 -> 0 | F19: =+'[2]COS Account Input'!E19 -> 0 | G19: 0
A20: ~ | B20: ~ | C20: =CHOOSE(INPUTS!$C$11,SUM($D20),SUM($D20,$E20),SUM($D20,$E20,$F20),$G20,$G20) -> 0 | D20: =+'[2]COS Account Input'!C20 -> 0 | E20: =+'[2]COS Account Input'!D20 -> 0 | F20: =+'[2]COS Account Input'!E20 -> 0 | G20: 0
A21: ~ | B21: ~ | C21: =CHOOSE(INPUTS!$C$11,SUM($D21),SUM($D21,$E21),SUM($D21,$E21,$F21),$G21,$G21) -> 0 | D21: =+'[2]COS Account Input'!C21 -> 0 | E21: =+'[2]COS Account Input'!D21 -> 0 | F21: =+'[2]COS Account Input'!E21 -> 0 | G21: 0
A22: ~ | B22: ~ | C22: =CHOOSE(INPUTS!$C$11,SUM($D22),SUM($D22,$E22),SUM($D22,$E22,$F22),$G22,$G22) -> 0 | D22: =+'[2]COS Account Input'!C22 -> 0 | E22: =+'[2]COS Account Input'!D22 -> 0 | F22: =+'[2]COS Account Input'!E22 -> 0 | G22: 0
A23: ~ | B23: ~ | C23: =CHOOSE(INPUTS!$C$11,SUM($D23),SUM($D23,$E23),SUM($D23,$E23,$F23),$G23,$G23) -> 0 | D23: =+'[2]COS Account Input'!C23 -> 0 | E23: =+'[2]COS Account Input'!D23 -> 0 | F23: =+'[2]COS Account Input'!E23 -> 0 | G23: 0
A24: ~ | B24: ~ | C24: =CHOOSE(INPUTS!$C$11,SUM($D24),SUM($D24,$E24),SUM($D24,$E24,$F24),$G24,$G24) -> 0 | D24: =+'[2]COS Account Input'!C24 -> 0 | E24: =+'[2]COS Account Input'!D24 -> 0 | F24: =+'[2]COS Account Input'!E24 -> 0 | G24: 0
A25: ~ | B25: ~ | C25: =CHOOSE(INPUTS!$C$11,SUM($D25),SUM($D25,$E25),SUM($D25,$E25,$F25),$G25,$G25) -> 0 | D25: =+'[2]COS Account Input'!C25 -> 0 | E25: =+'[2]COS Account Input'!D25 -> 0 | F25: =+'[2]COS Account Input'!E25 -> 0 | G25: 0
A26: ~ | B26: ~ | C26: =CHOOSE(INPUTS!$C$11,SUM($D26),SUM($D26,$E26),SUM($D26,$E26,$F26),$G26,$G26) -> 0 | D26: =+'[2]COS Account Input'!C26 -> 0 | E26: =+'[2]COS Account Input'!D26 -> 0 | F26: =+'[2]COS Account Input'!E26 -> 0 | G26: 0
A27: ~ | B27: ~ | C27: =CHOOSE(INPUTS!$C$11,SUM($D27),SUM($D27,$E27),SUM($D27,$E27,$F27),$G27,$G27) -> 0 | D27: =+'[2]COS Account Input'!C27 -> 0 | E27: =+'[2]COS Account Input'!D27 -> 0 | F27: =+'[2]COS Account Input'!E27 -> 0 | G27: 0
B28: Sub-total | C28: =SUM(C16:C27) -> 4097835000 | D28: =SUM(D16:D27) -> 4087358566 | E28: =SUM(E16:E27) -> 10476434 | F28: =SUM(F16:F27) -> 0 | G28: =SUM(G16:G27) -> 4097835000
B30: Transmission Plant
A31: 350 | B31: Washington Transmission Plant | C31: =CHOOSE(INPUTS!$C$11,SUM($D31),SUM($D31,$E31),SUM($D31,$E31,$F31),$G31,$G31) -> 1231639678 | D31: =+'[2]COS Account Input'!C31 -> 1202261348 | E31: =+'[2]COS Account Input'!D31 -> 29378330.37 | F31: =+'[2]COS Account Input'!E31 -> 0 | G31: =D31+E31+F31 -> 1231639678 | I31: F_TRANS | J31: _PC3 | K31: DEM_2A | L31: ENERGY_1
A32: 350.01 | B32: Washington Integrated Generation (GIF) Transmission Plant | C32: =CHOOSE(INPUTS!$C$11,SUM($D32),SUM($D32,$E32),SUM($D32,$E32,$F32),$G32,$G32) -> 176912910.8 | D32: =+'[2]COS Account Input'!C32 -> 176754568 | E32: =+'[2]COS Account Input'!D32 -> 158342.85 | F32: =+'[2]COS Account Input'!E32 -> 0 | G32: 176912910.8 | I32: F_TRANS | J32: _PC4 | K32: DEM_2B | L32: ENERGY_2
A33: 350.02 | B33: Washington Integrated Lease Facilities (LIF) Transmission Plant | C33: =CHOOSE(INPUTS!$C$11,SUM($D33),SUM($D33,$E33),SUM($D33,$E33,$F33),$G33,$G33) -> 405246.36 | D33: =+'[2]COS Account Input'!C33 -> 405246 | E33: =+'[2]COS Account Input'!D33 -> 0.36 | F33: =+'[2]COS Account Input'!E33 -> 0 | G33: 405246.36 | I33: F_TRANS | J33: DEM | K33: DIR_449
A34: 350.03 | B34: Non-Washington Transmission Plant | C34: =CHOOSE(INPUTS!$C$11,SUM($D34),SUM($D34,$E34),SUM($D34,$E34,$F34),$G34,$G34) -> 185779290.9 | D34: =+'[2]COS Account Input'!C34 -> 185680043 | E34: =+'[2]COS Account Input'!D34 -> 99247.94 | F34: =+'[2]COS Account Input'!E34 -> 0 | G34: 185779290.9 | I34: F_TRANS | J34: _PC4 | K34: DEM_2B | L34: ENERGY_2
A35: ~ | B35: ~ | C35: =CHOOSE(INPUTS!$C$11,SUM($D35),SUM($D35,$E35),SUM($D35,$E35,$F35),$G35,$G35) -> 0 | D35: =+'[2]COS Account Input'!C35 -> 0 | E35: =+'[2]COS Account Input'!D35 -> 0 | F35: =+'[2]COS Account Input'!E35 -> 0 | G35: 0
A36: ~ | B36: ~ | C36: =CHOOSE(INPUTS!$C$11,SUM($D36),SUM($D36,$E36),SUM($D36,$E36,$F36),$G36,$G36) -> 0 | D36: =+'[2]COS Account Input'!C36 -> 0 | E36: =+'[2]COS Account Input'!D36 -> 0 | F36: =+'[2]COS Account Input'!E36 -> 0 | G36: 0
A37: ~ | B37: ~ | C37: =CHOOSE(INPUTS!$C$11,SUM($D37),SUM($D37,$E37),SUM($D37,$E37,$F37),$G37,$G37) -> 0 | D37: =+'[2]COS Account Input'!C37 -> 0 | E37: =+'[2]COS Account Input'!D37 -> 0 | F37: =+'[2]COS Account Input'!E37 -> 0 | G37: 0
A38: ~ | B38: ~ | C38: =CHOOSE(INPUTS!$C$11,SUM($D38),SUM($D38,$E38),SUM($D38,$E38,$F38),$G38,$G38) -> 0 | D38: =+'[2]COS Account Input'!C38 -> 0 | E38: =+'[2]COS Account Input'!D38 -> 0 | F38: =+'[2]COS Account Input'!E38 -> 0 | G38: 0
B39: Sub-total | C39: =SUM(C31:C38) -> 1594737127 | D39: =SUM(D31:D38) -> 1565101205 | E39: =SUM(E31:E38) -> 29635921.52 | F39: =SUM(F31:F38) -> 0 | G39: =SUM(G31:G38) -> 1594737127
B41: Distribution Plant
A42: 360.01 | B42: Land & Land Rights - Assigned | C42: =CHOOSE(INPUTS!$C$11,SUM($D42),SUM($D42,$E42),SUM($D42,$E42,$F42),$G42,$G42) -> 3584294.51 | D42: =+'[2]COS Account Input'!C42 -> 3584294.51 | E42: =+'[2]COS Account Input'!D42 -> 0 | F42: =+'[2]COS Account Input'!E42 -> 0 | G42: =D42+E42+F42 -> 3584294.51 | I42: F_DISTR | J42: DEM | K42: DIR360.01
A43: 360.02 | B43: Land & Land Rights - Allocated | C43: =CHOOSE(INPUTS!$C$11,SUM($D43),SUM($D43,$E43),SUM($D43,$E43,$F43),$G43,$G43) -> 47903705.49 | D43: =+'[2]COS Account Input'!C43 -> 45886763.49 | E43: =+'[2]COS Account Input'!D43 -> 2016942 | F43: =+'[2]COS Account Input'!E43 -> 0 | G43: 47903705.49 | I43: F_DISTR | J43: DEM | K43: NCP_360
A44: 361.01 | B44: Structures & Improve - Assigned | C44: =CHOOSE(INPUTS!$C$11,SUM($D44),SUM($D44,$E44),SUM($D44,$E44,$F44),$G44,$G44) -> 598299.7945 | D44: =+'[2]COS Account Input'!C44 -> 598299.7945 | E44: =+'[2]COS Account Input'!D44 -> 0 | F44: =+'[2]COS Account Input'!E44 -> 0 | G44: 598299.7945 | I44: F_DISTR | J44: DEM | K44: DIR361.01
A45: 361.02 | B45: Structures & Improve - Allocated | C45: =CHOOSE(INPUTS!$C$11,SUM($D45),SUM($D45,$E45),SUM($D45,$E45,$F45),$G45,$G45) -> 7504700.206 | D45: =+'[2]COS Account Input'!C45 -> 7486859.206 | E45: =+'[2]COS Account Input'!D45 -> 17841 | F45: =+'[2]COS Account Input'!E45 -> 0 | G45: 7504700.206 | I45: F_DISTR | J45: DEM | K45: NCP_361
A46: 362.01 | B46: Station Equipment - Assigned | C46: =CHOOSE(INPUTS!$C$11,SUM($D46),SUM($D46,$E46),SUM($D46,$E46,$F46),$G46,$G46) -> 31963716.52 | D46: =+'[2]COS Account Input'!C46 -> 31963716.52 | E46: =+'[2]COS Account Input'!D46 -> 0 | F46: =+'[2]COS Account Input'!E46 -> 0 | G46: 31963716.52 | I46: F_DISTR | J46: DEM | K46: DIR362.01
A47: 362.02 | B47: Station Equipment - Allocated | C47: =CHOOSE(INPUTS!$C$11,SUM($D47),SUM($D47,$E47),SUM($D47,$E47,$F47),$G47,$G47) -> 439222283.5 | D47: =+'[2]COS Account Input'!C47 -> 425501606.5 | E47: =+'[2]COS Account Input'!D47 -> 13720677 | F47: =+'[2]COS Account Input'!E47 -> 0 | G47: 439222283.5 | I47: F_DISTR | J47: DEM | K47: NCP_362
A48: 363.01 | B48: Battery Storage | C48: =CHOOSE(INPUTS!$C$11,SUM($D48),SUM($D48,$E48),SUM($D48,$E48,$F48),$G48,$G48) -> 1101000 | D48: =+'[2]COS Account Input'!C48 -> 1090190 | E48: =+'[2]COS Account Input'!D48 -> 10810 | F48: =+'[2]COS Account Input'!E48 -> 0 | G48: 1101000 | I48: F_DISTR | J48: DEM | K48: NCP_362
A49: 364.01 | B49: Poles Towers & Fixtures | C49: =CHOOSE(INPUTS!$C$11,SUM($D49),SUM($D49,$E49),SUM($D49,$E49,$F49),$G49,$G49) -> 372360470.9 | D49: =+'[2]COS Account Input'!C49 -> 372845123 | E49: =+'[2]COS Account Input'!D49 -> -484652.0679 | F49: =+'[2]COS Account Input'!E49 -> 0 | G49: =D49+E49+F49 -> 372360470.9 | I49: F_DISTR | J49: DEM | K49: OH_NCP
A50: 365.01 | B50: OH Lines Direct Assignment | C50: =CHOOSE(INPUTS!$C$11,SUM($D50),SUM($D50,$E50),SUM($D50,$E50,$F50),$G50,$G50) -> 67009.35634 | D50: =+'[2]COS Account Input'!C50 -> 67009.35634 | E50: =+'[2]COS Account Input'!D50 -> 0 | F50: =+'[2]COS Account Input'!E50 -> 0 | G50: 67009.35634 | I50: F_DISTR | J50: DEM | K50: DIR364.01
A51: 365.02 | B51: OVHD Cond & Devices | C51: =CHOOSE(INPUTS!$C$11,SUM($D51),SUM($D51,$E51),SUM($D51,$E51,$F51),$G51,$G51) -> 471995339.8 | D51: =+'[2]COS Account Input'!C51 -> 454016302.6 | E51: =+'[2]COS Account Input'!D51 -> 17979037.21 | F51: =+'[2]COS Account Input'!E51 -> 0 | G51: 471995339.8 | I51: F_DISTR | J51: DEM | K51: OH_NCP
A52: 366.01 | B52: UG Conduit Direct Assignment | C52: =CHOOSE(INPUTS!$C$11,SUM($D52),SUM($D52,$E52),SUM($D52,$E52,$F52),$G52,$G52) -> 27766610.7 | D52: =+'[2]COS Account Input'!C52 -> 27766610.7 | E52: =+'[2]COS Account Input'!D52 -> 0 | F52: =+'[2]COS Account Input'!E52 -> 0 | G52: 27766610.7 | I52: F_DISTR | J52: DEM | K52: DIR366.01
A53: 366.02 | B53: UG Conduit | C53: =CHOOSE(INPUTS!$C$11,SUM($D53),SUM($D53,$E53),SUM($D53,$E53,$F53),$G53,$G53) -> 719001680.1 | D53: =+'[2]COS Account Input'!C53 -> 692653329.3 | E53: =+'[2]COS Account Input'!D53 -> 26348350.83 | F53: =+'[2]COS Account Input'!E53 -> 0 | G53: =D53+E53+F53 -> 719001680.1 | I53: F_DISTR | J53: DEM | K53: UG_NCP
A54: 367.01 | B54: UG Conductor & Devices | C54: =CHOOSE(INPUTS!$C$11,SUM($D54),SUM($D54,$E54),SUM($D54,$E54,$F54),$G54,$G54) -> 986578386.6 | D54: =+'[2]COS Account Input'!C54 -> 946066160 | E54: =+'[2]COS Account Input'!D54 -> 40512226.56 | F54: =+'[2]COS Account Input'!E54 -> 0 | G54: 986578386.6 | I54: F_DISTR | J54: DEM | K54: UG_NCP
A55: 368.01 | B55: Line Transf OVHD | C55: =CHOOSE(INPUTS!$C$11,SUM($D55),SUM($D55,$E55),SUM($D55,$E55,$F55),$G55,$G55) -> 173605063.3 | D55: =+'[2]COS Account Input'!C55 -> 173605063.3 | E55: =+'[2]COS Account Input'!D55 -> 0 | F55: =+'[2]COS Account Input'!E55 -> 0 | G55: 173605063.3 | I55: F_DISTR | J55: TFR | K55: OH_TFMR | M55: OH_TFMRC
A56: 368.02 | B56: Line Transf UNGD | C56: =CHOOSE(INPUTS!$C$11,SUM($D56),SUM($D56,$E56),SUM($D56,$E56,$F56),$G56,$G56) -> 318350548.3 | D56: =+'[2]COS Account Input'!C56 -> 315443638.7 | E56: =+'[2]COS Account Input'!D56 -> 2906909.592 | F56: =+'[2]COS Account Input'!E56 -> 0 | G56: 318350548.3 | I56: F_DISTR | J56: TFR | K56: UG_TFMR | M56: UG_TFMRC
A57: 368.03 | B57: Line Transf Assigned | C57: =CHOOSE(INPUTS!$C$11,SUM($D57),SUM($D57,$E57),SUM($D57,$E57,$F57),$G57,$G57) -> 7577844.977 | D57: =+'[2]COS Account Input'!C57 -> 2295936.019 | E57: =+'[2]COS Account Input'!D57 -> 5281908.958 | F57: =+'[2]COS Account Input'!E57 -> 0 | G57: 7577844.977 | I57: F_DISTR | J57: TFR | K57: DIR368.03 | M57: DIR368.03C
A58: 369.01 | B58: Services - OVHD | C58: =CHOOSE(INPUTS!$C$11,SUM($D58),SUM($D58,$E58),SUM($D58,$E58,$F58),$G58,$G58) -> 40889975.45 | D58: =+'[2]COS Account Input'!C58 -> 40462861.67 | E58: =+'[2]COS Account Input'!D58 -> 427113.7846 | F58: =+'[2]COS Account Input'!E58 -> 0 | G58: 40889975.45 | I58: F_DISTR | J58: CUS | M58: OH_SVC
A59: 369.02 | B59: Services - UNGD | C59: =CHOOSE(INPUTS!$C$11,SUM($D59),SUM($D59,$E59),SUM($D59,$E59,$F59),$G59,$G59) -> 148141818.8 | D59: =+'[2]COS Account Input'!C59 -> 146594412.3 | E59: =+'[2]COS Account Input'!D59 -> 1547406.478 | F59: =+'[2]COS Account Input'!E59 -> 0 | G59: 148141818.8 | I59: F_DISTR | J59: CUS | M59: RESID
A60: 370.01 | B60: Meters | C60: =CHOOSE(INPUTS!$C$11,SUM($D60),SUM($D60,$E60),SUM($D60,$E60,$F60),$G60,$G60) -> 206004867.6 | D60: =+'[2]COS Account Input'!C60 -> 169585859 | E60: =+'[2]COS Account Input'!D60 -> 36419008.61 | F60: =+'[2]COS Account Input'!E60 -> 0 | G60: 206004867.6 | I60: F_DISTR | J60: CUS | M60: METER
A61: 373 | B61: Str & Area Lighting Sys | C61: =CHOOSE(INPUTS!$C$11,SUM($D61),SUM($D61,$E61),SUM($D61,$E61,$F61),$G61,$G61) -> 57279322.09 | D61: =+'[2]COS Account Input'!C61 -> 55388796 | E61: =+'[2]COS Account Input'!D61 -> 1890526.091 | F61: =+'[2]COS Account Input'!E61 -> 0 | G61: =D61+E61+F61 -> 57279322.09 | I61: F_DISTR | J61: CUS | M61: DIR373.00
A62: 374 | B62: Asset Retirement Obligation | C62: =CHOOSE(INPUTS!$C$11,SUM($D62),SUM($D62,$E62),SUM($D62,$E62,$F62),$G62,$G62) -> 27779665.85 | D62: =+'[2]COS Account Input'!C62 -> 3367727 | E62: =+'[2]COS Account Input'!D62 -> 24411938.85 | F62: =+'[2]COS Account Input'!E62 -> 0 | G62: =D62+E62+F62 -> 27779665.85 | R62: LINE.T
A63: ~ | B63: ~ | C63: =CHOOSE(INPUTS!$C$11,SUM($D63),SUM($D63,$E63),SUM($D63,$E63,$F63),$G63,$G63) -> 0 | D63: 0 | E63: 0 | F63: 0 | G63: =D63+E63+F63 -> 0
A64: ~ | B64: ~ | C64: =CHOOSE(INPUTS!$C$11,SUM($D64),SUM($D64,$E64),SUM($D64,$E64,$F64),$G64,$G64) -> 0 | D64: 0 | E64: 0 | F64: 0 | G64: 0
A65: ~ | B65: ~ | C65: =CHOOSE(INPUTS!$C$11,SUM($D65),SUM($D65,$E65),SUM($D65,$E65,$F65),$G65,$G65) -> 0 | D65: 0 | E65: 0 | F65: 0 | G65: =D65+E65+F65 -> 0
A66: ~ | B66: ~ | C66: =CHOOSE(INPUTS!$C$11,SUM($D66),SUM($D66,$E66),SUM($D66,$E66,$F66),$G66,$G66) -> 0 | D66: 0 | E66: 0 | F66: 0 | G66: 0
A67: ~ | B67: ~ | C67: =CHOOSE(INPUTS!$C$11,SUM($D67),SUM($D67,$E67),SUM($D67,$E67,$F67),$G67,$G67) -> 0 | D67: 0 | E67: 0 | F67: 0 | G67: 0
A68: ~ | B68: ~ | C68: =CHOOSE(INPUTS!$C$11,SUM($D68),SUM($D68,$E68),SUM($D68,$E68,$F68),$G68,$G68) -> 0 | D68: 0 | E68: 0 | F68: 0 | G68: 0
A69: ~ | B69: ~ | C69: =CHOOSE(INPUTS!$C$11,SUM($D69),SUM($D69,$E69),SUM($D69,$E69,$F69),$G69,$G69) -> 0 | D69: 0 | E69: 0 | F69: 0 | G69: 0
A70: ~ | B70: ~ | C70: =CHOOSE(INPUTS!$C$11,SUM($D70),SUM($D70,$E70),SUM($D70,$E70,$F70),$G70,$G70) -> 0 | D70: 0 | E70: 0 | F70: 0 | G70: 0
A71: ~ | B71: ~ | C71: =CHOOSE(INPUTS!$C$11,SUM($D71),SUM($D71,$E71),SUM($D71,$E71,$F71),$G71,$G71) -> 0 | D71: 0 | E71: 0 | F71: 0 | G71: 0
B72: Sub-total | C72: =SUM(C42:C71) -> 4089276604 | D72: =SUM(D42:D71) -> 3916270559 | E72: =SUM(E42:E71) -> 173006044.9 | F72: =SUM(F42:F71) -> 0 | G72: =SUM(G42:G71) -> 4089276604
B74: General Plant
A75: 389 | B75: Land & Land Rights | C75: =CHOOSE(INPUTS!$C$11,SUM($D75),SUM($D75,$E75),SUM($D75,$E75,$F75),$G75,$G75) -> 36039223.3 | D75: =+'[2]COS Account Input'!C75 -> 35990819.46 | E75: =+'[2]COS Account Input'!D75 -> 48403.8379 | F75: =+'[2]COS Account Input'!E75 -> 0 | G75: =D75+E75+F75 -> 36039223.3 | R75: SW.T
A76: 390 | B76: Structures & Improvements | C76: =CHOOSE(INPUTS!$C$11,SUM($D76),SUM($D76,$E76),SUM($D76,$E76,$F76),$G76,$G76) -> 202454183.8 | D76: =+'[2]COS Account Input'!C76 -> 196470547.5 | E76: =+'[2]COS Account Input'!D76 -> 5983636.307 | F76: =+'[2]COS Account Input'!E76 -> 0 | G76: 202454183.8 | R76: SW.T
A77: 391 | B77: Office Furniture & Equip | C77: =CHOOSE(INPUTS!$C$11,SUM($D77),SUM($D77,$E77),SUM($D77,$E77,$F77),$G77,$G77) -> 109384337.5 | D77: =+'[2]COS Account Input'!C77 -> 99533226.72 | E77: =+'[2]COS Account Input'!D77 -> 9851110.775 | F77: =+'[2]COS Account Input'!E77 -> 0 | G77: 109384337.5 | R77: SW.T
A78: 392 | B78: Transportation Equip | C78: =CHOOSE(INPUTS!$C$11,SUM($D78),SUM($D78,$E78),SUM($D78,$E78,$F78),$G78,$G78) -> 15439498.1 | D78: =+'[2]COS Account Input'!C78 -> 14870408.71 | E78: =+'[2]COS Account Input'!D78 -> 569089.395 | F78: =+'[2]COS Account Input'!E78 -> 0 | G78: 15439498.1 | R78: SW.T
A79: 393 | B79: Stores Equip | C79: =CHOOSE(INPUTS!$C$11,SUM($D79),SUM($D79,$E79),SUM($D79,$E79,$F79),$G79,$G79) -> 232556.7 | D79: =+'[2]COS Account Input'!C79 -> 231872.0544 | E79: =+'[2]COS Account Input'!D79 -> 684.6456 | F79: =+'[2]COS Account Input'!E79 -> 0 | G79: 232556.7 | R79: PTDP.T
A80: 394 | B80: Tools & Shop & Garage Equip | C80: =CHOOSE(INPUTS!$C$11,SUM($D80),SUM($D80,$E80),SUM($D80,$E80,$F80),$G80,$G80) -> 14232778.5 | D80: =+'[2]COS Account Input'!C80 -> 12300958.87 | E80: =+'[2]COS Account Input'!D80 -> 1931819.634 | F80: =+'[2]COS Account Input'!E80 -> 0 | G80: 14232778.5 | R80: SWPTD.T
A81: 395 | B81: Lab Equip | C81: =CHOOSE(INPUTS!$C$11,SUM($D81),SUM($D81,$E81),SUM($D81,$E81,$F81),$G81,$G81) -> 7820000 | D81: =+'[2]COS Account Input'!C81 -> 7953818 | E81: =+'[2]COS Account Input'!D81 -> -133818 | F81: =+'[2]COS Account Input'!E81 -> 0 | G81: 7820000 | R81: SWPTD.T
A82: 396 | B82: Power Operated Equip | C82: =CHOOSE(INPUTS!$C$11,SUM($D82),SUM($D82,$E82),SUM($D82,$E82,$F82),$G82,$G82) -> 5307201.3 | D82: =+'[2]COS Account Input'!C82 -> 5465886.792 | E82: =+'[2]COS Account Input'!D82 -> -158685.4916 | F82: =+'[2]COS Account Input'!E82 -> 0 | G82: 5307201.3 | R82: SWPTD.T
A83: 397 | B83: Communication Equip | C83: =CHOOSE(INPUTS!$C$11,SUM($D83),SUM($D83,$E83),SUM($D83,$E83,$F83),$G83,$G83) -> 146940395.6 | D83: =+'[2]COS Account Input'!C83 -> 144770570.8 | E83: =+'[2]COS Account Input'!D83 -> 2169824.798 | F83: =+'[2]COS Account Input'!E83 -> 0 | G83: 146940395.6 | R83: SW.T
A84: 398 | B84: Miscellaneous Equip | C84: =CHOOSE(INPUTS!$C$11,SUM($D84),SUM($D84,$E84),SUM($D84,$E84,$F84),$G84,$G84) -> 977290.2 | D84: =+'[2]COS Account Input'!C84 -> 977655.724 | E84: =+'[2]COS Account Input'!D84 -> -365.524 | F84: =+'[2]COS Account Input'!E84 -> 0 | G84: 977290.2 | R84: SW.T
A85: 399 | B85: Other Tangible Property | C85: =CHOOSE(INPUTS!$C$11,SUM($D85),SUM($D85,$E85),SUM($D85,$E85,$F85),$G85,$G85) -> 1250391.364 | D85: =+'[2]COS Account Input'!C85 -> 932601.2596 | E85: =+'[2]COS Account Input'!D85 -> 317790.1042 | F85: =+'[2]COS Account Input'!E85 -> 0 | G85: =D85+E85+F85 -> 1250391.364 | R85: SW.T
A86: ~ | B86: ~ | C86: =CHOOSE(INPUTS!$C$11,SUM($D86),SUM($D86,$E86),SUM($D86,$E86,$F86),$G86,$G86) -> 0 | D86: 0 | E86: 0 | F86: 0 | G86: =D86+E86+F86 -> 0
A87: ~ | B87: ~ | C87: =CHOOSE(INPUTS!$C$11,SUM($D87),SUM($D87,$E87),SUM($D87,$E87,$F87),$G87,$G87) -> 0 | D87: 0 | E87: 0 | F87: 0 | G87: 0
B88: Sub-total | C88: =SUM(C75:C87) -> 540077856.4 | D88: =SUM(D75:D87) -> 519498365.9 | E88: =SUM(E75:E87) -> 20579490.48 | F88: =SUM(F75:F87) -> 0 | G88: =SUM(G75:G87) -> 540077856.4
B90: TOTAL PLANT-IN-SERVICE | C90: =SUM(C88,C72,C39,C28,C13) -> 1.075441711e+10 | D90: =SUM(D88,D72,D39,D28,D13) -> 1.047013837e+10 | E90: =SUM(E88,E72,E39,E28,E13) -> 284278738.7 | F90: =SUM(F88,F72,F39,F28,F13) -> 0 | G90: =SUM(G88,G72,G39,G28,G13) -> 1.075441711e+10
A92: Accumulated Reserve for Depreciation
B94: Intangible Plant
A95: 111 | B95: Accum Amortization - Generation/Transmission | C95: =CHOOSE(INPUTS!$C$11,SUM($D95),SUM($D95,$E95),SUM($D95,$E95,$F95),$G95,$G95) -> -11848339.39 | D95: =+'[2]COS Account Input'!C95 -> -11848339.39 | E95: =+'[2]COS Account Input'!D95 -> 0 | F95: =+'[2]COS Account Input'!E95 -> 0 | G95: =D95+E95+F95 -> -11848339.39 | I95: F_PRODU | J95: _PC4 | K95: DEM_2B | L95: ENERGY_2
A96: 111.01 | B96: Accum Amortization - Distribution | C96: =CHOOSE(INPUTS!$C$11,SUM($D96),SUM($D96,$E96),SUM($D96,$E96,$F96),$G96,$G96) -> -15836820.28 | D96: =+'[2]COS Account Input'!C96 -> -15836820.28 | E96: =+'[2]COS Account Input'!D96 -> 0 | F96: =+'[2]COS Account Input'!E96 -> 0 | G96: =D96+E96+F96 -> -15836820.28 | R96: DP.T
A97: 111.02 | B97: Accum Amortization - Other | C97: =CHOOSE(INPUTS!$C$11,SUM($D97),SUM($D97,$E97),SUM($D97,$E97,$F97),$G97,$G97) -> -157655053.8 | D97: =+'[2]COS Account Input'!C97 -> -100806762.3 | E97: =+'[2]COS Account Input'!D97 -> -56848291.51 | F97: =+'[2]COS Account Input'!E97 -> 0 | G97: =D97+E97+F97 -> -157655053.8 | R97: GP.T
B98: Sub-total | C98: =SUM(C95:C97) -> -185340213.5 | D98: =SUM(D95:D97) -> -128491921.9 | E98: =SUM(E95:E97) -> -56848291.51 | F98: =SUM(F95:F97) -> 0 | G98: =SUM(G95:G97) -> -185340213.5
B100: Production Plant
A101: 108.01 | B101: Accum Depreciation Thermal Baseload Generation | C101: =CHOOSE(INPUTS!$C$11,SUM($D101),SUM($D101,$E101),SUM($D101,$E101,$F101),$G101,$G101) -> -945433620.2 | D101: =+'[2]COS Account Input'!C101 -> -911232337.6 | E101: =+'[2]COS Account Input'!D101 -> -34201282.54 | F101: =+'[2]COS Account Input'!E101 -> 0 | G101: =D101+E101+F101 -> -945433620.2 | R101: PP.T
A102: 108.02 | B102: Accum Depreciation Hydro Baseload Generation | C102: =CHOOSE(INPUTS!$C$11,SUM($D102),SUM($D102,$E102),SUM($D102,$E102,$F102),$G102,$G102) -> -183522621.9 | D102: =+'[2]COS Account Input'!C102 -> -174124890 | E102: =+'[2]COS Account Input'!D102 -> -9397731.95 | F102: =+'[2]COS Account Input'!E102 -> 0 | G102: -183522621.9 | R102: PP.T
A103: 108.03 | B103: Accum Depreciation Other Production Generation | C103: =CHOOSE(INPUTS!$C$11,SUM($D103),SUM($D103,$E103),SUM($D103,$E103,$F103),$G103,$G103) -> -789161667.8 | D103: =+'[2]COS Account Input'!C103 -> -757162517 | E103: =+'[2]COS Account Input'!D103 -> -31999150.84 | F103: =+'[2]COS Account Input'!E103 -> 0 | G103: -789161667.8 | R103: PP.T
A104: ~ | B104: ~ | C104: =CHOOSE(INPUTS!$C$11,SUM($D104),SUM($D104,$E104),SUM($D104,$E104,$F104),$G104,$G104) -> 0 | D104: 0 | E104: 0 | F104: 0 | G104: 0
A105: ~ | B105: ~ | C105: =CHOOSE(INPUTS!$C$11,SUM($D105),SUM($D105,$E105),SUM($D105,$E105,$F105),$G105,$G105) -> 0 | D105: 0 | E105: 0 | F105: 0 | G105: 0
A106: ~ | B106: ~ | C106: =CHOOSE(INPUTS!$C$11,SUM($D106),SUM($D106,$E106),SUM($D106,$E106,$F106),$G106,$G106) -> 0 | D106: 0 | E106: 0 | F106: 0 | G106: 0
A107: ~ | B107: ~ | C107: =CHOOSE(INPUTS!$C$11,SUM($D107),SUM($D107,$E107),SUM($D107,$E107,$F107),$G107,$G107) -> 0 | D107: 0 | E107: 0 | F107: 0 | G107: 0
A108: ~ | B108: ~ | C108: =CHOOSE(INPUTS!$C$11,SUM($D108),SUM($D108,$E108),SUM($D108,$E108,$F108),$G108,$G108) -> 0 | D108: 0 | E108: 0 | F108: 0 | G108: 0
A109: ~ | B109: ~ | C109: =CHOOSE(INPUTS!$C$11,SUM($D109),SUM($D109,$E109),SUM($D109,$E109,$F109),$G109,$G109) -> 0 | D109: 0 | E109: 0 | F109: 0 | G109: 0
A110: ~ | B110: ~ | C110: =CHOOSE(INPUTS!$C$11,SUM($D110),SUM($D110,$E110),SUM($D110,$E110,$F110),$G110,$G110) -> 0 | D110: 0 | E110: 0 | F110: 0 | G110: 0
A111: ~ | B111: ~ | C111: =CHOOSE(INPUTS!$C$11,SUM($D111),SUM($D111,$E111),SUM($D111,$E111,$F111),$G111,$G111) -> 0 | D111: 0 | E111: 0 | F111: 0 | G111: 0
A112: ~ | B112: ~ | C112: =CHOOSE(INPUTS!$C$11,SUM($D112),SUM($D112,$E112),SUM($D112,$E112,$F112),$G112,$G112) -> 0 | D112: 0 | E112: 0 | F112: 0 | G112: 0
B113: Sub-total | C113: =SUM(C101:C112) -> -1918117910 | D113: =SUM(D101:D112) -> -1842519745 | E113: =SUM(E101:E112) -> -75598165.33 | F113: =SUM(F101:F112) -> 0 | G113: =SUM(G101:G112) -> -1918117910
B115: Transmisson Plant
A116: 108.04a | B116: Accum Depreciation Washington Transmisson Plant | C116: =CHOOSE(INPUTS!$C$11,SUM($D116),SUM($D116,$E116),SUM($D116,$E116,$F116),$G116,$G116) -> -348915488.8 | D116: =+'[2]COS Account Input'!C116 -> -334966799 | E116: =+'[2]COS Account Input'!D116 -> -13948689.81 | F116: =+'[2]COS Account Input'!E116 -> 0 | G116: =D116+E116+F116 -> -348915488.8 | I116: F_TRANS | J116: _PC3 | K116: DEM_2A | L116: ENERGY_1
A117: 108.04b | B117: Accum Depreciation Washington GIF Transmisson Plant | C117: =CHOOSE(INPUTS!$C$11,SUM($D117),SUM($D117,$E117),SUM($D117,$E117,$F117),$G117,$G117) -> -54709537.55 | D117: =+'[2]COS Account Input'!C117 -> -54629068 | E117: =+'[2]COS Account Input'!D117 -> -80469.54732 | F117: =+'[2]COS Account Input'!E117 -> 0 | G117: -54709537.55 | I117: F_TRANS | J117: _PC4 | K117: DEM_2B | L117: ENERGY_2
A118: 108.04c | B118: Accum Depreciation Washington LIF Transmisson Plant | C118: =CHOOSE(INPUTS!$C$11,SUM($D118),SUM($D118,$E118),SUM($D118,$E118,$F118),$G118,$G118) -> -290302.2179 | D118: =+'[2]COS Account Input'!C118 -> -209007 | E118: =+'[2]COS Account Input'!D118 -> -81295.21786 | F118: =+'[2]COS Account Input'!E118 -> 0 | G118: -290302.2179 | I118: F_TRANS | J118: DEM | K118: DIR_449
A119: 108.04d | B119: Accum Depreciation Non-Washington Transmisson Plant | C119: =CHOOSE(INPUTS!$C$11,SUM($D119),SUM($D119,$E119),SUM($D119,$E119,$F119),$G119,$G119) -> -115786862.5 | D119: =+'[2]COS Account Input'!C119 -> -114353996 | E119: =+'[2]COS Account Input'!D119 -> -1432866.49 | F119: =+'[2]COS Account Input'!E119 -> 0 | G119: -115786862.5 | I119: F_TRANS | J119: _PC4 | K119: DEM_2B | L119: ENERGY_2
A120: ~ | B120: ~ | C120: =CHOOSE(INPUTS!$C$11,SUM($D120),SUM($D120,$E120),SUM($D120,$E120,$F120),$G120,$G120) -> 0 | D120: 0 | E120: 0 | F120: 0 | G120: 0
A121: ~ | B121: ~ | C121: =CHOOSE(INPUTS!$C$11,SUM($D121),SUM($D121,$E121),SUM($D121,$E121,$F121),$G121,$G121) -> 0 | D121: 0 | E121: 0 | F121: 0 | G121: 0
A122: ~ | B122: ~ | C122: =CHOOSE(INPUTS!$C$11,SUM($D122),SUM($D122,$E122),SUM($D122,$E122,$F122),$G122,$G122) -> 0 | D122: 0 | E122: 0 | F122: 0 | G122: 0
A123: ~ | B123: ~ | C123: =CHOOSE(INPUTS!$C$11,SUM($D123),SUM($D123,$E123),SUM($D123,$E123,$F123),$G123,$G123) -> 0 | D123: 0 | E123: 0 | F123: 0 | G123: 0
B124: Sub-total | C124: =SUM(C116:C123) -> -519702191.1 | D124: =SUM(D116:D123) -> -504158870 | E124: =SUM(E116:E123) -> -15543321.07 | F124: =SUM(F116:F123) -> 0 | G124: =SUM(G116:G123) -> -519702191.1
... 143 more rows

Sheet CLASS
A1: Classification
A2: =CHOOSE(INPUTS!$C$11,INPUTS!$B$5,INPUTS!$B$6,INPUTS!$B$7,INPUTS!$B$8,INPUTS!$B$9) -> Adjusted Test Year Twelve Months ended December 2018 @ Proforma Rev Requirement | C2: Line Ref. | E2: 4 | F2: =E2+1 -> 5 | G2: =F2+1 -> 6 | H2: =G2+1 -> 7 | I2: =H2+1 -> 8 | J2: =I2+1 -> 9
A3: No. | B3: Account Description | C3: Amount | E3: =CLASSIFIERS!D3 -> DEM | F3: =CLASSIFIERS!E3 -> NRG | G3: =CLASSIFIERS!F3 -> CUS | H3: =CLASSIFIERS!G3 -> ~ | I3: =CLASSIFIERS!H3 -> ~ | J3: =CLASSIFIERS!I3 -> ~ | L3: Internal | N3: =E3 -> DEM | O3: NRG | P3: CUS | Q3: ~ | R3: ~ | S3: ~
D4: =SUM(E4:L4)-C4 -> 0
A5: =ACCOUNTS!A5 -> RATE BASE | D5: 0
D6: 0
A7: =ACCOUNTS!A7 -> Plant-in-Service | D7: 0
D8: 0 | N8: F_PRODU_DEM_2A
B9: =ACCOUNTS!B9 -> Intangible Plant | D9: 0
A10: =ACCOUNTS!A10 -> 300 | B10: =ACCOUNTS!B10 -> Generation/Transmission | C10: =ACCOUNTS!C10 -> 77723700.54 | D10: 0 | E10: =IF(ACCOUNTS!$J10="",0,$C10*(INDEX(INDIRECT(ACCOUNTS!$J10),1,E$2))) -> 77723700.54 | F10: =IF(ACCOUNTS!$J10="",0,$C10*(INDEX(INDIRECT(ACCOUNTS!$J10),1,F$2))) -> 0 | G10: =IF(ACCOUNTS!$J10="",0,$C10*(INDEX(INDIRECT(ACCOUNTS!$J10),1,G$2))) -> 0 | H10: =IF(ACCOUNTS!$J10="",0,$C10*(INDEX(INDIRECT(ACCOUNTS!$J10),1,H$2))) -> 0 | I10: =IF(ACCOUNTS!$J10="",0,$C10*(INDEX(INDIRECT(ACCOUNTS!$J10),1,I$2))) -> 0 | J10: =IF(ACCOUNTS!$J10="",0,$C10*(INDEX(INDIRECT(ACCOUNTS!$J10),1,J$2))) -> 0 | L10: =IF(ACCOUNTS!$R10="",0,$C10) -> 0 | N10: =IF(ACCOUNTS!K10<>"",CONCATENATE(ACCOUNTS!$I10,"_",ACCOUNTS!K10)," ") -> F_PRODU_DEM_2B | O10: =IF(ACCOUNTS!L10<>"",CONCATENATE(ACCOUNTS!$I10,"_",ACCOUNTS!L10)," ") -> F_PRODU_ENERGY_2 | P10: =IF(ACCOUNTS!M10<>"",CONCATENATE(ACCOUNTS!$I10,"_",ACCOUNTS!M10)," ") ->  | Q10: =IF(ACCOUNTS!N10<>"",CONCATENATE(ACCOUNTS!$I10,"_",ACCOUNTS!N10)," ") ->  | R10: =IF(ACCOUNTS!O10<>"",CONCATENATE(ACCOUNTS!$I10,"_",ACCOUNTS!O10)," ") ->  | S10: =IF(ACCOUNTS!P10<>"",CONCATENATE(ACCOUNTS!$I10,"_",ACCOUNTS!P10)," ") -> 
A11: =ACCOUNTS!A11 -> 300.01 | B11: =ACCOUNTS!B11 -> Distribution | C11: =ACCOUNTS!C11 -> 48660476.44 | D11: 0 | E11: =IF(ACCOUNTS!$J11="",0,$C11*(INDEX(INDIRECT(ACCOUNTS!$J11),1,E$2))) -> 0 | F11: =IF(ACCOUNTS!$J11="",0,$C11*(INDEX(INDIRECT(ACCOUNTS!$J11),1,F$2))) -> 0 | G11: =IF(ACCOUNTS!$J11="",0,$C11*(INDEX(INDIRECT(ACCOUNTS!$J11),1,G$2))) -> 0 | H11: =IF(ACCOUNTS!$J11="",0,$C11*(INDEX(INDIRECT(ACCOUNTS!$J11),1,H$2))) -> 0 | I11: =IF(ACCOUNTS!$J11="",0,$C11*(INDEX(INDIRECT(ACCOUNTS!$J11),1,I$2))) -> 0 | J11: =IF(ACCOUNTS!$J11="",0,$C11*(INDEX(INDIRECT(ACCOUNTS!$J11),1,J$2))) -> 0 | L11: =IF(ACCOUNTS!$R11="",0,$C11) -> 48660476.44 | N11: =IF(ACCOUNTS!K11<>"",CONCATENATE(ACCOUNTS!$I11,"_",ACCOUNTS!K11)," ") ->  | O11: =IF(ACCOUNTS!L11<>"",CONCATENATE(ACCOUNTS!$I11,"_",ACCOUNTS!L11)," ") ->  | P11: =IF(ACCOUNTS!M11<>"",CONCATENATE(ACCOUNTS!$I11,"_",ACCOUNTS!M11)," ") ->  | Q11: =IF(ACCOUNTS!N11<>"",CONCATENATE(ACCOUNTS!$I11,"_",ACCOUNTS!N11)," ") ->  | R11: =IF(ACCOUNTS!O11<>"",CONCATENATE(ACCOUNTS!$I11,"_",ACCOUNTS!O11)," ") ->  | S11: =IF(ACCOUNTS!P11<>"",CONCATENATE(ACCOUNTS!$I11,"_",ACCOUNTS!P11)," ") -> 
A12: =ACCOUNTS!A12 -> 300.02 | B12: =ACCOUNTS!B12 -> Other | C12: =ACCOUNTS!C12 -> 306106347.1 | D12: 0 | E12: =IF(ACCOUNTS!$J12="",0,$C12*(INDEX(INDIRECT(ACCOUNTS!$J12),1,E$2))) -> 0 | F12: =IF(ACCOUNTS!$J12="",0,$C12*(INDEX(INDIRECT(ACCOUNTS!$J12),1,F$2))) -> 0 | G12: =IF(ACCOUNTS!$J12="",0,$C12*(INDEX(INDIRECT(ACCOUNTS!$J12),1,G$2))) -> 0 | H12: =IF(ACCOUNTS!$J12="",0,$C12*(INDEX(INDIRECT(ACCOUNTS!$J12),1,H$2))) -> 0 | I12: =IF(ACCOUNTS!$J12="",0,$C12*(INDEX(INDIRECT(ACCOUNTS!$J12),1,I$2))) -> 0 | J12: =IF(ACCOUNTS!$J12="",0,$C12*(INDEX(INDIRECT(ACCOUNTS!$J12),1,J$2))) -> 0 | L12: =IF(ACCOUNTS!$R12="",0,$C12) -> 306106347.1 | N12: =IF(ACCOUNTS!K12<>"",CONCATENATE(ACCOUNTS!$I12,"_",ACCOUNTS!K12)," ") ->  | O12: =IF(ACCOUNTS!L12<>"",CONCATENATE(ACCOUNTS!$I12,"_",ACCOUNTS!L12)," ") ->  | P12: =IF(ACCOUNTS!M12<>"",CONCATENATE(ACCOUNTS!$I12,"_",ACCOUNTS!M12)," ") ->  | Q12: =IF(ACCOUNTS!N12<>"",CONCATENATE(ACCOUNTS!$I12,"_",ACCOUNTS!N12)," ") ->  | R12: =IF(ACCOUNTS!O12<>"",CONCATENATE(ACCOUNTS!$I12,"_",ACCOUNTS!O12)," ") ->  | S12: =IF(ACCOUNTS!P12<>"",CONCATENATE(ACCOUNTS!$I12,"_",ACCOUNTS!P12)," ") -> 
B13: =ACCOUNTS!B13 -> Sub-total | C13: =SUM(C10:C12) -> 432490524 | D13: 0 | E13: =SUM(E10:E12) -> 77723700.54 | F13: 0 | G13: 0 | H13: 0 | I13: 0 | J13: 0 | L13: 354766823.5
D14: 0
B15: =ACCOUNTS!B15 -> Production Plant | D15: 0
A16: =ACCOUNTS!A16 -> 310 | B16: =ACCOUNTS!B16 -> Thermal Baseload Generation | C16: =ACCOUNTS!C16 -> 1396510000 | D16: =SUM(E16:L16)-C16 -> 0 | E16: =IF(ACCOUNTS!$J16="",0,$C16*(INDEX(INDIRECT(ACCOUNTS!$J16),1,E$2))) -> 1396510000 | F16: =IF(ACCOUNTS!$J16="",0,$C16*(INDEX(INDIRECT(ACCOUNTS!$J16),1,F$2))) -> 0 | G16: =IF(ACCOUNTS!$J16="",0,$C16*(INDEX(INDIRECT(ACCOUNTS!$J16),1,G$2))) -> 0 | H16: =IF(ACCOUNTS!$J16="",0,$C16*(INDEX(INDIRECT(ACCOUNTS!$J16),1,H$2))) -> 0 | I16: =IF(ACCOUNTS!$J16="",0,$C16*(INDEX(INDIRECT(ACCOUNTS!$J16),1,I$2))) -> 0 | J16: =IF(ACCOUNTS!$J16="",0,$C16*(INDEX(INDIRECT(ACCOUNTS!$J16),1,J$2))) -> 0 | L16: =IF(ACCOUNTS!$R16="",0,$C16) -> 0 | N16: =IF(ACCOUNTS!K16<>"",CONCATENATE(ACCOUNTS!$I16,"_",ACCOUNTS!K16)," ") -> F_PRODU_DEM_2B | O16: =IF(ACCOUNTS!L16<>"",CONCATENATE(ACCOUNTS!$I16,"_",ACCOUNTS!L16)," ") -> F_PRODU_ENERGY_2 | P16: =IF(ACCOUNTS!M16<>"",CONCATENATE(ACCOUNTS!$I16,"_",ACCOUNTS!M16)," ") ->  | Q16: =IF(ACCOUNTS!N16<>"",CONCATENATE(ACCOUNTS!$I16,"_",ACCOUNTS!N16)," ") ->  | R16: =IF(ACCOUNTS!O16<>"",CONCATENATE(ACCOUNTS!$I16,"_",ACCOUNTS!O16)," ") ->  | S16: =IF(ACCOUNTS!P16<>"",CONCATENATE(ACCOUNTS!$I16,"_",ACCOUNTS!P16)," ") -> 
A17: =ACCOUNTS!A17 -> 330 | B17: =ACCOUNTS!B17 -> Hydro Baseload Generation | C17: =ACCOUNTS!C17 -> 729618000 | D17: 0 | E17: =IF(ACCOUNTS!$J17="",0,$C17*(INDEX(INDIRECT(ACCOUNTS!$J17),1,E$2))) -> 729618000 | F17: =IF(ACCOUNTS!$J17="",0,$C17*(INDEX(INDIRECT(ACCOUNTS!$J17),1,F$2))) -> 0 | G17: =IF(ACCOUNTS!$J17="",0,$C17*(INDEX(INDIRECT(ACCOUNTS!$J17),1,G$2))) -> 0 | H17: =IF(ACCOUNTS!$J17="",0,$C17*(INDEX(INDIRECT(ACCOUNTS!$J17),1,H$2))) -> 0 | I17: =IF(ACCOUNTS!$J17="",0,$C17*(INDEX(INDIRECT(ACCOUNTS!$J17),1,I$2))) -> 0 | J17: =IF(ACCOUNTS!$J17="",0,$C17*(INDEX(INDIRECT(ACCOUNTS!$J17),1,J$2))) -> 0 | L17: =IF(ACCOUNTS!$R17="",0,$C17) -> 0 | N17: =IF(ACCOUNTS!K17<>"",CONCATENATE(ACCOUNTS!$I17,"_",ACCOUNTS!K17)," ") -> F_PRODU_DEM_2B | O17: =IF(ACCOUNTS!L17<>"",CONCATENATE(ACCOUNTS!$I17,"_",ACCOUNTS!L17)," ") -> F_PRODU_ENERGY_2 | P17: =IF(ACCOUNTS!M17<>"",CONCATENATE(ACCOUNTS!$I17,"_",ACCOUNTS!M17)," ") ->  | Q17: =IF(ACCOUNTS!N17<>"",CONCATENATE(ACCOUNTS!$I17,"_",ACCOUNTS!N17)," ") ->  | R17: =IF(ACCOUNTS!O17<>"",CONCATENATE(ACCOUNTS!$I17,"_",ACCOUNTS!O17)," ") ->  | S17: =IF(ACCOUNTS!P17<>"",CONCATENATE(ACCOUNTS!$I17,"_",ACCOUNTS!P17)," ") -> 
A18: =ACCOUNTS!A18 -> 340 | B18: =ACCOUNTS!B18 -> Other Production Generation | C18: =ACCOUNTS!C18 -> 1971707000 | D18: 0 | E18: =IF(ACCOUNTS!$J18="",0,$C18*(INDEX(INDIRECT(ACCOUNTS!$J18),1,E$2))) -> 1971707000 | F18: =IF(ACCOUNTS!$J18="",0,$C18*(INDEX(INDIRECT(ACCOUNTS!$J18),1,F$2))) -> 0 | G18: =IF(ACCOUNTS!$J18="",0,$C18*(INDEX(INDIRECT(ACCOUNTS!$J18),1,G$2))) -> 0 | H18: =IF(ACCOUNTS!$J18="",0,$C18*(INDEX(INDIRECT(ACCOUNTS!$J18),1,H$2))) -> 0 | I18: =IF(ACCOUNTS!$J18="",0,$C18*(INDEX(INDIRECT(ACCOUNTS!$J18),1,I$2))) -> 0 | J18: =IF(ACCOUNTS!$J18="",0,$C18*(INDEX(INDIRECT(ACCOUNTS!$J18),1,J$2))) -> 0 | L18: =IF(ACCOUNTS!$R18="",0,$C18) -> 0 | N18: =IF(ACCOUNTS!K18<>"",CONCATENATE(ACCOUNTS!$I18,"_",ACCOUNTS!K18)," ") -> F_PRODU_DEM_2B | O18: =IF(ACCOUNTS!L18<>"",CONCATENATE(ACCOUNTS!$I18,"_",ACCOUNTS!L18)," ") -> F_PRODU_ENERGY_2 | P18: =IF(ACCOUNTS!M18<>"",CONCATENATE(ACCOUNTS!$I18,"_",ACCOUNTS!M18)," ") ->  | Q18: =IF(ACCOUNTS!N18<>"",CONCATENATE(ACCOUNTS!$I18,"_",ACCOUNTS!N18)," ") ->  | R18: =IF(ACCOUNTS!O18<>"",CONCATENATE(ACCOUNTS!$I18,"_",ACCOUNTS!O18)," ") ->  | S18: =IF(ACCOUNTS!P18<>"",CONCATENATE(ACCOUNTS!$I18,"_",ACCOUNTS!P18)," ") -> 
A19: =ACCOUNTS!A19 -> ~ | B19: =ACCOUNTS!B19 -> ~ | C19: =ACCOUNTS!C19 -> 0 | D19: 0 | E19: =IF(ACCOUNTS!$J19="",0,$C19*(INDEX(INDIRECT(ACCOUNTS!$J19),1,E$2))) -> 0 | F19: =IF(ACCOUNTS!$J19="",0,$C19*(INDEX(INDIRECT(ACCOUNTS!$J19),1,F$2))) -> 0 | G19: =IF(ACCOUNTS!$J19="",0,$C19*(INDEX(INDIRECT(ACCOUNTS!$J19),1,G$2))) -> 0 | H19: =IF(ACCOUNTS!$J19="",0,$C19*(INDEX(INDIRECT(ACCOUNTS!$J19),1,H$2))) -> 0 | I19: =IF(ACCOUNTS!$J19="",0,$C19*(INDEX(INDIRECT(ACCOUNTS!$J19),1,I$2))) -> 0 | J19: =IF(ACCOUNTS!$J19="",0,$C19*(INDEX(INDIRECT(ACCOUNTS!$J19),1,J$2))) -> 0 | L19: =IF(ACCOUNTS!$R19="",0,$C19) -> 0 | N19: =IF(ACCOUNTS!K19<>"",CONCATENATE(ACCOUNTS!$I19,"_",ACCOUNTS!K19)," ") ->  | O19: =IF(ACCOUNTS!L19<>"",CONCATENATE(ACCOUNTS!$I19,"_",ACCOUNTS!L19)," ") ->  | P19: =IF(ACCOUNTS!M19<>"",CONCATENATE(ACCOUNTS!$I19,"_",ACCOUNTS!M19)," ") ->  | Q19: =IF(ACCOUNTS!N19<>"",CONCATENATE(ACCOUNTS!$I19,"_",ACCOUNTS!N19)," ") ->  | R19: =IF(ACCOUNTS!O19<>"",CONCATENATE(ACCOUNTS!$I19,"_",ACCOUNTS!O19)," ") ->  | S19: =IF(ACCOUNTS!P19<>"",CONCATENATE(ACCOUNTS!$I19,"_",ACCOUNTS!P19)," ") -> 
A20: =ACCOUNTS!A20 -> ~ | B20: =ACCOUNTS!B20 -> ~ | C20: =ACCOUNTS!C20 -> 0 | D20: 0 | E20: =IF(ACCOUNTS!$J20="",0,$C20*(INDEX(INDIRECT(ACCOUNTS!$J20),1,E$2))) -> 0 | F20: =IF(ACCOUNTS!$J20="",0,$C20*(INDEX(INDIRECT(ACCOUNTS!$J20),1,F$2))) -> 0 | G20: =IF(ACCOUNTS!$J20="",0,$C20*(INDEX(INDIRECT(ACCOUNTS!$J20),1,G$2))) -> 0 | H20: =IF(ACCOUNTS!$J20="",0,$C20*(INDEX(INDIRECT(ACCOUNTS!$J20),1,H$2))) -> 0 | I20: =IF(ACCOUNTS!$J20="",0,$C20*(INDEX(INDIRECT(ACCOUNTS!$J20),1,I$2))) -> 0 | J20: =IF(ACCOUNTS!$J20="",0,$C20*(INDEX(INDIRECT(ACCOUNTS!$J20),1,J$2))) -> 0 | L20: =IF(ACCOUNTS!$R20="",0,$C20) -> 0 | N20: =IF(ACCOUNTS!K20<>"",CONCATENATE(ACCOUNTS!$I20,"_",ACCOUNTS!K20)," ") ->  | O20: =IF(ACCOUNTS!L20<>"",CONCATENATE(ACCOUNTS!$I20,"_",ACCOUNTS!L20)," ") ->  | P20: =IF(ACCOUNTS!M20<>"",CONCATENATE(ACCOUNTS!$I20,"_",ACCOUNTS!M20)," ") ->  | Q20: =IF(ACCOUNTS!N20<>"",CONCATENATE(ACCOUNTS!$I20,"_",ACCOUNTS!N20)," ") ->  | R20: =IF(ACCOUNTS!O20<>"",CONCATENATE(ACCOUNTS!$I20,"_",ACCOUNTS!O20)," ") ->  | S20: =IF(ACCOUNTS!P20<>"",CONCATENATE(ACCOUNTS!$I20,"_",ACCOUNTS!P20)," ") -> 
A21: =ACCOUNTS!A21 -> ~ | B21: =ACCOUNTS!B21 -> ~ | C21: =ACCOUNTS!C21 -> 0 | D21: 0 | E21: =IF(ACCOUNTS!$J21="",0,$C21*(INDEX(INDIRECT(ACCOUNTS!$J21),1,E$2))) -> 0 | F21: =IF(ACCOUNTS!$J21="",0,$C21*(INDEX(INDIRECT(ACCOUNTS!$J21),1,F$2))) -> 0 | G21: =IF(ACCOUNTS!$J21="",0,$C21*(INDEX(INDIRECT(ACCOUNTS!$J21),1,G$2))) -> 0 | H21: =IF(ACCOUNTS!$J21="",0,$C21*(INDEX(INDIRECT(ACCOUNTS!$J21),1,H$2))) -> 0 | I21: =IF(ACCOUNTS!$J21="",0,$C21*(INDEX(INDIRECT(ACCOUNTS!$J21),1,I$2))) -> 0 | J21: =IF(ACCOUNTS!$J21="",0,$C21*(INDEX(INDIRECT(ACCOUNTS!$J21),1,J$2))) -> 0 | L21: =IF(ACCOUNTS!$R21="",0,$C21) -> 0 | N21: =IF(ACCOUNTS!K21<>"",CONCATENATE(ACCOUNTS!$I21,"_",ACCOUNTS!K21)," ") ->  | O21: =IF(ACCOUNTS!L21<>"",CONCATENATE(ACCOUNTS!$I21,"_",ACCOUNTS!L21)," ") ->  | P21: =IF(ACCOUNTS!M21<>"",CONCATENATE(ACCOUNTS!$I21,"_",ACCOUNTS!M21)," ") ->  | Q21: =IF(ACCOUNTS!N21<>"",CONCATENATE(ACCOUNTS!$I21,"_",ACCOUNTS!N21)," ") ->  | R21: =IF(ACCOUNTS!O21<>"",CONCATENATE(ACCOUNTS!$I21,"_",ACCOUNTS!O21)," ") ->  | S21: =IF(ACCOUNTS!P21<>"",CONCATENATE(ACCOUNTS!$I21,"_",ACCOUNTS!P21)," ") -> 
A22: =ACCOUNTS!A22 -> ~ | B22: =ACCOUNTS!B22 -> ~ | C22: =ACCOUNTS!C22 -> 0 | D22: 0 | E22: =IF(ACCOUNTS!$J22="",0,$C22*(INDEX(INDIRECT(ACCOUNTS!$J22),1,E$2))) -> 0 | F22: =IF(ACCOUNTS!$J22="",0,$C22*(INDEX(INDIRECT(ACCOUNTS!$J22),1,F$2))) -> 0 | G22: =IF(ACCOUNTS!$J22="",0,$C22*(INDEX(INDIRECT(ACCOUNTS!$J22),1,G$2))) -> 0 | H22: =IF(ACCOUNTS!$J22="",0,$C22*(INDEX(INDIRECT(ACCOUNTS!$J22),1,H$2))) -> 0 | I22: =IF(ACCOUNTS!$J22="",0,$C22*(INDEX(INDIRECT(ACCOUNTS!$J22),1,I$2))) -> 0 | J22: =IF(ACCOUNTS!$J22="",0,$C22*(INDEX(INDIRECT(ACCOUNTS!$J22),1,J$2))) -> 0 | L22: =IF(ACCOUNTS!$R22="",0,$C22) -> 0 | N22: =IF(ACCOUNTS!K22<>"",CONCATENATE(ACCOUNTS!$I22,"_",ACCOUNTS!K22)," ") ->  | O22: =IF(ACCOUNTS!L22<>"",CONCATENATE(ACCOUNTS!$I22,"_",ACCOUNTS!L22)," ") ->  | P22: =IF(ACCOUNTS!M22<>"",CONCATENATE(ACCOUNTS!$I22,"_",ACCOUNTS!M22)," ") ->  | Q22: =IF(ACCOUNTS!N22<>"",CONCATENATE(ACCOUNTS!$I22,"_",ACCOUNTS!N22)," ") ->  | R22: =IF(ACCOUNTS!O22<>"",CONCATENATE(ACCOUNTS!$I22,"_",ACCOUNTS!O22)," ") ->  | S22: =IF(ACCOUNTS!P22<>"",CONCATENATE(ACCOUNTS!$I22,"_",ACCOUNTS!P22)," ") -> 
A23: =ACCOUNTS!A23 -> ~ | B23: =ACCOUNTS!B23 -> ~ | C23: =ACCOUNTS!C23 -> 0 | D23: 0 | E23: =IF(ACCOUNTS!$J23="",0,$C23*(INDEX(INDIRECT(ACCOUNTS!$J23),1,E$2))) -> 0 | F23: =IF(ACCOUNTS!$J23="",0,$C23*(INDEX(INDIRECT(ACCOUNTS!$J23),1,F$2))) -> 0 | G23: =IF(ACCOUNTS!$J23="",0,$C23*(INDEX(INDIRECT(ACCOUNTS!$J23),1,G$2))) -> 0 | H23: =IF(ACCOUNTS!$J23="",0,$C23*(INDEX(INDIRECT(ACCOUNTS!$J23),1,H$2))) -> 0 | I23: =IF(ACCOUNTS!$J23="",0,$C23*(INDEX(INDIRECT(ACCOUNTS!$J23),1,I$2))) -> 0 | J23: =IF(ACCOUNTS!$J23="",0,$C23*(INDEX(INDIRECT(ACCOUNTS!$J23),1,J$2))) -> 0 | L23: =IF(ACCOUNTS!$R23="",0,$C23) -> 0 | N23: =IF(ACCOUNTS!K23<>"",CONCATENATE(ACCOUNTS!$I23,"_",ACCOUNTS!K23)," ") ->  | O23: =IF(ACCOUNTS!L23<>"",CONCATENATE(ACCOUNTS!$I23,"_",ACCOUNTS!L23)," ") ->  | P23: =IF(ACCOUNTS!M23<>"",CONCATENATE(ACCOUNTS!$I23,"_",ACCOUNTS!M23)," ") ->  | Q23: =IF(ACCOUNTS!N23<>"",CONCATENATE(ACCOUNTS!$I23,"_",ACCOUNTS!N23)," ") ->  | R23: =IF(ACCOUNTS!O23<>"",CONCATENATE(ACCOUNTS!$I23,"_",ACCOUNTS!O23)," ") ->  | S23: =IF(ACCOUNTS!P23<>"",CONCATENATE(ACCOUNTS!$I23,"_",ACCOUNTS!P23)," ") -> 
A24: =ACCOUNTS!A24 -> ~ | B24: =ACCOUNTS!B24 -> ~ | C24: =ACCOUNTS!C24 -> 0 | D24: 0 | E24: =IF(ACCOUNTS!$J24="",0,$C24*(INDEX(INDIRECT(ACCOUNTS!$J24),1,E$2))) -> 0 | F24: =IF(ACCOUNTS!$J24="",0,$C24*(INDEX(INDIRECT(ACCOUNTS!$J24),1,F$2))) -> 0 | G24: =IF(ACCOUNTS!$J24="",0,$C24*(INDEX(INDIRECT(ACCOUNTS!$J24),1,G$2))) -> 0 | H24: =IF(ACCOUNTS!$J24="",0,$C24*(INDEX(INDIRECT(ACCOUNTS!$J24),1,H$2))) -> 0 | I24: =IF(ACCOUNTS!$J24="",0,$C24*(INDEX(INDIRECT(ACCOUNTS!$J24),1,I$2))) -> 0 | J24: =IF(ACCOUNTS!$J24="",0,$C24*(INDEX(INDIRECT(ACCOUNTS!$J24),1,J$2))) -> 0 | L24: =IF(ACCOUNTS!$R24="",0,$C24) -> 0 | N24: =IF(ACCOUNTS!K24<>"",CONCATENATE(ACCOUNTS!$I24,"_",ACCOUNTS!K24)," ") ->  | O24: =IF(ACCOUNTS!L24<>"",CONCATENATE(ACCOUNTS!$I24,"_",ACCOUNTS!L24)," ") ->  | P24: =IF(ACCOUNTS!M24<>"",CONCATENATE(ACCOUNTS!$I24,"_",ACCOUNTS!M24)," ") ->  | Q24: =IF(ACCOUNTS!N24<>"",CONCATENATE(ACCOUNTS!$I24,"_",ACCOUNTS!N24)," ") ->  | R24: =IF(ACCOUNTS!O24<>"",CONCATENATE(ACCOUNTS!$I24,"_",ACCOUNTS!O24)," ") ->  | S24: =IF(ACCOUNTS!P24<>"",CONCATENATE(ACCOUNTS!$I24,"_",ACCOUNTS!P24)," ") -> 
A25: =ACCOUNTS!A25 -> ~ | B25: =ACCOUNTS!B25 -> ~ | C25: =ACCOUNTS!C25 -> 0 | D25: 0 | E25: =IF(ACCOUNTS!$J25="",0,$C25*(INDEX(INDIRECT(ACCOUNTS!$J25),1,E$2))) -> 0 | F25: =IF(ACCOUNTS!$J25="",0,$C25*(INDEX(INDIRECT(ACCOUNTS!$J25),1,F$2))) -> 0 | G25: =IF(ACCOUNTS!$J25="",0,$C25*(INDEX(INDIRECT(ACCOUNTS!$J25),1,G$2))) -> 0 | H25: =IF(ACCOUNTS!$J25="",0,$C25*(INDEX(INDIRECT(ACCOUNTS!$J25),1,H$2))) -> 0 | I25: =IF(ACCOUNTS!$J25="",0,$C25*(INDEX(INDIRECT(ACCOUNTS!$J25),1,I$2))) -> 0 | J25: =IF(ACCOUNTS!$J25="",0,$C25*(INDEX(INDIRECT(ACCOUNTS!$J25),1,J$2))) -> 0 | L25: =IF(ACCOUNTS!$R25="",0,$C25) -> 0 | N25: =IF(ACCOUNTS!K25<>"",CONCATENATE(ACCOUNTS!$I25,"_",ACCOUNTS!K25)," ") ->  | O25: =IF(ACCOUNTS!L25<>"",CONCATENATE(ACCOUNTS!$I25,"_",ACCOUNTS!L25)," ") ->  | P25: =IF(ACCOUNTS!M25<>"",CONCATENATE(ACCOUNTS!$I25,"_",ACCOUNTS!M25)," ") ->  | Q25: =IF(ACCOUNTS!N25<>"",CONCATENATE(ACCOUNTS!$I25,"_",ACCOUNTS!N25)," ") ->  | R25: =IF(ACCOUNTS!O25<>"",CONCATENATE(ACCOUNTS!$I25,"_",ACCOUNTS!O25)," ") ->  | S25: =IF(ACCOUNTS!P25<>"",CONCATENATE(ACCOUNTS!$I25,"_",ACCOUNTS!P25)," ") -> 
A26: =ACCOUNTS!A26 -> ~ | B26: =ACCOUNTS!B26 -> ~ | C26: =ACCOUNTS!C26 -> 0 | D26: 0 | E26: =IF(ACCOUNTS!$J26="",0,$C26*(INDEX(INDIRECT(ACCOUNTS!$J26),1,E$2))) -> 0 | F26: =IF(ACCOUNTS!$J26="",0,$C26*(INDEX(INDIRECT(ACCOUNTS!$J26),1,F$2))) -> 0 | G26: =IF(ACCOUNTS!$J26="",0,$C26*(INDEX(INDIRECT(ACCOUNTS!$J26),1,G$2))) -> 0 | H26: =IF(ACCOUNTS!$J26="",0,$C26*(INDEX(INDIRECT(ACCOUNTS!$J26),1,H$2))) -> 0 | I26: =IF(ACCOUNTS!$J26="",0,$C26*(INDEX(INDIRECT(ACCOUNTS!$J26),1,I$2))) -> 0 | J26: =IF(ACCOUNTS!$J26="",0,$C26*(INDEX(INDIRECT(ACCOUNTS!$J26),1,J$2))) -> 0 | L26: =IF(ACCOUNTS!$R26="",0,$C26) -> 0 | N26: =IF(ACCOUNTS!K26<>"",CONCATENATE(ACCOUNTS!$I26,"_",ACCOUNTS!K26)," ") ->  | O26: =IF(ACCOUNTS!L26<>"",CONCATENATE(ACCOUNTS!$I26,"_",ACCOUNTS!L26)," ") ->  | P26: =IF(ACCOUNTS!M26<>"",CONCATENATE(ACCOUNTS!$I26,"_",ACCOUNTS!M26)," ") ->  | Q26: =IF(ACCOUNTS!N26<>"",CONCATENATE(ACCOUNTS!$I26,"_",ACCOUNTS!N26)," ") ->  | R26: =IF(ACCOUNTS!O26<>"",CONCATENATE(ACCOUNTS!$I26,"_",ACCOUNTS!O26)," ") ->  | S26: =IF(ACCOUNTS!P26<>"",CONCATENATE(ACCOUNTS!$I26,"_",ACCOUNTS!P26)," ") -> 
A27: =ACCOUNTS!A27 -> ~ | B27: =ACCOUNTS!B27 -> ~ | C27: =ACCOUNTS!C27 -> 0 | D27: 0 | E27: =IF(ACCOUNTS!$J27="",0,$C27*(INDEX(INDIRECT(ACCOUNTS!$J27),1,E$2))) -> 0 | F27: =IF(ACCOUNTS!$J27="",0,$C27*(INDEX(INDIRECT(ACCOUNTS!$J27),1,F$2))) -> 0 | G27: =IF(ACCOUNTS!$J27="",0,$C27*(INDEX(INDIRECT(ACCOUNTS!$J27),1,G$2))) -> 0 | H27: =IF(ACCOUNTS!$J27="",0,$C27*(INDEX(INDIRECT(ACCOUNTS!$J27),1,H$2))) -> 0 | I27: =IF(ACCOUNTS!$J27="",0,$C27*(INDEX(INDIRECT(ACCOUNTS!$J27),1,I$2))) -> 0 | J27: =IF(ACCOUNTS!$J27="",0,$C27*(INDEX(INDIRECT(ACCOUNTS!$J27),1,J$2))) -> 0 | L27: =IF(ACCOUNTS!$R27="",0,$C27) -> 0 | N27: =IF(ACCOUNTS!K27<>"",CONCATENATE(ACCOUNTS!$I27,"_",ACCOUNTS!K27)," ") ->  | O27: =IF(ACCOUNTS!L27<>"",CONCATENATE(ACCOUNTS!$I27,"_",ACCOUNTS!L27)," ") ->  | P27: =IF(ACCOUNTS!M27<>"",CONCATENATE(ACCOUNTS!$I27,"_",ACCOUNTS!M27)," ") ->  | Q27: =IF(ACCOUNTS!N27<>"",CONCATENATE(ACCOUNTS!$I27,"_",ACCOUNTS!N27)," ") ->  | R27: =IF(ACCOUNTS!O27<>"",CONCATENATE(ACCOUNTS!$I27,"_",ACCOUNTS!O27)," ") ->  | S27: =IF(ACCOUNTS!P27<>"",CONCATENATE(ACCOUNTS!$I27,"_",ACCOUNTS!P27)," ") -> 
B28: =ACCOUNTS!B28 -> Sub-total | C28: =SUM(C16:C27) -> 4097835000 | D28: =SUM(E28:L28)-C28 -> 0 | E28: =SUM(E16:E27) -> 4097835000 | F28: =SUM(F16:F27) -> 0 | G28: 0 | H28: 0 | I28: 0 | J28: 0 | L28: 0
D29: 0
B30: =ACCOUNTS!B30 -> Transmission Plant | D30: 0
A31: =ACCOUNTS!A31 -> 350 | B31: =ACCOUNTS!B31 -> Washington Transmission Plant | C31: =ACCOUNTS!C31 -> 1231639678 | D31: 0 | E31: =IF(ACCOUNTS!$J31="",0,$C31*(INDEX(INDIRECT(ACCOUNTS!$J31),1,E$2))) -> 1231639678 | F31: =IF(ACCOUNTS!$J31="",0,$C31*(INDEX(INDIRECT(ACCOUNTS!$J31),1,F$2))) -> 0 | G31: =IF(ACCOUNTS!$J31="",0,$C31*(INDEX(INDIRECT(ACCOUNTS!$J31),1,G$2))) -> 0 | H31: =IF(ACCOUNTS!$J31="",0,$C31*(INDEX(INDIRECT(ACCOUNTS!$J31),1,H$2))) -> 0 | I31: =IF(ACCOUNTS!$J31="",0,$C31*(INDEX(INDIRECT(ACCOUNTS!$J31),1,I$2))) -> 0 | J31: =IF(ACCOUNTS!$J31="",0,$C31*(INDEX(INDIRECT(ACCOUNTS!$J31),1,J$2))) -> 0 | L31: =IF(ACCOUNTS!$R31="",0,$C31) -> 0 | N31: =IF(ACCOUNTS!K31<>"",CONCATENATE(ACCOUNTS!$I31,"_",ACCOUNTS!K31)," ") -> F_TRANS_DEM_2A | O31: =IF(ACCOUNTS!L31<>"",CONCATENATE(ACCOUNTS!$I31,"_",ACCOUNTS!L31)," ") -> F_TRANS_ENERGY_1 | P31: =IF(ACCOUNTS!M31<>"",CONCATENATE(ACCOUNTS!$I31,"_",ACCOUNTS!M31)," ") ->  | Q31: =IF(ACCOUNTS!N31<>"",CONCATENATE(ACCOUNTS!$I31,"_",ACCOUNTS!N31)," ") ->  | R31: =IF(ACCOUNTS!O31<>"",CONCATENATE(ACCOUNTS!$I31,"_",ACCOUNTS!O31)," ") ->  | S31: =IF(ACCOUNTS!P31<>"",CONCATENATE(ACCOUNTS!$I31,"_",ACCOUNTS!P31)," ") -> 
A32: =ACCOUNTS!A32 -> 350.01 | B32: =ACCOUNTS!B32 -> Washington Integrated Generation (GIF) Transmission Plant | C32: =ACCOUNTS!C32 -> 176912910.8 | D32: 0 | E32: =IF(ACCOUNTS!$J32="",0,$C32*(INDEX(INDIRECT(ACCOUNTS!$J32),1,E$2))) -> 176912910.8 | F32: =IF(ACCOUNTS!$J32="",0,$C32*(INDEX(INDIRECT(ACCOUNTS!$J32),1,F$2))) -> 0 | G32: =IF(ACCOUNTS!$J32="",0,$C32*(INDEX(INDIRECT(ACCOUNTS!$J32),1,G$2))) -> 0 | H32: =IF(ACCOUNTS!$J32="",0,$C32*(INDEX(INDIRECT(ACCOUNTS!$J32),1,H$2))) -> 0 | I32: =IF(ACCOUNTS!$J32="",0,$C32*(INDEX(INDIRECT(ACCOUNTS!$J32),1,I$2))) -> 0 | J32: =IF(ACCOUNTS!$J32="",0,$C32*(INDEX(INDIRECT(ACCOUNTS!$J32),1,J$2))) -> 0 | L32: =IF(ACCOUNTS!$R32="",0,$C32) -> 0 | N32: =IF(ACCOUNTS!K32<>"",CONCATENATE(ACCOUNTS!$I32,"_",ACCOUNTS!K32)," ") -> F_TRANS_DEM_2B | O32: =IF(ACCOUNTS!L32<>"",CONCATENATE(ACCOUNTS!$I32,"_",ACCOUNTS!L32)," ") -> F_TRANS_ENERGY_2 | P32: =IF(ACCOUNTS!M32<>"",CONCATENATE(ACCOUNTS!$I32,"_",ACCOUNTS!M32)," ") ->  | Q32: =IF(ACCOUNTS!N32<>"",CONCATENATE(ACCOUNTS!$I32,"_",ACCOUNTS!N32)," ") ->  | R32: =IF(ACCOUNTS!O32<>"",CONCATENATE(ACCOUNTS!$I32,"_",ACCOUNTS!O32)," ") ->  | S32: =IF(ACCOUNTS!P32<>"",CONCATENATE(ACCOUNTS!$I32,"_",ACCOUNTS!P32)," ") -> 
A33: =ACCOUNTS!A33 -> 350.02 | B33: =ACCOUNTS!B33 -> Washington Integrated Lease Facilities (LIF) Transmission Plant | C33: =ACCOUNTS!C33 -> 405246.36 | D33: =SUM(E33:L33)-C33 -> 0 | E33: =IF(ACCOUNTS!$J33="",0,$C33*(INDEX(INDIRECT(ACCOUNTS!$J33),1,E$2))) -> 405246.36 | F33: =IF(ACCOUNTS!$J33="",0,$C33*(INDEX(INDIRECT(ACCOUNTS!$J33),1,F$2))) -> 0 | G33: =IF(ACCOUNTS!$J33="",0,$C33*(INDEX(INDIRECT(ACCOUNTS!$J33),1,G$2))) -> 0 | H33: =IF(ACCOUNTS!$J33="",0,$C33*(INDEX(INDIRECT(ACCOUNTS!$J33),1,H$2))) -> 0 | I33: =IF(ACCOUNTS!$J33="",0,$C33*(INDEX(INDIRECT(ACCOUNTS!$J33),1,I$2))) -> 0 | J33: =IF(ACCOUNTS!$J33="",0,$C33*(INDEX(INDIRECT(ACCOUNTS!$J33),1,J$2))) -> 0 | L33: =IF(ACCOUNTS!$R33="",0,$C33) -> 0 | N33: =IF(ACCOUNTS!K33<>"",CONCATENATE(ACCOUNTS!$I33,"_",ACCOUNTS!K33)," ") -> F_TRANS_DIR_449 | O33: =IF(ACCOUNTS!L33<>"",CONCATENATE(ACCOUNTS!$I33,"_",ACCOUNTS!L33)," ") ->  | P33: =IF(ACCOUNTS!M33<>"",CONCATENATE(ACCOUNTS!$I33,"_",ACCOUNTS!M33)," ") ->  | Q33: =IF(ACCOUNTS!N33<>"",CONCATENATE(ACCOUNTS!$I33,"_",ACCOUNTS!N33)," ") ->  | R33: =IF(ACCOUNTS!O33<>"",CONCATENATE(ACCOUNTS!$I33,"_",ACCOUNTS!O33)," ") ->  | S33: =IF(ACCOUNTS!P33<>"",CONCATENATE(ACCOUNTS!$I33,"_",ACCOUNTS!P33)," ") -> 
A34: =ACCOUNTS!A34 -> 350.03 | B34: =ACCOUNTS!B34 -> Non-Washington Transmission Plant | C34: =ACCOUNTS!C34 -> 185779290.9 | D34: =SUM(E34:L34)-C34 -> 0 | E34: =IF(ACCOUNTS!$J34="",0,$C34*(INDEX(INDIRECT(ACCOUNTS!$J34),1,E$2))) -> 185779290.9 | F34: =IF(ACCOUNTS!$J34="",0,$C34*(INDEX(INDIRECT(ACCOUNTS!$J34),1,F$2))) -> 0 | G34: =IF(ACCOUNTS!$J34="",0,$C34*(INDEX(INDIRECT(ACCOUNTS!$J34),1,G$2))) -> 0 | H34: =IF(ACCOUNTS!$J34="",0,$C34*(INDEX(INDIRECT(ACCOUNTS!$J34),1,H$2))) -> 0 | I34: =IF(ACCOUNTS!$J34="",0,$C34*(INDEX(INDIRECT(ACCOUNTS!$J34),1,I$2))) -> 0 | J34: =IF(ACCOUNTS!$J34="",0,$C34*(INDEX(INDIRECT(ACCOUNTS!$J34),1,J$2))) -> 0 | L34: =IF(ACCOUNTS!$R34="",0,$C34) -> 0 | N34: =IF(ACCOUNTS!K34<>"",CONCATENATE(ACCOUNTS!$I34,"_",ACCOUNTS!K34)," ") -> F_TRANS_DEM_2B | O34: =IF(ACCOUNTS!L34<>"",CONCATENATE(ACCOUNTS!$I34,"_",ACCOUNTS!L34)," ") -> F_TRANS_ENERGY_2 | P34: =IF(ACCOUNTS!M34<>"",CONCATENATE(ACCOUNTS!$I34,"_",ACCOUNTS!M34)," ") ->  | Q34: =IF(ACCOUNTS!N34<>"",CONCATENATE(ACCOUNTS!$I34,"_",ACCOUNTS!N34)," ") ->  | R34: =IF(ACCOUNTS!O34<>"",CONCATENATE(ACCOUNTS!$I34,"_",ACCOUNTS!O34)," ") ->  | S34: =IF(ACCOUNTS!P34<>"",CONCATENATE(ACCOUNTS!$I34,"_",ACCOUNTS!P34)," ") -> 
A35: =ACCOUNTS!A35 -> ~ | B35: =ACCOUNTS!B35 -> ~ | C35: =ACCOUNTS!C35 -> 0 | D35: =SUM(E35:L35)-C35 -> 0 | E35: =IF(ACCOUNTS!$J35="",0,$C35*(INDEX(INDIRECT(ACCOUNTS!$J35),1,E$2))) -> 0 | F35: =IF(ACCOUNTS!$J35="",0,$C35*(INDEX(INDIRECT(ACCOUNTS!$J35),1,F$2))) -> 0 | G35: =IF(ACCOUNTS!$J35="",0,$C35*(INDEX(INDIRECT(ACCOUNTS!$J35),1,G$2))) -> 0 | H35: =IF(ACCOUNTS!$J35="",0,$C35*(INDEX(INDIRECT(ACCOUNTS!$J35),1,H$2))) -> 0 | I35: =IF(ACCOUNTS!$J35="",0,$C35*(INDEX(INDIRECT(ACCOUNTS!$J35),1,I$2))) -> 0 | J35: =IF(ACCOUNTS!$J35="",0,$C35*(INDEX(INDIRECT(ACCOUNTS!$J35),1,J$2))) -> 0 | L35: =IF(ACCOUNTS!$R35="",0,$C35) -> 0 | N35: =IF(ACCOUNTS!K35<>"",CONCATENATE(ACCOUNTS!$I35,"_",ACCOUNTS!K35)," ") ->  | O35: =IF(ACCOUNTS!L35<>"",CONCATENATE(ACCOUNTS!$I35,"_",ACCOUNTS!L35)," ") ->  | P35: =IF(ACCOUNTS!M35<>"",CONCATENATE(ACCOUNTS!$I35,"_",ACCOUNTS!M35)," ") ->  | Q35: =IF(ACCOUNTS!N35<>"",CONCATENATE(ACCOUNTS!$I35,"_",ACCOUNTS!N35)," ") ->  | R35: =IF(ACCOUNTS!O35<>"",CONCATENATE(ACCOUNTS!$I35,"_",ACCOUNTS!O35)," ") ->  | S35: =IF(ACCOUNTS!P35<>"",CONCATENATE(ACCOUNTS!$I35,"_",ACCOUNTS!P35)," ") -> 
A36: =ACCOUNTS!A36 -> ~ | B36: =ACCOUNTS!B36 -> ~ | C36: =ACCOUNTS!C36 -> 0 | D36: 0 | E36: =IF(ACCOUNTS!$J36="",0,$C36*(INDEX(INDIRECT(ACCOUNTS!$J36),1,E$2))) -> 0 | F36: =IF(ACCOUNTS!$J36="",0,$C36*(INDEX(INDIRECT(ACCOUNTS!$J36),1,F$2))) -> 0 | G36: =IF(ACCOUNTS!$J36="",0,$C36*(INDEX(INDIRECT(ACCOUNTS!$J36),1,G$2))) -> 0 | H36: =IF(ACCOUNTS!$J36="",0,$C36*(INDEX(INDIRECT(ACCOUNTS!$J36),1,H$2))) -> 0 | I36: =IF(ACCOUNTS!$J36="",0,$C36*(INDEX(INDIRECT(ACCOUNTS!$J36),1,I$2))) -> 0 | J36: =IF(ACCOUNTS!$J36="",0,$C36*(INDEX(INDIRECT(ACCOUNTS!$J36),1,J$2))) -> 0 | L36: =IF(ACCOUNTS!$R36="",0,$C36) -> 0 | N36: =IF(ACCOUNTS!K36<>"",CONCATENATE(ACCOUNTS!$I36,"_",ACCOUNTS!K36)," ") ->  | O36: =IF(ACCOUNTS!L36<>"",CONCATENATE(ACCOUNTS!$I36,"_",ACCOUNTS!L36)," ") ->  | P36: =IF(ACCOUNTS!M36<>"",CONCATENATE(ACCOUNTS!$I36,"_",ACCOUNTS!M36)," ") ->  | Q36: =IF(ACCOUNTS!N36<>"",CONCATENATE(ACCOUNTS!$I36,"_",ACCOUNTS!N36)," ") ->  | R36: =IF(ACCOUNTS!O36<>"",CONCATENATE(ACCOUNTS!$I36,"_",ACCOUNTS!O36)," ") ->  | S36: =IF(ACCOUNTS!P36<>"",CONCATENATE(ACCOUNTS!$I36,"_",ACCOUNTS!P36)," ") -> 
A37: =ACCOUNTS!A37 -> ~ | B37: =ACCOUNTS!B37 -> ~ | C37: =ACCOUNTS!C37 -> 0 | D37: 0 | E37: =IF(ACCOUNTS!$J37="",0,$C37*(INDEX(INDIRECT(ACCOUNTS!$J37),1,E$2))) -> 0 | F37: =IF(ACCOUNTS!$J37="",0,$C37*(INDEX(INDIRECT(ACCOUNTS!$J37),1,F$2))) -> 0 | G37: =IF(ACCOUNTS!$J37="",0,$C37*(INDEX(INDIRECT(ACCOUNTS!$J37),1,G$2))) -> 0 | H37: =IF(ACCOUNTS!$J37="",0,$C37*(INDEX(INDIRECT(ACCOUNTS!$J37),1,H$2))) -> 0 | I37: =IF(ACCOUNTS!$J37="",0,$C37*(INDEX(INDIRECT(ACCOUNTS!$J37),1,I$2))) -> 0 | J37: =IF(ACCOUNTS!$J37="",0,$C37*(INDEX(INDIRECT(ACCOUNTS!$J37),1,J$2))) -> 0 | L37: =IF(ACCOUNTS!$R37="",0,$C37) -> 0 | N37: =IF(ACCOUNTS!K37<>"",CONCATENATE(ACCOUNTS!$I37,"_",ACCOUNTS!K37)," ") ->  | O37: =IF(ACCOUNTS!L37<>"",CONCATENATE(ACCOUNTS!$I37,"_",ACCOUNTS!L37)," ") ->  | P37: =IF(ACCOUNTS!M37<>"",CONCATENATE(ACCOUNTS!$I37,"_",ACCOUNTS!M37)," ") ->  | Q37: =IF(ACCOUNTS!N37<>"",CONCATENATE(ACCOUNTS!$I37,"_",ACCOUNTS!N37)," ") ->  | R37: =IF(ACCOUNTS!O37<>"",CONCATENATE(ACCOUNTS!$I37,"_",ACCOUNTS!O37)," ") ->  | S37: =IF(ACCOUNTS!P37<>"",CONCATENATE(ACCOUNTS!$I37,"_",ACCOUNTS!P37)," ") -> 
A38: =ACCOUNTS!A38 -> ~ | B38: =ACCOUNTS!B38 -> ~ | C38: =ACCOUNTS!C38 -> 0 | D38: 0 | E38: =IF(ACCOUNTS!$J38="",0,$C38*(INDEX(INDIRECT(ACCOUNTS!$J38),1,E$2))) -> 0 | F38: =IF(ACCOUNTS!$J38="",0,$C38*(INDEX(INDIRECT(ACCOUNTS!$J38),1,F$2))) -> 0 | G38: =IF(ACCOUNTS!$J38="",0,$C38*(INDEX(INDIRECT(ACCOUNTS!$J38),1,G$2))) -> 0 | H38: =IF(ACCOUNTS!$J38="",0,$C38*(INDEX(INDIRECT(ACCOUNTS!$J38),1,H$2))) -> 0 | I38: =IF(ACCOUNTS!$J38="",0,$C38*(INDEX(INDIRECT(ACCOUNTS!$J38),1,I$2))) -> 0 | J38: =IF(ACCOUNTS!$J38="",0,$C38*(INDEX(INDIRECT(ACCOUNTS!$J38),1,J$2))) -> 0 | L38: =IF(ACCOUNTS!$R38="",0,$C38) -> 0 | N38: =IF(ACCOUNTS!K38<>"",CONCATENATE(ACCOUNTS!$I38,"_",ACCOUNTS!K38)," ") ->  | O38: =IF(ACCOUNTS!L38<>"",CONCATENATE(ACCOUNTS!$I38,"_",ACCOUNTS!L38)," ") ->  | P38: =IF(ACCOUNTS!M38<>"",CONCATENATE(ACCOUNTS!$I38,"_",ACCOUNTS!M38)," ") ->  | Q38: =IF(ACCOUNTS!N38<>"",CONCATENATE(ACCOUNTS!$I38,"_",ACCOUNTS!N38)," ") ->  | R38: =IF(ACCOUNTS!O38<>"",CONCATENATE(ACCOUNTS!$I38,"_",ACCOUNTS!O38)," ") ->  | S38: =IF(ACCOUNTS!P38<>"",CONCATENATE(ACCOUNTS!$I38,"_",ACCOUNTS!P38)," ") -> 
B39: =ACCOUNTS!B39 -> Sub-total | C39: =SUM(C31:C38) -> 1594737127 | D39: =SUM(E39:L39)-C39 -> 0 | E39: =SUM(E31:E38) -> 1594737127 | F39: 0 | G39: 0 | H39: 0 | I39: 0 | J39: 0 | L39: 0
D40: 0
B41: =ACCOUNTS!B41 -> Distribution Plant | D41: 0
A42: =ACCOUNTS!A42 -> 360.01 | B42: =ACCOUNTS!B42 -> Land & Land Rights - Assigned | C42: =ACCOUNTS!C42 -> 3584294.51 | D42: 0 | E42: =IF(ACCOUNTS!$J42="",0,$C42*(INDEX(INDIRECT(ACCOUNTS!$J42),1,E$2))) -> 3584294.51 | F42: =IF(ACCOUNTS!$J42="",0,$C42*(INDEX(INDIRECT(ACCOUNTS!$J42),1,F$2))) -> 0 | G42: =IF(ACCOUNTS!$J42="",0,$C42*(INDEX(INDIRECT(ACCOUNTS!$J42),1,G$2))) -> 0 | H42: =IF(ACCOUNTS!$J42="",0,$C42*(INDEX(INDIRECT(ACCOUNTS!$J42),1,H$2))) -> 0 | I42: =IF(ACCOUNTS!$J42="",0,$C42*(INDEX(INDIRECT(ACCOUNTS!$J42),1,I$2))) -> 0 | J42: =IF(ACCOUNTS!$J42="",0,$C42*(INDEX(INDIRECT(ACCOUNTS!$J42),1,J$2))) -> 0 | L42: =IF(ACCOUNTS!$R42="",0,$C42) -> 0 | N42: =IF(ACCOUNTS!K42<>"",CONCATENATE(ACCOUNTS!$I42,"_",ACCOUNTS!K42)," ") -> F_DISTR_DIR360.01 | O42: =IF(ACCOUNTS!L42<>"",CONCATENATE(ACCOUNTS!$I42,"_",ACCOUNTS!L42)," ") ->  | P42: =IF(ACCOUNTS!M42<>"",CONCATENATE(ACCOUNTS!$I42,"_",ACCOUNTS!M42)," ") ->  | Q42: =IF(ACCOUNTS!N42<>"",CONCATENATE(ACCOUNTS!$I42,"_",ACCOUNTS!N42)," ") ->  | R42: =IF(ACCOUNTS!O42<>"",CONCATENATE(ACCOUNTS!$I42,"_",ACCOUNTS!O42)," ") ->  | S42: =IF(ACCOUNTS!P42<>"",CONCATENATE(ACCOUNTS!$I42,"_",ACCOUNTS!P42)," ") -> 
A43: =ACCOUNTS!A43 -> 360.02 | B43: =ACCOUNTS!B43 -> Land & Land Rights - Allocated | C43: =ACCOUNTS!C43 -> 47903705.49 | D43: 0 | E43: =IF(ACCOUNTS!$J43="",0,$C43*(INDEX(INDIRECT(ACCOUNTS!$J43),1,E$2))) -> 47903705.49 | F43: =IF(ACCOUNTS!$J43="",0,$C43*(INDEX(INDIRECT(ACCOUNTS!$J43),1,F$2))) -> 0 | G43: =IF(ACCOUNTS!$J43="",0,$C43*(INDEX(INDIRECT(ACCOUNTS!$J43),1,G$2))) -> 0 | H43: =IF(ACCOUNTS!$J43="",0,$C43*(INDEX(INDIRECT(ACCOUNTS!$J43),1,H$2))) -> 0 | I43: =IF(ACCOUNTS!$J43="",0,$C43*(INDEX(INDIRECT(ACCOUNTS!$J43),1,I$2))) -> 0 | J43: =IF(ACCOUNTS!$J43="",0,$C43*(INDEX(INDIRECT(ACCOUNTS!$J43),1,J$2))) -> 0 | L43: =IF(ACCOUNTS!$R43="",0,$C43) -> 0 | N43: =IF(ACCOUNTS!K43<>"",CONCATENATE(ACCOUNTS!$I43,"_",ACCOUNTS!K43)," ") -> F_DISTR_NCP_360 | O43: =IF(ACCOUNTS!L43<>"",CONCATENATE(ACCOUNTS!$I43,"_",ACCOUNTS!L43)," ") ->  | P43: =IF(ACCOUNTS!M43<>"",CONCATENATE(ACCOUNTS!$I43,"_",ACCOUNTS!M43)," ") ->  | Q43: =IF(ACCOUNTS!N43<>"",CONCATENATE(ACCOUNTS!$I43,"_",ACCOUNTS!N43)," ") ->  | R43: =IF(ACCOUNTS!O43<>"",CONCATENATE(ACCOUNTS!$I43,"_",ACCOUNTS!O43)," ") ->  | S43: =IF(ACCOUNTS!P43<>"",CONCATENATE(ACCOUNTS!$I43,"_",ACCOUNTS!P43)," ") -> 
A44: =ACCOUNTS!A44 -> 361.01 | B44: =ACCOUNTS!B44 -> Structures & Improve - Assigned | C44: =ACCOUNTS!C44 -> 598299.7945 | D44: 0 | E44: =IF(ACCOUNTS!$J44="",0,$C44*(INDEX(INDIRECT(ACCOUNTS!$J44),1,E$2))) -> 598299.7945 | F44: =IF(ACCOUNTS!$J44="",0,$C44*(INDEX(INDIRECT(ACCOUNTS!$J44),1,F$2))) -> 0 | G44: =IF(ACCOUNTS!$J44="",0,$C44*(INDEX(INDIRECT(ACCOUNTS!$J44),1,G$2))) -> 0 | H44: =IF(ACCOUNTS!$J44="",0,$C44*(INDEX(INDIRECT(ACCOUNTS!$J44),1,H$2))) -> 0 | I44: =IF(ACCOUNTS!$J44="",0,$C44*(INDEX(INDIRECT(ACCOUNTS!$J44),1,I$2))) -> 0 | J44: =IF(ACCOUNTS!$J44="",0,$C44*(INDEX(INDIRECT(ACCOUNTS!$J44),1,J$2))) -> 0 | L44: =IF(ACCOUNTS!$R44="",0,$C44) -> 0 | N44: =IF(ACCOUNTS!K44<>"",CONCATENATE(ACCOUNTS!$I44,"_",ACCOUNTS!K44)," ") -> F_DISTR_DIR361.01 | O44: =IF(ACCOUNTS!L44<>"",CONCATENATE(ACCOUNTS!$I44,"_",ACCOUNTS!L44)," ") ->  | P44: =IF(ACCOUNTS!M44<>"",CONCATENATE(ACCOUNTS!$I44,"_",ACCOUNTS!M44)," ") ->  | Q44: =IF(ACCOUNTS!N44<>"",CONCATENATE(ACCOUNTS!$I44,"_",ACCOUNTS!N44)," ") ->  | R44: =IF(ACCOUNTS!O44<>"",CONCATENATE(ACCOUNTS!$I44,"_",ACCOUNTS!O44)," ") ->  | S44: =IF(ACCOUNTS!P44<>"",CONCATENATE(ACCOUNTS!$I44,"_",ACCOUNTS!P44)," ") -> 
A45: =ACCOUNTS!A45 -> 361.02 | B45: =ACCOUNTS!B45 -> Structures & Improve - Allocated | C45: =ACCOUNTS!C45 -> 7504700.206 | D45: 0 | E45: =IF(ACCOUNTS!$J45="",0,$C45*(INDEX(INDIRECT(ACCOUNTS!$J45),1,E$2))) -> 7504700.206 | F45: =IF(ACCOUNTS!$J45="",0,$C45*(INDEX(INDIRECT(ACCOUNTS!$J45),1,F$2))) -> 0 | G45: =IF(ACCOUNTS!$J45="",0,$C45*(INDEX(INDIRECT(ACCOUNTS!$J45),1,G$2))) -> 0 | H45: =IF(ACCOUNTS!$J45="",0,$C45*(INDEX(INDIRECT(ACCOUNTS!$J45),1,H$2))) -> 0 | I45: =IF(ACCOUNTS!$J45="",0,$C45*(INDEX(INDIRECT(ACCOUNTS!$J45),1,I$2))) -> 0 | J45: =IF(ACCOUNTS!$J45="",0,$C45*(INDEX(INDIRECT(ACCOUNTS!$J45),1,J$2))) -> 0 | L45: =IF(ACCOUNTS!$R45="",0,$C45) -> 0 | N45: =IF(ACCOUNTS!K45<>"",CONCATENATE(ACCOUNTS!$I45,"_",ACCOUNTS!K45)," ") -> F_DISTR_NCP_361 | O45: =IF(ACCOUNTS!L45<>"",CONCATENATE(ACCOUNTS!$I45,"_",ACCOUNTS!L45)," ") ->  | P45: =IF(ACCOUNTS!M45<>"",CONCATENATE(ACCOUNTS!$I45,"_",ACCOUNTS!M45)," ") ->  | Q45: =IF(ACCOUNTS!N45<>"",CONCATENATE(ACCOUNTS!$I45,"_",ACCOUNTS!N45)," ") ->  | R45: =IF(ACCOUNTS!O45<>"",CONCATENATE(ACCOUNTS!$I45,"_",ACCOUNTS!O45)," ") ->  | S45: =IF(ACCOUNTS!P45<>"",CONCATENATE(ACCOUNTS!$I45,"_",ACCOUNTS!P45)," ") -> 
A46: =ACCOUNTS!A46 -> 362.01 | B46: =ACCOUNTS!B46 -> Station Equipment - Assigned | C46: =ACCOUNTS!C46 -> 31963716.52 | D46: 0 | E46: =IF(ACCOUNTS!$J46="",0,$C46*(INDEX(INDIRECT(ACCOUNTS!$J46),1,E$2))) -> 31963716.52 | F46: =IF(ACCOUNTS!$J46="",0,$C46*(INDEX(INDIRECT(ACCOUNTS!$J46),1,F$2))) -> 0 | G46: =IF(ACCOUNTS!$J46="",0,$C46*(INDEX(INDIRECT(ACCOUNTS!$J46),1,G$2))) -> 0 | H46: =IF(ACCOUNTS!$J46="",0,$C46*(INDEX(INDIRECT(ACCOUNTS!$J46),1,H$2))) -> 0 | I46: =IF(ACCOUNTS!$J46="",0,$C46*(INDEX(INDIRECT(ACCOUNTS!$J46),1,I$2))) -> 0 | J46: =IF(ACCOUNTS!$J46="",0,$C46*(INDEX(INDIRECT(ACCOUNTS!$J46),1,J$2))) -> 0 | L46: =IF(ACCOUNTS!$R46="",0,$C46) -> 0 | N46: =IF(ACCOUNTS!K46<>"",CONCATENATE(ACCOUNTS!$I46,"_",ACCOUNTS!K46)," ") -> F_DISTR_DIR362.01 | O46: =IF(ACCOUNTS!L46<>"",CONCATENATE(ACCOUNTS!$I46,"_",ACCOUNTS!L46)," ") ->  | P46: =IF(ACCOUNTS!M46<>"",CONCATENATE(ACCOUNTS!$I46,"_",ACCOUNTS!M46)," ") ->  | Q46: =IF(ACCOUNTS!N46<>"",CONCATENATE(ACCOUNTS!$I46,"_",ACCOUNTS!N46)," ") ->  | R46: =IF(ACCOUNTS!O46<>"",CONCATENATE(ACCOUNTS!$I46,"_",ACCOUNTS!O46)," ") ->  | S46: =IF(ACCOUNTS!P46<>"",CONCATENATE(ACCOUNTS!$I46,"_",ACCOUNTS!P46)," ") -> 
A47: =ACCOUNTS!A47 -> 362.02 | B47: =ACCOUNTS!B47 -> Station Equipment - Allocated | C47: =ACCOUNTS!C47 -> 439222283.5 | D47: 0 | E47: =IF(ACCOUNTS!$J47="",0,$C47*(INDEX(INDIRECT(ACCOUNTS!$J47),1,E$2))) -> 439222283.5 | F47: =IF(ACCOUNTS!$J47="",0,$C47*(INDEX(INDIRECT(ACCOUNTS!$J47),1,F$2))) -> 0 | G47: =IF(ACCOUNTS!$J47="",0,$C47*(INDEX(INDIRECT(ACCOUNTS!$J47),1,G$2))) -> 0 | H47: =IF(ACCOUNTS!$J47="",0,$C47*(INDEX(INDIRECT(ACCOUNTS!$J47),1,H$2))) -> 0 | I47: =IF(ACCOUNTS!$J47="",0,$C47*(INDEX(INDIRECT(ACCOUNTS!$J47),1,I$2))) -> 0 | J47: =IF(ACCOUNTS!$J47="",0,$C47*(INDEX(INDIRECT(ACCOUNTS!$J47),1,J$2))) -> 0 | L47: =IF(ACCOUNTS!$R47="",0,$C47) -> 0 | N47: =IF(ACCOUNTS!K47<>"",CONCATENATE(ACCOUNTS!$I47,"_",ACCOUNTS!K47)," ") -> F_DISTR_NCP_362 | O47: =IF(ACCOUNTS!L47<>"",CONCATENATE(ACCOUNTS!$I47,"_",ACCOUNTS!L47)," ") ->  | P47: =IF(ACCOUNTS!M47<>"",CONCATENATE(ACCOUNTS!$I47,"_",ACCOUNTS!M47)," ") ->  | Q47: =IF(ACCOUNTS!N47<>"",CONCATENATE(ACCOUNTS!$I47,"_",ACCOUNTS!N47)," ") ->  | R47: =IF(ACCOUNTS!O47<>"",CONCATENATE(ACCOUNTS!$I47,"_",ACCOUNTS!O47)," ") ->  | S47: =IF(ACCOUNTS!P47<>"",CONCATENATE(ACCOUNTS!$I47,"_",ACCOUNTS!P47)," ") -> 
A48: =ACCOUNTS!A48 -> 363.01 | B48: =ACCOUNTS!B48 -> Battery Storage | C48: =ACCOUNTS!C48 -> 1101000 | D48: 0 | E48: =IF(ACCOUNTS!$J48="",0,$C48*(INDEX(INDIRECT(ACCOUNTS!$J48),1,E$2))) -> 1101000 | F48: =IF(ACCOUNTS!$J48="",0,$C48*(INDEX(INDIRECT(ACCOUNTS!$J48),1,F$2))) -> 0 | G48: =IF(ACCOUNTS!$J48="",0,$C48*(INDEX(INDIRECT(ACCOUNTS!$J48),1,G$2))) -> 0 | H48: =IF(ACCOUNTS!$J48="",0,$C48*(INDEX(INDIRECT(ACCOUNTS!$J48),1,H$2))) -> 0 | I48: =IF(ACCOUNTS!$J48="",0,$C48*(INDEX(INDIRECT(ACCOUNTS!$J48),1,I$2))) -> 0 | J48: =IF(ACCOUNTS!$J48="",0,$C48*(INDEX(INDIRECT(ACCOUNTS!$J48),1,J$2))) -> 0 | L48: =IF(ACCOUNTS!$R48="",0,$C48) -> 0 | N48: =IF(ACCOUNTS!K48<>"",CONCATENATE(ACCOUNTS!$I48,"_",ACCOUNTS!K48)," ") -> F_DISTR_NCP_362 | O48: =IF(ACCOUNTS!L48<>"",CONCATENATE(ACCOUNTS!$I48,"_",ACCOUNTS!L48)," ") ->  | P48: =IF(ACCOUNTS!M48<>"",CONCATENATE(ACCOUNTS!$I48,"_",ACCOUNTS!M48)," ") ->  | Q48: =IF(ACCOUNTS!N48<>"",CONCATENATE(ACCOUNTS!$I48,"_",ACCOUNTS!N48)," ") ->  | R48: =IF(ACCOUNTS!O48<>"",CONCATENATE(ACCOUNTS!$I48,"_",ACCOUNTS!O48)," ") ->  | S48: =IF(ACCOUNTS!P48<>"",CONCATENATE(ACCOUNTS!$I48,"_",ACCOUNTS!P48)," ") -> 
A49: =ACCOUNTS!A49 -> 364.01 | B49: =ACCOUNTS!B49 -> Poles Towers & Fixtures | C49: =ACCOUNTS!C49 -> 372360470.9 | D49: 0 | E49: =IF(ACCOUNTS!$J49="",0,$C49*(INDEX(INDIRECT(ACCOUNTS!$J49),1,E$2))) -> 372360470.9 | F49: =IF(ACCOUNTS!$J49="",0,$C49*(INDEX(INDIRECT(ACCOUNTS!$J49),1,F$2))) -> 0 | G49: =IF(ACCOUNTS!$J49="",0,$C49*(INDEX(INDIRECT(ACCOUNTS!$J49),1,G$2))) -> 0 | H49: =IF(ACCOUNTS!$J49="",0,$C49*(INDEX(INDIRECT(ACCOUNTS!$J49),1,H$2))) -> 0 | I49: =IF(ACCOUNTS!$J49="",0,$C49*(INDEX(INDIRECT(ACCOUNTS!$J49),1,I$2))) -> 0 | J49: =IF(ACCOUNTS!$J49="",0,$C49*(INDEX(INDIRECT(ACCOUNTS!$J49),1,J$2))) -> 0 | L49: =IF(ACCOUNTS!$R49="",0,$C49) -> 0 | N49: =IF(ACCOUNTS!K49<>"",CONCATENATE(ACCOUNTS!$I49,"_",ACCOUNTS!K49)," ") -> F_DISTR_OH_NCP | O49: =IF(ACCOUNTS!L49<>"",CONCATENATE(ACCOUNTS!$I49,"_",ACCOUNTS!L49)," ") ->  | P49: =IF(ACCOUNTS!M49<>"",CONCATENATE(ACCOUNTS!$I49,"_",ACCOUNTS!M49)," ") ->  | Q49: =IF(ACCOUNTS!N49<>"",CONCATENATE(ACCOUNTS!$I49,"_",ACCOUNTS!N49)," ") ->  | R49: =IF(ACCOUNTS!O49<>"",CONCATENATE(ACCOUNTS!$I49,"_",ACCOUNTS!O49)," ") ->  | S49: =IF(ACCOUNTS!P49<>"",CONCATENATE(ACCOUNTS!$I49,"_",ACCOUNTS!P49)," ") -> 
A50: =ACCOUNTS!A50 -> 365.01 | B50: =ACCOUNTS!B50 -> OH Lines Direct Assignment | C50: =ACCOUNTS!C50 -> 67009.35634 | D50: 0 | E50: =IF(ACCOUNTS!$J50="",0,$C50*(INDEX(INDIRECT(ACCOUNTS!$J50),1,E$2))) -> 67009.35634 | F50: =IF(ACCOUNTS!$J50="",0,$C50*(INDEX(INDIRECT(ACCOUNTS!$J50),1,F$2))) -> 0 | G50: =IF(ACCOUNTS!$J50="",0,$C50*(INDEX(INDIRECT(ACCOUNTS!$J50),1,G$2))) -> 0 | H50: =IF(ACCOUNTS!$J50="",0,$C50*(INDEX(INDIRECT(ACCOUNTS!$J50),1,H$2))) -> 0 | I50: =IF(ACCOUNTS!$J50="",0,$C50*(INDEX(INDIRECT(ACCOUNTS!$J50),1,I$2))) -> 0 | J50: =IF(ACCOUNTS!$J50="",0,$C50*(INDEX(INDIRECT(ACCOUNTS!$J50),1,J$2))) -> 0 | L50: =IF(ACCOUNTS!$R50="",0,$C50) -> 0 | N50: =IF(ACCOUNTS!K50<>"",CONCATENATE(ACCOUNTS!$I50,"_",ACCOUNTS!K50)," ") -> F_DISTR_DIR364.01 | O50: =IF(ACCOUNTS!L50<>"",CONCATENATE(ACCOUNTS!$I50,"_",ACCOUNTS!L50)," ") ->  | P50: =IF(ACCOUNTS!M50<>"",CONCATENATE(ACCOUNTS!$I50,"_",ACCOUNTS!M50)," ") ->  | Q50: =IF(ACCOUNTS!N50<>"",CONCATENATE(ACCOUNTS!$I50,"_",ACCOUNTS!N50)," ") ->  | R50: =IF(ACCOUNTS!O50<>"",CONCATENATE(ACCOUNTS!$I50,"_",ACCOUNTS!O50)," ") ->  | S50: =IF(ACCOUNTS!P50<>"",CONCATENATE(ACCOUNTS!$I50,"_",ACCOUNTS!P50)," ") -> 
A51: =ACCOUNTS!A51 -> 365.02 | B51: =ACCOUNTS!B51 -> OVHD Cond & Devices | C51: =ACCOUNTS!C51 -> 471995339.8 | D51: =SUM(E51:L51)-C51 -> 0 | E51: =IF(ACCOUNTS!$J51="",0,$C51*(INDEX(INDIRECT(ACCOUNTS!$J51),1,E$2))) -> 471995339.8 | F51: =IF(ACCOUNTS!$J51="",0,$C51*(INDEX(INDIRECT(ACCOUNTS!$J51),1,F$2))) -> 0 | G51: =IF(ACCOUNTS!$J51="",0,$C51*(INDEX(INDIRECT(ACCOUNTS!$J51),1,G$2))) -> 0 | H51: =IF(ACCOUNTS!$J51="",0,$C51*(INDEX(INDIRECT(ACCOUNTS!$J51),1,H$2))) -> 0 | I51: =IF(ACCOUNTS!$J51="",0,$C51*(INDEX(INDIRECT(ACCOUNTS!$J51),1,I$2))) -> 0 | J51: =IF(ACCOUNTS!$J51="",0,$C51*(INDEX(INDIRECT(ACCOUNTS!$J51),1,J$2))) -> 0 | L51: =IF(ACCOUNTS!$R51="",0,$C51) -> 0 | N51: =IF(ACCOUNTS!K51<>"",CONCATENATE(ACCOUNTS!$I51,"_",ACCOUNTS!K51)," ") -> F_DISTR_OH_NCP | O51: =IF(ACCOUNTS!L51<>"",CONCATENATE(ACCOUNTS!$I51,"_",ACCOUNTS!L51)," ") ->  | P51: =IF(ACCOUNTS!M51<>"",CONCATENATE(ACCOUNTS!$I51,"_",ACCOUNTS!M51)," ") ->  | Q51: =IF(ACCOUNTS!N51<>"",CONCATENATE(ACCOUNTS!$I51,"_",ACCOUNTS!N51)," ") ->  | R51: =IF(ACCOUNTS!O51<>"",CONCATENATE(ACCOUNTS!$I51,"_",ACCOUNTS!O51)," ") ->  | S51: =IF(ACCOUNTS!P51<>"",CONCATENATE(ACCOUNTS!$I51,"_",ACCOUNTS!P51)," ") -> 
A52: =ACCOUNTS!A52 -> 366.01 | B52: =ACCOUNTS!B52 -> UG Conduit Direct Assignment | C52: =ACCOUNTS!C52 -> 27766610.7 | D52: 0 | E52: =IF(ACCOUNTS!$J52="",0,$C52*(INDEX(INDIRECT(ACCOUNTS!$J52),1,E$2))) -> 27766610.7 | F52: =IF(ACCOUNTS!$J52="",0,$C52*(INDEX(INDIRECT(ACCOUNTS!$J52),1,F$2))) -> 0 | G52: =IF(ACCOUNTS!$J52="",0,$C52*(INDEX(INDIRECT(ACCOUNTS!$J52),1,G$2))) -> 0 | H52: =IF(ACCOUNTS!$J52="",0,$C52*(INDEX(INDIRECT(ACCOUNTS!$J52),1,H$2))) -> 0 | I52: =IF(ACCOUNTS!$J52="",0,$C52*(INDEX(INDIRECT(ACCOUNTS!$J52),1,I$2))) -> 0 | J52: =IF(ACCOUNTS!$J52="",0,$C52*(INDEX(INDIRECT(ACCOUNTS!$J52),1,J$2))) -> 0 | L52: =IF(ACCOUNTS!$R52="",0,$C52) -> 0 | N52: =IF(ACCOUNTS!K52<>"",CONCATENATE(ACCOUNTS!$I52,"_",ACCOUNTS!K52)," ") -> F_DISTR_DIR366.01 | O52: =IF(ACCOUNTS!L52<>"",CONCATENATE(ACCOUNTS!$I52,"_",ACCOUNTS!L52)," ") ->  | P52: =IF(ACCOUNTS!M52<>"",CONCATENATE(ACCOUNTS!$I52,"_",ACCOUNTS!M52)," ") ->  | Q52: =IF(ACCOUNTS!N52<>"",CONCATENATE(ACCOUNTS!$I52,"_",ACCOUNTS!N52)," ") ->  | R52: =IF(ACCOUNTS!O52<>"",CONCATENATE(ACCOUNTS!$I52,"_",ACCOUNTS!O52)," ") ->  | S52: =IF(ACCOUNTS!P52<>"",CONCATENATE(ACCOUNTS!$I52,"_",ACCOUNTS!P52)," ") -> 
A53: =ACCOUNTS!A53 -> 366.02 | B53: =ACCOUNTS!B53 -> UG Conduit | C53: =ACCOUNTS!C53 -> 719001680.1 | D53: 0 | E53: =IF(ACCOUNTS!$J53="",0,$C53*(INDEX(INDIRECT(ACCOUNTS!$J53),1,E$2))) -> 719001680.1 | F53: =IF(ACCOUNTS!$J53="",0,$C53*(INDEX(INDIRECT(ACCOUNTS!$J53),1,F$2))) -> 0 | G53: =IF(ACCOUNTS!$J53="",0,$C53*(INDEX(INDIRECT(ACCOUNTS!$J53),1,G$2))) -> 0 | H53: =IF(ACCOUNTS!$J53="",0,$C53*(INDEX(INDIRECT(ACCOUNTS!$J53),1,H$2))) -> 0 | I53: =IF(ACCOUNTS!$J53="",0,$C53*(INDEX(INDIRECT(ACCOUNTS!$J53),1,I$2))) -> 0 | J53: =IF(ACCOUNTS!$J53="",0,$C53*(INDEX(INDIRECT(ACCOUNTS!$J53),1,J$2))) -> 0 | L53: =IF(ACCOUNTS!$R53="",0,$C53) -> 0 | N53: =IF(ACCOUNTS!K53<>"",CONCATENATE(ACCOUNTS!$I53,"_",ACCOUNTS!K53)," ") -> F_DISTR_UG_NCP | O53: =IF(ACCOUNTS!L53<>"",CONCATENATE(ACCOUNTS!$I53,"_",ACCOUNTS!L53)," ") ->  | P53: =IF(ACCOUNTS!M53<>"",CONCATENATE(ACCOUNTS!$I53,"_",ACCOUNTS!M53)," ") ->  | Q53: =IF(ACCOUNTS!N53<>"",CONCATENATE(ACCOUNTS!$I53,"_",ACCOUNTS!N53)," ") ->  | R53: =IF(ACCOUNTS!O53<>"",CONCATENATE(ACCOUNTS!$I53,"_",ACCOUNTS!O53)," ") ->  | S53: =IF(ACCOUNTS!P53<>"",CONCATENATE(ACCOUNTS!$I53,"_",ACCOUNTS!P53)," ") -> 
A54: =ACCOUNTS!A54 -> 367.01 | B54: =ACCOUNTS!B54 -> UG Conductor & Devices | C54: =ACCOUNTS!C54 -> 986578386.6 | D54: 0 | E54: =IF(ACCOUNTS!$J54="",0,$C54*(INDEX(INDIRECT(ACCOUNTS!$J54),1,E$2))) -> 986578386.6 | F54: =IF(ACCOUNTS!$J54="",0,$C54*(INDEX(INDIRECT(ACCOUNTS!$J54),1,F$2))) -> 0 | G54: =IF(ACCOUNTS!$J54="",0,$C54*(INDEX(INDIRECT(ACCOUNTS!$J54),1,G$2))) -> 0 | H54: =IF(ACCOUNTS!$J54="",0,$C54*(INDEX(INDIRECT(ACCOUNTS!$J54),1,H$2))) -> 0 | I54: =IF(ACCOUNTS!$J54="",0,$C54*(INDEX(INDIRECT(ACCOUNTS!$J54),1,I$2))) -> 0 | J54: =IF(ACCOUNTS!$J54="",0,$C54*(INDEX(INDIRECT(ACCOUNTS!$J54),1,J$2))) -> 0 | L54: =IF(ACCOUNTS!$R54="",0,$C54) -> 0 | N54: =IF(ACCOUNTS!K54<>"",CONCATENATE(ACCOUNTS!$I54,"_",ACCOUNTS!K54)," ") -> F_DISTR_UG_NCP | O54: =IF(ACCOUNTS!L54<>"",CONCATENATE(ACCOUNTS!$I54,"_",ACCOUNTS!L54)," ") ->  | P54: =IF(ACCOUNTS!M54<>"",CONCATENATE(ACCOUNTS!$I54,"_",ACCOUNTS!M54)," ") ->  | Q54: =IF(ACCOUNTS!N54<>"",CONCATENATE(ACCOUNTS!$I54,"_",ACCOUNTS!N54)," ") ->  | R54: =IF(ACCOUNTS!O54<>"",CONCATENATE(ACCOUNTS!$I54,"_",ACCOUNTS!O54)," ") ->  | S54: =IF(ACCOUNTS!P54<>"",CONCATENATE(ACCOUNTS!$I54,"_",ACCOUNTS!P54)," ") -> 
A55: =ACCOUNTS!A55 -> 368.01 | B55: =ACCOUNTS!B55 -> Line Transf OVHD | C55: =ACCOUNTS!C55 -> 173605063.3 | D55: 0 | E55: =IF(ACCOUNTS!$J55="",0,$C55*(INDEX(INDIRECT(ACCOUNTS!$J55),1,E$2))) -> 173605063.3 | F55: =IF(ACCOUNTS!$J55="",0,$C55*(INDEX(INDIRECT(ACCOUNTS!$J55),1,F$2))) -> 0 | G55: =IF(ACCOUNTS!$J55="",0,$C55*(INDEX(INDIRECT(ACCOUNTS!$J55),1,G$2))) -> 0 | H55: =IF(ACCOUNTS!$J55="",0,$C55*(INDEX(INDIRECT(ACCOUNTS!$J55),1,H$2))) -> 0 | I55: =IF(ACCOUNTS!$J55="",0,$C55*(INDEX(INDIRECT(ACCOUNTS!$J55),1,I$2))) -> 0 | J55: =IF(ACCOUNTS!$J55="",0,$C55*(INDEX(INDIRECT(ACCOUNTS!$J55),1,J$2))) -> 0 | L55: =IF(ACCOUNTS!$R55="",0,$C55) -> 0 | N55: =IF(ACCOUNTS!K55<>"",CONCATENATE(ACCOUNTS!$I55,"_",ACCOUNTS!K55)," ") -> F_DISTR_OH_TFMR | O55: =IF(ACCOUNTS!L55<>"",CONCATENATE(ACCOUNTS!$I55,"_",ACCOUNTS!L55)," ") ->  | P55: =IF(ACCOUNTS!M55<>"",CONCATENATE(ACCOUNTS!$I55,"_",ACCOUNTS!M55)," ") -> F_DISTR_OH_TFMRC | Q55: =IF(ACCOUNTS!N55<>"",CONCATENATE(ACCOUNTS!$I55,"_",ACCOUNTS!N55)," ") ->  | R55: =IF(ACCOUNTS!O55<>"",CONCATENATE(ACCOUNTS!$I55,"_",ACCOUNTS!O55)," ") ->  | S55: =IF(ACCOUNTS!P55<>"",CONCATENATE(ACCOUNTS!$I55,"_",ACCOUNTS!P55)," ") -> 
A56: =ACCOUNTS!A56 -> 368.02 | B56: =ACCOUNTS!B56 -> Line Transf UNGD | C56: =ACCOUNTS!C56 -> 318350548.3 | D56: 0 | E56: =IF(ACCOUNTS!$J56="",0,$C56*(INDEX(INDIRECT(ACCOUNTS!$J56),1,E$2))) -> 318350548.3 | F56: =IF(ACCOUNTS!$J56="",0,$C56*(INDEX(INDIRECT(ACCOUNTS!$J56),1,F$2))) -> 0 | G56: =IF(ACCOUNTS!$J56="",0,$C56*(INDEX(INDIRECT(ACCOUNTS!$J56),1,G$2))) -> 0 | H56: =IF(ACCOUNTS!$J56="",0,$C56*(INDEX(INDIRECT(ACCOUNTS!$J56),1,H$2))) -> 0 | I56: =IF(ACCOUNTS!$J56="",0,$C56*(INDEX(INDIRECT(ACCOUNTS!$J56),1,I$2))) -> 0 | J56: =IF(ACCOUNTS!$J56="",0,$C56*(INDEX(INDIRECT(ACCOUNTS!$J56),1,J$2))) -> 0 | L56: =IF(ACCOUNTS!$R56="",0,$C56) -> 0 | N56: =IF(ACCOUNTS!K56<>"",CONCATENATE(ACCOUNTS!$I56,"_",ACCOUNTS!K56)," ") -> F_DISTR_UG_TFMR | O56: =IF(ACCOUNTS!L56<>"",CONCATENATE(ACCOUNTS!$I56,"_",ACCOUNTS!L56)," ") ->  | P56: =IF(ACCOUNTS!M56<>"",CONCATENATE(ACCOUNTS!$I56,"_",ACCOUNTS!M56)," ") -> F_DISTR_UG_TFMRC | Q56: =IF(ACCOUNTS!N56<>"",CONCATENATE(ACCOUNTS!$I56,"_",ACCOUNTS!N56)," ") ->  | R56: =IF(ACCOUNTS!O56<>"",CONCATENATE(ACCOUNTS!$I56,"_",ACCOUNTS!O56)," ") ->  | S56: =IF(ACCOUNTS!P56<>"",CONCATENATE(ACCOUNTS!$I56,"_",ACCOUNTS!P56)," ") -> 
A57: =ACCOUNTS!A57 -> 368.03 | B57: =ACCOUNTS!B57 -> Line Transf Assigned | C57: =ACCOUNTS!C57 -> 7577844.977 | D57: 0 | E57: =IF(ACCOUNTS!$J57="",0,$C57*(INDEX(INDIRECT(ACCOUNTS!$J57),1,E$2))) -> 7577844.977 | F57: =IF(ACCOUNTS!$J57="",0,$C57*(INDEX(INDIRECT(ACCOUNTS!$J57),1,F$2))) -> 0 | G57: =IF(ACCOUNTS!$J57="",0,$C57*(INDEX(INDIRECT(ACCOUNTS!$J57),1,G$2))) -> 0 | H57: =IF(ACCOUNTS!$J57="",0,$C57*(INDEX(INDIRECT(ACCOUNTS!$J57),1,H$2))) -> 0 | I57: =IF(ACCOUNTS!$J57="",0,$C57*(INDEX(INDIRECT(ACCOUNTS!$J57),1,I$2))) -> 0 | J57: =IF(ACCOUNTS!$J57="",0,$C57*(INDEX(INDIRECT(ACCOUNTS!$J57),1,J$2))) -> 0 | L57: =IF(ACCOUNTS!$R57="",0,$C57) -> 0 | N57: =IF(ACCOUNTS!K57<>"",CONCATENATE(ACCOUNTS!$I57,"_",ACCOUNTS!K57)," ") -> F_DISTR_DIR368.03 | O57: =IF(ACCOUNTS!L57<>"",CONCATENATE(ACCOUNTS!$I57,"_",ACCOUNTS!L57)," ") ->  | P57: =IF(ACCOUNTS!M57<>"",CONCATENATE(ACCOUNTS!$I57,"_",ACCOUNTS!M57)," ") -> F_DISTR_DIR368.03C | Q57: =IF(ACCOUNTS!N57<>"",CONCATENATE(ACCOUNTS!$I57,"_",ACCOUNTS!N57)," ") ->  | R57: =IF(ACCOUNTS!O57<>"",CONCATENATE(ACCOUNTS!$I57,"_",ACCOUNTS!O57)," ") ->  | S57: =IF(ACCOUNTS!P57<>"",CONCATENATE(ACCOUNTS!$I57,"_",ACCOUNTS!P57)," ") -> 
A58: =ACCOUNTS!A58 -> 369.01 | B58: =ACCOUNTS!B58 -> Services - OVHD | C58: =ACCOUNTS!C58 -> 40889975.45 | D58: 0 | E58: =IF(ACCOUNTS!$J58="",0,$C58*(INDEX(INDIRECT(ACCOUNTS!$J58),1,E$2))) -> 0 | F58: =IF(ACCOUNTS!$J58="",0,$C58*(INDEX(INDIRECT(ACCOUNTS!$J58),1,F$2))) -> 0 | G58: =IF(ACCOUNTS!$J58="",0,$C58*(INDEX(INDIRECT(ACCOUNTS!$J58),1,G$2))) -> 40889975.45 | H58: =IF(ACCOUNTS!$J58="",0,$C58*(INDEX(INDIRECT(ACCOUNTS!$J58),1,H$2))) -> 0 | I58: =IF(ACCOUNTS!$J58="",0,$C58*(INDEX(INDIRECT(ACCOUNTS!$J58),1,I$2))) -> 0 | J58: =IF(ACCOUNTS!$J58="",0,$C58*(INDEX(INDIRECT(ACCOUNTS!$J58),1,J$2))) -> 0 | L58: =IF(ACCOUNTS!$R58="",0,$C58) -> 0 | N58: =IF(ACCOUNTS!K58<>"",CONCATENATE(ACCOUNTS!$I58,"_",ACCOUNTS!K58)," ") ->  | O58: =IF(ACCOUNTS!L58<>"",CONCATENATE(ACCOUNTS!$I58,"_",ACCOUNTS!L58)," ") ->  | P58: =IF(ACCOUNTS!M58<>"",CONCATENATE(ACCOUNTS!$I58,"_",ACCOUNTS!M58)," ") -> F_DISTR_OH_SVC | Q58: =IF(ACCOUNTS!N58<>"",CONCATENATE(ACCOUNTS!$I58,"_",ACCOUNTS!N58)," ") ->  | R58: =IF(ACCOUNTS!O58<>"",CONCATENATE(ACCOUNTS!$I58,"_",ACCOUNTS!O58)," ") ->  | S58: =IF(ACCOUNTS!P58<>"",CONCATENATE(ACCOUNTS!$I58,"_",ACCOUNTS!P58)," ") -> 
